Workbook

Sheet Overview
A1: Bridge Investment Program Benefit-Cost Analysis Tool (BIP BCA Tool v1.0.4 January 2024)
A2: ---------------------------------------------------------------------------------------------------------------------------------------------------------------------------------------------------------------
A3: What is the Bridge Investment Program BCA Tool?
A4: The Bridge Investment Program (BIP) is a discretionary grant program administered by the Federal Highway Administration (FHWA) and provides grants on a competitive basis to improve bridge condition and the safety, efficiency, and reliability of the movement of people and freight over bridges. Section 11118 of the Bipartisan Infrastructure Law (Pub. L. No. 117-58, Nov. 15, 2021), established the BIP, codified at 23 U.S.C. 124. BIP provides funding for replacement, rehabilitation, preservation, and protection of bridges to reduce the overall number of bridges in poor condition, or in fair condition at risk of falling into poor condition. For Bridge Projects under 23 U.S.C. 124, the USDOT FHWA is statutorily required to evaluate specific benefits including whether the benefits of a project outweigh the total project costs. There is a statutory requirement under 23 U.S.C. 124 that the USDOT FHWA evaluate whether a Large Bridge project is cost effective. The USDOT FHWA is also required under 23 U.S.C. 124(f)(1)(B) to develop a template for applicants to use to summarize these project needs and benefits and to enable BIP Bridge grant applicants to use data from the National Bridge Inventory under 23 U.S.C. 114(b) to populate the template. This Bridge Investment Program Benefit-Cost Analysis Tool (BIP BCA Tool) will allow applicants for either BIP Bridge or Large Bridge grants to summarize project costs and benefits, and obtain data from the NBI in preparation of the economic analysis required for both Bridge and Large Bridge applications. The applicants are encouraged but not required to use the Tool. The Tool is also used by USDOT reviewers to help validate applicant submissions. If an applicant’s benefit cost analysis deviates substantially from the bridge closure date, NBI Average Annual Daily Traffic (AADT), or other findings of the Tool then the applicant should address the cause of the deviation in their BCA technical submission. The default values in the Tool come from the USDOT Benefit Cost Analysis Guidance January 2024 Update. If an applicant changes the default values, then the applicant BCA memo needs to discuss the rational for the change. In addition to the NBI data, the Tool uses National Bridge Investment Analysis System (NBIAS) forecasts of bridge condition ratings, and emissions estimates from the EPA’s MOtor Vehicle Emission Simulator (MOVES)."
A5: =HYPERLINK("https://www.fhwa.dot.gov/bridge/nbi.cfm", "See NBI website for more details on the NBI data.") -> See NBI website for more details on the NBI data.
A6: =HYPERLINK("https://www.fhwa.dot.gov/policy/23cpr/appendixb.cfm", "See USDOT Conditions and Performance report for more details on NBIAS data.") -> See USDOT Conditions and Performance report for more details on NBIAS data.
A7: =HYPERLINK("https://fhwa.dot.gov/bridge/bip/bca/", "See BIP BCA tool Uer Manual Appendix B for more details on the NBIAS forecasts.") -> See BIP BCA tool Uer Manual Appendix B for more details on the NBIAS forecasts.
A8: -------------------------------------------------------------------------------------------------------------------------------------------------------------------------------------------------------------
A9: What You Need
A10: • Understanding of the project type and the general impacts of the bridge(s) in your project
A11: • Information to identify each bridge in the NBI, including State, County, and Structure Number.
A12: • Updates of NBI values for each bridge (such as AADT, detour length), if you don’t want to use the NBI data in this tool
A13: • The costs of the project, both capital and maintenance
A14: • Information specific to the benefits you’re claiming; some benefits may need information like annual average crashes, the annual probability of weather/seismic events, pedestrian and cyclists AADT.
A15: =HYPERLINK("https://www.transportation.gov/mission/office-secretary/office-policy/transportation-policy/benefit-cost-analysis-guidance", "See US DOT BCA Guidance for full details.") -> See US DOT BCA Guidance for full details.
A16: =HYPERLINK("https://fhwa.dot.gov/bridge/bip/bca/", "See BIP BCA tool page for more details.") -> See BIP BCA tool page for more details.
A17: ---------------------------------------------------------------------------------------------------------------------------------------------------------------------------------------------------------------
A18: State NBI Data Selection
A19: • Select the states that will be included in the analysis using the drop downs.
A20: • Use the "Select State NBI Data" button to keep only the state NBI data that will be used for the analysis. Note this may take up to 3 minutes to complete.
A21: ---------------------------------------------------------------------------------------------------------------------------------------------------------------------------------------------------------------
A22: Enter Benefits and Cost of Each Bridge
A23: • On the Example Bridge tab, click the Add New Bridge button at the top. This will create a new Bridge tab for input on a single bridge and ask you to give a name for the bridge.
A24: • Fill out the new Bridge tab for the bridge.
A25: • If a project concerns multiple bridges, click Add New Bridge for each bridge to include. Up to 250 bridges can be included in this tool.
A26: ---------------------------------------------------------------------------------------------------------------------------------------------------------------------------------------------------------------
A27: Conduct Sensitivity Analysis (if desired)
A28: Click the Add Sensitivity Analysis at the top of the tab for the bridge you want to conduct sensitivity analysis on (row 4 on any new bridge tab created). This will copy the bridge tab and all your inputs, adding "_sns" to the tab name. You can then change some inputs and compare their impact on the Results tab. On the Results tab, you can choose which tab of inputs to include in the completed benefit-cost analysis.
A29: ---------------------------------------------------------------------------------------------------------------------------------------------------------------------------------------------------------------
A30: Report Results
A31: • The Results tab to see the completed benefit-cost analysis of all bridges combined.
A32: • Provide descriptions of qualitative benefits from your project (if any) on the Results tab.
A33: • Report the BCR and NPV numbers on your application for the Bridge Investment Program.
A34: ---------------------------------------------------------------------------------------------------------------------------------------------------------------------------------------------------------------
A35: Hints
A36: • Required and unallowed Input.
A37: o Green, bold, and underlined cells represent mandatory user input cells. These cells require numeric input and cannot be left blank, or have “-“ or “N/A.” The most important cells have 'Required' in the input field for user awareness.
A38: o Blue, italic, and underlined cells represent optional user input cells.
A39: o Gray cells, plain text cells represent a cell that does not require user input, and should not be edited.
A40: • Deleting a Tab. If you mistakenly add a bridge tab, you can delete it with a button at the top of the bridge tab to be deleted.
A41: • Example Bridge. Review the Example Bridge tab to see the sort of inputs you need to make; it is not included in the Results by default.
A42: • Other Tabs. The Default tab and NBI tab may be viewed, but require no input from users.
A43: • User Guide. See user guide for more information including the calculation methodologies.
A44: ---------------------------------------------------------------------------------------------------------------------------------------------------------------------------------------------------------------
A45: =HYPERLINK('Select State NBI Data'!A1, "Go to 'State NBI Selection' tab") -> Go to 'State NBI Selection' tab
A46: ---------------------------------------------------------------------------------------------------------------------------------------------------------------------------------------------------------------
A47: About
A48: About BIP BCA Tool Version 1.0.4 Tool developed by: Jonathan Badgley (project lead), Joseph Reed, Kendall Mahavier, Sean Peirce and Don Pickrell U.S.DOT Volpe Center: 220 Binney Street, Cambridge, MA 02142 Project Sponsors: Karen White Economic Investment Strategies Team Office of the Assistant Secretary for Research and Technology, U.S. DOT 1200 New Jersey Avenue, SE Washington, DC 20590

Sheet Select State NBI Data (hidden)
A1: Select State NBI Data
A2: -
A3: Table 1. State NBI Data Selection
A4: State Number | B4: State | C4: NBI State ID
A5: State 1 | B5: Mississippi | C5: =_xlfn.IFNA(VLOOKUP('Select State NBI Data'!B5,NBI_Dropdown!$B$1:$D$54,3,FALSE), 0) -> 284
A6: State 2 | B6: - | C6: =_xlfn.IFNA(VLOOKUP('Select State NBI Data'!B6,NBI_Dropdown!$B$1:$D$54,3,FALSE), 0) -> 0
A7: State 3 | B7: - | C7: =_xlfn.IFNA(VLOOKUP('Select State NBI Data'!B7,NBI_Dropdown!$B$1:$D$54,3,FALSE), 0) -> 0
A8: Select State NBI Data (press Ctrl + Shift + I)
A9: Note: The command may take a few minutes to filter and process the data. Do not enter commands or close Excel before the command has finished.
A10: Note: Considering saving using "Save As" before selecting the state NBI data so that your original download file is not overwritten, as the Select State NBI Data command cannot be undone.

Sheet Example Bridge
A1: Bridge and Project Overview
A2: ID of bridge, description of improvement, project timeline, traffic volume
A3: Add New Bridge (press Ctrl + Shift + B)
A4: -
A5: -
A6: -
A7: -
A8: -
A9: Table 1. Bridge Variables
A10: Bridge Variables | B10: Bridge Values
A11: State | B11: Mississippi
A12: County | B12: Carroll
A13: Structure Number | B13: 210005100816820
A14: Inventory Route | B14: =VLOOKUP($C$80,NBIData[],COLUMN(NBIData[ROUTE_NUMBER_005D]),FALSE) -> 00051
A15: Feature Intersected | B15: =VLOOKUP($C$80,NBIData[],COLUMN(NBIData[FEATURES_DESC_006A]),FALSE) -> 'CREEK'
A16: Facility Carried | B16: =VLOOKUP($C$80,NBIData[],COLUMN(NBIData[FACILITY_CARRIED_007]),FALSE) -> 'US 51'
A17: Latitude | B17: =LEFT(VLOOKUP($C$80,NBIData[],COLUMN(NBIData[LAT_016]),FALSE), 2) & CHAR(176) & " " & MID(VLOOKUP($C$80,NBIData[],COLUMN(NBIData[LAT_016]),FALSE), 3, 2) &"'" & " " & MID(VLOOKUP($C$80,NBIData[],COLUMN(NBIData[LAT_016]),FALSE), 5, 2) &"."& MID(VLOOKUP($C$80,NBIData[],COLUMN(NBIData[LAT_016]),FALSE), 7, 2) & CHAR(34) -> 33° 14' 17.30"
A18: Longitude | B18: ="-" & MID(VLOOKUP($C$80,NBIData[],COLUMN(NBIData[LONG_017]),FALSE), 2, 2) & CHAR(176) & " " & MID(VLOOKUP($C$80,NBIData[],COLUMN(NBIData[LONG_017]),FALSE), 4, 2) &"'" & " " & MID(VLOOKUP($C$80,NBIData[],COLUMN(NBIData[LONG_017]),FALSE), 6, 2) &"."& MID(VLOOKUP($C$80,NBIData[],COLUMN(NBIData[LONG_017]),FALSE), 8, 2) & CHAR(34) -> -89° 45' 07.64"
A19: Bridge Length (mi) | B19: =VLOOKUP($C$80,NBIData[],COLUMN(NBIData[STRUCTURE_LEN_MT_049]),FALSE)/1609 -> 0.01
A20: Bypass, Detour Length (mi) | B20: =VLOOKUP($C$80,NBIData[],COLUMN(NBIData[DETOUR_KILOS_019]),FALSE)*0.621371 -> 6.21
A21: Owner | B21: =VLOOKUP($C$80,NBIData[],COLUMN(NBIData[OWNER_022]),FALSE) -> 01
A22: Functional Class, Rural/Urban | B22: =VLOOKUP($C$80,NBIData[],COLUMN(NBIData[FUNCTIONAL_CLASS_026]),FALSE) -> 07
A23: Bridge Road Type | B23: =VLOOKUP(B22,Defaults!A359:$D$371, 2, FALSE) -> Rural - Major Collector
A24: Year Built | B24: =VLOOKUP($C$80,NBIData[],COLUMN(NBIData[YEAR_BUILT_027]),FALSE) -> 1937
A25: Year Reconstructed | B25: =VLOOKUP($C$80,NBIData[],COLUMN(NBIData[YEAR_RECONSTRUCTED_106]),FALSE) -> 0
A26: Lanes on the Structure | B26: =VLOOKUP($C$80,NBIData[],COLUMN(NBIData[TRAFFIC_LANES_ON_028A]),FALSE) -> 2
A27: Note: Some bridges have the same structure number. Use the state and county drop downs to identify your bridge.
A28: -
A29: Project Description:
A30: Table 2. Project Timeline
A31: Timeline Variables | B31: Timeline Values
A32: Current Year | B32: 2023
A33: First Year of Construction Costs | B33: 2024
A34: Last Year of Construction Costs | B34: 2027
A35: Project Opens (Start of Benefits) | B35: 2028
A36: Years of Benefits for Analysis | B36: 30
A37: First Year of Period of Analysis | B37: =IF(B35="Required","-", B35) -> 2028
A38: Last Year of Period of Analysis | B38: =IFERROR(B35+B36-1, "-") -> 2057
A39: Discount Year | B39: =Defaults!A290 -> 2022
A40: Base Year of NBI | B40: 2023
A41: Note: The tool cannot handle partial years, or pro-rata benefits or costs. Round up or down to the nearest year for construction start, construction end, and the start of benefits.
A42: Note: Enter a value between 20 to 30 for the Years of Benefits for Analysis, appropriate to the project as defined by US DOT BCA Guidance.
A43: -
A44: Table 3. Average Annual Daily Traffic (AADT)
A45: Scenario and Mode | B45: NBI Year of AADT | C45: NBI Year of Future AADT | D45: Forecast using NBI Growth Rate | E45: Forecast using NBI Growth Rate2 | F45: Project Opens | G45: Last Year | H45: Explanation and Source
A46: Year | B46: =VLOOKUP($C$80,NBIData[],COLUMN(NBIData[YEAR_ADT_030]),FALSE) -> 2020 | C46: =VLOOKUP($C$80,NBIData[],COLUMN(NBIData[YEAR_OF_FUTURE_ADT_115]),FALSE) -> 2041 | D46: =IF(B35="Required","-",B35) -> 2028 | E46: =B38 -> 2057 | F46: =IF(B35="Required", "-",B35) -> 2028 | G46: =B38 -> 2057 | H46: N/A
A47: No Build - Passenger AADT | B47: =VLOOKUP($C$80,NBIData[],COLUMN(NBIData[ADT_029]),FALSE)*(1-VLOOKUP($C$80,NBIData[],COLUMN(NBIData[PERCENT_ADT_TRUCK_109]),FALSE)/100) -> 427 | C47: =VLOOKUP($C$80,NBIData[],COLUMN(NBIData[FUTURE_ADT_114]),FALSE)*(1-VLOOKUP($C$80,NBIData[],COLUMN(NBIData[PERCENT_ADT_TRUCK_109]),FALSE)/100) -> 427 | D47: =ROUND(B47*((1+B59)^(D$46-$B$46)),0) -> 427 | E47: =ROUND(C47*((1+B59)^(E$46-$C$46)),0) -> 427 | F47: =D47 -> 427 | G47: =E47-G49 -> 403 | H47: Use growth rate of comparing 2020 and 2010 decennial census growth rate
A48: No Build - Truck AADT | B48: =VLOOKUP($C$80,NBIData[],COLUMN(NBIData[PERCENT_ADT_TRUCK_109]),FALSE)/100*VLOOKUP($C$80,NBIData[],COLUMN(NBIData[ADT_029]),FALSE) -> 53 | C48: =VLOOKUP($C$80,NBIData[],COLUMN(NBIData[PERCENT_ADT_TRUCK_109]),FALSE)/100*VLOOKUP($C$80,NBIData[],COLUMN(NBIData[FUTURE_ADT_114]),FALSE) -> 53 | D48: =ROUND(B48*((1+B59)^(D$46-$B$46)),0) -> 53 | E48: =ROUND(C48*((1+B59)^(E$46-$C$46)),0) -> 53 | F48: =D48 -> 53 | G48: =E48 -> 53 | H48: -
A49: No Build - Bus AADT | B49: N/A | C49: N/A | D49: N/A | E49: N/A | F49: =SUM(B47:B48)*0.05 -> 24 | G49: =SUM(C47:C48)*0.05 -> 24 | H49: Transit service from MPO study (provided as BCA appendix)
A50: Build - Passenger AADT | B50: =B47 -> 427 | C50: =C47 -> 427 | D50: =ROUND(B50*((1+B59)^(D$46-$B$46)),0) -> 427 | E50: =ROUND(C50*((1+B59)^(E$46-$C$46)),0) -> 427 | F50: =D50 -> 427 | G50: =E50-G52 -> 403 | H50: Use growth rate of comparing 2020 and 2010 decennial census growth rate
A51: Build - Truck AADT | B51: =B48 -> 53 | C51: =C48 -> 53 | D51: =ROUND(B51*((1+B59)^(D$46-$B$46)),0) -> 53 | E51: =ROUND(C51*((1+B59)^(E$46-$C$46)),0) -> 53 | F51: =D51 -> 53 | G51: =E51 -> 53 | H51: -
A52: Build - Bus AADT | B52: N/A | C52: N/A | D52: N/A | E52: N/A | F52: =SUM(B50:B51)*0.05 -> 24 | G52: =SUM(C50:C51)*0.05 -> 24 | H52: Transit service from MPO study (provided as BCA appendix)
A53: =HYPERLINK("#A542","Note: AADT can be entered manually in Table 52 and Table 53 below.") -> Note: AADT can be entered manually in Table 52 and Table 53 below.
A54: Note: Here and elsewhere in the tool it is critical that you enter at least some value in the required cells, e.g., 0, rather than "-", "N/A" or leaving it blank.
A55: Note: NBI AADT values are added for reference in Table 3. Users must enter AADT values in Columns G, H and I in Table 3.
A56: -
A57: Note: Table 4 is not a user input. Do not adjust Table 4.
A58: Table 4. NBI's Calculated Average Annual Daily Traffic (AADT) Growth Rate
A59: =CONCATENATE("The NBI Calculated Annual Growth Rate", " ", B46, "-",C46, " (NBI)") -> The NBI Calculated Annual Growth Rate 2020-2041 (NBI) | B59: =(C47/B47)^(1/(C$46-B$46))-1 -> $0
A60: -
A61: Table 5. Detour Road Type
A62: Detour Road Type | B62: Rural - Principal Arterial - Interstate
A63: Detour Road Type - Simple | B63: =IF(B62="Required", "-",IF(ISNUMBER(SEARCH("Urban",B62)), "Urban", "Rural")) -> Rural
A64: -
A65: Note: Detour length should represent the Net detour: Detour length minus the original route length.
A66: Table 6. Detour and Bridge Length Information
A67: Detour Details | B67: Reference | C67: User Value | D67: Explanation and Source
A68: Net Detour Length, For Vehicles (mi) (NBI) | B68: =ROUND(VLOOKUP($C$80,NBIData[],COLUMN(NBIData[DETOUR_KILOS_019]),FALSE)*0.621371,1) -> 6.2 | C68: 2.5 | D68: -
A69: Detour Average Speed, for Vehicles (mph) (FHWA VHT) | B69: =ROUND(VLOOKUP(B62,Defaults!B359:F371,2, FALSE),1) -> 66.0 | C69: 60.0 | D69: Average speeds lower than FHWA proposed average for bridge road type.
A70: Net Detour Length, For Cycling/ Pedestrian (mi) (NBI) | B70: =ROUND(VLOOKUP($C$80,NBIData[],COLUMN(NBIData[DETOUR_KILOS_019]),FALSE)*0.621371, 1) -> 6.2 | C70: 0.5 | D70: Pedestrian and bicycle accessible crossing near bridge.
A71: Detour Average Travel Time (min) | B71: =B68/B69*60 -> 5.6 | C71: =C68/C69*60 -> 2.5 | D71: N/A
A72: Bridge Length (mi) | B72: =ROUND(B19,2) -> 0.01 | C72: 0.16 | D72: -
A73: Note: Google or HPMS data are preferred for identifying average speed on the detour route. You can also use the HERS/VHT speed values using the Detour Road Type dropdown below.
A74: Note: Bridge length in the NBI does not include the approach length. Include approach length if relevant for your project.
A75: =HYPERLINK("https://www.google.com/maps", "Use Google Maps to calculate detour route length and average speed, as appropriate.") -> Use Google Maps to calculate detour route length and average speed, as appropriate.
A76: =HYPERLINK("https://www.fhwa.dot.gov/policyinformation/hpms.cfm", "Use the Highway Performance Monitoring System (HPMS) data to calculate detour route length and average speed, as appropriate.") -> Use the Highway Performance Monitoring System (HPMS) data to calculate detour route length and average speed, as appropriate.
A77: -
A78: Note: These reference cells are marked to avoid accidental deletion.
A79: Table 7. Reference Table
A80: Reference Cells | B80: =CONCATENATE(B11,B12) -> MississippiCarroll | C80: =CONCATENATE(VLOOKUP($B$11,NBI_Dropdown!$B$1:$D$56,3,FALSE),$B$13) -> 284210005100816820
A81: -
A82: Table 8. Travel Assumptions
A83: Parameters | B83: Reference | C83: User Value | D83: Explanation and Source
A84: Bridge Average Speed (FHWA) | B84: =_xlfn.IFNA(VLOOKUP(B23,Defaults!B359:C371,2, FALSE), "N/A") -> 47 | C84: 60 | D84: -
A85: Average Car Occupancy | B85: =Defaults!B51 -> 1.67 | C85: 1.67 | D85: -
A86: Share of Long-Distance Personal Travel | B86: 0.0% | C86: 0% | D86: -
A87: Value of Time - Long-Distance Personal Travel | B87: =Defaults!B35 -> $25.10 | C87: $47.70 | D87: -
A88: Share of Business Travel | B88: 11.8% | C88: 11.8% | D88: -
A89: Value of Travel Time - Business | B89: =Defaults!B33 -> $32.30 | C89: $32.30 | D89: -
A90: Value of Travel Time - Personal | B90: =Defaults!B32 -> $17.90 | C90: $17.90 | D90: -
A91: Value of Travel Time - All Purposes | B91: =ROUND(B86*B87+B88*B89+(1-B86-B88)*B90,1) -> $19.60 | C91: =IFERROR(ROUND(C86*C87+C88*C89+(1-C86-C88)*C90,1),"-") -> $19.60 | D91: -
A92: Walking, Cycling, Waiting, Standing, and Transfer Time | B92: =Defaults!B36 -> $35.80 | C92: $35.80 | D92: -
A93: Truck Driver | B93: =Defaults!B39 -> $33.50 | C93: $33.50 | D93: -
A94: Bus Driver | B94: =Defaults!B40 -> $36.50 | C94: $36.50 | D94: -
A95: Average Bus Occupancy | B95: 0 | C95: 10 | D95: Data from MyCounty Transportation Authority
A96: -
A97: Capital Cost and Residual Value
A98: Table 9. Expenditure Dollars Option
A99: Are costs entered in year of expenditure dollars (not adjusted for inflation)? | B99: NO
A100: Enter future inflation rate for capital costs. | B100: 0%
A101: Note: Capital costs can be entered in year of expenditure dollars or in real dollars. The tool applies inflation and discounting factors automatically if entered as year of expenditure dollars.
A102: -
A103: Table 10. Already Incurred Costs
A104: Year | B104: Costs | C104: Real Costs | D104: Discounted Costs
A105: 2022 | B105: $100,000 | C105: =IF($B$99="NO",B105,IFERROR(B105*(IF(A105>$B$39, 1/((1+$B$100)^(A105-$B$39)),VLOOKUP(A105,Defaults!$A$134:$B$192, 2,FALSE))),"-")) -> $100,000 | D105: =IFERROR(IF(A105="","",IF(A105<=2020, C105, C105*VLOOKUP(A105,Defaults!$A$290:$B$340, 2,FALSE))),"-") -> $100,000
A106: 2023 | B106: $100,000 | C106: =IF($B$99="NO",B106,IFERROR(B106*(IF(A106>$B$39, 1/((1+$B$100)^(A106-$B$39)),VLOOKUP(A106,Defaults!$A$134:$B$192, 2,FALSE))),"-")) -> $100,000 | D106: =IFERROR(IF(A106="","",IF(A106<=2020, C106, C106*VLOOKUP(A106,Defaults!$A$290:$B$340, 2,FALSE))),"-") -> $96,993
A107: - | B107: - | C107: =IF($B$99="NO",B107,IFERROR(B107*(IF(A107>$B$39, 1/((1+$B$100)^(A107-$B$39)),VLOOKUP(A107,Defaults!$A$134:$B$192, 2,FALSE))),"-")) -> - | D107: =IFERROR(IF(A107="","",IF(A107<=2020, C107, C107*VLOOKUP(A107,Defaults!$A$290:$B$340, 2,FALSE))),"-") -> -
A108: - | B108: - | C108: =IF($B$99="NO",B108,IFERROR(B108*(IF(A108>$B$39, 1/((1+$B$100)^(A108-$B$39)),VLOOKUP(A108,Defaults!$A$134:$B$192, 2,FALSE))),"-")) -> - | D108: =IFERROR(IF(A108="","",IF(A108<=2020, C108, C108*VLOOKUP(A108,Defaults!$A$290:$B$340, 2,FALSE))),"-") -> -
A109: - | B109: - | C109: =IF($B$99="NO",B109,IFERROR(B109*(IF(A109>$B$39, 1/((1+$B$100)^(A109-$B$39)),VLOOKUP(A109,Defaults!$A$134:$B$192, 2,FALSE))),"-")) -> - | D109: =IFERROR(IF(A109="","",IF(A109<=2020, C109, C109*VLOOKUP(A109,Defaults!$A$290:$B$340, 2,FALSE))),"-") -> -
A110: - | B110: - | C110: =IF($B$99="NO",B110,IFERROR(B110*(IF(A110>$B$39, 1/((1+$B$100)^(A110-$B$39)),VLOOKUP(A110,Defaults!$A$134:$B$192, 2,FALSE))),"-")) -> - | D110: =IFERROR(IF(A110="","",IF(A110<=2020, C110, C110*VLOOKUP(A110,Defaults!$A$290:$B$340, 2,FALSE))),"-") -> -
A111: - | B111: - | C111: =IF($B$99="NO",B111,IFERROR(B111*(IF(A111>$B$39, 1/((1+$B$100)^(A111-$B$39)),VLOOKUP(A111,Defaults!$A$134:$B$192, 2,FALSE))),"-")) -> - | D111: =IFERROR(IF(A111="","",IF(A111<=2020, C111, C111*VLOOKUP(A111,Defaults!$A$290:$B$340, 2,FALSE))),"-") -> -
A112: - | B112: - | C112: =IF($B$99="NO",B112,IFERROR(B112*(IF(A112>$B$39, 1/((1+$B$100)^(A112-$B$39)),VLOOKUP(A112,Defaults!$A$134:$B$192, 2,FALSE))),"-")) -> - | D112: =IFERROR(IF(A112="","",IF(A112<=2020, C112, C112*VLOOKUP(A112,Defaults!$A$290:$B$340, 2,FALSE))),"-") -> -
A113: - | B113: - | C113: =IF($B$99="NO",B113,IFERROR(B113*(IF(A113>$B$39, 1/((1+$B$100)^(A113-$B$39)),VLOOKUP(A113,Defaults!$A$134:$B$192, 2,FALSE))),"-")) -> - | D113: =IFERROR(IF(A113="","",IF(A113<=2020, C113, C113*VLOOKUP(A113,Defaults!$A$290:$B$340, 2,FALSE))),"-") -> -
A114: - | B114: - | C114: =IF($B$99="NO",B114,IFERROR(B114*(IF(A114>$B$39, 1/((1+$B$100)^(A114-$B$39)),VLOOKUP(A114,Defaults!$A$134:$B$192, 2,FALSE))),"-")) -> - | D114: =IFERROR(IF(A114="","",IF(A114<=2020, C114, C114*VLOOKUP(A114,Defaults!$A$290:$B$340, 2,FALSE))),"-") -> -
A115: - | B115: - | C115: =IF($B$99="NO",B115,IFERROR(B115*(IF(A115>$B$39, 1/((1+$B$100)^(A115-$B$39)),VLOOKUP(A115,Defaults!$A$134:$B$192, 2,FALSE))),"-")) -> - | D115: =IFERROR(IF(A115="","",IF(A115<=2020, C115, C115*VLOOKUP(A115,Defaults!$A$290:$B$340, 2,FALSE))),"-") -> -
A116: -
A117: Table 11. Capital Costs
A118: Year | B118: Costs | C118: Real Costs | D118: Discounted Costs
A119: =IFERROR(IF($B$33="-", "N/A", $B$33),"N/A") -> 2024 | B119: $5,000,000 | C119: =IF($B$99="NO",B119,IFERROR(B119*(IF(A119>$B$39, 1/(1+$B$100)^(A119-$B$39),VLOOKUP(A119,Defaults!$A$134:$B$192, 2,FALSE))),"-")) -> $5,000,000 | D119: =IFERROR(IF(A119="N/A","-",C119*VLOOKUP(A119,Defaults!$A$290:$B$340, 2,FALSE)),"-") -> $4,703,841
A120: =IFERROR(IF(A119="N/A","N/A",IF(A119>=$B$34,"N/A",A119+1)),"") -> 2025 | B120: $5,000,000 | C120: =IF($B$99="NO",B120,IFERROR(B120*(IF(A120>$B$39, 1/(1+$B$100)^(A120-$B$39),VLOOKUP(A120,Defaults!$A$134:$B$192, 2,FALSE))),"-")) -> $5,000,000 | D120: =IFERROR(IF(A120="N/A","-",C120*VLOOKUP(A120,Defaults!$A$290:$B$340, 2,FALSE)),"-") -> $4,562,407
A121: =IF(A120="N/A","N/A",IF(A120>=$B$34,"N/A",A120+1)) -> 2026 | B121: $10,000,000 | C121: =IF($B$99="NO",B121,IFERROR(B121*(IF(A121>$B$39, 1/(1+$B$100)^(A121-$B$39),VLOOKUP(A121,Defaults!$A$134:$B$192, 2,FALSE))),"-")) -> $10,000,000 | D121: =IFERROR(IF(A121="N/A","-",C121*VLOOKUP(A121,Defaults!$A$290:$B$340, 2,FALSE)),"-") -> $8,850,450
A122: 2027 | B122: $10,000,000 | C122: =IF($B$99="NO",B122,IFERROR(B122*(IF(A122>$B$39, 1/(1+$B$100)^(A122-$B$39),VLOOKUP(A122,Defaults!$A$134:$B$192, 2,FALSE))),"-")) -> $10,000,000 | D122: =IFERROR(IF(A122="N/A","-",C122*VLOOKUP(A122,Defaults!$A$290:$B$340, 2,FALSE)),"-") -> $8,584,335
A123: N/A | B123: - | C123: =IF($B$99="NO",B123,IFERROR(B123*(IF(A123>$B$39, 1/(1+$B$100)^(A123-$B$39),VLOOKUP(A123,Defaults!$A$134:$B$192, 2,FALSE))),"-")) -> - | D123: =IFERROR(IF(A123="N/A","-",C123*VLOOKUP(A123,Defaults!$A$290:$B$340, 2,FALSE)),"-") -> -
A124: N/A | B124: - | C124: =IF($B$99="NO",B124,IFERROR(B124*(IF(A124>$B$39, 1/(1+$B$100)^(A124-$B$39),VLOOKUP(A124,Defaults!$A$134:$B$192, 2,FALSE))),"-")) -> - | D124: =IFERROR(IF(A124="N/A","-",C124*VLOOKUP(A124,Defaults!$A$290:$B$340, 2,FALSE)),"-") -> -
A125: N/A | B125: - | C125: =IF($B$99="NO",B125,IFERROR(B125*(IF(A125>$B$39, 1/(1+$B$100)^(A125-$B$39),VLOOKUP(A125,Defaults!$A$134:$B$192, 2,FALSE))),"-")) -> - | D125: =IFERROR(IF(A125="N/A","-",C125*VLOOKUP(A125,Defaults!$A$290:$B$340, 2,FALSE)),"-") -> -
A126: N/A | B126: - | C126: =IF($B$99="NO",B126,IFERROR(B126*(IF(A126>$B$39, 1/(1+$B$100)^(A126-$B$39),VLOOKUP(A126,Defaults!$A$134:$B$192, 2,FALSE))),"-")) -> - | D126: =IFERROR(IF(A126="N/A","-",C126*VLOOKUP(A126,Defaults!$A$290:$B$340, 2,FALSE)),"-") -> -
A127: N/A | B127: - | C127: =IF($B$99="NO",B127,IFERROR(B127*(IF(A127>$B$39, 1/(1+$B$100)^(A127-$B$39),VLOOKUP(A127,Defaults!$A$134:$B$192, 2,FALSE))),"-")) -> - | D127: =IFERROR(IF(A127="N/A","-",C127*VLOOKUP(A127,Defaults!$A$290:$B$340, 2,FALSE)),"-") -> -
A128: N/A | B128: - | C128: =IF($B$99="NO",B128,IFERROR(B128*(IF(A128>$B$39, 1/(1+$B$100)^(A128-$B$39),VLOOKUP(A128,Defaults!$A$134:$B$192, 2,FALSE))),"-")) -> - | D128: =IFERROR(IF(A128="N/A","-",C128*VLOOKUP(A128,Defaults!$A$290:$B$340, 2,FALSE)),"-") -> -
A129: N/A | B129: - | C129: =IF($B$99="NO",B129,IFERROR(B129*(IF(A129>$B$39, 1/(1+$B$100)^(A129-$B$39),VLOOKUP(A129,Defaults!$A$134:$B$192, 2,FALSE))),"-")) -> - | D129: =IFERROR(IF(A129="N/A","-",C129*VLOOKUP(A129,Defaults!$A$290:$B$340, 2,FALSE)),"-") -> -
A130: -
A131: Table 12. Capital Cost Summary
A132: Total Capital Costs: | B132: =SUM(B105:B115)+SUM(B119:B129) -> $30,200,000
A133: Total Real Capital Costs: | B133: =SUM(C105:C115)+SUM(C119:C129) -> $30,200,000
A134: Total Discounted Capital Costs: | B134: =SUM(D105:D115)+SUM(D119:D129) -> $26,898,027
A135: -
A136: Table 13. Residual Value
A137: Share of Capital Costs | B137: Asset Life (Years) | C137: Explanation and Source
A138: 100% | B138: 40 | C138: The improvement has an expected life of 40 years at which point it would need to be redeployed, or a new bridge constructed
A139: 0% | B139: 0 | C139: -
A140: 0% | B140: 0 | C140: -
A141: 0% | B141: 0 | C141: -
A142: =SUM(A138:A141) -> 100% | B142: Summation | C142: N/A
A143: Note: If there are multiple components of the project for this specific bridge that different asset lives, enter the share of the project costs associated with the different project components and their asset life.
A144: Note: The Summation cell should be 100%.
A145: -
A146: Operating and Maintenance Costs (O&M)
A147: Table 14. Operating and Maintenance Costs Assumptions
A148: Which method would you like to use to enter O&M costs? | B148: Manual Entry
A149: Year of O&M costs Dollars | B149: 2022
A150: Note: If you have O&M costs in the construction period you will need to use the manual entry option to enter the O&M costs in the construction period.
A151: Note: The maintenance costs in the baseline should be entered to be consistent with your estimate of closure. If the bridge is closed in a future year (Table 25), there should not be maintenance costs for that year and thereafter.
A152: Note: For frequency calculation option, all costs should be entered as year of expenditure. The tool applies inflation and discounting factors automatically.
A153: -
A154: Table 15. Annual O&M Calculation Input
A155: Category | B155: Value
A156: Annual O&M Costs in the No Build Scenario | B156: -
A157: Annual O&M Costs Real Growth Rate in the No Build Scenario | B157: 0%
A158: Annual O&M Costs in the Build Scenario | B158: -
A159: Annual O&M Costs Real Growth Rate in the Build Scenario | B159: 0%
A160: Note: The maintenance real growth rate represents the real cost increases year over year (e.g., from increased deterioration of the asset). It should not include inflation adjustments.
A161: -
A162: Table 16a. Intermittent O&M Calculation Input
A163: Category | B163: Value
A164: Initial year | B164: -
A165: Last Year | B165: -
A166: Occurs every _____ Years; set to 30 if occurs only once | B166: 1
A167: Annual O&M Costs in the No Build Scenario | B167: -
A168: Annual O&M Costs Real Growth Rate in the Build Scenario | B168: -
A169: -
A170: Table 16b. Intermittent O&M Calculation Input
A171: Category | B171: Value
A172: Initial year | B172: -
A173: Last Year | B173: -
A174: Occurs every _____ Years; set to 30 if occurs only once | B174: 1
A175: Annual O&M Costs in the No Build Scenario | B175: -
A176: Annual O&M Costs Real Growth Rate in the Build Scenario | B176: -
A177: -
A178: Table 16c. Intermittent O&M Calculation Input
A179: Category | B179: Value
A180: Initial year | B180: -
A181: Last Year | B181: -
A182: Occurs every _____ Years; set to 30 if occurs only once | B182: 1
A183: Annual O&M Costs in the No Build Scenario | B183: -
A184: Annual O&M Costs Real Growth Rate in the Build Scenario | B184: -
A185: -
A186: Table 16d. Intermittent O&M Calculation Input
A187: Category | B187: Value
A188: Initial year | B188: -
A189: Last Year | B189: -
A190: Occurs every _____ Years; set to 30 if occurs only once | B190: 1
A191: Annual O&M Costs in the No Build Scenario | B191: -
A192: Annual O&M Costs Real Growth Rate in the Build Scenario | B192: -
A193: Note: The "Occurs every _____ " field in Tables 16a through 16d must be greater than or equal to 1, even if you are not adding an additional recurring maintenance cost.
A194: -
A195: Note: Manual O&M cost values should be entered in the year of dollar entered in Table 14.
A196: Table 17. Manual O&M Cost Entry
A197: Calendar Year | B197: Analysis Year | C197: No Build Annual Cost | D197: Build Annual Cost | E197: Discounted O&M Costs
A198: =IFERROR(IF(B32="Required","N/A",B32),"N/A") -> 2023 | B198: =IFERROR(IF(A198=$B$35,1,IF(A198>$B$35,A198-$B$35+1,IF(A198<$B$35,A198-$B$35+1,"N/A"))),"N/A") -> -4 | C198: $10,000.00 | D198: $1,000.00 | E198: =IFERROR((C198-D198)*VLOOKUP($B$149,Defaults!$A$290:$B$340, 2,FALSE)*VLOOKUP(A198,Defaults!$A$290:$B$340,2,FALSE),0) -> $8,729.39
A199: =IF(A198="N/A","N/A",IF(A198>=$B$35+$B$36-1,"N/A",A198+1)) -> 2024 | B199: -3 | C199: 0 | D199: 0 | E199: =IFERROR((C199-D199)*VLOOKUP($B$149,Defaults!$A$290:$B$340, 2,FALSE)*VLOOKUP(A199,Defaults!$A$290:$B$340,2,FALSE),0) -> 0
A200: =IF(A199="N/A","N/A",IF(A199>=$B$35+$B$36-1,"N/A",A199+1)) -> 2025 | B200: -2 | C200: 0 | D200: 0 | E200: =IFERROR((C200-D200)*VLOOKUP($B$149,Defaults!$A$290:$B$340, 2,FALSE)*VLOOKUP(A200,Defaults!$A$290:$B$340,2,FALSE),0) -> 0
... 495 more rows

Sheet Blank Bridge (hidden)
A1: Bridge and Project Overview
A2: ID of bridge, description of improvement, project timeline, traffic volume
A3: Add New Bridge (press Ctrl + Shift + B)
A4: Add Sensitivity Analysis for Current Bridge (press Ctrl + Shift + S)
A5: Delete this Bridge (press Ctrl + Shift + D)
A6: Note: Only delete bridges using this command/button. Deleting bridge tabs through right click will result in (fixable) errors on the Results tab.
A7: Change Bridge Name (press Ctrl + Shift + N)
A8: -
A9: Table 1. Bridge Variables
A10: Bridge Variables | B10: Bridge Values
A11: State | B11: Required
A12: County | B12: Required
A13: Structure Number | B13: Required
A14: Inventory Route | B14: =VLOOKUP($C$80,NBIData[],COLUMN(NBIData[ROUTE_NUMBER_005D]),FALSE) -> 
A15: Feature Intersected | B15: =VLOOKUP($C$80,NBIData[],COLUMN(NBIData[FEATURES_DESC_006A]),FALSE) -> 
A16: Facility Carried | B16: =VLOOKUP($C$80,NBIData[],COLUMN(NBIData[FACILITY_CARRIED_007]),FALSE) -> 
A17: Latitude | B17: =LEFT(VLOOKUP($C$80,NBIData[],COLUMN(NBIData[LAT_016]),FALSE), 2) & CHAR(176) & " " & MID(VLOOKUP($C$80,NBIData[],COLUMN(NBIData[LAT_016]),FALSE), 3, 2) &"'" & " " & MID(VLOOKUP($C$80,NBIData[],COLUMN(NBIData[LAT_016]),FALSE), 5, 2) &"."& MID(VLOOKUP($C$80,NBIData[],COLUMN(NBIData[LAT_016]),FALSE), 7, 2) & CHAR(34) -> 
A18: Longitude | B18: ="-" & MID(VLOOKUP($C$80,NBIData[],COLUMN(NBIData[LONG_017]),FALSE), 2, 2) & CHAR(176) & " " & MID(VLOOKUP($C$80,NBIData[],COLUMN(NBIData[LONG_017]),FALSE), 4, 2) &"'" & " " & MID(VLOOKUP($C$80,NBIData[],COLUMN(NBIData[LONG_017]),FALSE), 6, 2) &"."& MID(VLOOKUP($C$80,NBIData[],COLUMN(NBIData[LONG_017]),FALSE), 8, 2) & CHAR(34) -> 
A19: Bridge Length (mi) | B19: =VLOOKUP($C$80,NBIData[],COLUMN(NBIData[STRUCTURE_LEN_MT_049]),FALSE)/1609 -> 
A20: Bypass, Detour Length (mi) | B20: =VLOOKUP($C$80,NBIData[],COLUMN(NBIData[DETOUR_KILOS_019]),FALSE)*0.621371 -> 
A21: Owner | B21: =VLOOKUP($C$80,NBIData[],COLUMN(NBIData[OWNER_022]),FALSE) -> 
A22: Functional Class, Rural/Urban | B22: =VLOOKUP($C$80,NBIData[],COLUMN(NBIData[FUNCTIONAL_CLASS_026]),FALSE) -> 
A23: Bridge Road Type | B23: =VLOOKUP(B22,Defaults!A359:$D$371, 2, FALSE) -> 
A24: Year Built | B24: =VLOOKUP($C$80,NBIData[],COLUMN(NBIData[YEAR_BUILT_027]),FALSE) -> 
A25: Year Reconstructed | B25: =VLOOKUP($C$80,NBIData[],COLUMN(NBIData[YEAR_RECONSTRUCTED_106]),FALSE) -> 
A26: Lanes on the Structure | B26: =VLOOKUP($C$80,NBIData[],COLUMN(NBIData[TRAFFIC_LANES_ON_028A]),FALSE) -> 
A27: Note: Some bridges have the same structure number. Use the state and county drop downs to identify your bridge.
A28: -
A29: Project Description:
A30: Table 2. Project Timeline
A31: Timeline Variables | B31: Timeline Values
A32: Current Year | B32: Required
A33: First Year of Construction Costs | B33: Required
A34: Last Year of Construction Costs | B34: Required
A35: Project Opens (Start of Benefits) | B35: Required
A36: Years of Benefits for Analysis | B36: Required
A37: First Year of Period of Analysis | B37: =IF(B35="Required","-", B35) -> -
A38: Last Year of Period of Analysis | B38: =IFERROR(B35+B36-1, "-") -> -
A39: Discount Year | B39: =Defaults!A290 -> 2022
A40: Base Year of NBI | B40: 2023
A41: Note: The tool cannot handle partial years, or pro-rata benefits or costs. Round up or down to the nearest year for construction start, construction end, and the start of benefits.
A42: Note: Enter a value between 20 to 30 for the Years of Benefits for Analysis, appropriate to the project as defined by US DOT BCA Guidance.
A43: -
A44: Table 3. Average Annual Daily Traffic (AADT)
A45: Scenario and Vehicle Type | B45: NBI Year of AADT | C45: NBI Year of Future AADT | D45: Forecast using NBI Growth Rate | E45: Forecast using NBI Growth Rate2 | F45: Project Opens | G45: Last Year | H45: Explanation and Source
A46: Year | B46: =VLOOKUP($C$80,NBIData[],COLUMN(NBIData[YEAR_ADT_030]),FALSE) ->  | C46: =VLOOKUP($C$80,NBIData[],COLUMN(NBIData[YEAR_OF_FUTURE_ADT_115]),FALSE) ->  | D46: =IF(B35="Required","-",B35) -> - | E46: =B38 -> - | F46: =IF(B35="Required", "-",B35) -> - | G46: =B38 -> - | H46: N/A
A47: No Build - Passenger AADT | B47: =VLOOKUP($C$80,NBIData[],COLUMN(NBIData[ADT_029]),FALSE)*(1-VLOOKUP($C$80,NBIData[],COLUMN(NBIData[PERCENT_ADT_TRUCK_109]),FALSE)/100) ->  | C47: =VLOOKUP($C$80,NBIData[],COLUMN(NBIData[FUTURE_ADT_114]),FALSE)*(1-VLOOKUP($C$80,NBIData[],COLUMN(NBIData[PERCENT_ADT_TRUCK_109]),FALSE)/100) ->  | D47: =ROUND(B47*((1+B59)^(D$46-$B$46)),0) ->  | E47: =ROUND(C47*((1+B59)^(E$46-$C$46)),0) ->  | F47: Required | G47: Required | H47: -
A48: No Build - Truck AADT | B48: =VLOOKUP($C$80,NBIData[],COLUMN(NBIData[PERCENT_ADT_TRUCK_109]),FALSE)/100*VLOOKUP($C$80,NBIData[],COLUMN(NBIData[ADT_029]),FALSE) ->  | C48: =VLOOKUP($C$80,NBIData[],COLUMN(NBIData[PERCENT_ADT_TRUCK_109]),FALSE)/100*VLOOKUP($C$80,NBIData[],COLUMN(NBIData[FUTURE_ADT_114]),FALSE) ->  | D48: =ROUND(B48*((1+B59)^(D$46-$B$46)),0) ->  | E48: =ROUND(C48*((1+B59)^(E$46-$C$46)),0) ->  | F48: Required | G48: Required | H48: -
A49: No Build - Bus AADT | B49: N/A | C49: N/A | D49: N/A | E49: N/A | F49: Required | G49: Required | H49: -
A50: Build - Passenger AADT | B50: =B47 ->  | C50: =C47 ->  | D50: =ROUND(B50*((1+B59)^(D$46-$B$46)),0) ->  | E50: =ROUND(C50*((1+B59)^(E$46-$C$46)),0) ->  | F50: Required | G50: Required | H50: -
A51: Build - Truck AADT | B51: =B48 ->  | C51: =C48 ->  | D51: =ROUND(B51*((1+B59)^(D$46-$B$46)),0) ->  | E51: =ROUND(C51*((1+B59)^(E$46-$C$46)),0) ->  | F51: Required | G51: Required | H51: -
A52: Build - Bus AADT | B52: N/A | C52: N/A | D52: N/A | E52: N/A | F52: Required | G52: Required | H52: -
A53: =HYPERLINK("#A542","Note: AADT can be entered manually in Table 52 and Table 53 below.") -> Note: AADT can be entered manually in Table 52 and Table 53 below.
A54: Note: Here and elsewhere in the tool it is critical that you enter at least some value in the required cells, e.g., 0, rather than "-", "N/A" or leaving it blank.
A55: Note: NBI AADT values are added for reference in Table 3. Users must enter AADT values in Columns G, H and I in Table 3.
A56: -
A57: Note: Table 4 is not a user input. Do not adjust Table 4.
A58: Table 4. NBI's Calculated Average Annual Daily Traffic (AADT) Growth Rate
A59: =CONCATENATE("The NBI Calculated Annual Growth Rate", " ", B46, "-",C46, " (NBI)") ->  | B59: =(C47/B47)^(1/(C$46-B$46))-1 -> 
A60: -
A61: Table 5. Detour Road Type
A62: Detour Road Type | B62: Required
A63: Detour Road Type - Simple | B63: =IF(B62="Required", "-",IF(ISNUMBER(SEARCH("Urban",B62)), "Urban", "Rural")) -> -
A64: -
A65: Note: Detour length should represent the Net detour: Detour length minus the original route length.
A66: Table 6. Detour and Bridge Length Information
A67: Detour Details | B67: Reference | C67: User Value | D67: Explanation and Source
A68: Net Detour Length, For Vehicles (mi) (NBI) | B68: =ROUND(VLOOKUP($C$80,NBIData[],COLUMN(NBIData[DETOUR_KILOS_019]),FALSE)*0.621371,1) ->  | C68: Required | D68: -
A69: Detour Average Speed, for Vehicles (mph) (FHWA VHT) | B69: =ROUND(VLOOKUP(B62,Defaults!B359:F371,2, FALSE),1) ->  | C69: Required | D69: -
A70: Net Detour Length, For Cycling/ Pedestrian (mi) (NBI) | B70: =ROUND(VLOOKUP($C$80,NBIData[],COLUMN(NBIData[DETOUR_KILOS_019]),FALSE)*0.621371, 1) ->  | C70: Required | D70: -
A71: Detour Average Travel Time (min) | B71: =B68/B69*60 ->  | C71: =C68/C69*60 ->  | D71: N/A
A72: Bridge Length (mi) | B72: =ROUND(B19,2) ->  | C72: Required | D72: -
A73: Note: Google or HPMS data are preferred for identifying average speed on the detour route. You can also use the HERS/VHT speed values using the Detour Road Type dropdown below.
A74: Note: Bridge length in the NBI does not include the approach length. Include approach length if relevant for your project.
A75: =HYPERLINK("https://www.google.com/maps", "Use Google Maps to calculate detour route length and average speed, as appropriate.") -> Use Google Maps to calculate detour route length and average speed, as appropriate.
A76: =HYPERLINK("https://www.fhwa.dot.gov/policyinformation/hpms.cfm", "Use the Highway Performance Monitoring System (HPMS) data to calculate detour route length and average speed, as appropriate.") -> Use the Highway Performance Monitoring System (HPMS) data to calculate detour route length and average speed, as appropriate.
A77: -
A78: Note: These reference cells are marked to avoid accidental deletion.
A79: Table 7. Reference Table
A80: Reference Cells | B80: =CONCATENATE(B11,B12) -> RequiredRequired | C80: =CONCATENATE(VLOOKUP($B$11,NBI_Dropdown!$B$1:$D$56,3,FALSE),$B$13) -> 
A81: -
A82: Table 8. Travel Assumptions
A83: Parameters | B83: Reference | C83: User Value | D83: Explanation and Source
A84: Bridge Average Speed (FHWA) | B84: =_xlfn.IFNA(VLOOKUP(B23,Defaults!B359:C371,2, FALSE), "N/A") -> N/A | C84: Required | D84: -
A85: Average Car Occupancy | B85: =Defaults!B51 -> 1.67 | C85: Required | D85: -
A86: Share of Long-Distance Personal Travel | B86: 0.0% | C86: Required | D86: -
A87: Value of Time - Long-Distance Personal Travel | B87: =Defaults!B35 -> $25.10 | C87: Required | D87: -
A88: Share of Business Travel | B88: 11.8% | C88: Required | D88: -
A89: Value of Travel Time - Business | B89: =Defaults!B33 -> $32.30 | C89: Required | D89: -
A90: Value of Travel Time - Personal | B90: =Defaults!B32 -> $17.90 | C90: Required | D90: -
A91: Value of Travel Time - All Purposes | B91: =ROUND(B86*B87+B88*B89+(1-B86-B88)*B90,1) -> $19.60 | C91: =IFERROR(ROUND(C86*C87+C88*C89+(1-C86-C88)*C90,1),"-") -> - | D91: -
A92: Walking, Cycling, Waiting, Standing, and Transfer Time | B92: =Defaults!B36 -> $35.80 | C92: Required | D92: -
A93: Truck Driver | B93: =Defaults!B39 -> $33.50 | C93: Required | D93: -
A94: Bus Driver | B94: =Defaults!B40 -> $36.50 | C94: Required | D94: -
A95: Average Bus Occupancy | B95: 0 | C95: Required | D95: -
A96: -
A97: Capital Cost and Residual Value
A98: Table 9. Expenditure Dollars Option
A99: Are costs entered in year of expenditure dollars (not adjusted for inflation)? | B99: NO
A100: Enter future inflation rate for capital costs. | B100: 0%
A101: Note: Capital costs can be entered in year of expenditure dollars or in real dollars. The tool applies inflation and discounting factors automatically if entered as year of expenditure dollars.
A102: -
A103: Table 10. Already Incurred Costs
A104: Year | B104: Costs | C104: Real Costs | D104: Discounted Costs
A105: - | B105: - | C105: =IF($B$99="NO",B105,IFERROR(B105*(IF(A105>$B$39, 1/((1+$B$100)^(A105-$B$39)),VLOOKUP(A105,Defaults!$A$134:$B$192, 2,FALSE))),"-")) -> - | D105: =IFERROR(IF(A105="","",IF(A105<=2020, C105, C105*VLOOKUP(A105,Defaults!$A$290:$B$340, 2,FALSE))),"-") -> -
A106: - | B106: - | C106: =IF($B$99="NO",B106,IFERROR(B106*(IF(A106>$B$39, 1/((1+$B$100)^(A106-$B$39)),VLOOKUP(A106,Defaults!$A$134:$B$192, 2,FALSE))),"-")) -> - | D106: =IFERROR(IF(A106="","",IF(A106<=2020, C106, C106*VLOOKUP(A106,Defaults!$A$290:$B$340, 2,FALSE))),"-") -> -
A107: - | B107: - | C107: =IF($B$99="NO",B107,IFERROR(B107*(IF(A107>$B$39, 1/((1+$B$100)^(A107-$B$39)),VLOOKUP(A107,Defaults!$A$134:$B$192, 2,FALSE))),"-")) -> - | D107: =IFERROR(IF(A107="","",IF(A107<=2020, C107, C107*VLOOKUP(A107,Defaults!$A$290:$B$340, 2,FALSE))),"-") -> -
A108: - | B108: - | C108: =IF($B$99="NO",B108,IFERROR(B108*(IF(A108>$B$39, 1/((1+$B$100)^(A108-$B$39)),VLOOKUP(A108,Defaults!$A$134:$B$192, 2,FALSE))),"-")) -> - | D108: =IFERROR(IF(A108="","",IF(A108<=2020, C108, C108*VLOOKUP(A108,Defaults!$A$290:$B$340, 2,FALSE))),"-") -> -
A109: - | B109: - | C109: =IF($B$99="NO",B109,IFERROR(B109*(IF(A109>$B$39, 1/((1+$B$100)^(A109-$B$39)),VLOOKUP(A109,Defaults!$A$134:$B$192, 2,FALSE))),"-")) -> - | D109: =IFERROR(IF(A109="","",IF(A109<=2020, C109, C109*VLOOKUP(A109,Defaults!$A$290:$B$340, 2,FALSE))),"-") -> -
A110: - | B110: - | C110: =IF($B$99="NO",B110,IFERROR(B110*(IF(A110>$B$39, 1/((1+$B$100)^(A110-$B$39)),VLOOKUP(A110,Defaults!$A$134:$B$192, 2,FALSE))),"-")) -> - | D110: =IFERROR(IF(A110="","",IF(A110<=2020, C110, C110*VLOOKUP(A110,Defaults!$A$290:$B$340, 2,FALSE))),"-") -> -
A111: - | B111: - | C111: =IF($B$99="NO",B111,IFERROR(B111*(IF(A111>$B$39, 1/((1+$B$100)^(A111-$B$39)),VLOOKUP(A111,Defaults!$A$134:$B$192, 2,FALSE))),"-")) -> - | D111: =IFERROR(IF(A111="","",IF(A111<=2020, C111, C111*VLOOKUP(A111,Defaults!$A$290:$B$340, 2,FALSE))),"-") -> -
A112: - | B112: - | C112: =IF($B$99="NO",B112,IFERROR(B112*(IF(A112>$B$39, 1/((1+$B$100)^(A112-$B$39)),VLOOKUP(A112,Defaults!$A$134:$B$192, 2,FALSE))),"-")) -> - | D112: =IFERROR(IF(A112="","",IF(A112<=2020, C112, C112*VLOOKUP(A112,Defaults!$A$290:$B$340, 2,FALSE))),"-") -> -
A113: - | B113: - | C113: =IF($B$99="NO",B113,IFERROR(B113*(IF(A113>$B$39, 1/((1+$B$100)^(A113-$B$39)),VLOOKUP(A113,Defaults!$A$134:$B$192, 2,FALSE))),"-")) -> - | D113: =IFERROR(IF(A113="","",IF(A113<=2020, C113, C113*VLOOKUP(A113,Defaults!$A$290:$B$340, 2,FALSE))),"-") -> -
A114: - | B114: - | C114: =IF($B$99="NO",B114,IFERROR(B114*(IF(A114>$B$39, 1/((1+$B$100)^(A114-$B$39)),VLOOKUP(A114,Defaults!$A$134:$B$192, 2,FALSE))),"-")) -> - | D114: =IFERROR(IF(A114="","",IF(A114<=2020, C114, C114*VLOOKUP(A114,Defaults!$A$290:$B$340, 2,FALSE))),"-") -> -
A115: - | B115: - | C115: =IF($B$99="NO",B115,IFERROR(B115*(IF(A115>$B$39, 1/((1+$B$100)^(A115-$B$39)),VLOOKUP(A115,Defaults!$A$134:$B$192, 2,FALSE))),"-")) -> - | D115: =IFERROR(IF(A115="","",IF(A115<=2020, C115, C115*VLOOKUP(A115,Defaults!$A$290:$B$340, 2,FALSE))),"-") -> -
A116: -
A117: Table 11. Capital Costs
A118: Year | B118: Costs | C118: Real Costs | D118: Discounted Costs
A119: =IFERROR(IF($B$33="-", "N/A", $B$33),"N/A") -> Required | B119: - | C119: =IF($B$99="NO",B119,IFERROR(B119*(IF(A119>$B$39, 1/(1+$B$100)^(A119-$B$39),VLOOKUP(A119,Defaults!$A$134:$B$192, 2,FALSE))),"-")) -> - | D119: =IFERROR(IF(A119="N/A","-",C119*VLOOKUP(A119,Defaults!$A$290:$B$340, 2,FALSE)),"-") -> -
A120: =IFERROR(IF(A119="N/A","N/A",IF(A119>=$B$34,"N/A",A119+1)),"") -> N/A | B120: - | C120: =IF($B$99="NO",B120,IFERROR(B120*(IF(A120>$B$39, 1/(1+$B$100)^(A120-$B$39),VLOOKUP(A120,Defaults!$A$134:$B$192, 2,FALSE))),"-")) -> - | D120: =IFERROR(IF(A120="N/A","-",C120*VLOOKUP(A120,Defaults!$A$290:$B$340, 2,FALSE)),"-") -> -
A121: =IF(A120="N/A","N/A",IF(A120>=$B$34,"N/A",A120+1)) -> N/A | B121: - | C121: =IF($B$99="NO",B121,IFERROR(B121*(IF(A121>$B$39, 1/(1+$B$100)^(A121-$B$39),VLOOKUP(A121,Defaults!$A$134:$B$192, 2,FALSE))),"-")) -> - | D121: =IFERROR(IF(A121="N/A","-",C121*VLOOKUP(A121,Defaults!$A$290:$B$340, 2,FALSE)),"-") -> -
A122: N/A | B122: - | C122: =IF($B$99="NO",B122,IFERROR(B122*(IF(A122>$B$39, 1/(1+$B$100)^(A122-$B$39),VLOOKUP(A122,Defaults!$A$134:$B$192, 2,FALSE))),"-")) -> - | D122: =IFERROR(IF(A122="N/A","-",C122*VLOOKUP(A122,Defaults!$A$290:$B$340, 2,FALSE)),"-") -> -
A123: N/A | B123: - | C123: =IF($B$99="NO",B123,IFERROR(B123*(IF(A123>$B$39, 1/(1+$B$100)^(A123-$B$39),VLOOKUP(A123,Defaults!$A$134:$B$192, 2,FALSE))),"-")) -> - | D123: =IFERROR(IF(A123="N/A","-",C123*VLOOKUP(A123,Defaults!$A$290:$B$340, 2,FALSE)),"-") -> -
A124: N/A | B124: - | C124: =IF($B$99="NO",B124,IFERROR(B124*(IF(A124>$B$39, 1/(1+$B$100)^(A124-$B$39),VLOOKUP(A124,Defaults!$A$134:$B$192, 2,FALSE))),"-")) -> - | D124: =IFERROR(IF(A124="N/A","-",C124*VLOOKUP(A124,Defaults!$A$290:$B$340, 2,FALSE)),"-") -> -
A125: N/A | B125: - | C125: =IF($B$99="NO",B125,IFERROR(B125*(IF(A125>$B$39, 1/(1+$B$100)^(A125-$B$39),VLOOKUP(A125,Defaults!$A$134:$B$192, 2,FALSE))),"-")) -> - | D125: =IFERROR(IF(A125="N/A","-",C125*VLOOKUP(A125,Defaults!$A$290:$B$340, 2,FALSE)),"-") -> -
A126: N/A | B126: - | C126: =IF($B$99="NO",B126,IFERROR(B126*(IF(A126>$B$39, 1/(1+$B$100)^(A126-$B$39),VLOOKUP(A126,Defaults!$A$134:$B$192, 2,FALSE))),"-")) -> - | D126: =IFERROR(IF(A126="N/A","-",C126*VLOOKUP(A126,Defaults!$A$290:$B$340, 2,FALSE)),"-") -> -
A127: N/A | B127: - | C127: =IF($B$99="NO",B127,IFERROR(B127*(IF(A127>$B$39, 1/(1+$B$100)^(A127-$B$39),VLOOKUP(A127,Defaults!$A$134:$B$192, 2,FALSE))),"-")) -> - | D127: =IFERROR(IF(A127="N/A","-",C127*VLOOKUP(A127,Defaults!$A$290:$B$340, 2,FALSE)),"-") -> -
A128: N/A | B128: - | C128: =IF($B$99="NO",B128,IFERROR(B128*(IF(A128>$B$39, 1/(1+$B$100)^(A128-$B$39),VLOOKUP(A128,Defaults!$A$134:$B$192, 2,FALSE))),"-")) -> - | D128: =IFERROR(IF(A128="N/A","-",C128*VLOOKUP(A128,Defaults!$A$290:$B$340, 2,FALSE)),"-") -> -
A129: N/A | B129: - | C129: =IF($B$99="NO",B129,IFERROR(B129*(IF(A129>$B$39, 1/(1+$B$100)^(A129-$B$39),VLOOKUP(A129,Defaults!$A$134:$B$192, 2,FALSE))),"-")) -> - | D129: =IFERROR(IF(A129="N/A","-",C129*VLOOKUP(A129,Defaults!$A$290:$B$340, 2,FALSE)),"-") -> -
A130: -
A131: Table 12. Capital Cost Summary
A132: Total Capital Costs: | B132: =SUM(B105:B115)+SUM(B119:B129) -> 0
A133: Total Real Capital Costs: | B133: =SUM(C105:C115)+SUM(C119:C129) -> 0
A134: Total Discounted Capital Costs: | B134: =SUM(D105:D115)+SUM(D119:D129) -> 0
A135: -
A136: Table 13. Residual Value
A137: Share of Capital Costs | B137: Asset Life (Years) | C137: Explanation and Source
A138: 0% | B138: 0 | C138: -
A139: 0% | B139: 0 | C139: -
A140: 0% | B140: 0 | C140: -
A141: 0% | B141: 0 | C141: -
A142: =SUM(A138:A141) -> 0% | B142: Summation | C142: N/A
A143: Note: If there are multiple components of the project for this specific bridge that different asset lives, enter the share of the project costs associated with the different project components and their asset life.
A144: Note: The Summation cell should be 100%.
A145: -
A146: Operating and Maintenance Costs (O&M)
A147: Table 14. Operating and Maintenance Costs Assumptions
A148: Which method would you like to use to enter O&M costs? | B148: Manual Entry
A149: Year of O&M costs Dollars | B149: Required
A150: Note: If you have O&M costs in the construction period you will need to use the manual entry option to enter the O&M costs in the construction period.
A151: Note: The operating and maintenance costs in the baseline should be entered to be consistent with your estimate of closure. If the bridge is closed in a future year (Table 25), there should not be maintenance costs for that year and thereafter.
A152: Note: For frequency calculation option, all costs should be entered as year of expenditure. The tool applies inflation and discounting factors automatically.
A153: -
A154: Table 15. Annual O&M Calculation Input
A155: Category | B155: Value
A156: Annual O&M Costs in the No Build Scenario | B156: -
A157: Annual O&M Costs Real Growth Rate in the No Build Scenario | B157: 0%
A158: Annual O&M Costs in the Build Scenario | B158: -
A159: Annual O&M Costs Real Growth Rate in the Build Scenario | B159: 0%
A160: Note: The maintenance real growth rate represents the real cost increases year over year (e.g., from increased deterioration of the asset). It should not include inflation adjustments.
A161: -
A162: Table 16a. Intermittent O&M Calculation Input
A163: Category | B163: Value
A164: Initial year | B164: -
A165: Last Year | B165: -
A166: Occurs every _____ Years; set to 30 if occurs only once | B166: 1
A167: Annual O&M Costs in the No Build Scenario | B167: -
A168: Annual O&M Costs Real Growth Rate in the Build Scenario | B168: -
A169: -
A170: Table 16b. Intermittent O&M Calculation Input
A171: Category | B171: Value
A172: Initial year | B172: -
A173: Last Year | B173: -
A174: Occurs every _____ Years; set to 30 if occurs only once | B174: 1
A175: Annual O&M Costs in the No Build Scenario | B175: -
A176: Annual O&M Costs Real Growth Rate in the Build Scenario | B176: -
A177: -
A178: Table 16c. Intermittent O&M Calculation Input
A179: Category | B179: Value
A180: Initial year | B180: -
A181: Last Year | B181: -
A182: Occurs every _____ Years; set to 30 if occurs only once | B182: 1
A183: Annual O&M Costs in the No Build Scenario | B183: -
A184: Annual O&M Costs Real Growth Rate in the Build Scenario | B184: -
A185: -
A186: Table 16d. Intermittent O&M Calculation Input
A187: Category | B187: Value
A188: Initial year | B188: -
A189: Last Year | B189: -
A190: Occurs every _____ Years; set to 30 if occurs only once | B190: 1
A191: Annual O&M Costs in the No Build Scenario | B191: -
A192: Annual O&M Costs Real Growth Rate in the Build Scenario | B192: -
A193: Note: The "Occurs every _____ " field in Tables 16a through 16d must be greater than or equal to 1, even if you are not adding an additional recurring maintenance cost.
A194: -
A195: Note: Manual O&M cost values should be entered in the year of dollar entered in Table 14.
A196: Table 17. Manual O&M Cost Entry
A197: Calendar Year | B197: Analysis Year | C197: No Build Annual Cost | D197: Build Annual Cost | E197: O&M Cost Difference Discounted
A198: =IFERROR(IF(B32="Required","N/A",B32),"N/A") -> N/A | B198: =IFERROR(IF(A198=$B$35,1,IF(A198>$B$35,A198-$B$35+1,IF(A198<$B$35,A198-$B$35+1,"N/A"))),"N/A") -> N/A | C198: - | D198: - | E198: =IFERROR((C198-D198)*VLOOKUP($B$149,Defaults!$A$290:$B$340, 2,FALSE)*VLOOKUP(A198,Defaults!$A$290:$B$340,2,FALSE),0) -> 0
A199: =IF(A198="N/A","N/A",IF(A198>=$B$35+$B$36-1,"N/A",A198+1)) -> N/A | B199: N/A | C199: - | D199: - | E199: =IFERROR((C199-D199)*VLOOKUP($B$149,Defaults!$A$290:$B$340, 2,FALSE)*VLOOKUP(A199,Defaults!$A$290:$B$340,2,FALSE),0) -> 0
A200: N/A | B200: N/A | C200: - | D200: - | E200: =IFERROR((C200-D200)*VLOOKUP($B$149,Defaults!$A$290:$B$340, 2,FALSE)*VLOOKUP(A200,Defaults!$A$290:$B$340,2,FALSE),0) -> 0
... 495 more rows

Sheet 110.8
A1: Bridge and Project Overview
A2: ID of bridge, description of improvement, project timeline, traffic volume
A3: Add New Bridge (press Ctrl + Shift + B)
A4: Add Sensitivity Analysis for Current Bridge (press Ctrl + Shift + S)
A5: Delete this Bridge (press Ctrl + Shift + D)
A6: Note: Only delete bridges using this command/button. Deleting bridge tabs through right click will result in (fixable) errors on the Results tab.
A7: Change Bridge Name (press Ctrl + Shift + N)
A8: -
A9: Table 1. Bridge Variables
A10: Bridge Variables | B10: Bridge Values
A11: State | B11: Mississippi
A12: County | B12: Newton
A13: Structure Number | B13: 210008005111480
A14: Inventory Route | B14: =VLOOKUP($C$80,NBIData[],COLUMN(NBIData[ROUTE_NUMBER_005D]),FALSE) -> 00080
A15: Feature Intersected | B15: =VLOOKUP($C$80,NBIData[],COLUMN(NBIData[FEATURES_DESC_006A]),FALSE) -> 'BETHEL BRANCH'
A16: Facility Carried | B16: =VLOOKUP($C$80,NBIData[],COLUMN(NBIData[FACILITY_CARRIED_007]),FALSE) -> 'US 80'
A17: Latitude | B17: =LEFT(VLOOKUP($C$80,NBIData[],COLUMN(NBIData[LAT_016]),FALSE), 2) & CHAR(176) & " " & MID(VLOOKUP($C$80,NBIData[],COLUMN(NBIData[LAT_016]),FALSE), 3, 2) &"'" & " " & MID(VLOOKUP($C$80,NBIData[],COLUMN(NBIData[LAT_016]),FALSE), 5, 2) &"."& MID(VLOOKUP($C$80,NBIData[],COLUMN(NBIData[LAT_016]),FALSE), 7, 2) & CHAR(34) -> 32° 19' 48.35"
A18: Longitude | B18: ="-" & MID(VLOOKUP($C$80,NBIData[],COLUMN(NBIData[LONG_017]),FALSE), 2, 2) & CHAR(176) & " " & MID(VLOOKUP($C$80,NBIData[],COLUMN(NBIData[LONG_017]),FALSE), 4, 2) &"'" & " " & MID(VLOOKUP($C$80,NBIData[],COLUMN(NBIData[LONG_017]),FALSE), 6, 2) &"."& MID(VLOOKUP($C$80,NBIData[],COLUMN(NBIData[LONG_017]),FALSE), 8, 2) & CHAR(34) -> -89° 02' 55.63"
A19: Bridge Length (mi) | B19: =VLOOKUP($C$80,NBIData[],COLUMN(NBIData[STRUCTURE_LEN_MT_049]),FALSE)/1609 -> 0.01230577999
A20: Bypass, Detour Length (mi) | B20: =VLOOKUP($C$80,NBIData[],COLUMN(NBIData[DETOUR_KILOS_019]),FALSE)*0.621371 -> 9.94
A21: Owner | B21: =VLOOKUP($C$80,NBIData[],COLUMN(NBIData[OWNER_022]),FALSE) -> 01
A22: Functional Class, Rural/Urban | B22: =VLOOKUP($C$80,NBIData[],COLUMN(NBIData[FUNCTIONAL_CLASS_026]),FALSE) -> 07
A23: Bridge Road Type | B23: =VLOOKUP(B22,Defaults!A359:$D$371, 2, FALSE) -> Rural - Major Collector
A24: Year Built | B24: =VLOOKUP($C$80,NBIData[],COLUMN(NBIData[YEAR_BUILT_027]),FALSE) -> 1929
A25: Year Reconstructed | B25: =VLOOKUP($C$80,NBIData[],COLUMN(NBIData[YEAR_RECONSTRUCTED_106]),FALSE) -> 0
A26: Lanes on the Structure | B26: =VLOOKUP($C$80,NBIData[],COLUMN(NBIData[TRAFFIC_LANES_ON_028A]),FALSE) -> 2
A27: Note: Some bridges have the same structure number. Use the state and county drop downs to identify your bridge.
A28: -
A29: Project Description:
A30: Table 2. Project Timeline
A31: Timeline Variables | B31: Timeline Values
A32: Current Year | B32: 2022
A33: First Year of Construction Costs | B33: 2025
A34: Last Year of Construction Costs | B34: 2029
A35: Project Opens (Start of Benefits) | B35: 2030
A36: Years of Benefits for Analysis | B36: 30
A37: First Year of Period of Analysis | B37: =IF(B35="Required","-", B35) -> 2030
A38: Last Year of Period of Analysis | B38: =IFERROR(B35+B36-1, "-") -> 2059
A39: Discount Year | B39: =Defaults!A290 -> 2022
A40: Base Year of NBI | B40: 2023
A41: Note: The tool cannot handle partial years, or pro-rata benefits or costs. Round up or down to the nearest year for construction start, construction end, and the start of benefits.
A42: Note: Enter a value between 20 to 30 for the Years of Benefits for Analysis, appropriate to the project as defined by US DOT BCA Guidance.
A43: -
A44: Table 3. Average Annual Daily Traffic (AADT)
A45: Scenario and Vehicle Type | B45: NBI Year of AADT | C45: NBI Year of Future AADT | D45: Forecast using NBI Growth Rate | E45: Forecast using NBI Growth Rate2 | F45: Project Opens | G45: Last Year | H45: Explanation and Source
A46: Year | B46: =VLOOKUP($C$80,NBIData[],COLUMN(NBIData[YEAR_ADT_030]),FALSE) -> 2022 | C46: =VLOOKUP($C$80,NBIData[],COLUMN(NBIData[YEAR_OF_FUTURE_ADT_115]),FALSE) -> 2059 | D46: =IF(B35="Required","-",B35) -> 2030 | E46: =B38 -> 2059 | F46: =IF(B35="Required", "-",B35) -> 2030 | G46: =B38 -> 2059 | H46: N/A
A47: No Build - Passenger AADT | B47: =VLOOKUP($C$80,NBIData[],COLUMN(NBIData[ADT_029]),FALSE)*(1-VLOOKUP($C$80,NBIData[],COLUMN(NBIData[PERCENT_ADT_TRUCK_109]),FALSE)/100) -> 1581 | C47: =VLOOKUP($C$80,NBIData[],COLUMN(NBIData[FUTURE_ADT_114]),FALSE)*(1-VLOOKUP($C$80,NBIData[],COLUMN(NBIData[PERCENT_ADT_TRUCK_109]),FALSE)/100) -> 2285 | D47: =ROUND(B47*((1+B59)^(D$46-$B$46)),0) -> 1712 | E47: =ROUND(C47*((1+B59)^(E$46-$C$46)),0) -> 2285 | F47: 1674 | G47: 2285 | H47: BCA Guidance, MDOT
A48: No Build - Truck AADT | B48: =VLOOKUP($C$80,NBIData[],COLUMN(NBIData[PERCENT_ADT_TRUCK_109]),FALSE)/100*VLOOKUP($C$80,NBIData[],COLUMN(NBIData[ADT_029]),FALSE) -> 119 | C48: =VLOOKUP($C$80,NBIData[],COLUMN(NBIData[PERCENT_ADT_TRUCK_109]),FALSE)/100*VLOOKUP($C$80,NBIData[],COLUMN(NBIData[FUTURE_ADT_114]),FALSE) -> 172 | D48: =ROUND(B48*((1+B59)^(D$46-$B$46)),0) -> 129 | E48: =ROUND(C48*((1+B59)^(E$46-$C$46)),0) -> 172 | F48: 126 | G48: 172 | H48: BCA Guidance, MDOT
A49: No Build - Bus AADT | B49: N/A | C49: N/A | D49: N/A | E49: N/A | F49: 0 | G49: 0 | H49: BCA Guidance, MDOT
A50: Build - Passenger AADT | B50: =B47 -> 1581 | C50: =C47 -> 2285 | D50: =ROUND(B50*((1+B59)^(D$46-$B$46)),0) -> 1712 | E50: =ROUND(C50*((1+B59)^(E$46-$C$46)),0) -> 2285 | F50: 1674 | G50: 2285 | H50: BCA Guidance, MDOT
A51: Build - Truck AADT | B51: =B48 -> 119 | C51: =C48 -> 172 | D51: =ROUND(B51*((1+B59)^(D$46-$B$46)),0) -> 129 | E51: =ROUND(C51*((1+B59)^(E$46-$C$46)),0) -> 172 | F51: 126 | G51: 172 | H51: BCA Guidance, MDOT
A52: Build - Bus AADT | B52: N/A | C52: N/A | D52: N/A | E52: N/A | F52: 0 | G52: 0 | H52: BCA Guidance, MDOT
A53: =HYPERLINK("#A542","Note: AADT can be entered manually in Table 52 and Table 53 below.") -> Note: AADT can be entered manually in Table 52 and Table 53 below.
A54: Note: Here and elsewhere in the tool it is critical that you enter at least some value in the required cells, e.g., 0, rather than "-", "N/A" or leaving it blank.
A55: Note: NBI AADT values are added for reference in Table 3. Users must enter AADT values in Columns G, H and I in Table 3.
A56: -
A57: Note: Table 4 is not a user input. Do not adjust Table 4.
A58: Table 4. NBI's Calculated Average Annual Daily Traffic (AADT) Growth Rate
A59: =CONCATENATE("The NBI Calculated Annual Growth Rate", " ", B46, "-",C46, " (NBI)") -> The NBI Calculated Annual Growth Rate 2022-2059 (NBI) | B59: =(C47/B47)^(1/(C$46-B$46))-1 -> $0
A60: -
A61: Table 5. Detour Road Type
A62: Detour Road Type | B62: Rural - Principal Arterial - Interstate
A63: Detour Road Type - Simple | B63: =IF(B62="Required", "-",IF(ISNUMBER(SEARCH("Urban",B62)), "Urban", "Rural")) -> Rural
A64: -
A65: Note: Detour length should represent the Net detour: Detour length minus the original route length.
A66: Table 6. Detour and Bridge Length Information
A67: Detour Details | B67: Reference | C67: User Value | D67: Explanation and Source
A68: Net Detour Length, For Vehicles (mi) (NBI) | B68: =ROUND(VLOOKUP($C$80,NBIData[],COLUMN(NBIData[DETOUR_KILOS_019]),FALSE)*0.621371,1) -> 9.9 | C68: 15.9 | D68: Google
A69: Detour Average Speed, for Vehicles (mph) (FHWA VHT) | B69: =ROUND(VLOOKUP(B62,Defaults!B359:F371,2, FALSE),1) -> 66.0 | C69: 50.0 | D69: Google
A70: Net Detour Length, For Cycling/ Pedestrian (mi) (NBI) | B70: =ROUND(VLOOKUP($C$80,NBIData[],COLUMN(NBIData[DETOUR_KILOS_019]),FALSE)*0.621371, 1) -> 9.9 | C70: 15.9 | D70: Google
A71: Detour Average Travel Time (min) | B71: =B68/B69*60 -> 9.0 | C71: =C68/C69*60 -> 19.1 | D71: N/A
A72: Bridge Length (mi) | B72: =ROUND(B19,2) -> 0.01 | C72: =610/5280 -> 0.12 | D72: Google
A73: Note: Google or HPMS data are preferred for identifying average speed on the detour route. You can also use the HERS/VHT speed values using the Detour Road Type dropdown below.
A74: Note: Bridge length in the NBI does not include the approach length. Include approach length if relevant for your project.
A75: =HYPERLINK("https://www.google.com/maps", "Use Google Maps to calculate detour route length and average speed, as appropriate.") -> Use Google Maps to calculate detour route length and average speed, as appropriate.
A76: =HYPERLINK("https://www.fhwa.dot.gov/policyinformation/hpms.cfm", "Use the Highway Performance Monitoring System (HPMS) data to calculate detour route length and average speed, as appropriate.") -> Use the Highway Performance Monitoring System (HPMS) data to calculate detour route length and average speed, as appropriate.
A77: -
A78: Note: These reference cells are marked to avoid accidental deletion.
A79: Table 7. Reference Table
A80: Reference Cells | B80: =CONCATENATE(B11,B12) -> MississippiNewton | C80: =CONCATENATE(VLOOKUP($B$11,NBI_Dropdown!$B$1:$D$56,3,FALSE),$B$13) -> 284210008005111480
A81: -
A82: Table 8. Travel Assumptions
A83: Parameters | B83: Reference | C83: User Value | D83: Explanation and Source
A84: Bridge Average Speed (FHWA) | B84: =_xlfn.IFNA(VLOOKUP(B23,Defaults!B359:C371,2, FALSE), "N/A") -> 47 | C84: 47 | D84: -
A85: Average Car Occupancy | B85: =Defaults!B51 -> 1.67 | C85: 1.67 | D85: -
A86: Share of Long-Distance Personal Travel | B86: 0.0% | C86: 0% | D86: -
A87: Value of Time - Long-Distance Personal Travel | B87: =Defaults!B35 -> $25.10 | C87: $25.10 | D87: -
A88: Share of Business Travel | B88: 11.8% | C88: 11.8% | D88: -
A89: Value of Travel Time - Business | B89: =Defaults!B33 -> $32.30 | C89: $32.30 | D89: -
A90: Value of Travel Time - Personal | B90: =Defaults!B32 -> $17.90 | C90: $17.90 | D90: -
A91: Value of Travel Time - All Purposes | B91: =ROUND(B86*B87+B88*B89+(1-B86-B88)*B90,1) -> $19.60 | C91: =IFERROR(ROUND(C86*C87+C88*C89+(1-C86-C88)*C90,1),"-") -> $19.60 | D91: -
A92: Walking, Cycling, Waiting, Standing, and Transfer Time | B92: =Defaults!B36 -> $35.80 | C92: $35.80 | D92: -
A93: Truck Driver | B93: =Defaults!B39 -> $33.50 | C93: $33.50 | D93: -
A94: Bus Driver | B94: =Defaults!B40 -> $36.50 | C94: $36.50 | D94: -
A95: Average Bus Occupancy | B95: 0 | C95: 0 | D95: -
A96: -
A97: Capital Cost and Residual Value
A98: Table 9. Expenditure Dollars Option
A99: Are costs entered in year of expenditure dollars (not adjusted for inflation)? | B99: NO
A100: Enter future inflation rate for capital costs. | B100: 0%
A101: Note: Capital costs can be entered in year of expenditure dollars or in real dollars. The tool applies inflation and discounting factors automatically if entered as year of expenditure dollars.
A102: -
A103: Table 10. Already Incurred Costs
A104: Year | B104: Costs | C104: Real Costs | D104: Discounted Costs
A105: 2014 | B105: =243891.85/4 -> $60,973 | C105: =IF($B$99="NO",B105,IFERROR(B105*(IF(A105>$B$39, 1/((1+$B$100)^(A105-$B$39)),VLOOKUP(A105,Defaults!$A$134:$B$192, 2,FALSE))),"-")) -> $60,973 | D105: =IFERROR(IF(A105="","",IF(A105<=2020, C105, C105*VLOOKUP(A105,Defaults!$A$290:$B$340, 2,FALSE))),"-") -> $60,973
A106: 2015 | B106: =111325.48/4 -> $27,831 | C106: =IF($B$99="NO",B106,IFERROR(B106*(IF(A106>$B$39, 1/((1+$B$100)^(A106-$B$39)),VLOOKUP(A106,Defaults!$A$134:$B$192, 2,FALSE))),"-")) -> $27,831 | D106: =IFERROR(IF(A106="","",IF(A106<=2020, C106, C106*VLOOKUP(A106,Defaults!$A$290:$B$340, 2,FALSE))),"-") -> $27,831
A107: 2016 | B107: =373682.12/4 -> $93,421 | C107: =IF($B$99="NO",B107,IFERROR(B107*(IF(A107>$B$39, 1/((1+$B$100)^(A107-$B$39)),VLOOKUP(A107,Defaults!$A$134:$B$192, 2,FALSE))),"-")) -> $93,421 | D107: =IFERROR(IF(A107="","",IF(A107<=2020, C107, C107*VLOOKUP(A107,Defaults!$A$290:$B$340, 2,FALSE))),"-") -> $93,421
A108: 2017 | B108: =279489.12/4 -> $69,872 | C108: =IF($B$99="NO",B108,IFERROR(B108*(IF(A108>$B$39, 1/((1+$B$100)^(A108-$B$39)),VLOOKUP(A108,Defaults!$A$134:$B$192, 2,FALSE))),"-")) -> $69,872 | D108: =IFERROR(IF(A108="","",IF(A108<=2020, C108, C108*VLOOKUP(A108,Defaults!$A$290:$B$340, 2,FALSE))),"-") -> $69,872
A109: 2018 | B109: =121489.12/4 -> $30,372 | C109: =IF($B$99="NO",B109,IFERROR(B109*(IF(A109>$B$39, 1/((1+$B$100)^(A109-$B$39)),VLOOKUP(A109,Defaults!$A$134:$B$192, 2,FALSE))),"-")) -> $30,372 | D109: =IFERROR(IF(A109="","",IF(A109<=2020, C109, C109*VLOOKUP(A109,Defaults!$A$290:$B$340, 2,FALSE))),"-") -> $30,372
A110: 2019 | B110: =159105.4/4 -> $39,776 | C110: =IF($B$99="NO",B110,IFERROR(B110*(IF(A110>$B$39, 1/((1+$B$100)^(A110-$B$39)),VLOOKUP(A110,Defaults!$A$134:$B$192, 2,FALSE))),"-")) -> $39,776 | D110: =IFERROR(IF(A110="","",IF(A110<=2020, C110, C110*VLOOKUP(A110,Defaults!$A$290:$B$340, 2,FALSE))),"-") -> $39,776
A111: 2020 | B111: =70717.12/4 -> $17,679 | C111: =IF($B$99="NO",B111,IFERROR(B111*(IF(A111>$B$39, 1/((1+$B$100)^(A111-$B$39)),VLOOKUP(A111,Defaults!$A$134:$B$192, 2,FALSE))),"-")) -> $17,679 | D111: =IFERROR(IF(A111="","",IF(A111<=2020, C111, C111*VLOOKUP(A111,Defaults!$A$290:$B$340, 2,FALSE))),"-") -> $17,679
A112: 2021 | B112: =(107325.62+2487.38)/4 -> $27,453 | C112: =IF($B$99="NO",B112,IFERROR(B112*(IF(A112>$B$39, 1/((1+$B$100)^(A112-$B$39)),VLOOKUP(A112,Defaults!$A$134:$B$192, 2,FALSE))),"-")) -> $27,453 | D112: =IFERROR(IF(A112="","",IF(A112<=2020, C112, C112*VLOOKUP(A112,Defaults!$A$290:$B$340, 2,FALSE))),"-") -> -
A113: 2022 | B113: =(137694.43+96355.12+991.82+450279.19+309.97)/4 -> $171,408 | C113: =IF($B$99="NO",B113,IFERROR(B113*(IF(A113>$B$39, 1/((1+$B$100)^(A113-$B$39)),VLOOKUP(A113,Defaults!$A$134:$B$192, 2,FALSE))),"-")) -> $171,408 | D113: =IFERROR(IF(A113="","",IF(A113<=2020, C113, C113*VLOOKUP(A113,Defaults!$A$290:$B$340, 2,FALSE))),"-") -> $171,408
A114: 2023 | B114: =(211095.4+941.78+42034.49+198320.55+93543.2)/4 -> $136,484 | C114: =IF($B$99="NO",B114,IFERROR(B114*(IF(A114>$B$39, 1/((1+$B$100)^(A114-$B$39)),VLOOKUP(A114,Defaults!$A$134:$B$192, 2,FALSE))),"-")) -> $136,484 | D114: =IFERROR(IF(A114="","",IF(A114<=2020, C114, C114*VLOOKUP(A114,Defaults!$A$290:$B$340, 2,FALSE))),"-") -> $132,380
A115: 2024 | B115: =(577006.52/4) -> $144,252 | C115: =IF($B$99="NO",B115,IFERROR(B115*(IF(A115>$B$39, 1/((1+$B$100)^(A115-$B$39)),VLOOKUP(A115,Defaults!$A$134:$B$192, 2,FALSE))),"-")) -> $144,252 | D115: =IFERROR(IF(A115="","",IF(A115<=2020, C115, C115*VLOOKUP(A115,Defaults!$A$290:$B$340, 2,FALSE))),"-") -> $135,707
A116: -
A117: Table 11. Capital Costs
A118: Year | B118: Costs | C118: Real Costs | D118: Discounted Costs
A119: =IFERROR(IF($B$33="-", "N/A", $B$33),"N/A") -> 2025 | B119: $2,056,576 | C119: =IF($B$99="NO",B119,IFERROR(B119*(IF(A119>$B$39, 1/(1+$B$100)^(A119-$B$39),VLOOKUP(A119,Defaults!$A$134:$B$192, 2,FALSE))),"-")) -> $2,056,576 | D119: =IFERROR(IF(A119="N/A","-",C119*VLOOKUP(A119,Defaults!$A$290:$B$340, 2,FALSE)),"-") -> $1,876,587
A120: =IFERROR(IF(A119="N/A","N/A",IF(A119>=$B$34,"N/A",A119+1)),"") -> 2026 | B120: $2,056,576 | C120: =IF($B$99="NO",B120,IFERROR(B120*(IF(A120>$B$39, 1/(1+$B$100)^(A120-$B$39),VLOOKUP(A120,Defaults!$A$134:$B$192, 2,FALSE))),"-")) -> $2,056,576 | D120: =IFERROR(IF(A120="N/A","-",C120*VLOOKUP(A120,Defaults!$A$290:$B$340, 2,FALSE)),"-") -> $1,820,162
A121: =IF(A120="N/A","N/A",IF(A120>=$B$34,"N/A",A120+1)) -> 2027 | B121: $2,056,576 | C121: =IF($B$99="NO",B121,IFERROR(B121*(IF(A121>$B$39, 1/(1+$B$100)^(A121-$B$39),VLOOKUP(A121,Defaults!$A$134:$B$192, 2,FALSE))),"-")) -> $2,056,576 | D121: =IFERROR(IF(A121="N/A","-",C121*VLOOKUP(A121,Defaults!$A$290:$B$340, 2,FALSE)),"-") -> $1,765,434
A122: 2028 | B122: $2,056,576 | C122: =IF($B$99="NO",B122,IFERROR(B122*(IF(A122>$B$39, 1/(1+$B$100)^(A122-$B$39),VLOOKUP(A122,Defaults!$A$134:$B$192, 2,FALSE))),"-")) -> $2,056,576 | D122: =IFERROR(IF(A122="N/A","-",C122*VLOOKUP(A122,Defaults!$A$290:$B$340, 2,FALSE)),"-") -> $1,712,351
A123: 2029 | B123: $2,056,576 | C123: =IF($B$99="NO",B123,IFERROR(B123*(IF(A123>$B$39, 1/(1+$B$100)^(A123-$B$39),VLOOKUP(A123,Defaults!$A$134:$B$192, 2,FALSE))),"-")) -> $2,056,576 | D123: =IFERROR(IF(A123="N/A","-",C123*VLOOKUP(A123,Defaults!$A$290:$B$340, 2,FALSE)),"-") -> $1,660,864
A124: N/A | B124: - | C124: =IF($B$99="NO",B124,IFERROR(B124*(IF(A124>$B$39, 1/(1+$B$100)^(A124-$B$39),VLOOKUP(A124,Defaults!$A$134:$B$192, 2,FALSE))),"-")) -> - | D124: =IFERROR(IF(A124="N/A","-",C124*VLOOKUP(A124,Defaults!$A$290:$B$340, 2,FALSE)),"-") -> -
A125: N/A | B125: - | C125: =IF($B$99="NO",B125,IFERROR(B125*(IF(A125>$B$39, 1/(1+$B$100)^(A125-$B$39),VLOOKUP(A125,Defaults!$A$134:$B$192, 2,FALSE))),"-")) -> - | D125: =IFERROR(IF(A125="N/A","-",C125*VLOOKUP(A125,Defaults!$A$290:$B$340, 2,FALSE)),"-") -> -
A126: N/A | B126: - | C126: =IF($B$99="NO",B126,IFERROR(B126*(IF(A126>$B$39, 1/(1+$B$100)^(A126-$B$39),VLOOKUP(A126,Defaults!$A$134:$B$192, 2,FALSE))),"-")) -> - | D126: =IFERROR(IF(A126="N/A","-",C126*VLOOKUP(A126,Defaults!$A$290:$B$340, 2,FALSE)),"-") -> -
A127: N/A | B127: - | C127: =IF($B$99="NO",B127,IFERROR(B127*(IF(A127>$B$39, 1/(1+$B$100)^(A127-$B$39),VLOOKUP(A127,Defaults!$A$134:$B$192, 2,FALSE))),"-")) -> - | D127: =IFERROR(IF(A127="N/A","-",C127*VLOOKUP(A127,Defaults!$A$290:$B$340, 2,FALSE)),"-") -> -
A128: N/A | B128: - | C128: =IF($B$99="NO",B128,IFERROR(B128*(IF(A128>$B$39, 1/(1+$B$100)^(A128-$B$39),VLOOKUP(A128,Defaults!$A$134:$B$192, 2,FALSE))),"-")) -> - | D128: =IFERROR(IF(A128="N/A","-",C128*VLOOKUP(A128,Defaults!$A$290:$B$340, 2,FALSE)),"-") -> -
A129: N/A | B129: - | C129: =IF($B$99="NO",B129,IFERROR(B129*(IF(A129>$B$39, 1/(1+$B$100)^(A129-$B$39),VLOOKUP(A129,Defaults!$A$134:$B$192, 2,FALSE))),"-")) -> - | D129: =IFERROR(IF(A129="N/A","-",C129*VLOOKUP(A129,Defaults!$A$290:$B$340, 2,FALSE)),"-") -> -
A130: -
A131: Table 12. Capital Cost Summary
A132: Total Capital Costs: | B132: =SUM(B105:B115)+SUM(B119:B129) -> $11,102,402
A133: Total Real Capital Costs: | B133: =SUM(C105:C115)+SUM(C119:C129) -> $11,102,402
A134: Total Discounted Capital Costs: | B134: =SUM(D105:D115)+SUM(D119:D129) -> $9,614,819
A135: -
A136: Table 13. Residual Value
A137: Share of Capital Costs | B137: Asset Life (Years) | C137: Explanation and Source
A138: 100% | B138: 75 | C138: AASHTO
A139: 0% | B139: 0 | C139: -
A140: 0% | B140: 0 | C140: -
A141: 0% | B141: 0 | C141: -
A142: =SUM(A138:A141) -> 100% | B142: Summation | C142: N/A
A143: Note: If there are multiple components of the project for this specific bridge that different asset lives, enter the share of the project costs associated with the different project components and their asset life.
A144: Note: The Summation cell should be 100%.
A145: -
A146: Operating and Maintenance Costs (O&M)
A147: Table 14. Operating and Maintenance Costs Assumptions
A148: Which method would you like to use to enter O&M costs? | B148: Manual Entry
A149: Year of O&M costs Dollars | B149: 2024
A150: Note: If you have O&M costs in the construction period you will need to use the manual entry option to enter the O&M costs in the construction period.
A151: Note: The operating and maintenance costs in the baseline should be entered to be consistent with your estimate of closure. If the bridge is closed in a future year (Table 25), there should not be maintenance costs for that year and thereafter.
A152: Note: For frequency calculation option, all costs should be entered as year of expenditure. The tool applies inflation and discounting factors automatically.
A153: -
A154: Table 15. Annual O&M Calculation Input
A155: Category | B155: Value
A156: Annual O&M Costs in the No Build Scenario | B156: -
A157: Annual O&M Costs Real Growth Rate in the No Build Scenario | B157: 0%
A158: Annual O&M Costs in the Build Scenario | B158: -
A159: Annual O&M Costs Real Growth Rate in the Build Scenario | B159: 0%
A160: Note: The maintenance real growth rate represents the real cost increases year over year (e.g., from increased deterioration of the asset). It should not include inflation adjustments.
A161: -
A162: Table 16a. Intermittent O&M Calculation Input
A163: Category | B163: Value
A164: Initial year | B164: -
A165: Last Year | B165: -
A166: Occurs every _____ Years; set to 30 if occurs only once | B166: 1
A167: Annual O&M Costs in the No Build Scenario | B167: -
A168: Annual O&M Costs Real Growth Rate in the Build Scenario | B168: -
A169: -
A170: Table 16b. Intermittent O&M Calculation Input
A171: Category | B171: Value
A172: Initial year | B172: -
A173: Last Year | B173: -
A174: Occurs every _____ Years; set to 30 if occurs only once | B174: 1
A175: Annual O&M Costs in the No Build Scenario | B175: -
A176: Annual O&M Costs Real Growth Rate in the Build Scenario | B176: -
A177: -
A178: Table 16c. Intermittent O&M Calculation Input
A179: Category | B179: Value
A180: Initial year | B180: -
A181: Last Year | B181: -
A182: Occurs every _____ Years; set to 30 if occurs only once | B182: 1
A183: Annual O&M Costs in the No Build Scenario | B183: -
A184: Annual O&M Costs Real Growth Rate in the Build Scenario | B184: -
A185: -
A186: Table 16d. Intermittent O&M Calculation Input
A187: Category | B187: Value
A188: Initial year | B188: -
A189: Last Year | B189: -
A190: Occurs every _____ Years; set to 30 if occurs only once | B190: 1
A191: Annual O&M Costs in the No Build Scenario | B191: -
A192: Annual O&M Costs Real Growth Rate in the Build Scenario | B192: -
A193: Note: The "Occurs every _____ " field in Tables 16a through 16d must be greater than or equal to 1, even if you are not adding an additional recurring maintenance cost.
A194: -
A195: Note: Manual O&M cost values should be entered in the year of dollar entered in Table 14.
A196: Table 17. Manual O&M Cost Entry
A197: Calendar Year | B197: Analysis Year | C197: No Build Annual Cost | D197: Build Annual Cost | E197: O&M Cost Difference Discounted
A198: =IFERROR(IF(B32="Required","N/A",B32),"N/A") -> 2022 | B198: =IFERROR(IF(A198=$B$35,1,IF(A198>$B$35,A198-$B$35+1,IF(A198<$B$35,A198-$B$35+1,"N/A"))),"N/A") -> -7 | C198: 0 | D198: 0 | E198: =IFERROR((C198-D198)*VLOOKUP($B$149,Defaults!$A$290:$B$340, 2,FALSE)*VLOOKUP(A198,Defaults!$A$290:$B$340,2,FALSE),0) -> 0
A199: =IF(A198="N/A","N/A",IF(A198>=$B$35+$B$36-1,"N/A",A198+1)) -> 2023 | B199: -6 | C199: 0 | D199: 0 | E199: =IFERROR((C199-D199)*VLOOKUP($B$149,Defaults!$A$290:$B$340, 2,FALSE)*VLOOKUP(A199,Defaults!$A$290:$B$340,2,FALSE),0) -> 0
A200: 2024 | B200: -5 | C200: 0 | D200: 0 | E200: =IFERROR((C200-D200)*VLOOKUP($B$149,Defaults!$A$290:$B$340, 2,FALSE)*VLOOKUP(A200,Defaults!$A$290:$B$340,2,FALSE),0) -> 0
... 495 more rows

Sheet 111.7
A1: Bridge and Project Overview
A2: ID of bridge, description of improvement, project timeline, traffic volume
A3: Add New Bridge (press Ctrl + Shift + B)
A4: Add Sensitivity Analysis for Current Bridge (press Ctrl + Shift + S)
A5: Delete this Bridge (press Ctrl + Shift + D)
A6: Note: Only delete bridges using this command/button. Deleting bridge tabs through right click will result in (fixable) errors on the Results tab.
A7: Change Bridge Name (press Ctrl + Shift + N)
A8: -
A9: Table 1. Bridge Variables
A10: Bridge Variables | B10: Bridge Values
A11: State | B11: Mississippi
A12: County | B12: Newton
A13: Structure Number | B13: 210008005111170
A14: Inventory Route | B14: =VLOOKUP($C$80,NBIData[],COLUMN(NBIData[ROUTE_NUMBER_005D]),FALSE) -> 00080
A15: Feature Intersected | B15: =VLOOKUP($C$80,NBIData[],COLUMN(NBIData[FEATURES_DESC_006A]),FALSE) -> 'TURKEY CREEK'
A16: Facility Carried | B16: =VLOOKUP($C$80,NBIData[],COLUMN(NBIData[FACILITY_CARRIED_007]),FALSE) -> 'US 80'
A17: Latitude | B17: =LEFT(VLOOKUP($C$80,NBIData[],COLUMN(NBIData[LAT_016]),FALSE), 2) & CHAR(176) & " " & MID(VLOOKUP($C$80,NBIData[],COLUMN(NBIData[LAT_016]),FALSE), 3, 2) &"'" & " " & MID(VLOOKUP($C$80,NBIData[],COLUMN(NBIData[LAT_016]),FALSE), 5, 2) &"."& MID(VLOOKUP($C$80,NBIData[],COLUMN(NBIData[LAT_016]),FALSE), 7, 2) & CHAR(34) -> 32° 20' 23.34"
A18: Longitude | B18: ="-" & MID(VLOOKUP($C$80,NBIData[],COLUMN(NBIData[LONG_017]),FALSE), 2, 2) & CHAR(176) & " " & MID(VLOOKUP($C$80,NBIData[],COLUMN(NBIData[LONG_017]),FALSE), 4, 2) &"'" & " " & MID(VLOOKUP($C$80,NBIData[],COLUMN(NBIData[LONG_017]),FALSE), 6, 2) &"."& MID(VLOOKUP($C$80,NBIData[],COLUMN(NBIData[LONG_017]),FALSE), 8, 2) & CHAR(34) -> -89° 06' 02.80"
A19: Bridge Length (mi) | B19: =VLOOKUP($C$80,NBIData[],COLUMN(NBIData[STRUCTURE_LEN_MT_049]),FALSE)/1609 -> 0.04319453076
A20: Bypass, Detour Length (mi) | B20: =VLOOKUP($C$80,NBIData[],COLUMN(NBIData[DETOUR_KILOS_019]),FALSE)*0.621371 -> 9.94
A21: Owner | B21: =VLOOKUP($C$80,NBIData[],COLUMN(NBIData[OWNER_022]),FALSE) -> 01
A22: Functional Class, Rural/Urban | B22: =VLOOKUP($C$80,NBIData[],COLUMN(NBIData[FUNCTIONAL_CLASS_026]),FALSE) -> 07
A23: Bridge Road Type | B23: =VLOOKUP(B22,Defaults!A359:$D$371, 2, FALSE) -> Rural - Major Collector
A24: Year Built | B24: =VLOOKUP($C$80,NBIData[],COLUMN(NBIData[YEAR_BUILT_027]),FALSE) -> 1930
A25: Year Reconstructed | B25: =VLOOKUP($C$80,NBIData[],COLUMN(NBIData[YEAR_RECONSTRUCTED_106]),FALSE) -> 0
A26: Lanes on the Structure | B26: =VLOOKUP($C$80,NBIData[],COLUMN(NBIData[TRAFFIC_LANES_ON_028A]),FALSE) -> 2
A27: Note: Some bridges have the same structure number. Use the state and county drop downs to identify your bridge.
A28: -
A29: Project Description:
A30: Table 2. Project Timeline
A31: Timeline Variables | B31: Timeline Values
A32: Current Year | B32: 2022
A33: First Year of Construction Costs | B33: 2025
A34: Last Year of Construction Costs | B34: 2029
A35: Project Opens (Start of Benefits) | B35: 2030
A36: Years of Benefits for Analysis | B36: 30
A37: First Year of Period of Analysis | B37: =IF(B35="Required","-", B35) -> 2030
A38: Last Year of Period of Analysis | B38: =IFERROR(B35+B36-1, "-") -> 2059
A39: Discount Year | B39: =Defaults!A290 -> 2022
A40: Base Year of NBI | B40: 2023
A41: Note: The tool cannot handle partial years, or pro-rata benefits or costs. Round up or down to the nearest year for construction start, construction end, and the start of benefits.
A42: Note: Enter a value between 20 to 30 for the Years of Benefits for Analysis, appropriate to the project as defined by US DOT BCA Guidance.
A43: -
A44: Table 3. Average Annual Daily Traffic (AADT)
A45: Scenario and Vehicle Type | B45: NBI Year of AADT | C45: NBI Year of Future AADT | D45: Forecast using NBI Growth Rate | E45: Forecast using NBI Growth Rate2 | F45: Project Opens | G45: Last Year | H45: Explanation and Source
A46: Year | B46: =VLOOKUP($C$80,NBIData[],COLUMN(NBIData[YEAR_ADT_030]),FALSE) -> 2022 | C46: =VLOOKUP($C$80,NBIData[],COLUMN(NBIData[YEAR_OF_FUTURE_ADT_115]),FALSE) -> 2059 | D46: =IF(B35="Required","-",B35) -> 2030 | E46: =B38 -> 2059 | F46: =IF(B35="Required", "-",B35) -> 2030 | G46: =B38 -> 2059 | H46: N/A
A47: No Build - Passenger AADT | B47: =VLOOKUP($C$80,NBIData[],COLUMN(NBIData[ADT_029]),FALSE)*(1-VLOOKUP($C$80,NBIData[],COLUMN(NBIData[PERCENT_ADT_TRUCK_109]),FALSE)/100) -> 1581 | C47: =VLOOKUP($C$80,NBIData[],COLUMN(NBIData[FUTURE_ADT_114]),FALSE)*(1-VLOOKUP($C$80,NBIData[],COLUMN(NBIData[PERCENT_ADT_TRUCK_109]),FALSE)/100) -> 2285 | D47: =ROUND(B47*((1+B59)^(D$46-$B$46)),0) -> 1712 | E47: =ROUND(C47*((1+B59)^(E$46-$C$46)),0) -> 2285 | F47: 1674 | G47: 2285 | H47: BCA Guidance, MDOT
A48: No Build - Truck AADT | B48: =VLOOKUP($C$80,NBIData[],COLUMN(NBIData[PERCENT_ADT_TRUCK_109]),FALSE)/100*VLOOKUP($C$80,NBIData[],COLUMN(NBIData[ADT_029]),FALSE) -> 119 | C48: =VLOOKUP($C$80,NBIData[],COLUMN(NBIData[PERCENT_ADT_TRUCK_109]),FALSE)/100*VLOOKUP($C$80,NBIData[],COLUMN(NBIData[FUTURE_ADT_114]),FALSE) -> 172 | D48: =ROUND(B48*((1+B59)^(D$46-$B$46)),0) -> 129 | E48: =ROUND(C48*((1+B59)^(E$46-$C$46)),0) -> 172 | F48: 126 | G48: 172 | H48: BCA Guidance, MDOT
A49: No Build - Bus AADT | B49: N/A | C49: N/A | D49: N/A | E49: N/A | F49: 0 | G49: 0 | H49: BCA Guidance, MDOT
A50: Build - Passenger AADT | B50: =B47 -> 1581 | C50: =C47 -> 2285 | D50: =ROUND(B50*((1+B59)^(D$46-$B$46)),0) -> 1712 | E50: =ROUND(C50*((1+B59)^(E$46-$C$46)),0) -> 2285 | F50: 1674 | G50: 2285 | H50: BCA Guidance, MDOT
A51: Build - Truck AADT | B51: =B48 -> 119 | C51: =C48 -> 172 | D51: =ROUND(B51*((1+B59)^(D$46-$B$46)),0) -> 129 | E51: =ROUND(C51*((1+B59)^(E$46-$C$46)),0) -> 172 | F51: 126 | G51: 172 | H51: BCA Guidance, MDOT
A52: Build - Bus AADT | B52: N/A | C52: N/A | D52: N/A | E52: N/A | F52: 0 | G52: 0 | H52: BCA Guidance, MDOT
A53: =HYPERLINK("#A542","Note: AADT can be entered manually in Table 52 and Table 53 below.") -> Note: AADT can be entered manually in Table 52 and Table 53 below.
A54: Note: Here and elsewhere in the tool it is critical that you enter at least some value in the required cells, e.g., 0, rather than "-", "N/A" or leaving it blank.
A55: Note: NBI AADT values are added for reference in Table 3. Users must enter AADT values in Columns G, H and I in Table 3.
A56: -
A57: Note: Table 4 is not a user input. Do not adjust Table 4.
A58: Table 4. NBI's Calculated Average Annual Daily Traffic (AADT) Growth Rate
A59: =CONCATENATE("The NBI Calculated Annual Growth Rate", " ", B46, "-",C46, " (NBI)") -> The NBI Calculated Annual Growth Rate 2022-2059 (NBI) | B59: =(C47/B47)^(1/(C$46-B$46))-1 -> $0
A60: -
A61: Table 5. Detour Road Type
A62: Detour Road Type | B62: Rural - Principal Arterial - Interstate
A63: Detour Road Type - Simple | B63: =IF(B62="Required", "-",IF(ISNUMBER(SEARCH("Urban",B62)), "Urban", "Rural")) -> Rural
A64: -
A65: Note: Detour length should represent the Net detour: Detour length minus the original route length.
A66: Table 6. Detour and Bridge Length Information
A67: Detour Details | B67: Reference | C67: User Value | D67: Explanation and Source
A68: Net Detour Length, For Vehicles (mi) (NBI) | B68: =ROUND(VLOOKUP($C$80,NBIData[],COLUMN(NBIData[DETOUR_KILOS_019]),FALSE)*0.621371,1) -> 9.9 | C68: 15.9 | D68: Google
A69: Detour Average Speed, for Vehicles (mph) (FHWA VHT) | B69: =ROUND(VLOOKUP(B62,Defaults!B359:F371,2, FALSE),1) -> 66.0 | C69: 50.0 | D69: Google
A70: Net Detour Length, For Cycling/ Pedestrian (mi) (NBI) | B70: =ROUND(VLOOKUP($C$80,NBIData[],COLUMN(NBIData[DETOUR_KILOS_019]),FALSE)*0.621371, 1) -> 9.9 | C70: 15.9 | D70: Google
A71: Detour Average Travel Time (min) | B71: =B68/B69*60 -> 9.0 | C71: =C68/C69*60 -> 19.1 | D71: N/A
A72: Bridge Length (mi) | B72: =ROUND(B19,2) -> 0.04 | C72: =370/5280 -> 0.07 | D72: Google
A73: Note: Google or HPMS data are preferred for identifying average speed on the detour route. You can also use the HERS/VHT speed values using the Detour Road Type dropdown below.
A74: Note: Bridge length in the NBI does not include the approach length. Include approach length if relevant for your project.
A75: =HYPERLINK("https://www.google.com/maps", "Use Google Maps to calculate detour route length and average speed, as appropriate.") -> Use Google Maps to calculate detour route length and average speed, as appropriate.
A76: =HYPERLINK("https://www.fhwa.dot.gov/policyinformation/hpms.cfm", "Use the Highway Performance Monitoring System (HPMS) data to calculate detour route length and average speed, as appropriate.") -> Use the Highway Performance Monitoring System (HPMS) data to calculate detour route length and average speed, as appropriate.
A77: -
A78: Note: These reference cells are marked to avoid accidental deletion.
A79: Table 7. Reference Table
A80: Reference Cells | B80: =CONCATENATE(B11,B12) -> MississippiNewton | C80: =CONCATENATE(VLOOKUP($B$11,NBI_Dropdown!$B$1:$D$56,3,FALSE),$B$13) -> 284210008005111170
A81: -
A82: Table 8. Travel Assumptions
A83: Parameters | B83: Reference | C83: User Value | D83: Explanation and Source
A84: Bridge Average Speed (FHWA) | B84: =_xlfn.IFNA(VLOOKUP(B23,Defaults!B359:C371,2, FALSE), "N/A") -> 47 | C84: 47 | D84: -
A85: Average Car Occupancy | B85: =Defaults!B51 -> 1.67 | C85: 1.67 | D85: -
A86: Share of Long-Distance Personal Travel | B86: 0.0% | C86: 0% | D86: -
A87: Value of Time - Long-Distance Personal Travel | B87: =Defaults!B35 -> $25.10 | C87: $25.10 | D87: -
A88: Share of Business Travel | B88: 11.8% | C88: 11.8% | D88: -
A89: Value of Travel Time - Business | B89: =Defaults!B33 -> $32.30 | C89: $32.30 | D89: -
A90: Value of Travel Time - Personal | B90: =Defaults!B32 -> $17.90 | C90: $17.90 | D90: -
A91: Value of Travel Time - All Purposes | B91: =ROUND(B86*B87+B88*B89+(1-B86-B88)*B90,1) -> $19.60 | C91: =IFERROR(ROUND(C86*C87+C88*C89+(1-C86-C88)*C90,1),"-") -> $19.60 | D91: -
A92: Walking, Cycling, Waiting, Standing, and Transfer Time | B92: =Defaults!B36 -> $35.80 | C92: $35.80 | D92: -
A93: Truck Driver | B93: =Defaults!B39 -> $33.50 | C93: $33.50 | D93: -
A94: Bus Driver | B94: =Defaults!B40 -> $36.50 | C94: $36.50 | D94: -
A95: Average Bus Occupancy | B95: 0 | C95: 0 | D95: -
A96: -
A97: Capital Cost and Residual Value
A98: Table 9. Expenditure Dollars Option
A99: Are costs entered in year of expenditure dollars (not adjusted for inflation)? | B99: NO
A100: Enter future inflation rate for capital costs. | B100: 0%
A101: Note: Capital costs can be entered in year of expenditure dollars or in real dollars. The tool applies inflation and discounting factors automatically if entered as year of expenditure dollars.
A102: -
A103: Table 10. Already Incurred Costs
A104: Year | B104: Costs | C104: Real Costs | D104: Discounted Costs
A105: 2014 | B105: =243891.85/4 -> $60,973 | C105: =IF($B$99="NO",B105,IFERROR(B105*(IF(A105>$B$39, 1/((1+$B$100)^(A105-$B$39)),VLOOKUP(A105,Defaults!$A$134:$B$192, 2,FALSE))),"-")) -> $60,973 | D105: =IFERROR(IF(A105="","",IF(A105<=2020, C105, C105*VLOOKUP(A105,Defaults!$A$290:$B$340, 2,FALSE))),"-") -> $60,973
A106: 2015 | B106: =111325.48/4 -> $27,831 | C106: =IF($B$99="NO",B106,IFERROR(B106*(IF(A106>$B$39, 1/((1+$B$100)^(A106-$B$39)),VLOOKUP(A106,Defaults!$A$134:$B$192, 2,FALSE))),"-")) -> $27,831 | D106: =IFERROR(IF(A106="","",IF(A106<=2020, C106, C106*VLOOKUP(A106,Defaults!$A$290:$B$340, 2,FALSE))),"-") -> $27,831
A107: 2016 | B107: =373682.12/4 -> $93,421 | C107: =IF($B$99="NO",B107,IFERROR(B107*(IF(A107>$B$39, 1/((1+$B$100)^(A107-$B$39)),VLOOKUP(A107,Defaults!$A$134:$B$192, 2,FALSE))),"-")) -> $93,421 | D107: =IFERROR(IF(A107="","",IF(A107<=2020, C107, C107*VLOOKUP(A107,Defaults!$A$290:$B$340, 2,FALSE))),"-") -> $93,421
A108: 2017 | B108: =279489.12/4 -> $69,872 | C108: =IF($B$99="NO",B108,IFERROR(B108*(IF(A108>$B$39, 1/((1+$B$100)^(A108-$B$39)),VLOOKUP(A108,Defaults!$A$134:$B$192, 2,FALSE))),"-")) -> $69,872 | D108: =IFERROR(IF(A108="","",IF(A108<=2020, C108, C108*VLOOKUP(A108,Defaults!$A$290:$B$340, 2,FALSE))),"-") -> $69,872
A109: 2018 | B109: =121489.12/4 -> $30,372 | C109: =IF($B$99="NO",B109,IFERROR(B109*(IF(A109>$B$39, 1/((1+$B$100)^(A109-$B$39)),VLOOKUP(A109,Defaults!$A$134:$B$192, 2,FALSE))),"-")) -> $30,372 | D109: =IFERROR(IF(A109="","",IF(A109<=2020, C109, C109*VLOOKUP(A109,Defaults!$A$290:$B$340, 2,FALSE))),"-") -> $30,372
A110: 2019 | B110: =159105.4/4 -> $39,776 | C110: =IF($B$99="NO",B110,IFERROR(B110*(IF(A110>$B$39, 1/((1+$B$100)^(A110-$B$39)),VLOOKUP(A110,Defaults!$A$134:$B$192, 2,FALSE))),"-")) -> $39,776 | D110: =IFERROR(IF(A110="","",IF(A110<=2020, C110, C110*VLOOKUP(A110,Defaults!$A$290:$B$340, 2,FALSE))),"-") -> $39,776
A111: 2020 | B111: =70717.12/4 -> $17,679 | C111: =IF($B$99="NO",B111,IFERROR(B111*(IF(A111>$B$39, 1/((1+$B$100)^(A111-$B$39)),VLOOKUP(A111,Defaults!$A$134:$B$192, 2,FALSE))),"-")) -> $17,679 | D111: =IFERROR(IF(A111="","",IF(A111<=2020, C111, C111*VLOOKUP(A111,Defaults!$A$290:$B$340, 2,FALSE))),"-") -> $17,679
A112: 2021 | B112: =(107325.62+2487.38)/4 -> $27,453 | C112: =IF($B$99="NO",B112,IFERROR(B112*(IF(A112>$B$39, 1/((1+$B$100)^(A112-$B$39)),VLOOKUP(A112,Defaults!$A$134:$B$192, 2,FALSE))),"-")) -> $27,453 | D112: =IFERROR(IF(A112="","",IF(A112<=2020, C112, C112*VLOOKUP(A112,Defaults!$A$290:$B$340, 2,FALSE))),"-") -> -
A113: 2022 | B113: =(137694.43+96355.12+991.82+450279.19+309.97)/4 -> $171,408 | C113: =IF($B$99="NO",B113,IFERROR(B113*(IF(A113>$B$39, 1/((1+$B$100)^(A113-$B$39)),VLOOKUP(A113,Defaults!$A$134:$B$192, 2,FALSE))),"-")) -> $171,408 | D113: =IFERROR(IF(A113="","",IF(A113<=2020, C113, C113*VLOOKUP(A113,Defaults!$A$290:$B$340, 2,FALSE))),"-") -> $171,408
A114: 2023 | B114: =(211095.4+941.78+42034.49+198320.55+93543.2)/4 -> $136,484 | C114: =IF($B$99="NO",B114,IFERROR(B114*(IF(A114>$B$39, 1/((1+$B$100)^(A114-$B$39)),VLOOKUP(A114,Defaults!$A$134:$B$192, 2,FALSE))),"-")) -> $136,484 | D114: =IFERROR(IF(A114="","",IF(A114<=2020, C114, C114*VLOOKUP(A114,Defaults!$A$290:$B$340, 2,FALSE))),"-") -> $132,380
A115: 2024 | B115: =(577006.52/4)+1 -> $144,253 | C115: =IF($B$99="NO",B115,IFERROR(B115*(IF(A115>$B$39, 1/((1+$B$100)^(A115-$B$39)),VLOOKUP(A115,Defaults!$A$134:$B$192, 2,FALSE))),"-")) -> $144,253 | D115: =IFERROR(IF(A115="","",IF(A115<=2020, C115, C115*VLOOKUP(A115,Defaults!$A$290:$B$340, 2,FALSE))),"-") -> $135,708
A116: -
A117: Table 11. Capital Costs
A118: Year | B118: Costs | C118: Real Costs | D118: Discounted Costs
A119: =IFERROR(IF($B$33="-", "N/A", $B$33),"N/A") -> 2025 | B119: $1,275,982 | C119: =IF($B$99="NO",B119,IFERROR(B119*(IF(A119>$B$39, 1/(1+$B$100)^(A119-$B$39),VLOOKUP(A119,Defaults!$A$134:$B$192, 2,FALSE))),"-")) -> $1,275,982 | D119: =IFERROR(IF(A119="N/A","-",C119*VLOOKUP(A119,Defaults!$A$290:$B$340, 2,FALSE)),"-") -> $1,164,310
A120: =IFERROR(IF(A119="N/A","N/A",IF(A119>=$B$34,"N/A",A119+1)),"") -> 2026 | B120: $1,275,982 | C120: =IF($B$99="NO",B120,IFERROR(B120*(IF(A120>$B$39, 1/(1+$B$100)^(A120-$B$39),VLOOKUP(A120,Defaults!$A$134:$B$192, 2,FALSE))),"-")) -> $1,275,982 | D120: =IFERROR(IF(A120="N/A","-",C120*VLOOKUP(A120,Defaults!$A$290:$B$340, 2,FALSE)),"-") -> $1,129,302
A121: =IF(A120="N/A","N/A",IF(A120>=$B$34,"N/A",A120+1)) -> 2027 | B121: $1,275,982 | C121: =IF($B$99="NO",B121,IFERROR(B121*(IF(A121>$B$39, 1/(1+$B$100)^(A121-$B$39),VLOOKUP(A121,Defaults!$A$134:$B$192, 2,FALSE))),"-")) -> $1,275,982 | D121: =IFERROR(IF(A121="N/A","-",C121*VLOOKUP(A121,Defaults!$A$290:$B$340, 2,FALSE)),"-") -> $1,095,346
A122: 2028 | B122: $1,275,982 | C122: =IF($B$99="NO",B122,IFERROR(B122*(IF(A122>$B$39, 1/(1+$B$100)^(A122-$B$39),VLOOKUP(A122,Defaults!$A$134:$B$192, 2,FALSE))),"-")) -> $1,275,982 | D122: =IFERROR(IF(A122="N/A","-",C122*VLOOKUP(A122,Defaults!$A$290:$B$340, 2,FALSE)),"-") -> $1,062,411
A123: 2029 | B123: $1,275,982 | C123: =IF($B$99="NO",B123,IFERROR(B123*(IF(A123>$B$39, 1/(1+$B$100)^(A123-$B$39),VLOOKUP(A123,Defaults!$A$134:$B$192, 2,FALSE))),"-")) -> $1,275,982 | D123: =IFERROR(IF(A123="N/A","-",C123*VLOOKUP(A123,Defaults!$A$290:$B$340, 2,FALSE)),"-") -> $1,030,467
A124: N/A | B124: - | C124: =IF($B$99="NO",B124,IFERROR(B124*(IF(A124>$B$39, 1/(1+$B$100)^(A124-$B$39),VLOOKUP(A124,Defaults!$A$134:$B$192, 2,FALSE))),"-")) -> - | D124: =IFERROR(IF(A124="N/A","-",C124*VLOOKUP(A124,Defaults!$A$290:$B$340, 2,FALSE)),"-") -> -
A125: N/A | B125: - | C125: =IF($B$99="NO",B125,IFERROR(B125*(IF(A125>$B$39, 1/(1+$B$100)^(A125-$B$39),VLOOKUP(A125,Defaults!$A$134:$B$192, 2,FALSE))),"-")) -> - | D125: =IFERROR(IF(A125="N/A","-",C125*VLOOKUP(A125,Defaults!$A$290:$B$340, 2,FALSE)),"-") -> -
A126: N/A | B126: - | C126: =IF($B$99="NO",B126,IFERROR(B126*(IF(A126>$B$39, 1/(1+$B$100)^(A126-$B$39),VLOOKUP(A126,Defaults!$A$134:$B$192, 2,FALSE))),"-")) -> - | D126: =IFERROR(IF(A126="N/A","-",C126*VLOOKUP(A126,Defaults!$A$290:$B$340, 2,FALSE)),"-") -> -
A127: N/A | B127: - | C127: =IF($B$99="NO",B127,IFERROR(B127*(IF(A127>$B$39, 1/(1+$B$100)^(A127-$B$39),VLOOKUP(A127,Defaults!$A$134:$B$192, 2,FALSE))),"-")) -> - | D127: =IFERROR(IF(A127="N/A","-",C127*VLOOKUP(A127,Defaults!$A$290:$B$340, 2,FALSE)),"-") -> -
A128: N/A | B128: - | C128: =IF($B$99="NO",B128,IFERROR(B128*(IF(A128>$B$39, 1/(1+$B$100)^(A128-$B$39),VLOOKUP(A128,Defaults!$A$134:$B$192, 2,FALSE))),"-")) -> - | D128: =IFERROR(IF(A128="N/A","-",C128*VLOOKUP(A128,Defaults!$A$290:$B$340, 2,FALSE)),"-") -> -
A129: N/A | B129: - | C129: =IF($B$99="NO",B129,IFERROR(B129*(IF(A129>$B$39, 1/(1+$B$100)^(A129-$B$39),VLOOKUP(A129,Defaults!$A$134:$B$192, 2,FALSE))),"-")) -> - | D129: =IFERROR(IF(A129="N/A","-",C129*VLOOKUP(A129,Defaults!$A$290:$B$340, 2,FALSE)),"-") -> -
A130: -
A131: Table 12. Capital Cost Summary
A132: Total Capital Costs: | B132: =SUM(B105:B115)+SUM(B119:B129) -> $7,199,435
A133: Total Real Capital Costs: | B133: =SUM(C105:C115)+SUM(C119:C129) -> $7,199,435
A134: Total Discounted Capital Costs: | B134: =SUM(D105:D115)+SUM(D119:D129) -> $6,261,257
A135: -
A136: Table 13. Residual Value
A137: Share of Capital Costs | B137: Asset Life (Years) | C137: Explanation and Source
A138: 100% | B138: 75 | C138: AASHTO
A139: 0% | B139: 0 | C139: -
A140: 0% | B140: 0 | C140: -
A141: 0% | B141: 0 | C141: -
A142: =SUM(A138:A141) -> 100% | B142: Summation | C142: N/A
A143: Note: If there are multiple components of the project for this specific bridge that different asset lives, enter the share of the project costs associated with the different project components and their asset life.
A144: Note: The Summation cell should be 100%.
A145: -
A146: Operating and Maintenance Costs (O&M)
A147: Table 14. Operating and Maintenance Costs Assumptions
A148: Which method would you like to use to enter O&M costs? | B148: Manual Entry
A149: Year of O&M costs Dollars | B149: 2024
A150: Note: If you have O&M costs in the construction period you will need to use the manual entry option to enter the O&M costs in the construction period.
A151: Note: The operating and maintenance costs in the baseline should be entered to be consistent with your estimate of closure. If the bridge is closed in a future year (Table 25), there should not be maintenance costs for that year and thereafter.
A152: Note: For frequency calculation option, all costs should be entered as year of expenditure. The tool applies inflation and discounting factors automatically.
A153: -
A154: Table 15. Annual O&M Calculation Input
A155: Category | B155: Value
A156: Annual O&M Costs in the No Build Scenario | B156: -
A157: Annual O&M Costs Real Growth Rate in the No Build Scenario | B157: 0%
A158: Annual O&M Costs in the Build Scenario | B158: -
A159: Annual O&M Costs Real Growth Rate in the Build Scenario | B159: 0%
A160: Note: The maintenance real growth rate represents the real cost increases year over year (e.g., from increased deterioration of the asset). It should not include inflation adjustments.
A161: -
A162: Table 16a. Intermittent O&M Calculation Input
A163: Category | B163: Value
A164: Initial year | B164: -
A165: Last Year | B165: -
A166: Occurs every _____ Years; set to 30 if occurs only once | B166: 1
A167: Annual O&M Costs in the No Build Scenario | B167: -
A168: Annual O&M Costs Real Growth Rate in the Build Scenario | B168: -
A169: -
A170: Table 16b. Intermittent O&M Calculation Input
A171: Category | B171: Value
A172: Initial year | B172: -
A173: Last Year | B173: -
A174: Occurs every _____ Years; set to 30 if occurs only once | B174: 1
A175: Annual O&M Costs in the No Build Scenario | B175: -
A176: Annual O&M Costs Real Growth Rate in the Build Scenario | B176: -
A177: -
A178: Table 16c. Intermittent O&M Calculation Input
A179: Category | B179: Value
A180: Initial year | B180: -
A181: Last Year | B181: -
A182: Occurs every _____ Years; set to 30 if occurs only once | B182: 1
A183: Annual O&M Costs in the No Build Scenario | B183: -
A184: Annual O&M Costs Real Growth Rate in the Build Scenario | B184: -
A185: -
A186: Table 16d. Intermittent O&M Calculation Input
A187: Category | B187: Value
A188: Initial year | B188: -
A189: Last Year | B189: -
A190: Occurs every _____ Years; set to 30 if occurs only once | B190: 1
A191: Annual O&M Costs in the No Build Scenario | B191: -
A192: Annual O&M Costs Real Growth Rate in the Build Scenario | B192: -
A193: Note: The "Occurs every _____ " field in Tables 16a through 16d must be greater than or equal to 1, even if you are not adding an additional recurring maintenance cost.
A194: -
A195: Note: Manual O&M cost values should be entered in the year of dollar entered in Table 14.
A196: Table 17. Manual O&M Cost Entry
A197: Calendar Year | B197: Analysis Year | C197: No Build Annual Cost | D197: Build Annual Cost | E197: O&M Cost Difference Discounted
A198: =IFERROR(IF(B32="Required","N/A",B32),"N/A") -> 2022 | B198: =IFERROR(IF(A198=$B$35,1,IF(A198>$B$35,A198-$B$35+1,IF(A198<$B$35,A198-$B$35+1,"N/A"))),"N/A") -> -7 | C198: 0 | D198: 0 | E198: =IFERROR((C198-D198)*VLOOKUP($B$149,Defaults!$A$290:$B$340, 2,FALSE)*VLOOKUP(A198,Defaults!$A$290:$B$340,2,FALSE),0) -> 0
A199: =IF(A198="N/A","N/A",IF(A198>=$B$35+$B$36-1,"N/A",A198+1)) -> 2023 | B199: -6 | C199: 0 | D199: 0 | E199: =IFERROR((C199-D199)*VLOOKUP($B$149,Defaults!$A$290:$B$340, 2,FALSE)*VLOOKUP(A199,Defaults!$A$290:$B$340,2,FALSE),0) -> 0
A200: 2024 | B200: -5 | C200: 0 | D200: 0 | E200: =IFERROR((C200-D200)*VLOOKUP($B$149,Defaults!$A$290:$B$340, 2,FALSE)*VLOOKUP(A200,Defaults!$A$290:$B$340,2,FALSE),0) -> 0
... 495 more rows

Sheet 114.8
A1: Bridge and Project Overview
A2: ID of bridge, description of improvement, project timeline, traffic volume
A3: Add New Bridge (press Ctrl + Shift + B)
A4: Add Sensitivity Analysis for Current Bridge (press Ctrl + Shift + S)
A5: Delete this Bridge (press Ctrl + Shift + D)
A6: Note: Only delete bridges using this command/button. Deleting bridge tabs through right click will result in (fixable) errors on the Results tab.
A7: Change Bridge Name (press Ctrl + Shift + N)
A8: -
A9: Table 1. Bridge Variables
A10: Bridge Variables | B10: Bridge Values
A11: State | B11: Mississippi
A12: County | B12: Newton
A13: Structure Number | B13: 210008005111480
A14: Inventory Route | B14: =VLOOKUP($C$80,NBIData[],COLUMN(NBIData[ROUTE_NUMBER_005D]),FALSE) -> 00080
A15: Feature Intersected | B15: =VLOOKUP($C$80,NBIData[],COLUMN(NBIData[FEATURES_DESC_006A]),FALSE) -> 'BETHEL BRANCH'
A16: Facility Carried | B16: =VLOOKUP($C$80,NBIData[],COLUMN(NBIData[FACILITY_CARRIED_007]),FALSE) -> 'US 80'
A17: Latitude | B17: =LEFT(VLOOKUP($C$80,NBIData[],COLUMN(NBIData[LAT_016]),FALSE), 2) & CHAR(176) & " " & MID(VLOOKUP($C$80,NBIData[],COLUMN(NBIData[LAT_016]),FALSE), 3, 2) &"'" & " " & MID(VLOOKUP($C$80,NBIData[],COLUMN(NBIData[LAT_016]),FALSE), 5, 2) &"."& MID(VLOOKUP($C$80,NBIData[],COLUMN(NBIData[LAT_016]),FALSE), 7, 2) & CHAR(34) -> 32° 19' 48.35"
A18: Longitude | B18: ="-" & MID(VLOOKUP($C$80,NBIData[],COLUMN(NBIData[LONG_017]),FALSE), 2, 2) & CHAR(176) & " " & MID(VLOOKUP($C$80,NBIData[],COLUMN(NBIData[LONG_017]),FALSE), 4, 2) &"'" & " " & MID(VLOOKUP($C$80,NBIData[],COLUMN(NBIData[LONG_017]),FALSE), 6, 2) &"."& MID(VLOOKUP($C$80,NBIData[],COLUMN(NBIData[LONG_017]),FALSE), 8, 2) & CHAR(34) -> -89° 02' 55.63"
A19: Bridge Length (mi) | B19: =VLOOKUP($C$80,NBIData[],COLUMN(NBIData[STRUCTURE_LEN_MT_049]),FALSE)/1609 -> 0.01230577999
A20: Bypass, Detour Length (mi) | B20: =VLOOKUP($C$80,NBIData[],COLUMN(NBIData[DETOUR_KILOS_019]),FALSE)*0.621371 -> 9.94
A21: Owner | B21: =VLOOKUP($C$80,NBIData[],COLUMN(NBIData[OWNER_022]),FALSE) -> 01
A22: Functional Class, Rural/Urban | B22: =VLOOKUP($C$80,NBIData[],COLUMN(NBIData[FUNCTIONAL_CLASS_026]),FALSE) -> 07
A23: Bridge Road Type | B23: =VLOOKUP(B22,Defaults!A359:$D$371, 2, FALSE) -> Rural - Major Collector
A24: Year Built | B24: =VLOOKUP($C$80,NBIData[],COLUMN(NBIData[YEAR_BUILT_027]),FALSE) -> 1929
A25: Year Reconstructed | B25: =VLOOKUP($C$80,NBIData[],COLUMN(NBIData[YEAR_RECONSTRUCTED_106]),FALSE) -> 0
A26: Lanes on the Structure | B26: =VLOOKUP($C$80,NBIData[],COLUMN(NBIData[TRAFFIC_LANES_ON_028A]),FALSE) -> 2
A27: Note: Some bridges have the same structure number. Use the state and county drop downs to identify your bridge.
A28: -
A29: Project Description:
A30: Table 2. Project Timeline
A31: Timeline Variables | B31: Timeline Values
A32: Current Year | B32: 2022
A33: First Year of Construction Costs | B33: 2025
A34: Last Year of Construction Costs | B34: 2029
A35: Project Opens (Start of Benefits) | B35: 2030
A36: Years of Benefits for Analysis | B36: 30
A37: First Year of Period of Analysis | B37: =IF(B35="Required","-", B35) -> 2030
A38: Last Year of Period of Analysis | B38: =IFERROR(B35+B36-1, "-") -> 2059
A39: Discount Year | B39: =Defaults!A290 -> 2022
A40: Base Year of NBI | B40: 2023
A41: Note: The tool cannot handle partial years, or pro-rata benefits or costs. Round up or down to the nearest year for construction start, construction end, and the start of benefits.
A42: Note: Enter a value between 20 to 30 for the Years of Benefits for Analysis, appropriate to the project as defined by US DOT BCA Guidance.
A43: -
A44: Table 3. Average Annual Daily Traffic (AADT)
A45: Scenario and Vehicle Type | B45: NBI Year of AADT | C45: NBI Year of Future AADT | D45: Forecast using NBI Growth Rate | E45: Forecast using NBI Growth Rate2 | F45: Project Opens | G45: Last Year | H45: Explanation and Source
A46: Year | B46: =VLOOKUP($C$80,NBIData[],COLUMN(NBIData[YEAR_ADT_030]),FALSE) -> 2022 | C46: =VLOOKUP($C$80,NBIData[],COLUMN(NBIData[YEAR_OF_FUTURE_ADT_115]),FALSE) -> 2059 | D46: =IF(B35="Required","-",B35) -> 2030 | E46: =B38 -> 2059 | F46: =IF(B35="Required", "-",B35) -> 2030 | G46: =B38 -> 2059 | H46: N/A
A47: No Build - Passenger AADT | B47: =VLOOKUP($C$80,NBIData[],COLUMN(NBIData[ADT_029]),FALSE)*(1-VLOOKUP($C$80,NBIData[],COLUMN(NBIData[PERCENT_ADT_TRUCK_109]),FALSE)/100) -> 1581 | C47: =VLOOKUP($C$80,NBIData[],COLUMN(NBIData[FUTURE_ADT_114]),FALSE)*(1-VLOOKUP($C$80,NBIData[],COLUMN(NBIData[PERCENT_ADT_TRUCK_109]),FALSE)/100) -> 2285 | D47: =ROUND(B47*((1+B59)^(D$46-$B$46)),0) -> 1712 | E47: =ROUND(C47*((1+B59)^(E$46-$C$46)),0) -> 2285 | F47: 1674 | G47: 2285 | H47: BCA Guidance, MDOT
A48: No Build - Truck AADT | B48: =VLOOKUP($C$80,NBIData[],COLUMN(NBIData[PERCENT_ADT_TRUCK_109]),FALSE)/100*VLOOKUP($C$80,NBIData[],COLUMN(NBIData[ADT_029]),FALSE) -> 119 | C48: =VLOOKUP($C$80,NBIData[],COLUMN(NBIData[PERCENT_ADT_TRUCK_109]),FALSE)/100*VLOOKUP($C$80,NBIData[],COLUMN(NBIData[FUTURE_ADT_114]),FALSE) -> 172 | D48: =ROUND(B48*((1+B59)^(D$46-$B$46)),0) -> 129 | E48: =ROUND(C48*((1+B59)^(E$46-$C$46)),0) -> 172 | F48: 126 | G48: 172 | H48: BCA Guidance, MDOT
A49: No Build - Bus AADT | B49: N/A | C49: N/A | D49: N/A | E49: N/A | F49: 0 | G49: 0 | H49: BCA Guidance, MDOT
A50: Build - Passenger AADT | B50: =B47 -> 1581 | C50: =C47 -> 2285 | D50: =ROUND(B50*((1+B59)^(D$46-$B$46)),0) -> 1712 | E50: =ROUND(C50*((1+B59)^(E$46-$C$46)),0) -> 2285 | F50: 1674 | G50: 2285 | H50: BCA Guidance, MDOT
A51: Build - Truck AADT | B51: =B48 -> 119 | C51: =C48 -> 172 | D51: =ROUND(B51*((1+B59)^(D$46-$B$46)),0) -> 129 | E51: =ROUND(C51*((1+B59)^(E$46-$C$46)),0) -> 172 | F51: 126 | G51: 172 | H51: BCA Guidance, MDOT
A52: Build - Bus AADT | B52: N/A | C52: N/A | D52: N/A | E52: N/A | F52: 0 | G52: 0 | H52: BCA Guidance, MDOT
A53: =HYPERLINK("#A542","Note: AADT can be entered manually in Table 52 and Table 53 below.") -> Note: AADT can be entered manually in Table 52 and Table 53 below.
A54: Note: Here and elsewhere in the tool it is critical that you enter at least some value in the required cells, e.g., 0, rather than "-", "N/A" or leaving it blank.
A55: Note: NBI AADT values are added for reference in Table 3. Users must enter AADT values in Columns G, H and I in Table 3.
A56: -
A57: Note: Table 4 is not a user input. Do not adjust Table 4.
A58: Table 4. NBI's Calculated Average Annual Daily Traffic (AADT) Growth Rate
A59: =CONCATENATE("The NBI Calculated Annual Growth Rate", " ", B46, "-",C46, " (NBI)") -> The NBI Calculated Annual Growth Rate 2022-2059 (NBI) | B59: =(C47/B47)^(1/(C$46-B$46))-1 -> $0
A60: -
A61: Table 5. Detour Road Type
A62: Detour Road Type | B62: Rural - Principal Arterial - Interstate
A63: Detour Road Type - Simple | B63: =IF(B62="Required", "-",IF(ISNUMBER(SEARCH("Urban",B62)), "Urban", "Rural")) -> Rural
A64: -
A65: Note: Detour length should represent the Net detour: Detour length minus the original route length.
A66: Table 6. Detour and Bridge Length Information
A67: Detour Details | B67: Reference | C67: User Value | D67: Explanation and Source
A68: Net Detour Length, For Vehicles (mi) (NBI) | B68: =ROUND(VLOOKUP($C$80,NBIData[],COLUMN(NBIData[DETOUR_KILOS_019]),FALSE)*0.621371,1) -> 9.9 | C68: 15.9 | D68: Google
A69: Detour Average Speed, for Vehicles (mph) (FHWA VHT) | B69: =ROUND(VLOOKUP(B62,Defaults!B359:F371,2, FALSE),1) -> 66.0 | C69: 50.0 | D69: Google
A70: Net Detour Length, For Cycling/ Pedestrian (mi) (NBI) | B70: =ROUND(VLOOKUP($C$80,NBIData[],COLUMN(NBIData[DETOUR_KILOS_019]),FALSE)*0.621371, 1) -> 9.9 | C70: 15.9 | D70: Google
A71: Detour Average Travel Time (min) | B71: =B68/B69*60 -> 9.0 | C71: =C68/C69*60 -> 19.1 | D71: N/A
A72: Bridge Length (mi) | B72: =ROUND(B19,2) -> 0.01 | C72: =140/5280 -> 0.03 | D72: Google
A73: Note: Google or HPMS data are preferred for identifying average speed on the detour route. You can also use the HERS/VHT speed values using the Detour Road Type dropdown below.
A74: Note: Bridge length in the NBI does not include the approach length. Include approach length if relevant for your project.
A75: =HYPERLINK("https://www.google.com/maps", "Use Google Maps to calculate detour route length and average speed, as appropriate.") -> Use Google Maps to calculate detour route length and average speed, as appropriate.
A76: =HYPERLINK("https://www.fhwa.dot.gov/policyinformation/hpms.cfm", "Use the Highway Performance Monitoring System (HPMS) data to calculate detour route length and average speed, as appropriate.") -> Use the Highway Performance Monitoring System (HPMS) data to calculate detour route length and average speed, as appropriate.
A77: -
A78: Note: These reference cells are marked to avoid accidental deletion.
A79: Table 7. Reference Table
A80: Reference Cells | B80: =CONCATENATE(B11,B12) -> MississippiNewton | C80: =CONCATENATE(VLOOKUP($B$11,NBI_Dropdown!$B$1:$D$56,3,FALSE),$B$13) -> 284210008005111480
A81: -
A82: Table 8. Travel Assumptions
A83: Parameters | B83: Reference | C83: User Value | D83: Explanation and Source
A84: Bridge Average Speed (FHWA) | B84: =_xlfn.IFNA(VLOOKUP(B23,Defaults!B359:C371,2, FALSE), "N/A") -> 47 | C84: 47 | D84: -
A85: Average Car Occupancy | B85: =Defaults!B51 -> 1.67 | C85: 1.67 | D85: -
A86: Share of Long-Distance Personal Travel | B86: 0.0% | C86: 0% | D86: -
A87: Value of Time - Long-Distance Personal Travel | B87: =Defaults!B35 -> $25.10 | C87: $25.10 | D87: -
A88: Share of Business Travel | B88: 11.8% | C88: 11.8% | D88: -
A89: Value of Travel Time - Business | B89: =Defaults!B33 -> $32.30 | C89: $32.30 | D89: -
A90: Value of Travel Time - Personal | B90: =Defaults!B32 -> $17.90 | C90: $17.90 | D90: -
A91: Value of Travel Time - All Purposes | B91: =ROUND(B86*B87+B88*B89+(1-B86-B88)*B90,1) -> $19.60 | C91: =IFERROR(ROUND(C86*C87+C88*C89+(1-C86-C88)*C90,1),"-") -> $19.60 | D91: -
A92: Walking, Cycling, Waiting, Standing, and Transfer Time | B92: =Defaults!B36 -> $35.80 | C92: $35.80 | D92: -
A93: Truck Driver | B93: =Defaults!B39 -> $33.50 | C93: $33.50 | D93: -
A94: Bus Driver | B94: =Defaults!B40 -> $36.50 | C94: $36.50 | D94: -
A95: Average Bus Occupancy | B95: 0 | C95: 0 | D95: -
A96: -
A97: Capital Cost and Residual Value
A98: Table 9. Expenditure Dollars Option
A99: Are costs entered in year of expenditure dollars (not adjusted for inflation)? | B99: NO
A100: Enter future inflation rate for capital costs. | B100: 0%
A101: Note: Capital costs can be entered in year of expenditure dollars or in real dollars. The tool applies inflation and discounting factors automatically if entered as year of expenditure dollars.
A102: -
A103: Table 10. Already Incurred Costs
A104: Year | B104: Costs | C104: Real Costs | D104: Discounted Costs
A105: 2014 | B105: =243891.85/4 -> $60,973 | C105: =IF($B$99="NO",B105,IFERROR(B105*(IF(A105>$B$39, 1/((1+$B$100)^(A105-$B$39)),VLOOKUP(A105,Defaults!$A$134:$B$192, 2,FALSE))),"-")) -> $60,973 | D105: =IFERROR(IF(A105="","",IF(A105<=2020, C105, C105*VLOOKUP(A105,Defaults!$A$290:$B$340, 2,FALSE))),"-") -> $60,973
A106: 2015 | B106: =111325.48/4 -> $27,831 | C106: =IF($B$99="NO",B106,IFERROR(B106*(IF(A106>$B$39, 1/((1+$B$100)^(A106-$B$39)),VLOOKUP(A106,Defaults!$A$134:$B$192, 2,FALSE))),"-")) -> $27,831 | D106: =IFERROR(IF(A106="","",IF(A106<=2020, C106, C106*VLOOKUP(A106,Defaults!$A$290:$B$340, 2,FALSE))),"-") -> $27,831
A107: 2016 | B107: =373682.12/4 -> $93,421 | C107: =IF($B$99="NO",B107,IFERROR(B107*(IF(A107>$B$39, 1/((1+$B$100)^(A107-$B$39)),VLOOKUP(A107,Defaults!$A$134:$B$192, 2,FALSE))),"-")) -> $93,421 | D107: =IFERROR(IF(A107="","",IF(A107<=2020, C107, C107*VLOOKUP(A107,Defaults!$A$290:$B$340, 2,FALSE))),"-") -> $93,421
A108: 2017 | B108: =279489.12/4 -> $69,872 | C108: =IF($B$99="NO",B108,IFERROR(B108*(IF(A108>$B$39, 1/((1+$B$100)^(A108-$B$39)),VLOOKUP(A108,Defaults!$A$134:$B$192, 2,FALSE))),"-")) -> $69,872 | D108: =IFERROR(IF(A108="","",IF(A108<=2020, C108, C108*VLOOKUP(A108,Defaults!$A$290:$B$340, 2,FALSE))),"-") -> $69,872
A109: 2018 | B109: =121489.12/4 -> $30,372 | C109: =IF($B$99="NO",B109,IFERROR(B109*(IF(A109>$B$39, 1/((1+$B$100)^(A109-$B$39)),VLOOKUP(A109,Defaults!$A$134:$B$192, 2,FALSE))),"-")) -> $30,372 | D109: =IFERROR(IF(A109="","",IF(A109<=2020, C109, C109*VLOOKUP(A109,Defaults!$A$290:$B$340, 2,FALSE))),"-") -> $30,372
A110: 2019 | B110: =159105.4/4 -> $39,776 | C110: =IF($B$99="NO",B110,IFERROR(B110*(IF(A110>$B$39, 1/((1+$B$100)^(A110-$B$39)),VLOOKUP(A110,Defaults!$A$134:$B$192, 2,FALSE))),"-")) -> $39,776 | D110: =IFERROR(IF(A110="","",IF(A110<=2020, C110, C110*VLOOKUP(A110,Defaults!$A$290:$B$340, 2,FALSE))),"-") -> $39,776
A111: 2020 | B111: =70717.12/4 -> $17,679 | C111: =IF($B$99="NO",B111,IFERROR(B111*(IF(A111>$B$39, 1/((1+$B$100)^(A111-$B$39)),VLOOKUP(A111,Defaults!$A$134:$B$192, 2,FALSE))),"-")) -> $17,679 | D111: =IFERROR(IF(A111="","",IF(A111<=2020, C111, C111*VLOOKUP(A111,Defaults!$A$290:$B$340, 2,FALSE))),"-") -> $17,679
A112: 2021 | B112: =(107325.62+2487.38)/4 -> $27,453 | C112: =IF($B$99="NO",B112,IFERROR(B112*(IF(A112>$B$39, 1/((1+$B$100)^(A112-$B$39)),VLOOKUP(A112,Defaults!$A$134:$B$192, 2,FALSE))),"-")) -> $27,453 | D112: =IFERROR(IF(A112="","",IF(A112<=2020, C112, C112*VLOOKUP(A112,Defaults!$A$290:$B$340, 2,FALSE))),"-") -> -
A113: 2022 | B113: =(137694.43+96355.12+991.82+450279.19+309.97)/4 -> $171,408 | C113: =IF($B$99="NO",B113,IFERROR(B113*(IF(A113>$B$39, 1/((1+$B$100)^(A113-$B$39)),VLOOKUP(A113,Defaults!$A$134:$B$192, 2,FALSE))),"-")) -> $171,408 | D113: =IFERROR(IF(A113="","",IF(A113<=2020, C113, C113*VLOOKUP(A113,Defaults!$A$290:$B$340, 2,FALSE))),"-") -> $171,408
A114: 2023 | B114: =(211095.4+941.78+42034.49+198320.55+93543.2)/4 -> $136,484 | C114: =IF($B$99="NO",B114,IFERROR(B114*(IF(A114>$B$39, 1/((1+$B$100)^(A114-$B$39)),VLOOKUP(A114,Defaults!$A$134:$B$192, 2,FALSE))),"-")) -> $136,484 | D114: =IFERROR(IF(A114="","",IF(A114<=2020, C114, C114*VLOOKUP(A114,Defaults!$A$290:$B$340, 2,FALSE))),"-") -> $132,380
A115: 2024 | B115: =(577006.52/4) -> $144,252 | C115: =IF($B$99="NO",B115,IFERROR(B115*(IF(A115>$B$39, 1/((1+$B$100)^(A115-$B$39)),VLOOKUP(A115,Defaults!$A$134:$B$192, 2,FALSE))),"-")) -> $144,252 | D115: =IFERROR(IF(A115="","",IF(A115<=2020, C115, C115*VLOOKUP(A115,Defaults!$A$290:$B$340, 2,FALSE))),"-") -> $135,707
A116: -
A117: Table 11. Capital Costs
A118: Year | B118: Costs | C118: Real Costs | D118: Discounted Costs
A119: =IFERROR(IF($B$33="-", "N/A", $B$33),"N/A") -> 2025 | B119: $551,373 | C119: =IF($B$99="NO",B119,IFERROR(B119*(IF(A119>$B$39, 1/(1+$B$100)^(A119-$B$39),VLOOKUP(A119,Defaults!$A$134:$B$192, 2,FALSE))),"-")) -> $551,373 | D119: =IFERROR(IF(A119="N/A","-",C119*VLOOKUP(A119,Defaults!$A$290:$B$340, 2,FALSE)),"-") -> $503,118
A120: =IFERROR(IF(A119="N/A","N/A",IF(A119>=$B$34,"N/A",A119+1)),"") -> 2026 | B120: $551,373 | C120: =IF($B$99="NO",B120,IFERROR(B120*(IF(A120>$B$39, 1/(1+$B$100)^(A120-$B$39),VLOOKUP(A120,Defaults!$A$134:$B$192, 2,FALSE))),"-")) -> $551,373 | D120: =IFERROR(IF(A120="N/A","-",C120*VLOOKUP(A120,Defaults!$A$290:$B$340, 2,FALSE)),"-") -> $487,990
A121: =IF(A120="N/A","N/A",IF(A120>=$B$34,"N/A",A120+1)) -> 2027 | B121: $551,373 | C121: =IF($B$99="NO",B121,IFERROR(B121*(IF(A121>$B$39, 1/(1+$B$100)^(A121-$B$39),VLOOKUP(A121,Defaults!$A$134:$B$192, 2,FALSE))),"-")) -> $551,373 | D121: =IFERROR(IF(A121="N/A","-",C121*VLOOKUP(A121,Defaults!$A$290:$B$340, 2,FALSE)),"-") -> $473,317
A122: 2028 | B122: $551,373 | C122: =IF($B$99="NO",B122,IFERROR(B122*(IF(A122>$B$39, 1/(1+$B$100)^(A122-$B$39),VLOOKUP(A122,Defaults!$A$134:$B$192, 2,FALSE))),"-")) -> $551,373 | D122: =IFERROR(IF(A122="N/A","-",C122*VLOOKUP(A122,Defaults!$A$290:$B$340, 2,FALSE)),"-") -> $459,086
A123: 2029 | B123: $551,373 | C123: =IF($B$99="NO",B123,IFERROR(B123*(IF(A123>$B$39, 1/(1+$B$100)^(A123-$B$39),VLOOKUP(A123,Defaults!$A$134:$B$192, 2,FALSE))),"-")) -> $551,373 | D123: =IFERROR(IF(A123="N/A","-",C123*VLOOKUP(A123,Defaults!$A$290:$B$340, 2,FALSE)),"-") -> $445,282
A124: N/A | B124: - | C124: =IF($B$99="NO",B124,IFERROR(B124*(IF(A124>$B$39, 1/(1+$B$100)^(A124-$B$39),VLOOKUP(A124,Defaults!$A$134:$B$192, 2,FALSE))),"-")) -> - | D124: =IFERROR(IF(A124="N/A","-",C124*VLOOKUP(A124,Defaults!$A$290:$B$340, 2,FALSE)),"-") -> -
A125: N/A | B125: - | C125: =IF($B$99="NO",B125,IFERROR(B125*(IF(A125>$B$39, 1/(1+$B$100)^(A125-$B$39),VLOOKUP(A125,Defaults!$A$134:$B$192, 2,FALSE))),"-")) -> - | D125: =IFERROR(IF(A125="N/A","-",C125*VLOOKUP(A125,Defaults!$A$290:$B$340, 2,FALSE)),"-") -> -
A126: N/A | B126: - | C126: =IF($B$99="NO",B126,IFERROR(B126*(IF(A126>$B$39, 1/(1+$B$100)^(A126-$B$39),VLOOKUP(A126,Defaults!$A$134:$B$192, 2,FALSE))),"-")) -> - | D126: =IFERROR(IF(A126="N/A","-",C126*VLOOKUP(A126,Defaults!$A$290:$B$340, 2,FALSE)),"-") -> -
A127: N/A | B127: - | C127: =IF($B$99="NO",B127,IFERROR(B127*(IF(A127>$B$39, 1/(1+$B$100)^(A127-$B$39),VLOOKUP(A127,Defaults!$A$134:$B$192, 2,FALSE))),"-")) -> - | D127: =IFERROR(IF(A127="N/A","-",C127*VLOOKUP(A127,Defaults!$A$290:$B$340, 2,FALSE)),"-") -> -
A128: N/A | B128: - | C128: =IF($B$99="NO",B128,IFERROR(B128*(IF(A128>$B$39, 1/(1+$B$100)^(A128-$B$39),VLOOKUP(A128,Defaults!$A$134:$B$192, 2,FALSE))),"-")) -> - | D128: =IFERROR(IF(A128="N/A","-",C128*VLOOKUP(A128,Defaults!$A$290:$B$340, 2,FALSE)),"-") -> -
A129: N/A | B129: - | C129: =IF($B$99="NO",B129,IFERROR(B129*(IF(A129>$B$39, 1/(1+$B$100)^(A129-$B$39),VLOOKUP(A129,Defaults!$A$134:$B$192, 2,FALSE))),"-")) -> - | D129: =IFERROR(IF(A129="N/A","-",C129*VLOOKUP(A129,Defaults!$A$290:$B$340, 2,FALSE)),"-") -> -
A130: -
A131: Table 12. Capital Cost Summary
A132: Total Capital Costs: | B132: =SUM(B105:B115)+SUM(B119:B129) -> $3,576,387
A133: Total Real Capital Costs: | B133: =SUM(C105:C115)+SUM(C119:C129) -> $3,576,387
A134: Total Discounted Capital Costs: | B134: =SUM(D105:D115)+SUM(D119:D129) -> $3,148,212
A135: -
A136: Table 13. Residual Value
A137: Share of Capital Costs | B137: Asset Life (Years) | C137: Explanation and Source
A138: 100% | B138: 75 | C138: AASHTO
A139: 0% | B139: 0 | C139: -
A140: 0% | B140: 0 | C140: -
A141: 0% | B141: 0 | C141: -
A142: =SUM(A138:A141) -> 100% | B142: Summation | C142: N/A
A143: Note: If there are multiple components of the project for this specific bridge that different asset lives, enter the share of the project costs associated with the different project components and their asset life.
A144: Note: The Summation cell should be 100%.
A145: -
A146: Operating and Maintenance Costs (O&M)
A147: Table 14. Operating and Maintenance Costs Assumptions
A148: Which method would you like to use to enter O&M costs? | B148: Manual Entry
A149: Year of O&M costs Dollars | B149: 2024
A150: Note: If you have O&M costs in the construction period you will need to use the manual entry option to enter the O&M costs in the construction period.
A151: Note: The operating and maintenance costs in the baseline should be entered to be consistent with your estimate of closure. If the bridge is closed in a future year (Table 25), there should not be maintenance costs for that year and thereafter.
A152: Note: For frequency calculation option, all costs should be entered as year of expenditure. The tool applies inflation and discounting factors automatically.
A153: -
A154: Table 15. Annual O&M Calculation Input
A155: Category | B155: Value
A156: Annual O&M Costs in the No Build Scenario | B156: -
A157: Annual O&M Costs Real Growth Rate in the No Build Scenario | B157: 0%
A158: Annual O&M Costs in the Build Scenario | B158: -
A159: Annual O&M Costs Real Growth Rate in the Build Scenario | B159: 0%
A160: Note: The maintenance real growth rate represents the real cost increases year over year (e.g., from increased deterioration of the asset). It should not include inflation adjustments.
A161: -
A162: Table 16a. Intermittent O&M Calculation Input
A163: Category | B163: Value
A164: Initial year | B164: -
A165: Last Year | B165: -
A166: Occurs every _____ Years; set to 30 if occurs only once | B166: 1
A167: Annual O&M Costs in the No Build Scenario | B167: -
A168: Annual O&M Costs Real Growth Rate in the Build Scenario | B168: -
A169: -
A170: Table 16b. Intermittent O&M Calculation Input
A171: Category | B171: Value
A172: Initial year | B172: -
A173: Last Year | B173: -
A174: Occurs every _____ Years; set to 30 if occurs only once | B174: 1
A175: Annual O&M Costs in the No Build Scenario | B175: -
A176: Annual O&M Costs Real Growth Rate in the Build Scenario | B176: -
A177: -
A178: Table 16c. Intermittent O&M Calculation Input
A179: Category | B179: Value
A180: Initial year | B180: -
A181: Last Year | B181: -
A182: Occurs every _____ Years; set to 30 if occurs only once | B182: 1
A183: Annual O&M Costs in the No Build Scenario | B183: -
A184: Annual O&M Costs Real Growth Rate in the Build Scenario | B184: -
A185: -
A186: Table 16d. Intermittent O&M Calculation Input
A187: Category | B187: Value
A188: Initial year | B188: -
A189: Last Year | B189: -
A190: Occurs every _____ Years; set to 30 if occurs only once | B190: 1
A191: Annual O&M Costs in the No Build Scenario | B191: -
A192: Annual O&M Costs Real Growth Rate in the Build Scenario | B192: -
A193: Note: The "Occurs every _____ " field in Tables 16a through 16d must be greater than or equal to 1, even if you are not adding an additional recurring maintenance cost.
A194: -
A195: Note: Manual O&M cost values should be entered in the year of dollar entered in Table 14.
A196: Table 17. Manual O&M Cost Entry
A197: Calendar Year | B197: Analysis Year | C197: No Build Annual Cost | D197: Build Annual Cost | E197: O&M Cost Difference Discounted
A198: =IFERROR(IF(B32="Required","N/A",B32),"N/A") -> 2022 | B198: =IFERROR(IF(A198=$B$35,1,IF(A198>$B$35,A198-$B$35+1,IF(A198<$B$35,A198-$B$35+1,"N/A"))),"N/A") -> -7 | C198: 0 | D198: 0 | E198: =IFERROR((C198-D198)*VLOOKUP($B$149,Defaults!$A$290:$B$340, 2,FALSE)*VLOOKUP(A198,Defaults!$A$290:$B$340,2,FALSE),0) -> 0
A199: =IF(A198="N/A","N/A",IF(A198>=$B$35+$B$36-1,"N/A",A198+1)) -> 2023 | B199: -6 | C199: 0 | D199: 0 | E199: =IFERROR((C199-D199)*VLOOKUP($B$149,Defaults!$A$290:$B$340, 2,FALSE)*VLOOKUP(A199,Defaults!$A$290:$B$340,2,FALSE),0) -> 0
A200: 2024 | B200: -5 | C200: 0 | D200: 0 | E200: =IFERROR((C200-D200)*VLOOKUP($B$149,Defaults!$A$290:$B$340, 2,FALSE)*VLOOKUP(A200,Defaults!$A$290:$B$340,2,FALSE),0) -> 0
... 495 more rows

Sheet 121.4
A1: Bridge and Project Overview
A2: ID of bridge, description of improvement, project timeline, traffic volume
A3: Add New Bridge (press Ctrl + Shift + B)
A4: Add Sensitivity Analysis for Current Bridge (press Ctrl + Shift + S)
A5: Delete this Bridge (press Ctrl + Shift + D)
A6: Note: Only delete bridges using this command/button. Deleting bridge tabs through right click will result in (fixable) errors on the Results tab.
A7: Change Bridge Name (press Ctrl + Shift + N)
A8: -
A9: Table 1. Bridge Variables
A10: Bridge Variables | B10: Bridge Values
A11: State | B11: Mississippi
A12: County | B12: Newton
A13: Structure Number | B13: 210008005112140
A14: Inventory Route | B14: =VLOOKUP($C$80,NBIData[],COLUMN(NBIData[ROUTE_NUMBER_005D]),FALSE) -> 00080
A15: Feature Intersected | B15: =VLOOKUP($C$80,NBIData[],COLUMN(NBIData[FEATURES_DESC_006A]),FALSE) -> 'TONACANA CREEK'
A16: Facility Carried | B16: =VLOOKUP($C$80,NBIData[],COLUMN(NBIData[FACILITY_CARRIED_007]),FALSE) -> 'US 80'
A17: Latitude | B17: =LEFT(VLOOKUP($C$80,NBIData[],COLUMN(NBIData[LAT_016]),FALSE), 2) & CHAR(176) & " " & MID(VLOOKUP($C$80,NBIData[],COLUMN(NBIData[LAT_016]),FALSE), 3, 2) &"'" & " " & MID(VLOOKUP($C$80,NBIData[],COLUMN(NBIData[LAT_016]),FALSE), 5, 2) &"."& MID(VLOOKUP($C$80,NBIData[],COLUMN(NBIData[LAT_016]),FALSE), 7, 2) & CHAR(34) -> 32° 19' 33.42"
A18: Longitude | B18: ="-" & MID(VLOOKUP($C$80,NBIData[],COLUMN(NBIData[LONG_017]),FALSE), 2, 2) & CHAR(176) & " " & MID(VLOOKUP($C$80,NBIData[],COLUMN(NBIData[LONG_017]),FALSE), 4, 2) &"'" & " " & MID(VLOOKUP($C$80,NBIData[],COLUMN(NBIData[LONG_017]),FALSE), 6, 2) &"."& MID(VLOOKUP($C$80,NBIData[],COLUMN(NBIData[LONG_017]),FALSE), 8, 2) & CHAR(34) -> -88° 56' 25.74"
A19: Bridge Length (mi) | B19: =VLOOKUP($C$80,NBIData[],COLUMN(NBIData[STRUCTURE_LEN_MT_049]),FALSE)/1609 -> 0.01858297079
A20: Bypass, Detour Length (mi) | B20: =VLOOKUP($C$80,NBIData[],COLUMN(NBIData[DETOUR_KILOS_019]),FALSE)*0.621371 -> 11.81
A21: Owner | B21: =VLOOKUP($C$80,NBIData[],COLUMN(NBIData[OWNER_022]),FALSE) -> 01
A22: Functional Class, Rural/Urban | B22: =VLOOKUP($C$80,NBIData[],COLUMN(NBIData[FUNCTIONAL_CLASS_026]),FALSE) -> 07
A23: Bridge Road Type | B23: =VLOOKUP(B22,Defaults!A359:$D$371, 2, FALSE) -> Rural - Major Collector
A24: Year Built | B24: =VLOOKUP($C$80,NBIData[],COLUMN(NBIData[YEAR_BUILT_027]),FALSE) -> 1929
A25: Year Reconstructed | B25: =VLOOKUP($C$80,NBIData[],COLUMN(NBIData[YEAR_RECONSTRUCTED_106]),FALSE) -> 0
A26: Lanes on the Structure | B26: =VLOOKUP($C$80,NBIData[],COLUMN(NBIData[TRAFFIC_LANES_ON_028A]),FALSE) -> 2
A27: Note: Some bridges have the same structure number. Use the state and county drop downs to identify your bridge.
A28: -
A29: Project Description:
A30: Table 2. Project Timeline
A31: Timeline Variables | B31: Timeline Values
A32: Current Year | B32: 2022
A33: First Year of Construction Costs | B33: 2025
A34: Last Year of Construction Costs | B34: 2029
A35: Project Opens (Start of Benefits) | B35: 2030
A36: Years of Benefits for Analysis | B36: 30
A37: First Year of Period of Analysis | B37: =IF(B35="Required","-", B35) -> 2030
A38: Last Year of Period of Analysis | B38: =IFERROR(B35+B36-1, "-") -> 2059
A39: Discount Year | B39: =Defaults!A290 -> 2022
A40: Base Year of NBI | B40: 2023
A41: Note: The tool cannot handle partial years, or pro-rata benefits or costs. Round up or down to the nearest year for construction start, construction end, and the start of benefits.
A42: Note: Enter a value between 20 to 30 for the Years of Benefits for Analysis, appropriate to the project as defined by US DOT BCA Guidance.
A43: -
A44: Table 3. Average Annual Daily Traffic (AADT)
A45: Scenario and Vehicle Type | B45: NBI Year of AADT | C45: NBI Year of Future AADT | D45: Forecast using NBI Growth Rate | E45: Forecast using NBI Growth Rate2 | F45: Project Opens | G45: Last Year | H45: Explanation and Source
A46: Year | B46: =VLOOKUP($C$80,NBIData[],COLUMN(NBIData[YEAR_ADT_030]),FALSE) -> 2022 | C46: =VLOOKUP($C$80,NBIData[],COLUMN(NBIData[YEAR_OF_FUTURE_ADT_115]),FALSE) -> 2059 | D46: =IF(B35="Required","-",B35) -> 2030 | E46: =B38 -> 2059 | F46: =IF(B35="Required", "-",B35) -> 2030 | G46: =B38 -> 2059 | H46: N/A
A47: No Build - Passenger AADT | B47: =VLOOKUP($C$80,NBIData[],COLUMN(NBIData[ADT_029]),FALSE)*(1-VLOOKUP($C$80,NBIData[],COLUMN(NBIData[PERCENT_ADT_TRUCK_109]),FALSE)/100) -> 1581 | C47: =VLOOKUP($C$80,NBIData[],COLUMN(NBIData[FUTURE_ADT_114]),FALSE)*(1-VLOOKUP($C$80,NBIData[],COLUMN(NBIData[PERCENT_ADT_TRUCK_109]),FALSE)/100) -> 2285 | D47: =ROUND(B47*((1+B59)^(D$46-$B$46)),0) -> 1712 | E47: =ROUND(C47*((1+B59)^(E$46-$C$46)),0) -> 2285 | F47: 1674 | G47: 2285 | H47: BCA Guidance, MDOT
A48: No Build - Truck AADT | B48: =VLOOKUP($C$80,NBIData[],COLUMN(NBIData[PERCENT_ADT_TRUCK_109]),FALSE)/100*VLOOKUP($C$80,NBIData[],COLUMN(NBIData[ADT_029]),FALSE) -> 119 | C48: =VLOOKUP($C$80,NBIData[],COLUMN(NBIData[PERCENT_ADT_TRUCK_109]),FALSE)/100*VLOOKUP($C$80,NBIData[],COLUMN(NBIData[FUTURE_ADT_114]),FALSE) -> 172 | D48: =ROUND(B48*((1+B59)^(D$46-$B$46)),0) -> 129 | E48: =ROUND(C48*((1+B59)^(E$46-$C$46)),0) -> 172 | F48: 126 | G48: 172 | H48: BCA Guidance, MDOT
A49: No Build - Bus AADT | B49: N/A | C49: N/A | D49: N/A | E49: N/A | F49: 0 | G49: 0 | H49: BCA Guidance, MDOT
A50: Build - Passenger AADT | B50: =B47 -> 1581 | C50: =C47 -> 2285 | D50: =ROUND(B50*((1+B59)^(D$46-$B$46)),0) -> 1712 | E50: =ROUND(C50*((1+B59)^(E$46-$C$46)),0) -> 2285 | F50: 1674 | G50: 2285 | H50: BCA Guidance, MDOT
A51: Build - Truck AADT | B51: =B48 -> 119 | C51: =C48 -> 172 | D51: =ROUND(B51*((1+B59)^(D$46-$B$46)),0) -> 129 | E51: =ROUND(C51*((1+B59)^(E$46-$C$46)),0) -> 172 | F51: 126 | G51: 172 | H51: BCA Guidance, MDOT
A52: Build - Bus AADT | B52: N/A | C52: N/A | D52: N/A | E52: N/A | F52: 0 | G52: 0 | H52: BCA Guidance, MDOT
A53: =HYPERLINK("#A542","Note: AADT can be entered manually in Table 52 and Table 53 below.") -> Note: AADT can be entered manually in Table 52 and Table 53 below.
A54: Note: Here and elsewhere in the tool it is critical that you enter at least some value in the required cells, e.g., 0, rather than "-", "N/A" or leaving it blank.
A55: Note: NBI AADT values are added for reference in Table 3. Users must enter AADT values in Columns G, H and I in Table 3.
A56: -
A57: Note: Table 4 is not a user input. Do not adjust Table 4.
A58: Table 4. NBI's Calculated Average Annual Daily Traffic (AADT) Growth Rate
A59: =CONCATENATE("The NBI Calculated Annual Growth Rate", " ", B46, "-",C46, " (NBI)") -> The NBI Calculated Annual Growth Rate 2022-2059 (NBI) | B59: =(C47/B47)^(1/(C$46-B$46))-1 -> $0
A60: -
A61: Table 5. Detour Road Type
A62: Detour Road Type | B62: Rural - Principal Arterial - Interstate
A63: Detour Road Type - Simple | B63: =IF(B62="Required", "-",IF(ISNUMBER(SEARCH("Urban",B62)), "Urban", "Rural")) -> Rural
A64: -
A65: Note: Detour length should represent the Net detour: Detour length minus the original route length.
A66: Table 6. Detour and Bridge Length Information
A67: Detour Details | B67: Reference | C67: User Value | D67: Explanation and Source
A68: Net Detour Length, For Vehicles (mi) (NBI) | B68: =ROUND(VLOOKUP($C$80,NBIData[],COLUMN(NBIData[DETOUR_KILOS_019]),FALSE)*0.621371,1) -> 11.8 | C68: 15.9 | D68: Google
A69: Detour Average Speed, for Vehicles (mph) (FHWA VHT) | B69: =ROUND(VLOOKUP(B62,Defaults!B359:F371,2, FALSE),1) -> 66.0 | C69: 50.0 | D69: Google
A70: Net Detour Length, For Cycling/ Pedestrian (mi) (NBI) | B70: =ROUND(VLOOKUP($C$80,NBIData[],COLUMN(NBIData[DETOUR_KILOS_019]),FALSE)*0.621371, 1) -> 11.8 | C70: 15.9 | D70: Google
A71: Detour Average Travel Time (min) | B71: =B68/B69*60 -> 10.7 | C71: =C68/C69*60 -> 19.1 | D71: N/A
A72: Bridge Length (mi) | B72: =ROUND(B19,2) -> 0.02 | C72: =280/5280 -> 0.05 | D72: Google
A73: Note: Google or HPMS data are preferred for identifying average speed on the detour route. You can also use the HERS/VHT speed values using the Detour Road Type dropdown below.
A74: Note: Bridge length in the NBI does not include the approach length. Include approach length if relevant for your project.
A75: =HYPERLINK("https://www.google.com/maps", "Use Google Maps to calculate detour route length and average speed, as appropriate.") -> Use Google Maps to calculate detour route length and average speed, as appropriate.
A76: =HYPERLINK("https://www.fhwa.dot.gov/policyinformation/hpms.cfm", "Use the Highway Performance Monitoring System (HPMS) data to calculate detour route length and average speed, as appropriate.") -> Use the Highway Performance Monitoring System (HPMS) data to calculate detour route length and average speed, as appropriate.
A77: -
A78: Note: These reference cells are marked to avoid accidental deletion.
A79: Table 7. Reference Table
A80: Reference Cells | B80: =CONCATENATE(B11,B12) -> MississippiNewton | C80: =CONCATENATE(VLOOKUP($B$11,NBI_Dropdown!$B$1:$D$56,3,FALSE),$B$13) -> 284210008005112140
A81: -
A82: Table 8. Travel Assumptions
A83: Parameters | B83: Reference | C83: User Value | D83: Explanation and Source
A84: Bridge Average Speed (FHWA) | B84: =_xlfn.IFNA(VLOOKUP(B23,Defaults!B359:C371,2, FALSE), "N/A") -> 47 | C84: 47 | D84: -
A85: Average Car Occupancy | B85: =Defaults!B51 -> 1.67 | C85: 1.67 | D85: -
A86: Share of Long-Distance Personal Travel | B86: 0.0% | C86: 0% | D86: -
A87: Value of Time - Long-Distance Personal Travel | B87: =Defaults!B35 -> $25.10 | C87: $25.10 | D87: -
A88: Share of Business Travel | B88: 11.8% | C88: 11.8% | D88: -
A89: Value of Travel Time - Business | B89: =Defaults!B33 -> $32.30 | C89: $32.30 | D89: -
A90: Value of Travel Time - Personal | B90: =Defaults!B32 -> $17.90 | C90: $17.90 | D90: -
A91: Value of Travel Time - All Purposes | B91: =ROUND(B86*B87+B88*B89+(1-B86-B88)*B90,1) -> $19.60 | C91: =IFERROR(ROUND(C86*C87+C88*C89+(1-C86-C88)*C90,1),"-") -> $19.60 | D91: -
A92: Walking, Cycling, Waiting, Standing, and Transfer Time | B92: =Defaults!B36 -> $35.80 | C92: $35.80 | D92: -
A93: Truck Driver | B93: =Defaults!B39 -> $33.50 | C93: $33.50 | D93: -
A94: Bus Driver | B94: =Defaults!B40 -> $36.50 | C94: $36.50 | D94: -
A95: Average Bus Occupancy | B95: 0 | C95: 0 | D95: -
A96: -
A97: Capital Cost and Residual Value
A98: Table 9. Expenditure Dollars Option
A99: Are costs entered in year of expenditure dollars (not adjusted for inflation)? | B99: NO
A100: Enter future inflation rate for capital costs. | B100: 0%
A101: Note: Capital costs can be entered in year of expenditure dollars or in real dollars. The tool applies inflation and discounting factors automatically if entered as year of expenditure dollars.
A102: -
A103: Table 10. Already Incurred Costs
A104: Year | B104: Costs | C104: Real Costs | D104: Discounted Costs
A105: 2014 | B105: =243891.85/4 -> $60,973 | C105: =IF($B$99="NO",B105,IFERROR(B105*(IF(A105>$B$39, 1/((1+$B$100)^(A105-$B$39)),VLOOKUP(A105,Defaults!$A$134:$B$192, 2,FALSE))),"-")) -> $60,973 | D105: =IFERROR(IF(A105="","",IF(A105<=2020, C105, C105*VLOOKUP(A105,Defaults!$A$290:$B$340, 2,FALSE))),"-") -> $60,973
A106: 2015 | B106: =111325.48/4 -> $27,831 | C106: =IF($B$99="NO",B106,IFERROR(B106*(IF(A106>$B$39, 1/((1+$B$100)^(A106-$B$39)),VLOOKUP(A106,Defaults!$A$134:$B$192, 2,FALSE))),"-")) -> $27,831 | D106: =IFERROR(IF(A106="","",IF(A106<=2020, C106, C106*VLOOKUP(A106,Defaults!$A$290:$B$340, 2,FALSE))),"-") -> $27,831
A107: 2016 | B107: =373682.12/4 -> $93,421 | C107: =IF($B$99="NO",B107,IFERROR(B107*(IF(A107>$B$39, 1/((1+$B$100)^(A107-$B$39)),VLOOKUP(A107,Defaults!$A$134:$B$192, 2,FALSE))),"-")) -> $93,421 | D107: =IFERROR(IF(A107="","",IF(A107<=2020, C107, C107*VLOOKUP(A107,Defaults!$A$290:$B$340, 2,FALSE))),"-") -> $93,421
A108: 2017 | B108: =279489.12/4 -> $69,872 | C108: =IF($B$99="NO",B108,IFERROR(B108*(IF(A108>$B$39, 1/((1+$B$100)^(A108-$B$39)),VLOOKUP(A108,Defaults!$A$134:$B$192, 2,FALSE))),"-")) -> $69,872 | D108: =IFERROR(IF(A108="","",IF(A108<=2020, C108, C108*VLOOKUP(A108,Defaults!$A$290:$B$340, 2,FALSE))),"-") -> $69,872
A109: 2018 | B109: =121489.12/4 -> $30,372 | C109: =IF($B$99="NO",B109,IFERROR(B109*(IF(A109>$B$39, 1/((1+$B$100)^(A109-$B$39)),VLOOKUP(A109,Defaults!$A$134:$B$192, 2,FALSE))),"-")) -> $30,372 | D109: =IFERROR(IF(A109="","",IF(A109<=2020, C109, C109*VLOOKUP(A109,Defaults!$A$290:$B$340, 2,FALSE))),"-") -> $30,372
A110: 2019 | B110: =159105.4/4 -> $39,776 | C110: =IF($B$99="NO",B110,IFERROR(B110*(IF(A110>$B$39, 1/((1+$B$100)^(A110-$B$39)),VLOOKUP(A110,Defaults!$A$134:$B$192, 2,FALSE))),"-")) -> $39,776 | D110: =IFERROR(IF(A110="","",IF(A110<=2020, C110, C110*VLOOKUP(A110,Defaults!$A$290:$B$340, 2,FALSE))),"-") -> $39,776
A111: 2020 | B111: =70717.12/4 -> $17,679 | C111: =IF($B$99="NO",B111,IFERROR(B111*(IF(A111>$B$39, 1/((1+$B$100)^(A111-$B$39)),VLOOKUP(A111,Defaults!$A$134:$B$192, 2,FALSE))),"-")) -> $17,679 | D111: =IFERROR(IF(A111="","",IF(A111<=2020, C111, C111*VLOOKUP(A111,Defaults!$A$290:$B$340, 2,FALSE))),"-") -> $17,679
A112: 2021 | B112: =(107325.62+2487.38)/4 -> $27,453 | C112: =IF($B$99="NO",B112,IFERROR(B112*(IF(A112>$B$39, 1/((1+$B$100)^(A112-$B$39)),VLOOKUP(A112,Defaults!$A$134:$B$192, 2,FALSE))),"-")) -> $27,453 | D112: =IFERROR(IF(A112="","",IF(A112<=2020, C112, C112*VLOOKUP(A112,Defaults!$A$290:$B$340, 2,FALSE))),"-") -> -
A113: 2022 | B113: =(137694.43+96355.12+991.82+450279.19+309.97)/4 -> $171,408 | C113: =IF($B$99="NO",B113,IFERROR(B113*(IF(A113>$B$39, 1/((1+$B$100)^(A113-$B$39)),VLOOKUP(A113,Defaults!$A$134:$B$192, 2,FALSE))),"-")) -> $171,408 | D113: =IFERROR(IF(A113="","",IF(A113<=2020, C113, C113*VLOOKUP(A113,Defaults!$A$290:$B$340, 2,FALSE))),"-") -> $171,408
A114: 2023 | B114: =(211095.4+941.78+42034.49+198320.55+93543.2)/4 -> $136,484 | C114: =IF($B$99="NO",B114,IFERROR(B114*(IF(A114>$B$39, 1/((1+$B$100)^(A114-$B$39)),VLOOKUP(A114,Defaults!$A$134:$B$192, 2,FALSE))),"-")) -> $136,484 | D114: =IFERROR(IF(A114="","",IF(A114<=2020, C114, C114*VLOOKUP(A114,Defaults!$A$290:$B$340, 2,FALSE))),"-") -> $132,380
A115: 2024 | B115: =(577006.52/4) -> $144,252 | C115: =IF($B$99="NO",B115,IFERROR(B115*(IF(A115>$B$39, 1/((1+$B$100)^(A115-$B$39)),VLOOKUP(A115,Defaults!$A$134:$B$192, 2,FALSE))),"-")) -> $144,252 | D115: =IFERROR(IF(A115="","",IF(A115<=2020, C115, C115*VLOOKUP(A115,Defaults!$A$290:$B$340, 2,FALSE))),"-") -> $135,707
A116: -
A117: Table 11. Capital Costs
A118: Year | B118: Costs | C118: Real Costs | D118: Discounted Costs
A119: =IFERROR(IF($B$33="-", "N/A", $B$33),"N/A") -> 2025 | B119: $896,524 | C119: =IF($B$99="NO",B119,IFERROR(B119*(IF(A119>$B$39, 1/(1+$B$100)^(A119-$B$39),VLOOKUP(A119,Defaults!$A$134:$B$192, 2,FALSE))),"-")) -> $896,524 | D119: =IFERROR(IF(A119="N/A","-",C119*VLOOKUP(A119,Defaults!$A$290:$B$340, 2,FALSE)),"-") -> $818,061
A120: =IFERROR(IF(A119="N/A","N/A",IF(A119>=$B$34,"N/A",A119+1)),"") -> 2026 | B120: $896,524 | C120: =IF($B$99="NO",B120,IFERROR(B120*(IF(A120>$B$39, 1/(1+$B$100)^(A120-$B$39),VLOOKUP(A120,Defaults!$A$134:$B$192, 2,FALSE))),"-")) -> $896,524 | D120: =IFERROR(IF(A120="N/A","-",C120*VLOOKUP(A120,Defaults!$A$290:$B$340, 2,FALSE)),"-") -> $793,464
A121: =IF(A120="N/A","N/A",IF(A120>=$B$34,"N/A",A120+1)) -> 2027 | B121: $896,524 | C121: =IF($B$99="NO",B121,IFERROR(B121*(IF(A121>$B$39, 1/(1+$B$100)^(A121-$B$39),VLOOKUP(A121,Defaults!$A$134:$B$192, 2,FALSE))),"-")) -> $896,524 | D121: =IFERROR(IF(A121="N/A","-",C121*VLOOKUP(A121,Defaults!$A$290:$B$340, 2,FALSE)),"-") -> $769,606
A122: 2028 | B122: $896,524 | C122: =IF($B$99="NO",B122,IFERROR(B122*(IF(A122>$B$39, 1/(1+$B$100)^(A122-$B$39),VLOOKUP(A122,Defaults!$A$134:$B$192, 2,FALSE))),"-")) -> $896,524 | D122: =IFERROR(IF(A122="N/A","-",C122*VLOOKUP(A122,Defaults!$A$290:$B$340, 2,FALSE)),"-") -> $746,466
A123: 2029 | B123: $896,524 | C123: =IF($B$99="NO",B123,IFERROR(B123*(IF(A123>$B$39, 1/(1+$B$100)^(A123-$B$39),VLOOKUP(A123,Defaults!$A$134:$B$192, 2,FALSE))),"-")) -> $896,524 | D123: =IFERROR(IF(A123="N/A","-",C123*VLOOKUP(A123,Defaults!$A$290:$B$340, 2,FALSE)),"-") -> $724,021
A124: N/A | B124: - | C124: =IF($B$99="NO",B124,IFERROR(B124*(IF(A124>$B$39, 1/(1+$B$100)^(A124-$B$39),VLOOKUP(A124,Defaults!$A$134:$B$192, 2,FALSE))),"-")) -> - | D124: =IFERROR(IF(A124="N/A","-",C124*VLOOKUP(A124,Defaults!$A$290:$B$340, 2,FALSE)),"-") -> -
A125: N/A | B125: - | C125: =IF($B$99="NO",B125,IFERROR(B125*(IF(A125>$B$39, 1/(1+$B$100)^(A125-$B$39),VLOOKUP(A125,Defaults!$A$134:$B$192, 2,FALSE))),"-")) -> - | D125: =IFERROR(IF(A125="N/A","-",C125*VLOOKUP(A125,Defaults!$A$290:$B$340, 2,FALSE)),"-") -> -
A126: N/A | B126: - | C126: =IF($B$99="NO",B126,IFERROR(B126*(IF(A126>$B$39, 1/(1+$B$100)^(A126-$B$39),VLOOKUP(A126,Defaults!$A$134:$B$192, 2,FALSE))),"-")) -> - | D126: =IFERROR(IF(A126="N/A","-",C126*VLOOKUP(A126,Defaults!$A$290:$B$340, 2,FALSE)),"-") -> -
A127: N/A | B127: - | C127: =IF($B$99="NO",B127,IFERROR(B127*(IF(A127>$B$39, 1/(1+$B$100)^(A127-$B$39),VLOOKUP(A127,Defaults!$A$134:$B$192, 2,FALSE))),"-")) -> - | D127: =IFERROR(IF(A127="N/A","-",C127*VLOOKUP(A127,Defaults!$A$290:$B$340, 2,FALSE)),"-") -> -
A128: N/A | B128: - | C128: =IF($B$99="NO",B128,IFERROR(B128*(IF(A128>$B$39, 1/(1+$B$100)^(A128-$B$39),VLOOKUP(A128,Defaults!$A$134:$B$192, 2,FALSE))),"-")) -> - | D128: =IFERROR(IF(A128="N/A","-",C128*VLOOKUP(A128,Defaults!$A$290:$B$340, 2,FALSE)),"-") -> -
A129: N/A | B129: - | C129: =IF($B$99="NO",B129,IFERROR(B129*(IF(A129>$B$39, 1/(1+$B$100)^(A129-$B$39),VLOOKUP(A129,Defaults!$A$134:$B$192, 2,FALSE))),"-")) -> - | D129: =IFERROR(IF(A129="N/A","-",C129*VLOOKUP(A129,Defaults!$A$290:$B$340, 2,FALSE)),"-") -> -
A130: -
A131: Table 12. Capital Cost Summary
A132: Total Capital Costs: | B132: =SUM(B105:B115)+SUM(B119:B129) -> $5,302,141
A133: Total Real Capital Costs: | B133: =SUM(C105:C115)+SUM(C119:C129) -> $5,302,141
A134: Total Discounted Capital Costs: | B134: =SUM(D105:D115)+SUM(D119:D129) -> $4,631,039
A135: -
A136: Table 13. Residual Value
A137: Share of Capital Costs | B137: Asset Life (Years) | C137: Explanation and Source
A138: 100% | B138: 75 | C138: AASHTO
A139: 0% | B139: 0 | C139: -
A140: 0% | B140: 0 | C140: -
A141: 0% | B141: 0 | C141: -
A142: =SUM(A138:A141) -> 100% | B142: Summation | C142: N/A
A143: Note: If there are multiple components of the project for this specific bridge that different asset lives, enter the share of the project costs associated with the different project components and their asset life.
A144: Note: The Summation cell should be 100%.
A145: -
A146: Operating and Maintenance Costs (O&M)
A147: Table 14. Operating and Maintenance Costs Assumptions
A148: Which method would you like to use to enter O&M costs? | B148: Manual Entry
A149: Year of O&M costs Dollars | B149: 2024
A150: Note: If you have O&M costs in the construction period you will need to use the manual entry option to enter the O&M costs in the construction period.
A151: Note: The operating and maintenance costs in the baseline should be entered to be consistent with your estimate of closure. If the bridge is closed in a future year (Table 25), there should not be maintenance costs for that year and thereafter.
A152: Note: For frequency calculation option, all costs should be entered as year of expenditure. The tool applies inflation and discounting factors automatically.
A153: -
A154: Table 15. Annual O&M Calculation Input
A155: Category | B155: Value
A156: Annual O&M Costs in the No Build Scenario | B156: -
A157: Annual O&M Costs Real Growth Rate in the No Build Scenario | B157: 0%
A158: Annual O&M Costs in the Build Scenario | B158: -
A159: Annual O&M Costs Real Growth Rate in the Build Scenario | B159: 0%
A160: Note: The maintenance real growth rate represents the real cost increases year over year (e.g., from increased deterioration of the asset). It should not include inflation adjustments.
A161: -
A162: Table 16a. Intermittent O&M Calculation Input
A163: Category | B163: Value
A164: Initial year | B164: -
A165: Last Year | B165: -
A166: Occurs every _____ Years; set to 30 if occurs only once | B166: 1
A167: Annual O&M Costs in the No Build Scenario | B167: -
A168: Annual O&M Costs Real Growth Rate in the Build Scenario | B168: -
A169: -
A170: Table 16b. Intermittent O&M Calculation Input
A171: Category | B171: Value
A172: Initial year | B172: -
A173: Last Year | B173: -
A174: Occurs every _____ Years; set to 30 if occurs only once | B174: 1
A175: Annual O&M Costs in the No Build Scenario | B175: -
A176: Annual O&M Costs Real Growth Rate in the Build Scenario | B176: -
A177: -
A178: Table 16c. Intermittent O&M Calculation Input
A179: Category | B179: Value
A180: Initial year | B180: -
A181: Last Year | B181: -
A182: Occurs every _____ Years; set to 30 if occurs only once | B182: 1
A183: Annual O&M Costs in the No Build Scenario | B183: -
A184: Annual O&M Costs Real Growth Rate in the Build Scenario | B184: -
A185: -
A186: Table 16d. Intermittent O&M Calculation Input
A187: Category | B187: Value
A188: Initial year | B188: -
A189: Last Year | B189: -
A190: Occurs every _____ Years; set to 30 if occurs only once | B190: 1
A191: Annual O&M Costs in the No Build Scenario | B191: -
A192: Annual O&M Costs Real Growth Rate in the Build Scenario | B192: -
A193: Note: The "Occurs every _____ " field in Tables 16a through 16d must be greater than or equal to 1, even if you are not adding an additional recurring maintenance cost.
A194: -
A195: Note: Manual O&M cost values should be entered in the year of dollar entered in Table 14.
A196: Table 17. Manual O&M Cost Entry
A197: Calendar Year | B197: Analysis Year | C197: No Build Annual Cost | D197: Build Annual Cost | E197: O&M Cost Difference Discounted
A198: =IFERROR(IF(B32="Required","N/A",B32),"N/A") -> 2022 | B198: =IFERROR(IF(A198=$B$35,1,IF(A198>$B$35,A198-$B$35+1,IF(A198<$B$35,A198-$B$35+1,"N/A"))),"N/A") -> -7 | C198: 0 | D198: 0 | E198: =IFERROR((C198-D198)*VLOOKUP($B$149,Defaults!$A$290:$B$340, 2,FALSE)*VLOOKUP(A198,Defaults!$A$290:$B$340,2,FALSE),0) -> 0
A199: =IF(A198="N/A","N/A",IF(A198>=$B$35+$B$36-1,"N/A",A198+1)) -> 2023 | B199: -6 | C199: 0 | D199: 0 | E199: =IFERROR((C199-D199)*VLOOKUP($B$149,Defaults!$A$290:$B$340, 2,FALSE)*VLOOKUP(A199,Defaults!$A$290:$B$340,2,FALSE),0) -> 0
A200: 2024 | B200: -5 | C200: 0 | D200: 0 | E200: =IFERROR((C200-D200)*VLOOKUP($B$149,Defaults!$A$290:$B$340, 2,FALSE)*VLOOKUP(A200,Defaults!$A$290:$B$340,2,FALSE),0) -> 0
... 495 more rows

Sheet 122.5
A1: Bridge and Project Overview
A2: ID of bridge, description of improvement, project timeline, traffic volume
A3: Add New Bridge (press Ctrl + Shift + B)
A4: Add Sensitivity Analysis for Current Bridge (press Ctrl + Shift + S)
A5: Delete this Bridge (press Ctrl + Shift + D)
A6: Note: Only delete bridges using this command/button. Deleting bridge tabs through right click will result in (fixable) errors on the Results tab.
A7: Change Bridge Name (press Ctrl + Shift + N)
A8: -
A9: Table 1. Bridge Variables
A10: Bridge Variables | B10: Bridge Values
A11: State | B11: Mississippi
A12: County | B12: Newton
A13: Structure Number | B13: 210008005112250
A14: Inventory Route | B14: =VLOOKUP($C$80,NBIData[],COLUMN(NBIData[ROUTE_NUMBER_005D]),FALSE) -> 00080
A15: Feature Intersected | B15: =VLOOKUP($C$80,NBIData[],COLUMN(NBIData[FEATURES_DESC_006A]),FALSE) -> 'CHUNKY RIVER'
A16: Facility Carried | B16: =VLOOKUP($C$80,NBIData[],COLUMN(NBIData[FACILITY_CARRIED_007]),FALSE) -> 'US 80'
A17: Latitude | B17: =LEFT(VLOOKUP($C$80,NBIData[],COLUMN(NBIData[LAT_016]),FALSE), 2) & CHAR(176) & " " & MID(VLOOKUP($C$80,NBIData[],COLUMN(NBIData[LAT_016]),FALSE), 3, 2) &"'" & " " & MID(VLOOKUP($C$80,NBIData[],COLUMN(NBIData[LAT_016]),FALSE), 5, 2) &"."& MID(VLOOKUP($C$80,NBIData[],COLUMN(NBIData[LAT_016]),FALSE), 7, 2) & CHAR(34) -> 32° 19' 35.00"
A18: Longitude | B18: ="-" & MID(VLOOKUP($C$80,NBIData[],COLUMN(NBIData[LONG_017]),FALSE), 2, 2) & CHAR(176) & " " & MID(VLOOKUP($C$80,NBIData[],COLUMN(NBIData[LONG_017]),FALSE), 4, 2) &"'" & " " & MID(VLOOKUP($C$80,NBIData[],COLUMN(NBIData[LONG_017]),FALSE), 6, 2) &"."& MID(VLOOKUP($C$80,NBIData[],COLUMN(NBIData[LONG_017]),FALSE), 8, 2) & CHAR(34) -> -88° 55' 19.32"
A19: Bridge Length (mi) | B19: =VLOOKUP($C$80,NBIData[],COLUMN(NBIData[STRUCTURE_LEN_MT_049]),FALSE)/1609 -> 0.1011808577
A20: Bypass, Detour Length (mi) | B20: =VLOOKUP($C$80,NBIData[],COLUMN(NBIData[DETOUR_KILOS_019]),FALSE)*0.621371 -> 14.91
A21: Owner | B21: =VLOOKUP($C$80,NBIData[],COLUMN(NBIData[OWNER_022]),FALSE) -> 01
A22: Functional Class, Rural/Urban | B22: =VLOOKUP($C$80,NBIData[],COLUMN(NBIData[FUNCTIONAL_CLASS_026]),FALSE) -> 07
A23: Bridge Road Type | B23: =VLOOKUP(B22,Defaults!A359:$D$371, 2, FALSE) -> Rural - Major Collector
A24: Year Built | B24: =VLOOKUP($C$80,NBIData[],COLUMN(NBIData[YEAR_BUILT_027]),FALSE) -> 1929
A25: Year Reconstructed | B25: =VLOOKUP($C$80,NBIData[],COLUMN(NBIData[YEAR_RECONSTRUCTED_106]),FALSE) -> 1992
A26: Lanes on the Structure | B26: =VLOOKUP($C$80,NBIData[],COLUMN(NBIData[TRAFFIC_LANES_ON_028A]),FALSE) -> 2
A27: Note: Some bridges have the same structure number. Use the state and county drop downs to identify your bridge.
A28: -
A29: Project Description:
A30: Table 2. Project Timeline
A31: Timeline Variables | B31: Timeline Values
A32: Current Year | B32: 2022
A33: First Year of Construction Costs | B33: 2025
A34: Last Year of Construction Costs | B34: 2029
A35: Project Opens (Start of Benefits) | B35: 2030
A36: Years of Benefits for Analysis | B36: 30
A37: First Year of Period of Analysis | B37: =IF(B35="Required","-", B35) -> 2030
A38: Last Year of Period of Analysis | B38: =IFERROR(B35+B36-1, "-") -> 2059
A39: Discount Year | B39: =Defaults!A290 -> 2022
A40: Base Year of NBI | B40: 2023
A41: Note: The tool cannot handle partial years, or pro-rata benefits or costs. Round up or down to the nearest year for construction start, construction end, and the start of benefits.
A42: Note: Enter a value between 20 to 30 for the Years of Benefits for Analysis, appropriate to the project as defined by US DOT BCA Guidance.
A43: -
A44: Table 3. Average Annual Daily Traffic (AADT)
A45: Scenario and Vehicle Type | B45: NBI Year of AADT | C45: NBI Year of Future AADT | D45: Forecast using NBI Growth Rate | E45: Forecast using NBI Growth Rate2 | F45: Project Opens | G45: Last Year | H45: Explanation and Source
A46: Year | B46: =VLOOKUP($C$80,NBIData[],COLUMN(NBIData[YEAR_ADT_030]),FALSE) -> 2022 | C46: =VLOOKUP($C$80,NBIData[],COLUMN(NBIData[YEAR_OF_FUTURE_ADT_115]),FALSE) -> 2059 | D46: =IF(B35="Required","-",B35) -> 2030 | E46: =B38 -> 2059 | F46: =IF(B35="Required", "-",B35) -> 2030 | G46: =B38 -> 2059 | H46: N/A
A47: No Build - Passenger AADT | B47: =VLOOKUP($C$80,NBIData[],COLUMN(NBIData[ADT_029]),FALSE)*(1-VLOOKUP($C$80,NBIData[],COLUMN(NBIData[PERCENT_ADT_TRUCK_109]),FALSE)/100) -> 783 | C47: =VLOOKUP($C$80,NBIData[],COLUMN(NBIData[FUTURE_ADT_114]),FALSE)*(1-VLOOKUP($C$80,NBIData[],COLUMN(NBIData[PERCENT_ADT_TRUCK_109]),FALSE)/100) -> 1131 | D47: =ROUND(B47*((1+B59)^(D$46-$B$46)),0) -> 847 | E47: =ROUND(C47*((1+B59)^(E$46-$C$46)),0) -> 1131 | F47: 846 | G47: 1131 | H47: BCA Guidance, MDOT
A48: No Build - Truck AADT | B48: =VLOOKUP($C$80,NBIData[],COLUMN(NBIData[PERCENT_ADT_TRUCK_109]),FALSE)/100*VLOOKUP($C$80,NBIData[],COLUMN(NBIData[ADT_029]),FALSE) -> 77 | C48: =VLOOKUP($C$80,NBIData[],COLUMN(NBIData[PERCENT_ADT_TRUCK_109]),FALSE)/100*VLOOKUP($C$80,NBIData[],COLUMN(NBIData[FUTURE_ADT_114]),FALSE) -> 112 | D48: =ROUND(B48*((1+B59)^(D$46-$B$46)),0) -> 84 | E48: =ROUND(C48*((1+B59)^(E$46-$C$46)),0) -> 112 | F48: 84 | G48: 112 | H48: BCA Guidance, MDOT
A49: No Build - Bus AADT | B49: N/A | C49: N/A | D49: N/A | E49: N/A | F49: 0 | G49: 0 | H49: BCA Guidance, MDOT
A50: Build - Passenger AADT | B50: =B47 -> 783 | C50: =C47 -> 1131 | D50: =ROUND(B50*((1+B59)^(D$46-$B$46)),0) -> 847 | E50: =ROUND(C50*((1+B59)^(E$46-$C$46)),0) -> 1131 | F50: 846 | G50: 1131 | H50: BCA Guidance, MDOT
A51: Build - Truck AADT | B51: =B48 -> 77 | C51: =C48 -> 112 | D51: =ROUND(B51*((1+B59)^(D$46-$B$46)),0) -> 84 | E51: =ROUND(C51*((1+B59)^(E$46-$C$46)),0) -> 112 | F51: 84 | G51: 112 | H51: BCA Guidance, MDOT
A52: Build - Bus AADT | B52: N/A | C52: N/A | D52: N/A | E52: N/A | F52: 0 | G52: 0 | H52: BCA Guidance, MDOT
A53: =HYPERLINK("#A542","Note: AADT can be entered manually in Table 52 and Table 53 below.") -> Note: AADT can be entered manually in Table 52 and Table 53 below.
A54: Note: Here and elsewhere in the tool it is critical that you enter at least some value in the required cells, e.g., 0, rather than "-", "N/A" or leaving it blank.
A55: Note: NBI AADT values are added for reference in Table 3. Users must enter AADT values in Columns G, H and I in Table 3.
A56: -
A57: Note: Table 4 is not a user input. Do not adjust Table 4.
A58: Table 4. NBI's Calculated Average Annual Daily Traffic (AADT) Growth Rate
A59: =CONCATENATE("The NBI Calculated Annual Growth Rate", " ", B46, "-",C46, " (NBI)") -> The NBI Calculated Annual Growth Rate 2022-2059 (NBI) | B59: =(C47/B47)^(1/(C$46-B$46))-1 -> $0
A60: -
A61: Table 5. Detour Road Type
A62: Detour Road Type | B62: Rural - Principal Arterial - Interstate
A63: Detour Road Type - Simple | B63: =IF(B62="Required", "-",IF(ISNUMBER(SEARCH("Urban",B62)), "Urban", "Rural")) -> Rural
A64: -
A65: Note: Detour length should represent the Net detour: Detour length minus the original route length.
A66: Table 6. Detour and Bridge Length Information
A67: Detour Details | B67: Reference | C67: User Value | D67: Explanation and Source
A68: Net Detour Length, For Vehicles (mi) (NBI) | B68: =ROUND(VLOOKUP($C$80,NBIData[],COLUMN(NBIData[DETOUR_KILOS_019]),FALSE)*0.621371,1) -> 14.9 | C68: 17.4 | D68: Google
A69: Detour Average Speed, for Vehicles (mph) (FHWA VHT) | B69: =ROUND(VLOOKUP(B62,Defaults!B359:F371,2, FALSE),1) -> 66.0 | C69: 50.0 | D69: Google
A70: Net Detour Length, For Cycling/ Pedestrian (mi) (NBI) | B70: =ROUND(VLOOKUP($C$80,NBIData[],COLUMN(NBIData[DETOUR_KILOS_019]),FALSE)*0.621371, 1) -> 14.9 | C70: 17.4 | D70: Google
A71: Detour Average Travel Time (min) | B71: =B68/B69*60 -> 13.5 | C71: =C68/C69*60 -> 20.9 | D71: N/A
A72: Bridge Length (mi) | B72: =ROUND(B19,2) -> 0.10 | C72: =845/5280 -> 0.16 | D72: Google
A73: Note: Google or HPMS data are preferred for identifying average speed on the detour route. You can also use the HERS/VHT speed values using the Detour Road Type dropdown below.
A74: Note: Bridge length in the NBI does not include the approach length. Include approach length if relevant for your project.
A75: =HYPERLINK("https://www.google.com/maps", "Use Google Maps to calculate detour route length and average speed, as appropriate.") -> Use Google Maps to calculate detour route length and average speed, as appropriate.
A76: =HYPERLINK("https://www.fhwa.dot.gov/policyinformation/hpms.cfm", "Use the Highway Performance Monitoring System (HPMS) data to calculate detour route length and average speed, as appropriate.") -> Use the Highway Performance Monitoring System (HPMS) data to calculate detour route length and average speed, as appropriate.
A77: -
A78: Note: These reference cells are marked to avoid accidental deletion.
A79: Table 7. Reference Table
A80: Reference Cells | B80: =CONCATENATE(B11,B12) -> MississippiNewton | C80: =CONCATENATE(VLOOKUP($B$11,NBI_Dropdown!$B$1:$D$56,3,FALSE),$B$13) -> 284210008005112250
A81: -
A82: Table 8. Travel Assumptions
A83: Parameters | B83: Reference | C83: User Value | D83: Explanation and Source
A84: Bridge Average Speed (FHWA) | B84: =_xlfn.IFNA(VLOOKUP(B23,Defaults!B359:C371,2, FALSE), "N/A") -> 47 | C84: 47 | D84: -
A85: Average Car Occupancy | B85: =Defaults!B51 -> 1.67 | C85: 1.67 | D85: -
A86: Share of Long-Distance Personal Travel | B86: 0.0% | C86: 0% | D86: -
A87: Value of Time - Long-Distance Personal Travel | B87: =Defaults!B35 -> $25.10 | C87: $25.10 | D87: -
A88: Share of Business Travel | B88: 11.8% | C88: 11.8% | D88: -
A89: Value of Travel Time - Business | B89: =Defaults!B33 -> $32.30 | C89: $32.30 | D89: -
A90: Value of Travel Time - Personal | B90: =Defaults!B32 -> $17.90 | C90: $17.90 | D90: -
A91: Value of Travel Time - All Purposes | B91: =ROUND(B86*B87+B88*B89+(1-B86-B88)*B90,1) -> $19.60 | C91: =IFERROR(ROUND(C86*C87+C88*C89+(1-C86-C88)*C90,1),"-") -> $19.60 | D91: -
A92: Walking, Cycling, Waiting, Standing, and Transfer Time | B92: =Defaults!B36 -> $35.80 | C92: $35.80 | D92: -
A93: Truck Driver | B93: =Defaults!B39 -> $33.50 | C93: $33.50 | D93: -
A94: Bus Driver | B94: =Defaults!B40 -> $36.50 | C94: $36.50 | D94: -
A95: Average Bus Occupancy | B95: 0 | C95: 0 | D95: -
A96: -
A97: Capital Cost and Residual Value
A98: Table 9. Expenditure Dollars Option
A99: Are costs entered in year of expenditure dollars (not adjusted for inflation)? | B99: NO
A100: Enter future inflation rate for capital costs. | B100: 0%
A101: Note: Capital costs can be entered in year of expenditure dollars or in real dollars. The tool applies inflation and discounting factors automatically if entered as year of expenditure dollars.
A102: -
A103: Table 10. Already Incurred Costs
A104: Year | B104: Costs | C104: Real Costs | D104: Discounted Costs
A105: 2016 | B105: $35,686 | C105: =IF($B$99="NO",B105,IFERROR(B105*(IF(A105>$B$39, 1/((1+$B$100)^(A105-$B$39)),VLOOKUP(A105,Defaults!$A$134:$B$192, 2,FALSE))),"-")) -> $35,686 | D105: =IFERROR(IF(A105="","",IF(A105<=2020, C105, C105*VLOOKUP(A105,Defaults!$A$290:$B$340, 2,FALSE))),"-") -> $35,686
A106: 2017 | B106: $38,873 | C106: =IF($B$99="NO",B106,IFERROR(B106*(IF(A106>$B$39, 1/((1+$B$100)^(A106-$B$39)),VLOOKUP(A106,Defaults!$A$134:$B$192, 2,FALSE))),"-")) -> $38,873 | D106: =IFERROR(IF(A106="","",IF(A106<=2020, C106, C106*VLOOKUP(A106,Defaults!$A$290:$B$340, 2,FALSE))),"-") -> $38,873
A107: 2018 | B107: $8,622 | C107: =IF($B$99="NO",B107,IFERROR(B107*(IF(A107>$B$39, 1/((1+$B$100)^(A107-$B$39)),VLOOKUP(A107,Defaults!$A$134:$B$192, 2,FALSE))),"-")) -> $8,622 | D107: =IFERROR(IF(A107="","",IF(A107<=2020, C107, C107*VLOOKUP(A107,Defaults!$A$290:$B$340, 2,FALSE))),"-") -> $8,622
A108: 2019 | B108: $43,328 | C108: =IF($B$99="NO",B108,IFERROR(B108*(IF(A108>$B$39, 1/((1+$B$100)^(A108-$B$39)),VLOOKUP(A108,Defaults!$A$134:$B$192, 2,FALSE))),"-")) -> $43,328 | D108: =IFERROR(IF(A108="","",IF(A108<=2020, C108, C108*VLOOKUP(A108,Defaults!$A$290:$B$340, 2,FALSE))),"-") -> $43,328
A109: 2020 | B109: $100,953 | C109: =IF($B$99="NO",B109,IFERROR(B109*(IF(A109>$B$39, 1/((1+$B$100)^(A109-$B$39)),VLOOKUP(A109,Defaults!$A$134:$B$192, 2,FALSE))),"-")) -> $100,953 | D109: =IFERROR(IF(A109="","",IF(A109<=2020, C109, C109*VLOOKUP(A109,Defaults!$A$290:$B$340, 2,FALSE))),"-") -> $100,953
A110: 2021 | B110: $49,886 | C110: =IF($B$99="NO",B110,IFERROR(B110*(IF(A110>$B$39, 1/((1+$B$100)^(A110-$B$39)),VLOOKUP(A110,Defaults!$A$134:$B$192, 2,FALSE))),"-")) -> $49,886 | D110: =IFERROR(IF(A110="","",IF(A110<=2020, C110, C110*VLOOKUP(A110,Defaults!$A$290:$B$340, 2,FALSE))),"-") -> -
A111: 2022 | B111: $30,795 | C111: =IF($B$99="NO",B111,IFERROR(B111*(IF(A111>$B$39, 1/((1+$B$100)^(A111-$B$39)),VLOOKUP(A111,Defaults!$A$134:$B$192, 2,FALSE))),"-")) -> $30,795 | D111: =IFERROR(IF(A111="","",IF(A111<=2020, C111, C111*VLOOKUP(A111,Defaults!$A$290:$B$340, 2,FALSE))),"-") -> $30,795
A112: 2023 | B112: =41908.37+630983.93 -> $672,892 | C112: =IF($B$99="NO",B112,IFERROR(B112*(IF(A112>$B$39, 1/((1+$B$100)^(A112-$B$39)),VLOOKUP(A112,Defaults!$A$134:$B$192, 2,FALSE))),"-")) -> $672,892 | D112: =IFERROR(IF(A112="","",IF(A112<=2020, C112, C112*VLOOKUP(A112,Defaults!$A$290:$B$340, 2,FALSE))),"-") -> $652,660
A113: 2024 | B113: $246,464 | C113: =IF($B$99="NO",B113,IFERROR(B113*(IF(A113>$B$39, 1/((1+$B$100)^(A113-$B$39)),VLOOKUP(A113,Defaults!$A$134:$B$192, 2,FALSE))),"-")) -> $246,464 | D113: =IFERROR(IF(A113="","",IF(A113<=2020, C113, C113*VLOOKUP(A113,Defaults!$A$290:$B$340, 2,FALSE))),"-") -> $231,865
A114: - | B114: - | C114: =IF($B$99="NO",B114,IFERROR(B114*(IF(A114>$B$39, 1/((1+$B$100)^(A114-$B$39)),VLOOKUP(A114,Defaults!$A$134:$B$192, 2,FALSE))),"-")) -> - | D114: =IFERROR(IF(A114="","",IF(A114<=2020, C114, C114*VLOOKUP(A114,Defaults!$A$290:$B$340, 2,FALSE))),"-") -> -
A115: - | B115: - | C115: =IF($B$99="NO",B115,IFERROR(B115*(IF(A115>$B$39, 1/((1+$B$100)^(A115-$B$39)),VLOOKUP(A115,Defaults!$A$134:$B$192, 2,FALSE))),"-")) -> - | D115: =IFERROR(IF(A115="","",IF(A115<=2020, C115, C115*VLOOKUP(A115,Defaults!$A$290:$B$340, 2,FALSE))),"-") -> -
A116: -
A117: Table 11. Capital Costs
A118: Year | B118: Costs | C118: Real Costs | D118: Discounted Costs
A119: =IFERROR(IF($B$33="-", "N/A", $B$33),"N/A") -> 2025 | B119: $2,323,834 | C119: =IF($B$99="NO",B119,IFERROR(B119*(IF(A119>$B$39, 1/(1+$B$100)^(A119-$B$39),VLOOKUP(A119,Defaults!$A$134:$B$192, 2,FALSE))),"-")) -> $2,323,834 | D119: =IFERROR(IF(A119="N/A","-",C119*VLOOKUP(A119,Defaults!$A$290:$B$340, 2,FALSE)),"-") -> $2,120,455
A120: =IFERROR(IF(A119="N/A","N/A",IF(A119>=$B$34,"N/A",A119+1)),"") -> 2026 | B120: $2,323,834 | C120: =IF($B$99="NO",B120,IFERROR(B120*(IF(A120>$B$39, 1/(1+$B$100)^(A120-$B$39),VLOOKUP(A120,Defaults!$A$134:$B$192, 2,FALSE))),"-")) -> $2,323,834 | D120: =IFERROR(IF(A120="N/A","-",C120*VLOOKUP(A120,Defaults!$A$290:$B$340, 2,FALSE)),"-") -> $2,056,697
A121: =IF(A120="N/A","N/A",IF(A120>=$B$34,"N/A",A120+1)) -> 2027 | B121: $2,323,834 | C121: =IF($B$99="NO",B121,IFERROR(B121*(IF(A121>$B$39, 1/(1+$B$100)^(A121-$B$39),VLOOKUP(A121,Defaults!$A$134:$B$192, 2,FALSE))),"-")) -> $2,323,834 | D121: =IFERROR(IF(A121="N/A","-",C121*VLOOKUP(A121,Defaults!$A$290:$B$340, 2,FALSE)),"-") -> $1,994,857
A122: 2028 | B122: $2,323,834 | C122: =IF($B$99="NO",B122,IFERROR(B122*(IF(A122>$B$39, 1/(1+$B$100)^(A122-$B$39),VLOOKUP(A122,Defaults!$A$134:$B$192, 2,FALSE))),"-")) -> $2,323,834 | D122: =IFERROR(IF(A122="N/A","-",C122*VLOOKUP(A122,Defaults!$A$290:$B$340, 2,FALSE)),"-") -> $1,934,875
A123: 2029 | B123: $2,323,834 | C123: =IF($B$99="NO",B123,IFERROR(B123*(IF(A123>$B$39, 1/(1+$B$100)^(A123-$B$39),VLOOKUP(A123,Defaults!$A$134:$B$192, 2,FALSE))),"-")) -> $2,323,834 | D123: =IFERROR(IF(A123="N/A","-",C123*VLOOKUP(A123,Defaults!$A$290:$B$340, 2,FALSE)),"-") -> $1,876,698
A124: N/A | B124: - | C124: =IF($B$99="NO",B124,IFERROR(B124*(IF(A124>$B$39, 1/(1+$B$100)^(A124-$B$39),VLOOKUP(A124,Defaults!$A$134:$B$192, 2,FALSE))),"-")) -> - | D124: =IFERROR(IF(A124="N/A","-",C124*VLOOKUP(A124,Defaults!$A$290:$B$340, 2,FALSE)),"-") -> -
A125: N/A | B125: - | C125: =IF($B$99="NO",B125,IFERROR(B125*(IF(A125>$B$39, 1/(1+$B$100)^(A125-$B$39),VLOOKUP(A125,Defaults!$A$134:$B$192, 2,FALSE))),"-")) -> - | D125: =IFERROR(IF(A125="N/A","-",C125*VLOOKUP(A125,Defaults!$A$290:$B$340, 2,FALSE)),"-") -> -
A126: N/A | B126: - | C126: =IF($B$99="NO",B126,IFERROR(B126*(IF(A126>$B$39, 1/(1+$B$100)^(A126-$B$39),VLOOKUP(A126,Defaults!$A$134:$B$192, 2,FALSE))),"-")) -> - | D126: =IFERROR(IF(A126="N/A","-",C126*VLOOKUP(A126,Defaults!$A$290:$B$340, 2,FALSE)),"-") -> -
A127: N/A | B127: - | C127: =IF($B$99="NO",B127,IFERROR(B127*(IF(A127>$B$39, 1/(1+$B$100)^(A127-$B$39),VLOOKUP(A127,Defaults!$A$134:$B$192, 2,FALSE))),"-")) -> - | D127: =IFERROR(IF(A127="N/A","-",C127*VLOOKUP(A127,Defaults!$A$290:$B$340, 2,FALSE)),"-") -> -
A128: N/A | B128: - | C128: =IF($B$99="NO",B128,IFERROR(B128*(IF(A128>$B$39, 1/(1+$B$100)^(A128-$B$39),VLOOKUP(A128,Defaults!$A$134:$B$192, 2,FALSE))),"-")) -> - | D128: =IFERROR(IF(A128="N/A","-",C128*VLOOKUP(A128,Defaults!$A$290:$B$340, 2,FALSE)),"-") -> -
A129: N/A | B129: - | C129: =IF($B$99="NO",B129,IFERROR(B129*(IF(A129>$B$39, 1/(1+$B$100)^(A129-$B$39),VLOOKUP(A129,Defaults!$A$134:$B$192, 2,FALSE))),"-")) -> - | D129: =IFERROR(IF(A129="N/A","-",C129*VLOOKUP(A129,Defaults!$A$290:$B$340, 2,FALSE)),"-") -> -
A130: -
A131: Table 12. Capital Cost Summary
A132: Total Capital Costs: | B132: =SUM(B105:B115)+SUM(B119:B129) -> $12,846,667
A133: Total Real Capital Costs: | B133: =SUM(C105:C115)+SUM(C119:C129) -> $12,846,667
A134: Total Discounted Capital Costs: | B134: =SUM(D105:D115)+SUM(D119:D129) -> $11,126,364
A135: -
A136: Table 13. Residual Value
A137: Share of Capital Costs | B137: Asset Life (Years) | C137: Explanation and Source
A138: 100% | B138: 75 | C138: AASHTO
A139: 0% | B139: 0 | C139: -
A140: 0% | B140: 0 | C140: -
A141: 0% | B141: 0 | C141: -
A142: =SUM(A138:A141) -> 100% | B142: Summation | C142: N/A
A143: Note: If there are multiple components of the project for this specific bridge that different asset lives, enter the share of the project costs associated with the different project components and their asset life.
A144: Note: The Summation cell should be 100%.
A145: -
A146: Operating and Maintenance Costs (O&M)
A147: Table 14. Operating and Maintenance Costs Assumptions
A148: Which method would you like to use to enter O&M costs? | B148: Manual Entry
A149: Year of O&M costs Dollars | B149: 2024
A150: Note: If you have O&M costs in the construction period you will need to use the manual entry option to enter the O&M costs in the construction period.
A151: Note: The operating and maintenance costs in the baseline should be entered to be consistent with your estimate of closure. If the bridge is closed in a future year (Table 25), there should not be maintenance costs for that year and thereafter.
A152: Note: For frequency calculation option, all costs should be entered as year of expenditure. The tool applies inflation and discounting factors automatically.
A153: -
A154: Table 15. Annual O&M Calculation Input
A155: Category | B155: Value
A156: Annual O&M Costs in the No Build Scenario | B156: -
A157: Annual O&M Costs Real Growth Rate in the No Build Scenario | B157: 0%
A158: Annual O&M Costs in the Build Scenario | B158: -
A159: Annual O&M Costs Real Growth Rate in the Build Scenario | B159: 0%
A160: Note: The maintenance real growth rate represents the real cost increases year over year (e.g., from increased deterioration of the asset). It should not include inflation adjustments.
A161: -
A162: Table 16a. Intermittent O&M Calculation Input
A163: Category | B163: Value
A164: Initial year | B164: -
A165: Last Year | B165: -
A166: Occurs every _____ Years; set to 30 if occurs only once | B166: 1
A167: Annual O&M Costs in the No Build Scenario | B167: -
A168: Annual O&M Costs Real Growth Rate in the Build Scenario | B168: -
A169: -
A170: Table 16b. Intermittent O&M Calculation Input
A171: Category | B171: Value
A172: Initial year | B172: -
A173: Last Year | B173: -
A174: Occurs every _____ Years; set to 30 if occurs only once | B174: 1
A175: Annual O&M Costs in the No Build Scenario | B175: -
A176: Annual O&M Costs Real Growth Rate in the Build Scenario | B176: -
A177: -
A178: Table 16c. Intermittent O&M Calculation Input
A179: Category | B179: Value
A180: Initial year | B180: -
A181: Last Year | B181: -
A182: Occurs every _____ Years; set to 30 if occurs only once | B182: 1
A183: Annual O&M Costs in the No Build Scenario | B183: -
A184: Annual O&M Costs Real Growth Rate in the Build Scenario | B184: -
A185: -
A186: Table 16d. Intermittent O&M Calculation Input
A187: Category | B187: Value
A188: Initial year | B188: -
A189: Last Year | B189: -
A190: Occurs every _____ Years; set to 30 if occurs only once | B190: 1
A191: Annual O&M Costs in the No Build Scenario | B191: -
A192: Annual O&M Costs Real Growth Rate in the Build Scenario | B192: -
A193: Note: The "Occurs every _____ " field in Tables 16a through 16d must be greater than or equal to 1, even if you are not adding an additional recurring maintenance cost.
A194: -
A195: Note: Manual O&M cost values should be entered in the year of dollar entered in Table 14.
A196: Table 17. Manual O&M Cost Entry
A197: Calendar Year | B197: Analysis Year | C197: No Build Annual Cost | D197: Build Annual Cost | E197: O&M Cost Difference Discounted
A198: =IFERROR(IF(B32="Required","N/A",B32),"N/A") -> 2022 | B198: =IFERROR(IF(A198=$B$35,1,IF(A198>$B$35,A198-$B$35+1,IF(A198<$B$35,A198-$B$35+1,"N/A"))),"N/A") -> -7 | C198: 0 | D198: 0 | E198: =IFERROR((C198-D198)*VLOOKUP($B$149,Defaults!$A$290:$B$340, 2,FALSE)*VLOOKUP(A198,Defaults!$A$290:$B$340,2,FALSE),0) -> 0
A199: =IF(A198="N/A","N/A",IF(A198>=$B$35+$B$36-1,"N/A",A198+1)) -> 2023 | B199: -6 | C199: 0 | D199: 0 | E199: =IFERROR((C199-D199)*VLOOKUP($B$149,Defaults!$A$290:$B$340, 2,FALSE)*VLOOKUP(A199,Defaults!$A$290:$B$340,2,FALSE),0) -> 0
A200: 2024 | B200: -5 | C200: 0 | D200: 0 | E200: =IFERROR((C200-D200)*VLOOKUP($B$149,Defaults!$A$290:$B$340, 2,FALSE)*VLOOKUP(A200,Defaults!$A$290:$B$340,2,FALSE),0) -> 0
... 495 more rows

Sheet 124.7
A1: Bridge and Project Overview
A2: ID of bridge, description of improvement, project timeline, traffic volume
A3: Add New Bridge (press Ctrl + Shift + B)
A4: Add Sensitivity Analysis for Current Bridge (press Ctrl + Shift + S)
A5: Delete this Bridge (press Ctrl + Shift + D)
A6: Note: Only delete bridges using this command/button. Deleting bridge tabs through right click will result in (fixable) errors on the Results tab.
A7: Change Bridge Name (press Ctrl + Shift + N)
A8: -
A9: Table 1. Bridge Variables
A10: Bridge Variables | B10: Bridge Values
A11: State | B11: Mississippi
A12: County | B12: Madison
A13: Structure Number | B13: 210005104512470
A14: Inventory Route | B14: =VLOOKUP($C$80,NBIData[],COLUMN(NBIData[ROUTE_NUMBER_005D]),FALSE) -> 00051
A15: Feature Intersected | B15: =VLOOKUP($C$80,NBIData[],COLUMN(NBIData[FEATURES_DESC_006A]),FALSE) -> 'TILDA BOGUE CREEK'
A16: Facility Carried | B16: =VLOOKUP($C$80,NBIData[],COLUMN(NBIData[FACILITY_CARRIED_007]),FALSE) -> 'US 51'
A17: Latitude | B17: =LEFT(VLOOKUP($C$80,NBIData[],COLUMN(NBIData[LAT_016]),FALSE), 2) & CHAR(176) & " " & MID(VLOOKUP($C$80,NBIData[],COLUMN(NBIData[LAT_016]),FALSE), 3, 2) &"'" & " " & MID(VLOOKUP($C$80,NBIData[],COLUMN(NBIData[LAT_016]),FALSE), 5, 2) &"."& MID(VLOOKUP($C$80,NBIData[],COLUMN(NBIData[LAT_016]),FALSE), 7, 2) & CHAR(34) -> 32° 39' 16.75"
A18: Longitude | B18: ="-" & MID(VLOOKUP($C$80,NBIData[],COLUMN(NBIData[LONG_017]),FALSE), 2, 2) & CHAR(176) & " " & MID(VLOOKUP($C$80,NBIData[],COLUMN(NBIData[LONG_017]),FALSE), 4, 2) &"'" & " " & MID(VLOOKUP($C$80,NBIData[],COLUMN(NBIData[LONG_017]),FALSE), 6, 2) &"."& MID(VLOOKUP($C$80,NBIData[],COLUMN(NBIData[LONG_017]),FALSE), 8, 2) & CHAR(34) -> -90° 00' 53.95"
A19: Bridge Length (mi) | B19: =VLOOKUP($C$80,NBIData[],COLUMN(NBIData[STRUCTURE_LEN_MT_049]),FALSE)/1609 -> 0.02691112492
A20: Bypass, Detour Length (mi) | B20: =VLOOKUP($C$80,NBIData[],COLUMN(NBIData[DETOUR_KILOS_019]),FALSE)*0.621371 -> 19.26
A21: Owner | B21: =VLOOKUP($C$80,NBIData[],COLUMN(NBIData[OWNER_022]),FALSE) -> 01
A22: Functional Class, Rural/Urban | B22: =VLOOKUP($C$80,NBIData[],COLUMN(NBIData[FUNCTIONAL_CLASS_026]),FALSE) -> 07
A23: Bridge Road Type | B23: =VLOOKUP(B22,Defaults!A359:$D$371, 2, FALSE) -> Rural - Major Collector
A24: Year Built | B24: =VLOOKUP($C$80,NBIData[],COLUMN(NBIData[YEAR_BUILT_027]),FALSE) -> 1929
A25: Year Reconstructed | B25: =VLOOKUP($C$80,NBIData[],COLUMN(NBIData[YEAR_RECONSTRUCTED_106]),FALSE) -> 1934
A26: Lanes on the Structure | B26: =VLOOKUP($C$80,NBIData[],COLUMN(NBIData[TRAFFIC_LANES_ON_028A]),FALSE) -> 2
A27: Note: Some bridges have the same structure number. Use the state and county drop downs to identify your bridge.
A28: -
A29: Project Description:
A30: Table 2. Project Timeline
A31: Timeline Variables | B31: Timeline Values
A32: Current Year | B32: 2022
A33: First Year of Construction Costs | B33: 2025
A34: Last Year of Construction Costs | B34: 2029
A35: Project Opens (Start of Benefits) | B35: 2030
A36: Years of Benefits for Analysis | B36: 30
A37: First Year of Period of Analysis | B37: =IF(B35="Required","-", B35) -> 2030
A38: Last Year of Period of Analysis | B38: =IFERROR(B35+B36-1, "-") -> 2059
A39: Discount Year | B39: =Defaults!A290 -> 2022
A40: Base Year of NBI | B40: 2023
A41: Note: The tool cannot handle partial years, or pro-rata benefits or costs. Round up or down to the nearest year for construction start, construction end, and the start of benefits.
A42: Note: Enter a value between 20 to 30 for the Years of Benefits for Analysis, appropriate to the project as defined by US DOT BCA Guidance.
A43: -
A44: Table 3. Average Annual Daily Traffic (AADT)
A45: Scenario and Vehicle Type | B45: NBI Year of AADT | C45: NBI Year of Future AADT | D45: Forecast using NBI Growth Rate | E45: Forecast using NBI Growth Rate2 | F45: Project Opens | G45: Last Year | H45: Explanation and Source
A46: Year | B46: =VLOOKUP($C$80,NBIData[],COLUMN(NBIData[YEAR_ADT_030]),FALSE) -> 2022 | C46: =VLOOKUP($C$80,NBIData[],COLUMN(NBIData[YEAR_OF_FUTURE_ADT_115]),FALSE) -> 2059 | D46: =IF(B35="Required","-",B35) -> 2030 | E46: =B38 -> 2059 | F46: =IF(B35="Required", "-",B35) -> 2030 | G46: =B38 -> 2059 | H46: N/A
A47: No Build - Passenger AADT | B47: =VLOOKUP($C$80,NBIData[],COLUMN(NBIData[ADT_029]),FALSE)*(1-VLOOKUP($C$80,NBIData[],COLUMN(NBIData[PERCENT_ADT_TRUCK_109]),FALSE)/100) -> 1748 | C47: =VLOOKUP($C$80,NBIData[],COLUMN(NBIData[FUTURE_ADT_114]),FALSE)*(1-VLOOKUP($C$80,NBIData[],COLUMN(NBIData[PERCENT_ADT_TRUCK_109]),FALSE)/100) -> 2526 | D47: =ROUND(B47*((1+B59)^(D$46-$B$46)),0) -> 1893 | E47: =ROUND(C47*((1+B59)^(E$46-$C$46)),0) -> 2526 | F47: 1932 | G47: 2526 | H47: BCA Guidance, MDOT
A48: No Build - Truck AADT | B48: =VLOOKUP($C$80,NBIData[],COLUMN(NBIData[PERCENT_ADT_TRUCK_109]),FALSE)/100*VLOOKUP($C$80,NBIData[],COLUMN(NBIData[ADT_029]),FALSE) -> 152 | C48: =VLOOKUP($C$80,NBIData[],COLUMN(NBIData[PERCENT_ADT_TRUCK_109]),FALSE)/100*VLOOKUP($C$80,NBIData[],COLUMN(NBIData[FUTURE_ADT_114]),FALSE) -> 220 | D48: =ROUND(B48*((1+B59)^(D$46-$B$46)),0) -> 165 | E48: =ROUND(C48*((1+B59)^(E$46-$C$46)),0) -> 220 | F48: 168 | G48: 220 | H48: BCA Guidance, MDOT
A49: No Build - Bus AADT | B49: N/A | C49: N/A | D49: N/A | E49: N/A | F49: 0 | G49: 0 | H49: BCA Guidance, MDOT
A50: Build - Passenger AADT | B50: =B47 -> 1748 | C50: =C47 -> 2526 | D50: =ROUND(B50*((1+B59)^(D$46-$B$46)),0) -> 1893 | E50: =ROUND(C50*((1+B59)^(E$46-$C$46)),0) -> 2526 | F50: 1932 | G50: 2526 | H50: BCA Guidance, MDOT
A51: Build - Truck AADT | B51: =B48 -> 152 | C51: =C48 -> 220 | D51: =ROUND(B51*((1+B59)^(D$46-$B$46)),0) -> 165 | E51: =ROUND(C51*((1+B59)^(E$46-$C$46)),0) -> 220 | F51: 168 | G51: 220 | H51: BCA Guidance, MDOT
A52: Build - Bus AADT | B52: N/A | C52: N/A | D52: N/A | E52: N/A | F52: 0 | G52: 0 | H52: BCA Guidance, MDOT
A53: =HYPERLINK("#A542","Note: AADT can be entered manually in Table 52 and Table 53 below.") -> Note: AADT can be entered manually in Table 52 and Table 53 below.
A54: Note: Here and elsewhere in the tool it is critical that you enter at least some value in the required cells, e.g., 0, rather than "-", "N/A" or leaving it blank.
A55: Note: NBI AADT values are added for reference in Table 3. Users must enter AADT values in Columns G, H and I in Table 3.
A56: -
A57: Note: Table 4 is not a user input. Do not adjust Table 4.
A58: Table 4. NBI's Calculated Average Annual Daily Traffic (AADT) Growth Rate
A59: =CONCATENATE("The NBI Calculated Annual Growth Rate", " ", B46, "-",C46, " (NBI)") -> The NBI Calculated Annual Growth Rate 2022-2059 (NBI) | B59: =(C47/B47)^(1/(C$46-B$46))-1 -> $0
A60: -
A61: Table 5. Detour Road Type
A62: Detour Road Type | B62: Rural - Principal Arterial - Interstate
A63: Detour Road Type - Simple | B63: =IF(B62="Required", "-",IF(ISNUMBER(SEARCH("Urban",B62)), "Urban", "Rural")) -> Rural
A64: -
A65: Note: Detour length should represent the Net detour: Detour length minus the original route length.
A66: Table 6. Detour and Bridge Length Information
A67: Detour Details | B67: Reference | C67: User Value | D67: Explanation and Source
A68: Net Detour Length, For Vehicles (mi) (NBI) | B68: =ROUND(VLOOKUP($C$80,NBIData[],COLUMN(NBIData[DETOUR_KILOS_019]),FALSE)*0.621371,1) -> 19.3 | C68: 51.7 | D68: Google
A69: Detour Average Speed, for Vehicles (mph) (FHWA VHT) | B69: =ROUND(VLOOKUP(B62,Defaults!B359:F371,2, FALSE),1) -> 66.0 | C69: 62.0 | D69: Google
A70: Net Detour Length, For Cycling/ Pedestrian (mi) (NBI) | B70: =ROUND(VLOOKUP($C$80,NBIData[],COLUMN(NBIData[DETOUR_KILOS_019]),FALSE)*0.621371, 1) -> 19.3 | C70: 51.7 | D70: Google
A71: Detour Average Travel Time (min) | B71: =B68/B69*60 -> 17.5 | C71: =C68/C69*60 -> 50.0 | D71: N/A
A72: Bridge Length (mi) | B72: =ROUND(B19,2) -> 0.03 | C72: 0.09 | D72: Google
A73: Note: Google or HPMS data are preferred for identifying average speed on the detour route. You can also use the HERS/VHT speed values using the Detour Road Type dropdown below.
A74: Note: Bridge length in the NBI does not include the approach length. Include approach length if relevant for your project.
A75: =HYPERLINK("https://www.google.com/maps", "Use Google Maps to calculate detour route length and average speed, as appropriate.") -> Use Google Maps to calculate detour route length and average speed, as appropriate.
A76: =HYPERLINK("https://www.fhwa.dot.gov/policyinformation/hpms.cfm", "Use the Highway Performance Monitoring System (HPMS) data to calculate detour route length and average speed, as appropriate.") -> Use the Highway Performance Monitoring System (HPMS) data to calculate detour route length and average speed, as appropriate.
A77: -
A78: Note: These reference cells are marked to avoid accidental deletion.
A79: Table 7. Reference Table
A80: Reference Cells | B80: =CONCATENATE(B11,B12) -> MississippiMadison | C80: =CONCATENATE(VLOOKUP($B$11,NBI_Dropdown!$B$1:$D$56,3,FALSE),$B$13) -> 284210005104512470
A81: -
A82: Table 8. Travel Assumptions
A83: Parameters | B83: Reference | C83: User Value | D83: Explanation and Source
A84: Bridge Average Speed (FHWA) | B84: =_xlfn.IFNA(VLOOKUP(B23,Defaults!B359:C371,2, FALSE), "N/A") -> 47 | C84: 47 | D84: -
A85: Average Car Occupancy | B85: =Defaults!B51 -> 1.67 | C85: 1.67 | D85: -
A86: Share of Long-Distance Personal Travel | B86: 0.0% | C86: 0% | D86: -
A87: Value of Time - Long-Distance Personal Travel | B87: =Defaults!B35 -> $25.10 | C87: $25.10 | D87: -
A88: Share of Business Travel | B88: 11.8% | C88: 11.8% | D88: -
A89: Value of Travel Time - Business | B89: =Defaults!B33 -> $32.30 | C89: $32.30 | D89: -
A90: Value of Travel Time - Personal | B90: =Defaults!B32 -> $17.90 | C90: $17.90 | D90: -
A91: Value of Travel Time - All Purposes | B91: =ROUND(B86*B87+B88*B89+(1-B86-B88)*B90,1) -> $19.60 | C91: =IFERROR(ROUND(C86*C87+C88*C89+(1-C86-C88)*C90,1),"-") -> $19.60 | D91: -
A92: Walking, Cycling, Waiting, Standing, and Transfer Time | B92: =Defaults!B36 -> $35.80 | C92: $35.80 | D92: -
A93: Truck Driver | B93: =Defaults!B39 -> $33.50 | C93: $33.50 | D93: -
A94: Bus Driver | B94: =Defaults!B40 -> $36.50 | C94: $36.50 | D94: -
A95: Average Bus Occupancy | B95: 0 | C95: 0 | D95: -
A96: -
A97: Capital Cost and Residual Value
A98: Table 9. Expenditure Dollars Option
A99: Are costs entered in year of expenditure dollars (not adjusted for inflation)? | B99: NO
A100: Enter future inflation rate for capital costs. | B100: 0%
A101: Note: Capital costs can be entered in year of expenditure dollars or in real dollars. The tool applies inflation and discounting factors automatically if entered as year of expenditure dollars.
A102: -
A103: Table 10. Already Incurred Costs
A104: Year | B104: Costs | C104: Real Costs | D104: Discounted Costs
A105: 2015 | B105: =101804.01/5 -> $20,361 | C105: =IF($B$99="NO",B105,IFERROR(B105*(IF(A105>$B$39, 1/((1+$B$100)^(A105-$B$39)),VLOOKUP(A105,Defaults!$A$134:$B$192, 2,FALSE))),"-")) -> $20,361 | D105: =IFERROR(IF(A105="","",IF(A105<=2020, C105, C105*VLOOKUP(A105,Defaults!$A$290:$B$340, 2,FALSE))),"-") -> $20,361
A106: 2016 | B106: =344006.89/5 -> $68,801 | C106: =IF($B$99="NO",B106,IFERROR(B106*(IF(A106>$B$39, 1/((1+$B$100)^(A106-$B$39)),VLOOKUP(A106,Defaults!$A$134:$B$192, 2,FALSE))),"-")) -> $68,801 | D106: =IFERROR(IF(A106="","",IF(A106<=2020, C106, C106*VLOOKUP(A106,Defaults!$A$290:$B$340, 2,FALSE))),"-") -> $68,801
A107: 2017 | B107: =246752.04/5 -> $49,350 | C107: =IF($B$99="NO",B107,IFERROR(B107*(IF(A107>$B$39, 1/((1+$B$100)^(A107-$B$39)),VLOOKUP(A107,Defaults!$A$134:$B$192, 2,FALSE))),"-")) -> $49,350 | D107: =IFERROR(IF(A107="","",IF(A107<=2020, C107, C107*VLOOKUP(A107,Defaults!$A$290:$B$340, 2,FALSE))),"-") -> $49,350
A108: 2018 | B108: =151861.34/5 -> $30,372 | C108: =IF($B$99="NO",B108,IFERROR(B108*(IF(A108>$B$39, 1/((1+$B$100)^(A108-$B$39)),VLOOKUP(A108,Defaults!$A$134:$B$192, 2,FALSE))),"-")) -> $30,372 | D108: =IFERROR(IF(A108="","",IF(A108<=2020, C108, C108*VLOOKUP(A108,Defaults!$A$290:$B$340, 2,FALSE))),"-") -> $30,372
A109: 2019 | B109: =198964.79/5 -> $39,793 | C109: =IF($B$99="NO",B109,IFERROR(B109*(IF(A109>$B$39, 1/((1+$B$100)^(A109-$B$39)),VLOOKUP(A109,Defaults!$A$134:$B$192, 2,FALSE))),"-")) -> $39,793 | D109: =IFERROR(IF(A109="","",IF(A109<=2020, C109, C109*VLOOKUP(A109,Defaults!$A$290:$B$340, 2,FALSE))),"-") -> $39,793
A110: 2020 | B110: =34341.94/5 -> $6,868 | C110: =IF($B$99="NO",B110,IFERROR(B110*(IF(A110>$B$39, 1/((1+$B$100)^(A110-$B$39)),VLOOKUP(A110,Defaults!$A$134:$B$192, 2,FALSE))),"-")) -> $6,868 | D110: =IFERROR(IF(A110="","",IF(A110<=2020, C110, C110*VLOOKUP(A110,Defaults!$A$290:$B$340, 2,FALSE))),"-") -> $6,868
A111: 2021 | B111: =233999.67/5 -> $46,800 | C111: =IF($B$99="NO",B111,IFERROR(B111*(IF(A111>$B$39, 1/((1+$B$100)^(A111-$B$39)),VLOOKUP(A111,Defaults!$A$134:$B$192, 2,FALSE))),"-")) -> $46,800 | D111: =IFERROR(IF(A111="","",IF(A111<=2020, C111, C111*VLOOKUP(A111,Defaults!$A$290:$B$340, 2,FALSE))),"-") -> -
A112: 2022 | B112: =435559.69/5 -> $87,112 | C112: =IF($B$99="NO",B112,IFERROR(B112*(IF(A112>$B$39, 1/((1+$B$100)^(A112-$B$39)),VLOOKUP(A112,Defaults!$A$134:$B$192, 2,FALSE))),"-")) -> $87,112 | D112: =IFERROR(IF(A112="","",IF(A112<=2020, C112, C112*VLOOKUP(A112,Defaults!$A$290:$B$340, 2,FALSE))),"-") -> $87,112
A113: 2023 | B113: =140651.85/5 -> $28,130 | C113: =IF($B$99="NO",B113,IFERROR(B113*(IF(A113>$B$39, 1/((1+$B$100)^(A113-$B$39)),VLOOKUP(A113,Defaults!$A$134:$B$192, 2,FALSE))),"-")) -> $28,130 | D113: =IFERROR(IF(A113="","",IF(A113<=2020, C113, C113*VLOOKUP(A113,Defaults!$A$290:$B$340, 2,FALSE))),"-") -> $27,285
A114: 2024 | B114: =50904.52/5 -> $10,181 | C114: =IF($B$99="NO",B114,IFERROR(B114*(IF(A114>$B$39, 1/((1+$B$100)^(A114-$B$39)),VLOOKUP(A114,Defaults!$A$134:$B$192, 2,FALSE))),"-")) -> $10,181 | D114: =IFERROR(IF(A114="","",IF(A114<=2020, C114, C114*VLOOKUP(A114,Defaults!$A$290:$B$340, 2,FALSE))),"-") -> $9,578
A115: - | B115: - | C115: =IF($B$99="NO",B115,IFERROR(B115*(IF(A115>$B$39, 1/((1+$B$100)^(A115-$B$39)),VLOOKUP(A115,Defaults!$A$134:$B$192, 2,FALSE))),"-")) -> - | D115: =IFERROR(IF(A115="","",IF(A115<=2020, C115, C115*VLOOKUP(A115,Defaults!$A$290:$B$340, 2,FALSE))),"-") -> -
A116: -
A117: Table 11. Capital Costs
A118: Year | B118: Costs | C118: Real Costs | D118: Discounted Costs
A119: =IFERROR(IF($B$33="-", "N/A", $B$33),"N/A") -> 2025 | B119: $1,520,109 | C119: =IF($B$99="NO",B119,IFERROR(B119*(IF(A119>$B$39, 1/(1+$B$100)^(A119-$B$39),VLOOKUP(A119,Defaults!$A$134:$B$192, 2,FALSE))),"-")) -> $1,520,109 | D119: =IFERROR(IF(A119="N/A","-",C119*VLOOKUP(A119,Defaults!$A$290:$B$340, 2,FALSE)),"-") -> $1,387,071
A120: =IFERROR(IF(A119="N/A","N/A",IF(A119>=$B$34,"N/A",A119+1)),"") -> 2026 | B120: $1,520,109 | C120: =IF($B$99="NO",B120,IFERROR(B120*(IF(A120>$B$39, 1/(1+$B$100)^(A120-$B$39),VLOOKUP(A120,Defaults!$A$134:$B$192, 2,FALSE))),"-")) -> $1,520,109 | D120: =IFERROR(IF(A120="N/A","-",C120*VLOOKUP(A120,Defaults!$A$290:$B$340, 2,FALSE)),"-") -> $1,345,365
A121: =IF(A120="N/A","N/A",IF(A120>=$B$34,"N/A",A120+1)) -> 2027 | B121: $1,520,109 | C121: =IF($B$99="NO",B121,IFERROR(B121*(IF(A121>$B$39, 1/(1+$B$100)^(A121-$B$39),VLOOKUP(A121,Defaults!$A$134:$B$192, 2,FALSE))),"-")) -> $1,520,109 | D121: =IFERROR(IF(A121="N/A","-",C121*VLOOKUP(A121,Defaults!$A$290:$B$340, 2,FALSE)),"-") -> $1,304,913
A122: 2028 | B122: $1,520,109 | C122: =IF($B$99="NO",B122,IFERROR(B122*(IF(A122>$B$39, 1/(1+$B$100)^(A122-$B$39),VLOOKUP(A122,Defaults!$A$134:$B$192, 2,FALSE))),"-")) -> $1,520,109 | D122: =IFERROR(IF(A122="N/A","-",C122*VLOOKUP(A122,Defaults!$A$290:$B$340, 2,FALSE)),"-") -> $1,265,677
A123: 2029 | B123: $1,520,109 | C123: =IF($B$99="NO",B123,IFERROR(B123*(IF(A123>$B$39, 1/(1+$B$100)^(A123-$B$39),VLOOKUP(A123,Defaults!$A$134:$B$192, 2,FALSE))),"-")) -> $1,520,109 | D123: =IFERROR(IF(A123="N/A","-",C123*VLOOKUP(A123,Defaults!$A$290:$B$340, 2,FALSE)),"-") -> $1,227,620
A124: N/A | B124: - | C124: =IF($B$99="NO",B124,IFERROR(B124*(IF(A124>$B$39, 1/(1+$B$100)^(A124-$B$39),VLOOKUP(A124,Defaults!$A$134:$B$192, 2,FALSE))),"-")) -> - | D124: =IFERROR(IF(A124="N/A","-",C124*VLOOKUP(A124,Defaults!$A$290:$B$340, 2,FALSE)),"-") -> -
A125: N/A | B125: - | C125: =IF($B$99="NO",B125,IFERROR(B125*(IF(A125>$B$39, 1/(1+$B$100)^(A125-$B$39),VLOOKUP(A125,Defaults!$A$134:$B$192, 2,FALSE))),"-")) -> - | D125: =IFERROR(IF(A125="N/A","-",C125*VLOOKUP(A125,Defaults!$A$290:$B$340, 2,FALSE)),"-") -> -
A126: N/A | B126: - | C126: =IF($B$99="NO",B126,IFERROR(B126*(IF(A126>$B$39, 1/(1+$B$100)^(A126-$B$39),VLOOKUP(A126,Defaults!$A$134:$B$192, 2,FALSE))),"-")) -> - | D126: =IFERROR(IF(A126="N/A","-",C126*VLOOKUP(A126,Defaults!$A$290:$B$340, 2,FALSE)),"-") -> -
A127: N/A | B127: - | C127: =IF($B$99="NO",B127,IFERROR(B127*(IF(A127>$B$39, 1/(1+$B$100)^(A127-$B$39),VLOOKUP(A127,Defaults!$A$134:$B$192, 2,FALSE))),"-")) -> - | D127: =IFERROR(IF(A127="N/A","-",C127*VLOOKUP(A127,Defaults!$A$290:$B$340, 2,FALSE)),"-") -> -
A128: N/A | B128: - | C128: =IF($B$99="NO",B128,IFERROR(B128*(IF(A128>$B$39, 1/(1+$B$100)^(A128-$B$39),VLOOKUP(A128,Defaults!$A$134:$B$192, 2,FALSE))),"-")) -> - | D128: =IFERROR(IF(A128="N/A","-",C128*VLOOKUP(A128,Defaults!$A$290:$B$340, 2,FALSE)),"-") -> -
A129: N/A | B129: - | C129: =IF($B$99="NO",B129,IFERROR(B129*(IF(A129>$B$39, 1/(1+$B$100)^(A129-$B$39),VLOOKUP(A129,Defaults!$A$134:$B$192, 2,FALSE))),"-")) -> - | D129: =IFERROR(IF(A129="N/A","-",C129*VLOOKUP(A129,Defaults!$A$290:$B$340, 2,FALSE)),"-") -> -
A130: -
A131: Table 12. Capital Cost Summary
A132: Total Capital Costs: | B132: =SUM(B105:B115)+SUM(B119:B129) -> $7,988,314
A133: Total Real Capital Costs: | B133: =SUM(C105:C115)+SUM(C119:C129) -> $7,988,314
A134: Total Discounted Capital Costs: | B134: =SUM(D105:D115)+SUM(D119:D129) -> $6,870,166
A135: -
A136: Table 13. Residual Value
A137: Share of Capital Costs | B137: Asset Life (Years) | C137: Explanation and Source
A138: 100% | B138: 75 | C138: AASHTO
A139: 0% | B139: 0 | C139: -
A140: 0% | B140: 0 | C140: -
A141: 0% | B141: 0 | C141: -
A142: =SUM(A138:A141) -> 100% | B142: Summation | C142: N/A
A143: Note: If there are multiple components of the project for this specific bridge that different asset lives, enter the share of the project costs associated with the different project components and their asset life.
A144: Note: The Summation cell should be 100%.
A145: -
A146: Operating and Maintenance Costs (O&M)
A147: Table 14. Operating and Maintenance Costs Assumptions
A148: Which method would you like to use to enter O&M costs? | B148: Manual Entry
A149: Year of O&M costs Dollars | B149: 2024
A150: Note: If you have O&M costs in the construction period you will need to use the manual entry option to enter the O&M costs in the construction period.
A151: Note: The operating and maintenance costs in the baseline should be entered to be consistent with your estimate of closure. If the bridge is closed in a future year (Table 25), there should not be maintenance costs for that year and thereafter.
A152: Note: For frequency calculation option, all costs should be entered as year of expenditure. The tool applies inflation and discounting factors automatically.
A153: -
A154: Table 15. Annual O&M Calculation Input
A155: Category | B155: Value
A156: Annual O&M Costs in the No Build Scenario | B156: -
A157: Annual O&M Costs Real Growth Rate in the No Build Scenario | B157: 0%
A158: Annual O&M Costs in the Build Scenario | B158: -
A159: Annual O&M Costs Real Growth Rate in the Build Scenario | B159: 0%
A160: Note: The maintenance real growth rate represents the real cost increases year over year (e.g., from increased deterioration of the asset). It should not include inflation adjustments.
A161: -
A162: Table 16a. Intermittent O&M Calculation Input
A163: Category | B163: Value
A164: Initial year | B164: -
A165: Last Year | B165: -
A166: Occurs every _____ Years; set to 30 if occurs only once | B166: 1
A167: Annual O&M Costs in the No Build Scenario | B167: -
A168: Annual O&M Costs Real Growth Rate in the Build Scenario | B168: -
A169: -
A170: Table 16b. Intermittent O&M Calculation Input
A171: Category | B171: Value
A172: Initial year | B172: -
A173: Last Year | B173: -
A174: Occurs every _____ Years; set to 30 if occurs only once | B174: 1
A175: Annual O&M Costs in the No Build Scenario | B175: -
A176: Annual O&M Costs Real Growth Rate in the Build Scenario | B176: -
A177: -
A178: Table 16c. Intermittent O&M Calculation Input
A179: Category | B179: Value
A180: Initial year | B180: -
A181: Last Year | B181: -
A182: Occurs every _____ Years; set to 30 if occurs only once | B182: 1
A183: Annual O&M Costs in the No Build Scenario | B183: -
A184: Annual O&M Costs Real Growth Rate in the Build Scenario | B184: -
A185: -
A186: Table 16d. Intermittent O&M Calculation Input
A187: Category | B187: Value
A188: Initial year | B188: -
A189: Last Year | B189: -
A190: Occurs every _____ Years; set to 30 if occurs only once | B190: 1
A191: Annual O&M Costs in the No Build Scenario | B191: -
A192: Annual O&M Costs Real Growth Rate in the Build Scenario | B192: -
A193: Note: The "Occurs every _____ " field in Tables 16a through 16d must be greater than or equal to 1, even if you are not adding an additional recurring maintenance cost.
A194: -
A195: Note: Manual O&M cost values should be entered in the year of dollar entered in Table 14.
A196: Table 17. Manual O&M Cost Entry
A197: Calendar Year | B197: Analysis Year | C197: No Build Annual Cost | D197: Build Annual Cost | E197: O&M Cost Difference Discounted
A198: =IFERROR(IF(B32="Required","N/A",B32),"N/A") -> 2022 | B198: =IFERROR(IF(A198=$B$35,1,IF(A198>$B$35,A198-$B$35+1,IF(A198<$B$35,A198-$B$35+1,"N/A"))),"N/A") -> -7 | C198: 0 | D198: 0 | E198: =IFERROR((C198-D198)*VLOOKUP($B$149,Defaults!$A$290:$B$340, 2,FALSE)*VLOOKUP(A198,Defaults!$A$290:$B$340,2,FALSE),0) -> 0
A199: =IF(A198="N/A","N/A",IF(A198>=$B$35+$B$36-1,"N/A",A198+1)) -> 2023 | B199: -6 | C199: 0 | D199: 0 | E199: =IFERROR((C199-D199)*VLOOKUP($B$149,Defaults!$A$290:$B$340, 2,FALSE)*VLOOKUP(A199,Defaults!$A$290:$B$340,2,FALSE),0) -> 0
A200: 2024 | B200: -5 | C200: 0 | D200: 0 | E200: =IFERROR((C200-D200)*VLOOKUP($B$149,Defaults!$A$290:$B$340, 2,FALSE)*VLOOKUP(A200,Defaults!$A$290:$B$340,2,FALSE),0) -> 0
... 495 more rows

Sheet 126.6
A1: Bridge and Project Overview
A2: ID of bridge, description of improvement, project timeline, traffic volume
A3: Add New Bridge (press Ctrl + Shift + B)
A4: Add Sensitivity Analysis for Current Bridge (press Ctrl + Shift + S)
A5: Delete this Bridge (press Ctrl + Shift + D)
A6: Note: Only delete bridges using this command/button. Deleting bridge tabs through right click will result in (fixable) errors on the Results tab.
A7: Change Bridge Name (press Ctrl + Shift + N)
A8: -
A9: Table 1. Bridge Variables
A10: Bridge Variables | B10: Bridge Values
A11: State | B11: Mississippi
A12: County | B12: Madison
A13: Structure Number | B13: 210005104512660
A14: Inventory Route | B14: =VLOOKUP($C$80,NBIData[],COLUMN(NBIData[ROUTE_NUMBER_005D]),FALSE) -> 00051
A15: Feature Intersected | B15: =VLOOKUP($C$80,NBIData[],COLUMN(NBIData[FEATURES_DESC_006A]),FALSE) -> 'CREEK'
A16: Facility Carried | B16: =VLOOKUP($C$80,NBIData[],COLUMN(NBIData[FACILITY_CARRIED_007]),FALSE) -> 'US 51'
A17: Latitude | B17: =LEFT(VLOOKUP($C$80,NBIData[],COLUMN(NBIData[LAT_016]),FALSE), 2) & CHAR(176) & " " & MID(VLOOKUP($C$80,NBIData[],COLUMN(NBIData[LAT_016]),FALSE), 3, 2) &"'" & " " & MID(VLOOKUP($C$80,NBIData[],COLUMN(NBIData[LAT_016]),FALSE), 5, 2) &"."& MID(VLOOKUP($C$80,NBIData[],COLUMN(NBIData[LAT_016]),FALSE), 7, 2) & CHAR(34) -> 32° 40' 50.54"
A18: Longitude | B18: ="-" & MID(VLOOKUP($C$80,NBIData[],COLUMN(NBIData[LONG_017]),FALSE), 2, 2) & CHAR(176) & " " & MID(VLOOKUP($C$80,NBIData[],COLUMN(NBIData[LONG_017]),FALSE), 4, 2) &"'" & " " & MID(VLOOKUP($C$80,NBIData[],COLUMN(NBIData[LONG_017]),FALSE), 6, 2) &"."& MID(VLOOKUP($C$80,NBIData[],COLUMN(NBIData[LONG_017]),FALSE), 8, 2) & CHAR(34) -> -90° 00' 18.60"
A19: Bridge Length (mi) | B19: =VLOOKUP($C$80,NBIData[],COLUMN(NBIData[STRUCTURE_LEN_MT_049]),FALSE)/1609 -> 0.01740211311
A20: Bypass, Detour Length (mi) | B20: =VLOOKUP($C$80,NBIData[],COLUMN(NBIData[DETOUR_KILOS_019]),FALSE)*0.621371 -> 19.26
A21: Owner | B21: =VLOOKUP($C$80,NBIData[],COLUMN(NBIData[OWNER_022]),FALSE) -> 01
A22: Functional Class, Rural/Urban | B22: =VLOOKUP($C$80,NBIData[],COLUMN(NBIData[FUNCTIONAL_CLASS_026]),FALSE) -> 07
A23: Bridge Road Type | B23: =VLOOKUP(B22,Defaults!A359:$D$371, 2, FALSE) -> Rural - Major Collector
A24: Year Built | B24: =VLOOKUP($C$80,NBIData[],COLUMN(NBIData[YEAR_BUILT_027]),FALSE) -> 1934
A25: Year Reconstructed | B25: =VLOOKUP($C$80,NBIData[],COLUMN(NBIData[YEAR_RECONSTRUCTED_106]),FALSE) -> 0
A26: Lanes on the Structure | B26: =VLOOKUP($C$80,NBIData[],COLUMN(NBIData[TRAFFIC_LANES_ON_028A]),FALSE) -> 2
A27: Note: Some bridges have the same structure number. Use the state and county drop downs to identify your bridge.
A28: -
A29: Project Description:
A30: Table 2. Project Timeline
A31: Timeline Variables | B31: Timeline Values
A32: Current Year | B32: 2022
A33: First Year of Construction Costs | B33: 2025
A34: Last Year of Construction Costs | B34: 2029
A35: Project Opens (Start of Benefits) | B35: 2030
A36: Years of Benefits for Analysis | B36: 30
A37: First Year of Period of Analysis | B37: =IF(B35="Required","-", B35) -> 2030
A38: Last Year of Period of Analysis | B38: =IFERROR(B35+B36-1, "-") -> 2059
A39: Discount Year | B39: =Defaults!A290 -> 2022
A40: Base Year of NBI | B40: 2023
A41: Note: The tool cannot handle partial years, or pro-rata benefits or costs. Round up or down to the nearest year for construction start, construction end, and the start of benefits.
A42: Note: Enter a value between 20 to 30 for the Years of Benefits for Analysis, appropriate to the project as defined by US DOT BCA Guidance.
A43: -
A44: Table 3. Average Annual Daily Traffic (AADT)
A45: Scenario and Vehicle Type | B45: NBI Year of AADT | C45: NBI Year of Future AADT | D45: Forecast using NBI Growth Rate | E45: Forecast using NBI Growth Rate2 | F45: Project Opens | G45: Last Year | H45: Explanation and Source
A46: Year | B46: =VLOOKUP($C$80,NBIData[],COLUMN(NBIData[YEAR_ADT_030]),FALSE) -> 2022 | C46: =VLOOKUP($C$80,NBIData[],COLUMN(NBIData[YEAR_OF_FUTURE_ADT_115]),FALSE) -> 2059 | D46: =IF(B35="Required","-",B35) -> 2030 | E46: =B38 -> 2059 | F46: =IF(B35="Required", "-",B35) -> 2030 | G46: =B38 -> 2059 | H46: N/A
A47: No Build - Passenger AADT | B47: =VLOOKUP($C$80,NBIData[],COLUMN(NBIData[ADT_029]),FALSE)*(1-VLOOKUP($C$80,NBIData[],COLUMN(NBIData[PERCENT_ADT_TRUCK_109]),FALSE)/100) -> 1748 | C47: =VLOOKUP($C$80,NBIData[],COLUMN(NBIData[FUTURE_ADT_114]),FALSE)*(1-VLOOKUP($C$80,NBIData[],COLUMN(NBIData[PERCENT_ADT_TRUCK_109]),FALSE)/100) -> 2526 | D47: =ROUND(B47*((1+B59)^(D$46-$B$46)),0) -> 1893 | E47: =ROUND(C47*((1+B59)^(E$46-$C$46)),0) -> 2526 | F47: 1932 | G47: 2526 | H47: BCA Guidance, MDOT
A48: No Build - Truck AADT | B48: =VLOOKUP($C$80,NBIData[],COLUMN(NBIData[PERCENT_ADT_TRUCK_109]),FALSE)/100*VLOOKUP($C$80,NBIData[],COLUMN(NBIData[ADT_029]),FALSE) -> 152 | C48: =VLOOKUP($C$80,NBIData[],COLUMN(NBIData[PERCENT_ADT_TRUCK_109]),FALSE)/100*VLOOKUP($C$80,NBIData[],COLUMN(NBIData[FUTURE_ADT_114]),FALSE) -> 220 | D48: =ROUND(B48*((1+B59)^(D$46-$B$46)),0) -> 165 | E48: =ROUND(C48*((1+B59)^(E$46-$C$46)),0) -> 220 | F48: 168 | G48: 220 | H48: BCA Guidance, MDOT
A49: No Build - Bus AADT | B49: N/A | C49: N/A | D49: N/A | E49: N/A | F49: 0 | G49: 0 | H49: BCA Guidance, MDOT
A50: Build - Passenger AADT | B50: =B47 -> 1748 | C50: =C47 -> 2526 | D50: =ROUND(B50*((1+B59)^(D$46-$B$46)),0) -> 1893 | E50: =ROUND(C50*((1+B59)^(E$46-$C$46)),0) -> 2526 | F50: 1932 | G50: 2526 | H50: BCA Guidance, MDOT
A51: Build - Truck AADT | B51: =B48 -> 152 | C51: =C48 -> 220 | D51: =ROUND(B51*((1+B59)^(D$46-$B$46)),0) -> 165 | E51: =ROUND(C51*((1+B59)^(E$46-$C$46)),0) -> 220 | F51: 168 | G51: 220 | H51: BCA Guidance, MDOT
A52: Build - Bus AADT | B52: N/A | C52: N/A | D52: N/A | E52: N/A | F52: 0 | G52: 0 | H52: BCA Guidance, MDOT
A53: =HYPERLINK("#A542","Note: AADT can be entered manually in Table 52 and Table 53 below.") -> Note: AADT can be entered manually in Table 52 and Table 53 below.
A54: Note: Here and elsewhere in the tool it is critical that you enter at least some value in the required cells, e.g., 0, rather than "-", "N/A" or leaving it blank.
A55: Note: NBI AADT values are added for reference in Table 3. Users must enter AADT values in Columns G, H and I in Table 3.
A56: -
A57: Note: Table 4 is not a user input. Do not adjust Table 4.
A58: Table 4. NBI's Calculated Average Annual Daily Traffic (AADT) Growth Rate
A59: =CONCATENATE("The NBI Calculated Annual Growth Rate", " ", B46, "-",C46, " (NBI)") -> The NBI Calculated Annual Growth Rate 2022-2059 (NBI) | B59: =(C47/B47)^(1/(C$46-B$46))-1 -> $0
A60: -
A61: Table 5. Detour Road Type
A62: Detour Road Type | B62: Rural - Principal Arterial - Interstate
A63: Detour Road Type - Simple | B63: =IF(B62="Required", "-",IF(ISNUMBER(SEARCH("Urban",B62)), "Urban", "Rural")) -> Rural
A64: -
A65: Note: Detour length should represent the Net detour: Detour length minus the original route length.
A66: Table 6. Detour and Bridge Length Information
A67: Detour Details | B67: Reference | C67: User Value | D67: Explanation and Source
A68: Net Detour Length, For Vehicles (mi) (NBI) | B68: =ROUND(VLOOKUP($C$80,NBIData[],COLUMN(NBIData[DETOUR_KILOS_019]),FALSE)*0.621371,1) -> 19.3 | C68: 51.7 | D68: Google
A69: Detour Average Speed, for Vehicles (mph) (FHWA VHT) | B69: =ROUND(VLOOKUP(B62,Defaults!B359:F371,2, FALSE),1) -> 66.0 | C69: 62.0 | D69: Google
A70: Net Detour Length, For Cycling/ Pedestrian (mi) (NBI) | B70: =ROUND(VLOOKUP($C$80,NBIData[],COLUMN(NBIData[DETOUR_KILOS_019]),FALSE)*0.621371, 1) -> 19.3 | C70: 51.7 | D70: Google
A71: Detour Average Travel Time (min) | B71: =B68/B69*60 -> 17.5 | C71: =C68/C69*60 -> 50.0 | D71: N/A
A72: Bridge Length (mi) | B72: =ROUND(B19,2) -> 0.02 | C72: =300/5280 -> 0.06 | D72: Google
A73: Note: Google or HPMS data are preferred for identifying average speed on the detour route. You can also use the HERS/VHT speed values using the Detour Road Type dropdown below.
A74: Note: Bridge length in the NBI does not include the approach length. Include approach length if relevant for your project.
A75: =HYPERLINK("https://www.google.com/maps", "Use Google Maps to calculate detour route length and average speed, as appropriate.") -> Use Google Maps to calculate detour route length and average speed, as appropriate.
A76: =HYPERLINK("https://www.fhwa.dot.gov/policyinformation/hpms.cfm", "Use the Highway Performance Monitoring System (HPMS) data to calculate detour route length and average speed, as appropriate.") -> Use the Highway Performance Monitoring System (HPMS) data to calculate detour route length and average speed, as appropriate.
A77: -
A78: Note: These reference cells are marked to avoid accidental deletion.
A79: Table 7. Reference Table
A80: Reference Cells | B80: =CONCATENATE(B11,B12) -> MississippiMadison | C80: =CONCATENATE(VLOOKUP($B$11,NBI_Dropdown!$B$1:$D$56,3,FALSE),$B$13) -> 284210005104512660
A81: -
A82: Table 8. Travel Assumptions
A83: Parameters | B83: Reference | C83: User Value | D83: Explanation and Source
A84: Bridge Average Speed (FHWA) | B84: =_xlfn.IFNA(VLOOKUP(B23,Defaults!B359:C371,2, FALSE), "N/A") -> 47 | C84: 47 | D84: -
A85: Average Car Occupancy | B85: =Defaults!B51 -> 1.67 | C85: 1.67 | D85: -
A86: Share of Long-Distance Personal Travel | B86: 0.0% | C86: 0% | D86: -
A87: Value of Time - Long-Distance Personal Travel | B87: =Defaults!B35 -> $25.10 | C87: $25.10 | D87: -
A88: Share of Business Travel | B88: 11.8% | C88: 11.8% | D88: -
A89: Value of Travel Time - Business | B89: =Defaults!B33 -> $32.30 | C89: $32.30 | D89: -
A90: Value of Travel Time - Personal | B90: =Defaults!B32 -> $17.90 | C90: $17.90 | D90: -
A91: Value of Travel Time - All Purposes | B91: =ROUND(B86*B87+B88*B89+(1-B86-B88)*B90,1) -> $19.60 | C91: =IFERROR(ROUND(C86*C87+C88*C89+(1-C86-C88)*C90,1),"-") -> $19.60 | D91: -
A92: Walking, Cycling, Waiting, Standing, and Transfer Time | B92: =Defaults!B36 -> $35.80 | C92: $35.80 | D92: -
A93: Truck Driver | B93: =Defaults!B39 -> $33.50 | C93: $33.50 | D93: -
A94: Bus Driver | B94: =Defaults!B40 -> $36.50 | C94: $36.50 | D94: -
A95: Average Bus Occupancy | B95: 0 | C95: 0 | D95: -
A96: -
A97: Capital Cost and Residual Value
A98: Table 9. Expenditure Dollars Option
A99: Are costs entered in year of expenditure dollars (not adjusted for inflation)? | B99: NO
A100: Enter future inflation rate for capital costs. | B100: 0%
A101: Note: Capital costs can be entered in year of expenditure dollars or in real dollars. The tool applies inflation and discounting factors automatically if entered as year of expenditure dollars.
A102: -
A103: Table 10. Already Incurred Costs
A104: Year | B104: Costs | C104: Real Costs | D104: Discounted Costs
A105: 2015 | B105: =101804.01/5 -> $20,361 | C105: =IF($B$99="NO",B105,IFERROR(B105*(IF(A105>$B$39, 1/((1+$B$100)^(A105-$B$39)),VLOOKUP(A105,Defaults!$A$134:$B$192, 2,FALSE))),"-")) -> $20,361 | D105: =IFERROR(IF(A105="","",IF(A105<=2020, C105, C105*VLOOKUP(A105,Defaults!$A$290:$B$340, 2,FALSE))),"-") -> $20,361
A106: 2016 | B106: =344006.89/5 -> $68,801 | C106: =IF($B$99="NO",B106,IFERROR(B106*(IF(A106>$B$39, 1/((1+$B$100)^(A106-$B$39)),VLOOKUP(A106,Defaults!$A$134:$B$192, 2,FALSE))),"-")) -> $68,801 | D106: =IFERROR(IF(A106="","",IF(A106<=2020, C106, C106*VLOOKUP(A106,Defaults!$A$290:$B$340, 2,FALSE))),"-") -> $68,801
A107: 2017 | B107: =246752.04/5 -> $49,350 | C107: =IF($B$99="NO",B107,IFERROR(B107*(IF(A107>$B$39, 1/((1+$B$100)^(A107-$B$39)),VLOOKUP(A107,Defaults!$A$134:$B$192, 2,FALSE))),"-")) -> $49,350 | D107: =IFERROR(IF(A107="","",IF(A107<=2020, C107, C107*VLOOKUP(A107,Defaults!$A$290:$B$340, 2,FALSE))),"-") -> $49,350
A108: 2018 | B108: =151861.34/5 -> $30,372 | C108: =IF($B$99="NO",B108,IFERROR(B108*(IF(A108>$B$39, 1/((1+$B$100)^(A108-$B$39)),VLOOKUP(A108,Defaults!$A$134:$B$192, 2,FALSE))),"-")) -> $30,372 | D108: =IFERROR(IF(A108="","",IF(A108<=2020, C108, C108*VLOOKUP(A108,Defaults!$A$290:$B$340, 2,FALSE))),"-") -> $30,372
A109: 2019 | B109: =198964.79/5 -> $39,793 | C109: =IF($B$99="NO",B109,IFERROR(B109*(IF(A109>$B$39, 1/((1+$B$100)^(A109-$B$39)),VLOOKUP(A109,Defaults!$A$134:$B$192, 2,FALSE))),"-")) -> $39,793 | D109: =IFERROR(IF(A109="","",IF(A109<=2020, C109, C109*VLOOKUP(A109,Defaults!$A$290:$B$340, 2,FALSE))),"-") -> $39,793
A110: 2020 | B110: =34341.94/5 -> $6,868 | C110: =IF($B$99="NO",B110,IFERROR(B110*(IF(A110>$B$39, 1/((1+$B$100)^(A110-$B$39)),VLOOKUP(A110,Defaults!$A$134:$B$192, 2,FALSE))),"-")) -> $6,868 | D110: =IFERROR(IF(A110="","",IF(A110<=2020, C110, C110*VLOOKUP(A110,Defaults!$A$290:$B$340, 2,FALSE))),"-") -> $6,868
A111: 2021 | B111: =233999.67/5 -> $46,800 | C111: =IF($B$99="NO",B111,IFERROR(B111*(IF(A111>$B$39, 1/((1+$B$100)^(A111-$B$39)),VLOOKUP(A111,Defaults!$A$134:$B$192, 2,FALSE))),"-")) -> $46,800 | D111: =IFERROR(IF(A111="","",IF(A111<=2020, C111, C111*VLOOKUP(A111,Defaults!$A$290:$B$340, 2,FALSE))),"-") -> -
A112: 2022 | B112: =435559.69/5 -> $87,112 | C112: =IF($B$99="NO",B112,IFERROR(B112*(IF(A112>$B$39, 1/((1+$B$100)^(A112-$B$39)),VLOOKUP(A112,Defaults!$A$134:$B$192, 2,FALSE))),"-")) -> $87,112 | D112: =IFERROR(IF(A112="","",IF(A112<=2020, C112, C112*VLOOKUP(A112,Defaults!$A$290:$B$340, 2,FALSE))),"-") -> $87,112
A113: 2023 | B113: =140651.85/5 -> $28,130 | C113: =IF($B$99="NO",B113,IFERROR(B113*(IF(A113>$B$39, 1/((1+$B$100)^(A113-$B$39)),VLOOKUP(A113,Defaults!$A$134:$B$192, 2,FALSE))),"-")) -> $28,130 | D113: =IFERROR(IF(A113="","",IF(A113<=2020, C113, C113*VLOOKUP(A113,Defaults!$A$290:$B$340, 2,FALSE))),"-") -> $27,285
A114: 2024 | B114: =50904.52/5 -> $10,181 | C114: =IF($B$99="NO",B114,IFERROR(B114*(IF(A114>$B$39, 1/((1+$B$100)^(A114-$B$39)),VLOOKUP(A114,Defaults!$A$134:$B$192, 2,FALSE))),"-")) -> $10,181 | D114: =IFERROR(IF(A114="","",IF(A114<=2020, C114, C114*VLOOKUP(A114,Defaults!$A$290:$B$340, 2,FALSE))),"-") -> $9,578
A115: - | B115: - | C115: =IF($B$99="NO",B115,IFERROR(B115*(IF(A115>$B$39, 1/((1+$B$100)^(A115-$B$39)),VLOOKUP(A115,Defaults!$A$134:$B$192, 2,FALSE))),"-")) -> - | D115: =IFERROR(IF(A115="","",IF(A115<=2020, C115, C115*VLOOKUP(A115,Defaults!$A$290:$B$340, 2,FALSE))),"-") -> -
A116: -
A117: Table 11. Capital Costs
A118: Year | B118: Costs | C118: Real Costs | D118: Discounted Costs
A119: =IFERROR(IF($B$33="-", "N/A", $B$33),"N/A") -> 2025 | B119: $960,892 | C119: =IF($B$99="NO",B119,IFERROR(B119*(IF(A119>$B$39, 1/(1+$B$100)^(A119-$B$39),VLOOKUP(A119,Defaults!$A$134:$B$192, 2,FALSE))),"-")) -> $960,892 | D119: =IFERROR(IF(A119="N/A","-",C119*VLOOKUP(A119,Defaults!$A$290:$B$340, 2,FALSE)),"-") -> $876,796
A120: =IFERROR(IF(A119="N/A","N/A",IF(A119>=$B$34,"N/A",A119+1)),"") -> 2026 | B120: $960,892 | C120: =IF($B$99="NO",B120,IFERROR(B120*(IF(A120>$B$39, 1/(1+$B$100)^(A120-$B$39),VLOOKUP(A120,Defaults!$A$134:$B$192, 2,FALSE))),"-")) -> $960,892 | D120: =IFERROR(IF(A120="N/A","-",C120*VLOOKUP(A120,Defaults!$A$290:$B$340, 2,FALSE)),"-") -> $850,432
A121: =IF(A120="N/A","N/A",IF(A120>=$B$34,"N/A",A120+1)) -> 2027 | B121: $960,892 | C121: =IF($B$99="NO",B121,IFERROR(B121*(IF(A121>$B$39, 1/(1+$B$100)^(A121-$B$39),VLOOKUP(A121,Defaults!$A$134:$B$192, 2,FALSE))),"-")) -> $960,892 | D121: =IFERROR(IF(A121="N/A","-",C121*VLOOKUP(A121,Defaults!$A$290:$B$340, 2,FALSE)),"-") -> $824,862
A122: 2028 | B122: $960,892 | C122: =IF($B$99="NO",B122,IFERROR(B122*(IF(A122>$B$39, 1/(1+$B$100)^(A122-$B$39),VLOOKUP(A122,Defaults!$A$134:$B$192, 2,FALSE))),"-")) -> $960,892 | D122: =IFERROR(IF(A122="N/A","-",C122*VLOOKUP(A122,Defaults!$A$290:$B$340, 2,FALSE)),"-") -> $800,060
A123: 2029 | B123: $960,892 | C123: =IF($B$99="NO",B123,IFERROR(B123*(IF(A123>$B$39, 1/(1+$B$100)^(A123-$B$39),VLOOKUP(A123,Defaults!$A$134:$B$192, 2,FALSE))),"-")) -> $960,892 | D123: =IFERROR(IF(A123="N/A","-",C123*VLOOKUP(A123,Defaults!$A$290:$B$340, 2,FALSE)),"-") -> $776,004
A124: N/A | B124: - | C124: =IF($B$99="NO",B124,IFERROR(B124*(IF(A124>$B$39, 1/(1+$B$100)^(A124-$B$39),VLOOKUP(A124,Defaults!$A$134:$B$192, 2,FALSE))),"-")) -> - | D124: =IFERROR(IF(A124="N/A","-",C124*VLOOKUP(A124,Defaults!$A$290:$B$340, 2,FALSE)),"-") -> -
A125: N/A | B125: - | C125: =IF($B$99="NO",B125,IFERROR(B125*(IF(A125>$B$39, 1/(1+$B$100)^(A125-$B$39),VLOOKUP(A125,Defaults!$A$134:$B$192, 2,FALSE))),"-")) -> - | D125: =IFERROR(IF(A125="N/A","-",C125*VLOOKUP(A125,Defaults!$A$290:$B$340, 2,FALSE)),"-") -> -
A126: N/A | B126: - | C126: =IF($B$99="NO",B126,IFERROR(B126*(IF(A126>$B$39, 1/(1+$B$100)^(A126-$B$39),VLOOKUP(A126,Defaults!$A$134:$B$192, 2,FALSE))),"-")) -> - | D126: =IFERROR(IF(A126="N/A","-",C126*VLOOKUP(A126,Defaults!$A$290:$B$340, 2,FALSE)),"-") -> -
A127: N/A | B127: - | C127: =IF($B$99="NO",B127,IFERROR(B127*(IF(A127>$B$39, 1/(1+$B$100)^(A127-$B$39),VLOOKUP(A127,Defaults!$A$134:$B$192, 2,FALSE))),"-")) -> - | D127: =IFERROR(IF(A127="N/A","-",C127*VLOOKUP(A127,Defaults!$A$290:$B$340, 2,FALSE)),"-") -> -
A128: N/A | B128: - | C128: =IF($B$99="NO",B128,IFERROR(B128*(IF(A128>$B$39, 1/(1+$B$100)^(A128-$B$39),VLOOKUP(A128,Defaults!$A$134:$B$192, 2,FALSE))),"-")) -> - | D128: =IFERROR(IF(A128="N/A","-",C128*VLOOKUP(A128,Defaults!$A$290:$B$340, 2,FALSE)),"-") -> -
A129: N/A | B129: - | C129: =IF($B$99="NO",B129,IFERROR(B129*(IF(A129>$B$39, 1/(1+$B$100)^(A129-$B$39),VLOOKUP(A129,Defaults!$A$134:$B$192, 2,FALSE))),"-")) -> - | D129: =IFERROR(IF(A129="N/A","-",C129*VLOOKUP(A129,Defaults!$A$290:$B$340, 2,FALSE)),"-") -> -
A130: -
A131: Table 12. Capital Cost Summary
A132: Total Capital Costs: | B132: =SUM(B105:B115)+SUM(B119:B129) -> $5,192,228
A133: Total Real Capital Costs: | B133: =SUM(C105:C115)+SUM(C119:C129) -> $5,192,228
A134: Total Discounted Capital Costs: | B134: =SUM(D105:D115)+SUM(D119:D129) -> $4,467,674
A135: -
A136: Table 13. Residual Value
A137: Share of Capital Costs | B137: Asset Life (Years) | C137: Explanation and Source
A138: 100% | B138: 75 | C138: AASHTO
A139: 0% | B139: 0 | C139: -
A140: 0% | B140: 0 | C140: -
A141: 0% | B141: 0 | C141: -
A142: =SUM(A138:A141) -> 100% | B142: Summation | C142: N/A
A143: Note: If there are multiple components of the project for this specific bridge that different asset lives, enter the share of the project costs associated with the different project components and their asset life.
A144: Note: The Summation cell should be 100%.
A145: -
A146: Operating and Maintenance Costs (O&M)
A147: Table 14. Operating and Maintenance Costs Assumptions
A148: Which method would you like to use to enter O&M costs? | B148: Manual Entry
A149: Year of O&M costs Dollars | B149: 2024
A150: Note: If you have O&M costs in the construction period you will need to use the manual entry option to enter the O&M costs in the construction period.
A151: Note: The operating and maintenance costs in the baseline should be entered to be consistent with your estimate of closure. If the bridge is closed in a future year (Table 25), there should not be maintenance costs for that year and thereafter.
A152: Note: For frequency calculation option, all costs should be entered as year of expenditure. The tool applies inflation and discounting factors automatically.
A153: -
A154: Table 15. Annual O&M Calculation Input
A155: Category | B155: Value
A156: Annual O&M Costs in the No Build Scenario | B156: -
A157: Annual O&M Costs Real Growth Rate in the No Build Scenario | B157: 0%
A158: Annual O&M Costs in the Build Scenario | B158: -
A159: Annual O&M Costs Real Growth Rate in the Build Scenario | B159: 0%
A160: Note: The maintenance real growth rate represents the real cost increases year over year (e.g., from increased deterioration of the asset). It should not include inflation adjustments.
A161: -
A162: Table 16a. Intermittent O&M Calculation Input
A163: Category | B163: Value
A164: Initial year | B164: -
A165: Last Year | B165: -
A166: Occurs every _____ Years; set to 30 if occurs only once | B166: 1
A167: Annual O&M Costs in the No Build Scenario | B167: -
A168: Annual O&M Costs Real Growth Rate in the Build Scenario | B168: -
A169: -
A170: Table 16b. Intermittent O&M Calculation Input
A171: Category | B171: Value
A172: Initial year | B172: -
A173: Last Year | B173: -
A174: Occurs every _____ Years; set to 30 if occurs only once | B174: 1
A175: Annual O&M Costs in the No Build Scenario | B175: -
A176: Annual O&M Costs Real Growth Rate in the Build Scenario | B176: -
A177: -
A178: Table 16c. Intermittent O&M Calculation Input
A179: Category | B179: Value
A180: Initial year | B180: -
A181: Last Year | B181: -
A182: Occurs every _____ Years; set to 30 if occurs only once | B182: 1
A183: Annual O&M Costs in the No Build Scenario | B183: -
A184: Annual O&M Costs Real Growth Rate in the Build Scenario | B184: -
A185: -
A186: Table 16d. Intermittent O&M Calculation Input
A187: Category | B187: Value
A188: Initial year | B188: -
A189: Last Year | B189: -
A190: Occurs every _____ Years; set to 30 if occurs only once | B190: 1
A191: Annual O&M Costs in the No Build Scenario | B191: -
A192: Annual O&M Costs Real Growth Rate in the Build Scenario | B192: -
A193: Note: The "Occurs every _____ " field in Tables 16a through 16d must be greater than or equal to 1, even if you are not adding an additional recurring maintenance cost.
A194: -
A195: Note: Manual O&M cost values should be entered in the year of dollar entered in Table 14.
A196: Table 17. Manual O&M Cost Entry
A197: Calendar Year | B197: Analysis Year | C197: No Build Annual Cost | D197: Build Annual Cost | E197: O&M Cost Difference Discounted
A198: =IFERROR(IF(B32="Required","N/A",B32),"N/A") -> 2022 | B198: =IFERROR(IF(A198=$B$35,1,IF(A198>$B$35,A198-$B$35+1,IF(A198<$B$35,A198-$B$35+1,"N/A"))),"N/A") -> -7 | C198: 0 | D198: 0 | E198: =IFERROR((C198-D198)*VLOOKUP($B$149,Defaults!$A$290:$B$340, 2,FALSE)*VLOOKUP(A198,Defaults!$A$290:$B$340,2,FALSE),0) -> 0
A199: =IF(A198="N/A","N/A",IF(A198>=$B$35+$B$36-1,"N/A",A198+1)) -> 2023 | B199: -6 | C199: 0 | D199: 0 | E199: =IFERROR((C199-D199)*VLOOKUP($B$149,Defaults!$A$290:$B$340, 2,FALSE)*VLOOKUP(A199,Defaults!$A$290:$B$340,2,FALSE),0) -> 0
A200: 2024 | B200: -5 | C200: 0 | D200: 0 | E200: =IFERROR((C200-D200)*VLOOKUP($B$149,Defaults!$A$290:$B$340, 2,FALSE)*VLOOKUP(A200,Defaults!$A$290:$B$340,2,FALSE),0) -> 0
... 495 more rows

Sheet 130.0
A1: Bridge and Project Overview
A2: ID of bridge, description of improvement, project timeline, traffic volume
A3: Add New Bridge (press Ctrl + Shift + B)
A4: Add Sensitivity Analysis for Current Bridge (press Ctrl + Shift + S)
A5: Delete this Bridge (press Ctrl + Shift + D)
A6: Note: Only delete bridges using this command/button. Deleting bridge tabs through right click will result in (fixable) errors on the Results tab.
A7: Change Bridge Name (press Ctrl + Shift + N)
A8: -
A9: Table 1. Bridge Variables
A10: Bridge Variables | B10: Bridge Values
A11: State | B11: Mississippi
A12: County | B12: Madison
A13: Structure Number | B13: 210005104513000
A14: Inventory Route | B14: =VLOOKUP($C$80,NBIData[],COLUMN(NBIData[ROUTE_NUMBER_005D]),FALSE) -> 00051
A15: Feature Intersected | B15: =VLOOKUP($C$80,NBIData[],COLUMN(NBIData[FEATURES_DESC_006A]),FALSE) -> 'RELIEF'
A16: Facility Carried | B16: =VLOOKUP($C$80,NBIData[],COLUMN(NBIData[FACILITY_CARRIED_007]),FALSE) -> 'US 51'
A17: Latitude | B17: =LEFT(VLOOKUP($C$80,NBIData[],COLUMN(NBIData[LAT_016]),FALSE), 2) & CHAR(176) & " " & MID(VLOOKUP($C$80,NBIData[],COLUMN(NBIData[LAT_016]),FALSE), 3, 2) &"'" & " " & MID(VLOOKUP($C$80,NBIData[],COLUMN(NBIData[LAT_016]),FALSE), 5, 2) &"."& MID(VLOOKUP($C$80,NBIData[],COLUMN(NBIData[LAT_016]),FALSE), 7, 2) & CHAR(34) -> 32° 43' 46.76"
A18: Longitude | B18: ="-" & MID(VLOOKUP($C$80,NBIData[],COLUMN(NBIData[LONG_017]),FALSE), 2, 2) & CHAR(176) & " " & MID(VLOOKUP($C$80,NBIData[],COLUMN(NBIData[LONG_017]),FALSE), 4, 2) &"'" & " " & MID(VLOOKUP($C$80,NBIData[],COLUMN(NBIData[LONG_017]),FALSE), 6, 2) &"."& MID(VLOOKUP($C$80,NBIData[],COLUMN(NBIData[LONG_017]),FALSE), 8, 2) & CHAR(34) -> -89° 59' 37.60"
A19: Bridge Length (mi) | B19: =VLOOKUP($C$80,NBIData[],COLUMN(NBIData[STRUCTURE_LEN_MT_049]),FALSE)/1609 -> 0.04319453076
A20: Bypass, Detour Length (mi) | B20: =VLOOKUP($C$80,NBIData[],COLUMN(NBIData[DETOUR_KILOS_019]),FALSE)*0.621371 -> 19.26
A21: Owner | B21: =VLOOKUP($C$80,NBIData[],COLUMN(NBIData[OWNER_022]),FALSE) -> 01
A22: Functional Class, Rural/Urban | B22: =VLOOKUP($C$80,NBIData[],COLUMN(NBIData[FUNCTIONAL_CLASS_026]),FALSE) -> 07
A23: Bridge Road Type | B23: =VLOOKUP(B22,Defaults!A359:$D$371, 2, FALSE) -> Rural - Major Collector
A24: Year Built | B24: =VLOOKUP($C$80,NBIData[],COLUMN(NBIData[YEAR_BUILT_027]),FALSE) -> 1934
A25: Year Reconstructed | B25: =VLOOKUP($C$80,NBIData[],COLUMN(NBIData[YEAR_RECONSTRUCTED_106]),FALSE) -> 0
A26: Lanes on the Structure | B26: =VLOOKUP($C$80,NBIData[],COLUMN(NBIData[TRAFFIC_LANES_ON_028A]),FALSE) -> 2
A27: Note: Some bridges have the same structure number. Use the state and county drop downs to identify your bridge.
A28: -
A29: Project Description:
A30: Table 2. Project Timeline
A31: Timeline Variables | B31: Timeline Values
A32: Current Year | B32: 2022
A33: First Year of Construction Costs | B33: 2025
A34: Last Year of Construction Costs | B34: 2029
A35: Project Opens (Start of Benefits) | B35: 2030
A36: Years of Benefits for Analysis | B36: 30
A37: First Year of Period of Analysis | B37: =IF(B35="Required","-", B35) -> 2030
A38: Last Year of Period of Analysis | B38: =IFERROR(B35+B36-1, "-") -> 2059
A39: Discount Year | B39: =Defaults!A290 -> 2022
A40: Base Year of NBI | B40: 2023
A41: Note: The tool cannot handle partial years, or pro-rata benefits or costs. Round up or down to the nearest year for construction start, construction end, and the start of benefits.
A42: Note: Enter a value between 20 to 30 for the Years of Benefits for Analysis, appropriate to the project as defined by US DOT BCA Guidance.
A43: -
A44: Table 3. Average Annual Daily Traffic (AADT)
A45: Scenario and Vehicle Type | B45: NBI Year of AADT | C45: NBI Year of Future AADT | D45: Forecast using NBI Growth Rate | E45: Forecast using NBI Growth Rate2 | F45: Project Opens | G45: Last Year | H45: Explanation and Source
A46: Year | B46: =VLOOKUP($C$80,NBIData[],COLUMN(NBIData[YEAR_ADT_030]),FALSE) -> 2002 | C46: =VLOOKUP($C$80,NBIData[],COLUMN(NBIData[YEAR_OF_FUTURE_ADT_115]),FALSE) -> 2059 | D46: =IF(B35="Required","-",B35) -> 2030 | E46: =B38 -> 2059 | F46: =IF(B35="Required", "-",B35) -> 2030 | G46: =B38 -> 2059 | H46: N/A
A47: No Build - Passenger AADT | B47: =VLOOKUP($C$80,NBIData[],COLUMN(NBIData[ADT_029]),FALSE)*(1-VLOOKUP($C$80,NBIData[],COLUMN(NBIData[PERCENT_ADT_TRUCK_109]),FALSE)/100) -> 1748 | C47: =VLOOKUP($C$80,NBIData[],COLUMN(NBIData[FUTURE_ADT_114]),FALSE)*(1-VLOOKUP($C$80,NBIData[],COLUMN(NBIData[PERCENT_ADT_TRUCK_109]),FALSE)/100) -> 2526 | D47: =ROUND(B47*((1+B59)^(D$46-$B$46)),0) -> 2095 | E47: =ROUND(C47*((1+B59)^(E$46-$C$46)),0) -> 2526 | F47: 1932 | G47: 2526 | H47: BCA Guidance, MDOT
A48: No Build - Truck AADT | B48: =VLOOKUP($C$80,NBIData[],COLUMN(NBIData[PERCENT_ADT_TRUCK_109]),FALSE)/100*VLOOKUP($C$80,NBIData[],COLUMN(NBIData[ADT_029]),FALSE) -> 152 | C48: =VLOOKUP($C$80,NBIData[],COLUMN(NBIData[PERCENT_ADT_TRUCK_109]),FALSE)/100*VLOOKUP($C$80,NBIData[],COLUMN(NBIData[FUTURE_ADT_114]),FALSE) -> 220 | D48: =ROUND(B48*((1+B59)^(D$46-$B$46)),0) -> 182 | E48: =ROUND(C48*((1+B59)^(E$46-$C$46)),0) -> 220 | F48: 168 | G48: 220 | H48: BCA Guidance, MDOT
A49: No Build - Bus AADT | B49: N/A | C49: N/A | D49: N/A | E49: N/A | F49: 0 | G49: 0 | H49: BCA Guidance, MDOT
A50: Build - Passenger AADT | B50: =B47 -> 1748 | C50: =C47 -> 2526 | D50: =ROUND(B50*((1+B59)^(D$46-$B$46)),0) -> 2095 | E50: =ROUND(C50*((1+B59)^(E$46-$C$46)),0) -> 2526 | F50: 1932 | G50: 2526 | H50: BCA Guidance, MDOT
A51: Build - Truck AADT | B51: =B48 -> 152 | C51: =C48 -> 220 | D51: =ROUND(B51*((1+B59)^(D$46-$B$46)),0) -> 182 | E51: =ROUND(C51*((1+B59)^(E$46-$C$46)),0) -> 220 | F51: 168 | G51: 220 | H51: BCA Guidance, MDOT
A52: Build - Bus AADT | B52: N/A | C52: N/A | D52: N/A | E52: N/A | F52: 0 | G52: 0 | H52: BCA Guidance, MDOT
A53: =HYPERLINK("#A542","Note: AADT can be entered manually in Table 52 and Table 53 below.") -> Note: AADT can be entered manually in Table 52 and Table 53 below.
A54: Note: Here and elsewhere in the tool it is critical that you enter at least some value in the required cells, e.g., 0, rather than "-", "N/A" or leaving it blank.
A55: Note: NBI AADT values are added for reference in Table 3. Users must enter AADT values in Columns G, H and I in Table 3.
A56: -
A57: Note: Table 4 is not a user input. Do not adjust Table 4.
A58: Table 4. NBI's Calculated Average Annual Daily Traffic (AADT) Growth Rate
A59: =CONCATENATE("The NBI Calculated Annual Growth Rate", " ", B46, "-",C46, " (NBI)") -> The NBI Calculated Annual Growth Rate 2002-2059 (NBI) | B59: =(C47/B47)^(1/(C$46-B$46))-1 -> $0
A60: -
A61: Table 5. Detour Road Type
A62: Detour Road Type | B62: Rural - Principal Arterial - Interstate
A63: Detour Road Type - Simple | B63: =IF(B62="Required", "-",IF(ISNUMBER(SEARCH("Urban",B62)), "Urban", "Rural")) -> Rural
A64: -
A65: Note: Detour length should represent the Net detour: Detour length minus the original route length.
A66: Table 6. Detour and Bridge Length Information
A67: Detour Details | B67: Reference | C67: User Value | D67: Explanation and Source
A68: Net Detour Length, For Vehicles (mi) (NBI) | B68: =ROUND(VLOOKUP($C$80,NBIData[],COLUMN(NBIData[DETOUR_KILOS_019]),FALSE)*0.621371,1) -> 19.3 | C68: 51.7 | D68: Google
A69: Detour Average Speed, for Vehicles (mph) (FHWA VHT) | B69: =ROUND(VLOOKUP(B62,Defaults!B359:F371,2, FALSE),1) -> 66.0 | C69: 62.0 | D69: Google
A70: Net Detour Length, For Cycling/ Pedestrian (mi) (NBI) | B70: =ROUND(VLOOKUP($C$80,NBIData[],COLUMN(NBIData[DETOUR_KILOS_019]),FALSE)*0.621371, 1) -> 19.3 | C70: 51.7 | D70: Google
A71: Detour Average Travel Time (min) | B71: =B68/B69*60 -> 17.5 | C71: =C68/C69*60 -> 50.0 | D71: N/A
A72: Bridge Length (mi) | B72: =ROUND(B19,2) -> 0.04 | C72: =1020/5280 -> 0.19 | D72: Google
A73: Note: Google or HPMS data are preferred for identifying average speed on the detour route. You can also use the HERS/VHT speed values using the Detour Road Type dropdown below.
A74: Note: Bridge length in the NBI does not include the approach length. Include approach length if relevant for your project.
A75: =HYPERLINK("https://www.google.com/maps", "Use Google Maps to calculate detour route length and average speed, as appropriate.") -> Use Google Maps to calculate detour route length and average speed, as appropriate.
A76: =HYPERLINK("https://www.fhwa.dot.gov/policyinformation/hpms.cfm", "Use the Highway Performance Monitoring System (HPMS) data to calculate detour route length and average speed, as appropriate.") -> Use the Highway Performance Monitoring System (HPMS) data to calculate detour route length and average speed, as appropriate.
A77: -
A78: Note: These reference cells are marked to avoid accidental deletion.
A79: Table 7. Reference Table
A80: Reference Cells | B80: =CONCATENATE(B11,B12) -> MississippiMadison | C80: =CONCATENATE(VLOOKUP($B$11,NBI_Dropdown!$B$1:$D$56,3,FALSE),$B$13) -> 284210005104513000
A81: -
A82: Table 8. Travel Assumptions
A83: Parameters | B83: Reference | C83: User Value | D83: Explanation and Source
A84: Bridge Average Speed (FHWA) | B84: =_xlfn.IFNA(VLOOKUP(B23,Defaults!B359:C371,2, FALSE), "N/A") -> 47 | C84: 47 | D84: -
A85: Average Car Occupancy | B85: =Defaults!B51 -> 1.67 | C85: 1.67 | D85: -
A86: Share of Long-Distance Personal Travel | B86: 0.0% | C86: 0% | D86: -
A87: Value of Time - Long-Distance Personal Travel | B87: =Defaults!B35 -> $25.10 | C87: $25.10 | D87: -
A88: Share of Business Travel | B88: 11.8% | C88: 11.8% | D88: -
A89: Value of Travel Time - Business | B89: =Defaults!B33 -> $32.30 | C89: $32.30 | D89: -
A90: Value of Travel Time - Personal | B90: =Defaults!B32 -> $17.90 | C90: $17.90 | D90: -
A91: Value of Travel Time - All Purposes | B91: =ROUND(B86*B87+B88*B89+(1-B86-B88)*B90,1) -> $19.60 | C91: =IFERROR(ROUND(C86*C87+C88*C89+(1-C86-C88)*C90,1),"-") -> $19.60 | D91: -
A92: Walking, Cycling, Waiting, Standing, and Transfer Time | B92: =Defaults!B36 -> $35.80 | C92: $35.80 | D92: -
A93: Truck Driver | B93: =Defaults!B39 -> $33.50 | C93: $33.50 | D93: -
A94: Bus Driver | B94: =Defaults!B40 -> $36.50 | C94: $36.50 | D94: -
A95: Average Bus Occupancy | B95: 0 | C95: 0 | D95: -
A96: -
A97: Capital Cost and Residual Value
A98: Table 9. Expenditure Dollars Option
A99: Are costs entered in year of expenditure dollars (not adjusted for inflation)? | B99: NO
A100: Enter future inflation rate for capital costs. | B100: 0%
A101: Note: Capital costs can be entered in year of expenditure dollars or in real dollars. The tool applies inflation and discounting factors automatically if entered as year of expenditure dollars.
A102: -
A103: Table 10. Already Incurred Costs
A104: Year | B104: Costs | C104: Real Costs | D104: Discounted Costs
A105: 2015 | B105: =101804.01/5 -> $20,361 | C105: =IF($B$99="NO",B105,IFERROR(B105*(IF(A105>$B$39, 1/((1+$B$100)^(A105-$B$39)),VLOOKUP(A105,Defaults!$A$134:$B$192, 2,FALSE))),"-")) -> $20,361 | D105: =IFERROR(IF(A105="","",IF(A105<=2020, C105, C105*VLOOKUP(A105,Defaults!$A$290:$B$340, 2,FALSE))),"-") -> $20,361
A106: 2016 | B106: =344006.89/5 -> $68,801 | C106: =IF($B$99="NO",B106,IFERROR(B106*(IF(A106>$B$39, 1/((1+$B$100)^(A106-$B$39)),VLOOKUP(A106,Defaults!$A$134:$B$192, 2,FALSE))),"-")) -> $68,801 | D106: =IFERROR(IF(A106="","",IF(A106<=2020, C106, C106*VLOOKUP(A106,Defaults!$A$290:$B$340, 2,FALSE))),"-") -> $68,801
A107: 2017 | B107: =246752.04/5 -> $49,350 | C107: =IF($B$99="NO",B107,IFERROR(B107*(IF(A107>$B$39, 1/((1+$B$100)^(A107-$B$39)),VLOOKUP(A107,Defaults!$A$134:$B$192, 2,FALSE))),"-")) -> $49,350 | D107: =IFERROR(IF(A107="","",IF(A107<=2020, C107, C107*VLOOKUP(A107,Defaults!$A$290:$B$340, 2,FALSE))),"-") -> $49,350
A108: 2018 | B108: =151861.34/5 -> $30,372 | C108: =IF($B$99="NO",B108,IFERROR(B108*(IF(A108>$B$39, 1/((1+$B$100)^(A108-$B$39)),VLOOKUP(A108,Defaults!$A$134:$B$192, 2,FALSE))),"-")) -> $30,372 | D108: =IFERROR(IF(A108="","",IF(A108<=2020, C108, C108*VLOOKUP(A108,Defaults!$A$290:$B$340, 2,FALSE))),"-") -> $30,372
A109: 2019 | B109: =198964.79/5 -> $39,793 | C109: =IF($B$99="NO",B109,IFERROR(B109*(IF(A109>$B$39, 1/((1+$B$100)^(A109-$B$39)),VLOOKUP(A109,Defaults!$A$134:$B$192, 2,FALSE))),"-")) -> $39,793 | D109: =IFERROR(IF(A109="","",IF(A109<=2020, C109, C109*VLOOKUP(A109,Defaults!$A$290:$B$340, 2,FALSE))),"-") -> $39,793
A110: 2020 | B110: =34341.94/5 -> $6,868 | C110: =IF($B$99="NO",B110,IFERROR(B110*(IF(A110>$B$39, 1/((1+$B$100)^(A110-$B$39)),VLOOKUP(A110,Defaults!$A$134:$B$192, 2,FALSE))),"-")) -> $6,868 | D110: =IFERROR(IF(A110="","",IF(A110<=2020, C110, C110*VLOOKUP(A110,Defaults!$A$290:$B$340, 2,FALSE))),"-") -> $6,868
A111: 2021 | B111: =233999.67/5 -> $46,800 | C111: =IF($B$99="NO",B111,IFERROR(B111*(IF(A111>$B$39, 1/((1+$B$100)^(A111-$B$39)),VLOOKUP(A111,Defaults!$A$134:$B$192, 2,FALSE))),"-")) -> $46,800 | D111: =IFERROR(IF(A111="","",IF(A111<=2020, C111, C111*VLOOKUP(A111,Defaults!$A$290:$B$340, 2,FALSE))),"-") -> -
A112: 2022 | B112: =435559.69/5 -> $87,112 | C112: =IF($B$99="NO",B112,IFERROR(B112*(IF(A112>$B$39, 1/((1+$B$100)^(A112-$B$39)),VLOOKUP(A112,Defaults!$A$134:$B$192, 2,FALSE))),"-")) -> $87,112 | D112: =IFERROR(IF(A112="","",IF(A112<=2020, C112, C112*VLOOKUP(A112,Defaults!$A$290:$B$340, 2,FALSE))),"-") -> $87,112
A113: 2023 | B113: =140651.85/5 -> $28,130 | C113: =IF($B$99="NO",B113,IFERROR(B113*(IF(A113>$B$39, 1/((1+$B$100)^(A113-$B$39)),VLOOKUP(A113,Defaults!$A$134:$B$192, 2,FALSE))),"-")) -> $28,130 | D113: =IFERROR(IF(A113="","",IF(A113<=2020, C113, C113*VLOOKUP(A113,Defaults!$A$290:$B$340, 2,FALSE))),"-") -> $27,285
A114: 2024 | B114: =50904.52/5 -> $10,181 | C114: =IF($B$99="NO",B114,IFERROR(B114*(IF(A114>$B$39, 1/((1+$B$100)^(A114-$B$39)),VLOOKUP(A114,Defaults!$A$134:$B$192, 2,FALSE))),"-")) -> $10,181 | D114: =IFERROR(IF(A114="","",IF(A114<=2020, C114, C114*VLOOKUP(A114,Defaults!$A$290:$B$340, 2,FALSE))),"-") -> $9,578
A115: - | B115: - | C115: =IF($B$99="NO",B115,IFERROR(B115*(IF(A115>$B$39, 1/((1+$B$100)^(A115-$B$39)),VLOOKUP(A115,Defaults!$A$134:$B$192, 2,FALSE))),"-")) -> - | D115: =IFERROR(IF(A115="","",IF(A115<=2020, C115, C115*VLOOKUP(A115,Defaults!$A$290:$B$340, 2,FALSE))),"-") -> -
A116: -
A117: Table 11. Capital Costs
A118: Year | B118: Costs | C118: Real Costs | D118: Discounted Costs
A119: =IFERROR(IF($B$33="-", "N/A", $B$33),"N/A") -> 2025 | B119: $1,672,966 | C119: =IF($B$99="NO",B119,IFERROR(B119*(IF(A119>$B$39, 1/(1+$B$100)^(A119-$B$39),VLOOKUP(A119,Defaults!$A$134:$B$192, 2,FALSE))),"-")) -> $1,672,966 | D119: =IFERROR(IF(A119="N/A","-",C119*VLOOKUP(A119,Defaults!$A$290:$B$340, 2,FALSE)),"-") -> $1,526,550
A120: =IFERROR(IF(A119="N/A","N/A",IF(A119>=$B$34,"N/A",A119+1)),"") -> 2026 | B120: $1,672,966 | C120: =IF($B$99="NO",B120,IFERROR(B120*(IF(A120>$B$39, 1/(1+$B$100)^(A120-$B$39),VLOOKUP(A120,Defaults!$A$134:$B$192, 2,FALSE))),"-")) -> $1,672,966 | D120: =IFERROR(IF(A120="N/A","-",C120*VLOOKUP(A120,Defaults!$A$290:$B$340, 2,FALSE)),"-") -> $1,480,650
A121: =IF(A120="N/A","N/A",IF(A120>=$B$34,"N/A",A120+1)) -> 2027 | B121: $1,672,966 | C121: =IF($B$99="NO",B121,IFERROR(B121*(IF(A121>$B$39, 1/(1+$B$100)^(A121-$B$39),VLOOKUP(A121,Defaults!$A$134:$B$192, 2,FALSE))),"-")) -> $1,672,966 | D121: =IFERROR(IF(A121="N/A","-",C121*VLOOKUP(A121,Defaults!$A$290:$B$340, 2,FALSE)),"-") -> $1,436,130
A122: 2028 | B122: $1,672,966 | C122: =IF($B$99="NO",B122,IFERROR(B122*(IF(A122>$B$39, 1/(1+$B$100)^(A122-$B$39),VLOOKUP(A122,Defaults!$A$134:$B$192, 2,FALSE))),"-")) -> $1,672,966 | D122: =IFERROR(IF(A122="N/A","-",C122*VLOOKUP(A122,Defaults!$A$290:$B$340, 2,FALSE)),"-") -> $1,392,948
A123: 2029 | B123: $1,672,966 | C123: =IF($B$99="NO",B123,IFERROR(B123*(IF(A123>$B$39, 1/(1+$B$100)^(A123-$B$39),VLOOKUP(A123,Defaults!$A$134:$B$192, 2,FALSE))),"-")) -> $1,672,966 | D123: =IFERROR(IF(A123="N/A","-",C123*VLOOKUP(A123,Defaults!$A$290:$B$340, 2,FALSE)),"-") -> $1,351,065
A124: N/A | B124: - | C124: =IF($B$99="NO",B124,IFERROR(B124*(IF(A124>$B$39, 1/(1+$B$100)^(A124-$B$39),VLOOKUP(A124,Defaults!$A$134:$B$192, 2,FALSE))),"-")) -> - | D124: =IFERROR(IF(A124="N/A","-",C124*VLOOKUP(A124,Defaults!$A$290:$B$340, 2,FALSE)),"-") -> -
A125: N/A | B125: - | C125: =IF($B$99="NO",B125,IFERROR(B125*(IF(A125>$B$39, 1/(1+$B$100)^(A125-$B$39),VLOOKUP(A125,Defaults!$A$134:$B$192, 2,FALSE))),"-")) -> - | D125: =IFERROR(IF(A125="N/A","-",C125*VLOOKUP(A125,Defaults!$A$290:$B$340, 2,FALSE)),"-") -> -
A126: N/A | B126: - | C126: =IF($B$99="NO",B126,IFERROR(B126*(IF(A126>$B$39, 1/(1+$B$100)^(A126-$B$39),VLOOKUP(A126,Defaults!$A$134:$B$192, 2,FALSE))),"-")) -> - | D126: =IFERROR(IF(A126="N/A","-",C126*VLOOKUP(A126,Defaults!$A$290:$B$340, 2,FALSE)),"-") -> -
A127: N/A | B127: - | C127: =IF($B$99="NO",B127,IFERROR(B127*(IF(A127>$B$39, 1/(1+$B$100)^(A127-$B$39),VLOOKUP(A127,Defaults!$A$134:$B$192, 2,FALSE))),"-")) -> - | D127: =IFERROR(IF(A127="N/A","-",C127*VLOOKUP(A127,Defaults!$A$290:$B$340, 2,FALSE)),"-") -> -
A128: N/A | B128: - | C128: =IF($B$99="NO",B128,IFERROR(B128*(IF(A128>$B$39, 1/(1+$B$100)^(A128-$B$39),VLOOKUP(A128,Defaults!$A$134:$B$192, 2,FALSE))),"-")) -> - | D128: =IFERROR(IF(A128="N/A","-",C128*VLOOKUP(A128,Defaults!$A$290:$B$340, 2,FALSE)),"-") -> -
A129: N/A | B129: - | C129: =IF($B$99="NO",B129,IFERROR(B129*(IF(A129>$B$39, 1/(1+$B$100)^(A129-$B$39),VLOOKUP(A129,Defaults!$A$134:$B$192, 2,FALSE))),"-")) -> - | D129: =IFERROR(IF(A129="N/A","-",C129*VLOOKUP(A129,Defaults!$A$290:$B$340, 2,FALSE)),"-") -> -
A130: -
A131: Table 12. Capital Cost Summary
A132: Total Capital Costs: | B132: =SUM(B105:B115)+SUM(B119:B129) -> $8,752,597
A133: Total Real Capital Costs: | B133: =SUM(C105:C115)+SUM(C119:C129) -> $8,752,597
A134: Total Discounted Capital Costs: | B134: =SUM(D105:D115)+SUM(D119:D129) -> $7,526,864
A135: -
A136: Table 13. Residual Value
A137: Share of Capital Costs | B137: Asset Life (Years) | C137: Explanation and Source
A138: 100% | B138: 75 | C138: AASHTO
A139: 0% | B139: 0 | C139: -
A140: 0% | B140: 0 | C140: -
A141: 0% | B141: 0 | C141: -
A142: =SUM(A138:A141) -> 100% | B142: Summation | C142: N/A
A143: Note: If there are multiple components of the project for this specific bridge that different asset lives, enter the share of the project costs associated with the different project components and their asset life.
A144: Note: The Summation cell should be 100%.
A145: -
A146: Operating and Maintenance Costs (O&M)
A147: Table 14. Operating and Maintenance Costs Assumptions
A148: Which method would you like to use to enter O&M costs? | B148: Manual Entry
A149: Year of O&M costs Dollars | B149: 2024
A150: Note: If you have O&M costs in the construction period you will need to use the manual entry option to enter the O&M costs in the construction period.
A151: Note: The operating and maintenance costs in the baseline should be entered to be consistent with your estimate of closure. If the bridge is closed in a future year (Table 25), there should not be maintenance costs for that year and thereafter.
A152: Note: For frequency calculation option, all costs should be entered as year of expenditure. The tool applies inflation and discounting factors automatically.
A153: -
A154: Table 15. Annual O&M Calculation Input
A155: Category | B155: Value
A156: Annual O&M Costs in the No Build Scenario | B156: -
A157: Annual O&M Costs Real Growth Rate in the No Build Scenario | B157: 0%
A158: Annual O&M Costs in the Build Scenario | B158: -
A159: Annual O&M Costs Real Growth Rate in the Build Scenario | B159: 0%
A160: Note: The maintenance real growth rate represents the real cost increases year over year (e.g., from increased deterioration of the asset). It should not include inflation adjustments.
A161: -
A162: Table 16a. Intermittent O&M Calculation Input
A163: Category | B163: Value
A164: Initial year | B164: -
A165: Last Year | B165: -
A166: Occurs every _____ Years; set to 30 if occurs only once | B166: 1
A167: Annual O&M Costs in the No Build Scenario | B167: -
A168: Annual O&M Costs Real Growth Rate in the Build Scenario | B168: -
A169: -
A170: Table 16b. Intermittent O&M Calculation Input
A171: Category | B171: Value
A172: Initial year | B172: -
A173: Last Year | B173: -
A174: Occurs every _____ Years; set to 30 if occurs only once | B174: 1
A175: Annual O&M Costs in the No Build Scenario | B175: -
A176: Annual O&M Costs Real Growth Rate in the Build Scenario | B176: -
A177: -
A178: Table 16c. Intermittent O&M Calculation Input
A179: Category | B179: Value
A180: Initial year | B180: -
A181: Last Year | B181: -
A182: Occurs every _____ Years; set to 30 if occurs only once | B182: 1
A183: Annual O&M Costs in the No Build Scenario | B183: -
A184: Annual O&M Costs Real Growth Rate in the Build Scenario | B184: -
A185: -
A186: Table 16d. Intermittent O&M Calculation Input
A187: Category | B187: Value
A188: Initial year | B188: -
A189: Last Year | B189: -
A190: Occurs every _____ Years; set to 30 if occurs only once | B190: 1
A191: Annual O&M Costs in the No Build Scenario | B191: -
A192: Annual O&M Costs Real Growth Rate in the Build Scenario | B192: -
A193: Note: The "Occurs every _____ " field in Tables 16a through 16d must be greater than or equal to 1, even if you are not adding an additional recurring maintenance cost.
A194: -
A195: Note: Manual O&M cost values should be entered in the year of dollar entered in Table 14.
A196: Table 17. Manual O&M Cost Entry
A197: Calendar Year | B197: Analysis Year | C197: No Build Annual Cost | D197: Build Annual Cost | E197: O&M Cost Difference Discounted
A198: =IFERROR(IF(B32="Required","N/A",B32),"N/A") -> 2022 | B198: =IFERROR(IF(A198=$B$35,1,IF(A198>$B$35,A198-$B$35+1,IF(A198<$B$35,A198-$B$35+1,"N/A"))),"N/A") -> -7 | C198: 0 | D198: 0 | E198: =IFERROR((C198-D198)*VLOOKUP($B$149,Defaults!$A$290:$B$340, 2,FALSE)*VLOOKUP(A198,Defaults!$A$290:$B$340,2,FALSE),0) -> 0
A199: =IF(A198="N/A","N/A",IF(A198>=$B$35+$B$36-1,"N/A",A198+1)) -> 2023 | B199: -6 | C199: 0 | D199: 0 | E199: =IFERROR((C199-D199)*VLOOKUP($B$149,Defaults!$A$290:$B$340, 2,FALSE)*VLOOKUP(A199,Defaults!$A$290:$B$340,2,FALSE),0) -> 0
A200: 2024 | B200: -5 | C200: 0 | D200: 0 | E200: =IFERROR((C200-D200)*VLOOKUP($B$149,Defaults!$A$290:$B$340, 2,FALSE)*VLOOKUP(A200,Defaults!$A$290:$B$340,2,FALSE),0) -> 0
... 495 more rows

Sheet 130.1
A1: Bridge and Project Overview
A2: ID of bridge, description of improvement, project timeline, traffic volume
A3: Add New Bridge (press Ctrl + Shift + B)
A4: Add Sensitivity Analysis for Current Bridge (press Ctrl + Shift + S)
A5: Delete this Bridge (press Ctrl + Shift + D)
A6: Note: Only delete bridges using this command/button. Deleting bridge tabs through right click will result in (fixable) errors on the Results tab.
A7: Change Bridge Name (press Ctrl + Shift + N)
A8: -
A9: Table 1. Bridge Variables
A10: Bridge Variables | B10: Bridge Values
A11: State | B11: Mississippi
A12: County | B12: Madison
A13: Structure Number | B13: 210005104513010
A14: Inventory Route | B14: =VLOOKUP($C$80,NBIData[],COLUMN(NBIData[ROUTE_NUMBER_005D]),FALSE) -> 00051
A15: Feature Intersected | B15: =VLOOKUP($C$80,NBIData[],COLUMN(NBIData[FEATURES_DESC_006A]),FALSE) -> 'DOAKS CREEK'
A16: Facility Carried | B16: =VLOOKUP($C$80,NBIData[],COLUMN(NBIData[FACILITY_CARRIED_007]),FALSE) -> 'US 51'
A17: Latitude | B17: =LEFT(VLOOKUP($C$80,NBIData[],COLUMN(NBIData[LAT_016]),FALSE), 2) & CHAR(176) & " " & MID(VLOOKUP($C$80,NBIData[],COLUMN(NBIData[LAT_016]),FALSE), 3, 2) &"'" & " " & MID(VLOOKUP($C$80,NBIData[],COLUMN(NBIData[LAT_016]),FALSE), 5, 2) &"."& MID(VLOOKUP($C$80,NBIData[],COLUMN(NBIData[LAT_016]),FALSE), 7, 2) & CHAR(34) -> 32° 43' 53.03"
A18: Longitude | B18: ="-" & MID(VLOOKUP($C$80,NBIData[],COLUMN(NBIData[LONG_017]),FALSE), 2, 2) & CHAR(176) & " " & MID(VLOOKUP($C$80,NBIData[],COLUMN(NBIData[LONG_017]),FALSE), 4, 2) &"'" & " " & MID(VLOOKUP($C$80,NBIData[],COLUMN(NBIData[LONG_017]),FALSE), 6, 2) &"."& MID(VLOOKUP($C$80,NBIData[],COLUMN(NBIData[LONG_017]),FALSE), 8, 2) & CHAR(34) -> -89° 59' 37.02"
A19: Bridge Length (mi) | B19: =VLOOKUP($C$80,NBIData[],COLUMN(NBIData[STRUCTURE_LEN_MT_049]),FALSE)/1609 -> 0.05133623369
A20: Bypass, Detour Length (mi) | B20: =VLOOKUP($C$80,NBIData[],COLUMN(NBIData[DETOUR_KILOS_019]),FALSE)*0.621371 -> 19.26
A21: Owner | B21: =VLOOKUP($C$80,NBIData[],COLUMN(NBIData[OWNER_022]),FALSE) -> 01
A22: Functional Class, Rural/Urban | B22: =VLOOKUP($C$80,NBIData[],COLUMN(NBIData[FUNCTIONAL_CLASS_026]),FALSE) -> 07
A23: Bridge Road Type | B23: =VLOOKUP(B22,Defaults!A359:$D$371, 2, FALSE) -> Rural - Major Collector
A24: Year Built | B24: =VLOOKUP($C$80,NBIData[],COLUMN(NBIData[YEAR_BUILT_027]),FALSE) -> 1935
A25: Year Reconstructed | B25: =VLOOKUP($C$80,NBIData[],COLUMN(NBIData[YEAR_RECONSTRUCTED_106]),FALSE) -> 0
A26: Lanes on the Structure | B26: =VLOOKUP($C$80,NBIData[],COLUMN(NBIData[TRAFFIC_LANES_ON_028A]),FALSE) -> 2
A27: Note: Some bridges have the same structure number. Use the state and county drop downs to identify your bridge.
A28: -
A29: Project Description:
A30: Table 2. Project Timeline
A31: Timeline Variables | B31: Timeline Values
A32: Current Year | B32: 2022
A33: First Year of Construction Costs | B33: 2025
A34: Last Year of Construction Costs | B34: 2029
A35: Project Opens (Start of Benefits) | B35: 2030
A36: Years of Benefits for Analysis | B36: 30
A37: First Year of Period of Analysis | B37: =IF(B35="Required","-", B35) -> 2030
A38: Last Year of Period of Analysis | B38: =IFERROR(B35+B36-1, "-") -> 2059
A39: Discount Year | B39: =Defaults!A290 -> 2022
A40: Base Year of NBI | B40: 2023
A41: Note: The tool cannot handle partial years, or pro-rata benefits or costs. Round up or down to the nearest year for construction start, construction end, and the start of benefits.
A42: Note: Enter a value between 20 to 30 for the Years of Benefits for Analysis, appropriate to the project as defined by US DOT BCA Guidance.
A43: -
A44: Table 3. Average Annual Daily Traffic (AADT)
A45: Scenario and Vehicle Type | B45: NBI Year of AADT | C45: NBI Year of Future AADT | D45: Forecast using NBI Growth Rate | E45: Forecast using NBI Growth Rate2 | F45: Project Opens | G45: Last Year | H45: Explanation and Source
A46: Year | B46: =VLOOKUP($C$80,NBIData[],COLUMN(NBIData[YEAR_ADT_030]),FALSE) -> 2022 | C46: =VLOOKUP($C$80,NBIData[],COLUMN(NBIData[YEAR_OF_FUTURE_ADT_115]),FALSE) -> 2059 | D46: =IF(B35="Required","-",B35) -> 2030 | E46: =B38 -> 2059 | F46: =IF(B35="Required", "-",B35) -> 2030 | G46: =B38 -> 2059 | H46: N/A
A47: No Build - Passenger AADT | B47: =VLOOKUP($C$80,NBIData[],COLUMN(NBIData[ADT_029]),FALSE)*(1-VLOOKUP($C$80,NBIData[],COLUMN(NBIData[PERCENT_ADT_TRUCK_109]),FALSE)/100) -> 1748 | C47: =VLOOKUP($C$80,NBIData[],COLUMN(NBIData[FUTURE_ADT_114]),FALSE)*(1-VLOOKUP($C$80,NBIData[],COLUMN(NBIData[PERCENT_ADT_TRUCK_109]),FALSE)/100) -> 2526 | D47: =ROUND(B47*((1+B59)^(D$46-$B$46)),0) -> 1893 | E47: =ROUND(C47*((1+B59)^(E$46-$C$46)),0) -> 2526 | F47: 1932 | G47: 2526 | H47: BCA Guidance, MDOT
A48: No Build - Truck AADT | B48: =VLOOKUP($C$80,NBIData[],COLUMN(NBIData[PERCENT_ADT_TRUCK_109]),FALSE)/100*VLOOKUP($C$80,NBIData[],COLUMN(NBIData[ADT_029]),FALSE) -> 152 | C48: =VLOOKUP($C$80,NBIData[],COLUMN(NBIData[PERCENT_ADT_TRUCK_109]),FALSE)/100*VLOOKUP($C$80,NBIData[],COLUMN(NBIData[FUTURE_ADT_114]),FALSE) -> 220 | D48: =ROUND(B48*((1+B59)^(D$46-$B$46)),0) -> 165 | E48: =ROUND(C48*((1+B59)^(E$46-$C$46)),0) -> 220 | F48: 168 | G48: 220 | H48: BCA Guidance, MDOT
A49: No Build - Bus AADT | B49: N/A | C49: N/A | D49: N/A | E49: N/A | F49: 0 | G49: 0 | H49: BCA Guidance, MDOT
A50: Build - Passenger AADT | B50: =B47 -> 1748 | C50: =C47 -> 2526 | D50: =ROUND(B50*((1+B59)^(D$46-$B$46)),0) -> 1893 | E50: =ROUND(C50*((1+B59)^(E$46-$C$46)),0) -> 2526 | F50: 1932 | G50: 2526 | H50: BCA Guidance, MDOT
A51: Build - Truck AADT | B51: =B48 -> 152 | C51: =C48 -> 220 | D51: =ROUND(B51*((1+B59)^(D$46-$B$46)),0) -> 165 | E51: =ROUND(C51*((1+B59)^(E$46-$C$46)),0) -> 220 | F51: 168 | G51: 220 | H51: BCA Guidance, MDOT
A52: Build - Bus AADT | B52: N/A | C52: N/A | D52: N/A | E52: N/A | F52: 0 | G52: 0 | H52: BCA Guidance, MDOT
A53: =HYPERLINK("#A542","Note: AADT can be entered manually in Table 52 and Table 53 below.") -> Note: AADT can be entered manually in Table 52 and Table 53 below.
A54: Note: Here and elsewhere in the tool it is critical that you enter at least some value in the required cells, e.g., 0, rather than "-", "N/A" or leaving it blank.
A55: Note: NBI AADT values are added for reference in Table 3. Users must enter AADT values in Columns G, H and I in Table 3.
A56: -
A57: Note: Table 4 is not a user input. Do not adjust Table 4.
A58: Table 4. NBI's Calculated Average Annual Daily Traffic (AADT) Growth Rate
A59: =CONCATENATE("The NBI Calculated Annual Growth Rate", " ", B46, "-",C46, " (NBI)") -> The NBI Calculated Annual Growth Rate 2022-2059 (NBI) | B59: =(C47/B47)^(1/(C$46-B$46))-1 -> $0
A60: -
A61: Table 5. Detour Road Type
A62: Detour Road Type | B62: Rural - Principal Arterial - Interstate
A63: Detour Road Type - Simple | B63: =IF(B62="Required", "-",IF(ISNUMBER(SEARCH("Urban",B62)), "Urban", "Rural")) -> Rural
A64: -
A65: Note: Detour length should represent the Net detour: Detour length minus the original route length.
A66: Table 6. Detour and Bridge Length Information
A67: Detour Details | B67: Reference | C67: User Value | D67: Explanation and Source
A68: Net Detour Length, For Vehicles (mi) (NBI) | B68: =ROUND(VLOOKUP($C$80,NBIData[],COLUMN(NBIData[DETOUR_KILOS_019]),FALSE)*0.621371,1) -> 19.3 | C68: 51.7 | D68: Google
A69: Detour Average Speed, for Vehicles (mph) (FHWA VHT) | B69: =ROUND(VLOOKUP(B62,Defaults!B359:F371,2, FALSE),1) -> 66.0 | C69: 62.0 | D69: Google
A70: Net Detour Length, For Cycling/ Pedestrian (mi) (NBI) | B70: =ROUND(VLOOKUP($C$80,NBIData[],COLUMN(NBIData[DETOUR_KILOS_019]),FALSE)*0.621371, 1) -> 19.3 | C70: 51.7 | D70: Google
A71: Detour Average Travel Time (min) | B71: =B68/B69*60 -> 17.5 | C71: =C68/C69*60 -> 50.0 | D71: N/A
A72: Bridge Length (mi) | B72: =ROUND(B19,2) -> 0.05 | C72: =1020/5280 -> 0.19 | D72: Google
A73: Note: Google or HPMS data are preferred for identifying average speed on the detour route. You can also use the HERS/VHT speed values using the Detour Road Type dropdown below.
A74: Note: Bridge length in the NBI does not include the approach length. Include approach length if relevant for your project.
A75: =HYPERLINK("https://www.google.com/maps", "Use Google Maps to calculate detour route length and average speed, as appropriate.") -> Use Google Maps to calculate detour route length and average speed, as appropriate.
A76: =HYPERLINK("https://www.fhwa.dot.gov/policyinformation/hpms.cfm", "Use the Highway Performance Monitoring System (HPMS) data to calculate detour route length and average speed, as appropriate.") -> Use the Highway Performance Monitoring System (HPMS) data to calculate detour route length and average speed, as appropriate.
A77: -
A78: Note: These reference cells are marked to avoid accidental deletion.
A79: Table 7. Reference Table
A80: Reference Cells | B80: =CONCATENATE(B11,B12) -> MississippiMadison | C80: =CONCATENATE(VLOOKUP($B$11,NBI_Dropdown!$B$1:$D$56,3,FALSE),$B$13) -> 284210005104513010
A81: -
A82: Table 8. Travel Assumptions
A83: Parameters | B83: Reference | C83: User Value | D83: Explanation and Source
A84: Bridge Average Speed (FHWA) | B84: =_xlfn.IFNA(VLOOKUP(B23,Defaults!B359:C371,2, FALSE), "N/A") -> 47 | C84: 47 | D84: -
A85: Average Car Occupancy | B85: =Defaults!B51 -> 1.67 | C85: 1.67 | D85: -
A86: Share of Long-Distance Personal Travel | B86: 0.0% | C86: 0% | D86: -
A87: Value of Time - Long-Distance Personal Travel | B87: =Defaults!B35 -> $25.10 | C87: $25.10 | D87: -
A88: Share of Business Travel | B88: 11.8% | C88: 11.8% | D88: -
A89: Value of Travel Time - Business | B89: =Defaults!B33 -> $32.30 | C89: $32.30 | D89: -
A90: Value of Travel Time - Personal | B90: =Defaults!B32 -> $17.90 | C90: $17.90 | D90: -
A91: Value of Travel Time - All Purposes | B91: =ROUND(B86*B87+B88*B89+(1-B86-B88)*B90,1) -> $19.60 | C91: =IFERROR(ROUND(C86*C87+C88*C89+(1-C86-C88)*C90,1),"-") -> $19.60 | D91: -
A92: Walking, Cycling, Waiting, Standing, and Transfer Time | B92: =Defaults!B36 -> $35.80 | C92: $35.80 | D92: -
A93: Truck Driver | B93: =Defaults!B39 -> $33.50 | C93: $33.50 | D93: -
A94: Bus Driver | B94: =Defaults!B40 -> $36.50 | C94: $36.50 | D94: -
A95: Average Bus Occupancy | B95: 0 | C95: 0 | D95: -
A96: -
A97: Capital Cost and Residual Value
A98: Table 9. Expenditure Dollars Option
A99: Are costs entered in year of expenditure dollars (not adjusted for inflation)? | B99: NO
A100: Enter future inflation rate for capital costs. | B100: 0%
A101: Note: Capital costs can be entered in year of expenditure dollars or in real dollars. The tool applies inflation and discounting factors automatically if entered as year of expenditure dollars.
A102: -
A103: Table 10. Already Incurred Costs
A104: Year | B104: Costs | C104: Real Costs | D104: Discounted Costs
A105: 2015 | B105: =101804.01/5 -> $20,361 | C105: =IF($B$99="NO",B105,IFERROR(B105*(IF(A105>$B$39, 1/((1+$B$100)^(A105-$B$39)),VLOOKUP(A105,Defaults!$A$134:$B$192, 2,FALSE))),"-")) -> $20,361 | D105: =IFERROR(IF(A105="","",IF(A105<=2020, C105, C105*VLOOKUP(A105,Defaults!$A$290:$B$340, 2,FALSE))),"-") -> $20,361
A106: 2016 | B106: =344006.89/5 -> $68,801 | C106: =IF($B$99="NO",B106,IFERROR(B106*(IF(A106>$B$39, 1/((1+$B$100)^(A106-$B$39)),VLOOKUP(A106,Defaults!$A$134:$B$192, 2,FALSE))),"-")) -> $68,801 | D106: =IFERROR(IF(A106="","",IF(A106<=2020, C106, C106*VLOOKUP(A106,Defaults!$A$290:$B$340, 2,FALSE))),"-") -> $68,801
A107: 2017 | B107: =246752.04/5 -> $49,350 | C107: =IF($B$99="NO",B107,IFERROR(B107*(IF(A107>$B$39, 1/((1+$B$100)^(A107-$B$39)),VLOOKUP(A107,Defaults!$A$134:$B$192, 2,FALSE))),"-")) -> $49,350 | D107: =IFERROR(IF(A107="","",IF(A107<=2020, C107, C107*VLOOKUP(A107,Defaults!$A$290:$B$340, 2,FALSE))),"-") -> $49,350
A108: 2018 | B108: =151861.34/5 -> $30,372 | C108: =IF($B$99="NO",B108,IFERROR(B108*(IF(A108>$B$39, 1/((1+$B$100)^(A108-$B$39)),VLOOKUP(A108,Defaults!$A$134:$B$192, 2,FALSE))),"-")) -> $30,372 | D108: =IFERROR(IF(A108="","",IF(A108<=2020, C108, C108*VLOOKUP(A108,Defaults!$A$290:$B$340, 2,FALSE))),"-") -> $30,372
A109: 2019 | B109: =198964.79/5 -> $39,793 | C109: =IF($B$99="NO",B109,IFERROR(B109*(IF(A109>$B$39, 1/((1+$B$100)^(A109-$B$39)),VLOOKUP(A109,Defaults!$A$134:$B$192, 2,FALSE))),"-")) -> $39,793 | D109: =IFERROR(IF(A109="","",IF(A109<=2020, C109, C109*VLOOKUP(A109,Defaults!$A$290:$B$340, 2,FALSE))),"-") -> $39,793
A110: 2020 | B110: =34341.94/5 -> $6,868 | C110: =IF($B$99="NO",B110,IFERROR(B110*(IF(A110>$B$39, 1/((1+$B$100)^(A110-$B$39)),VLOOKUP(A110,Defaults!$A$134:$B$192, 2,FALSE))),"-")) -> $6,868 | D110: =IFERROR(IF(A110="","",IF(A110<=2020, C110, C110*VLOOKUP(A110,Defaults!$A$290:$B$340, 2,FALSE))),"-") -> $6,868
A111: 2021 | B111: =233999.67/5 -> $46,800 | C111: =IF($B$99="NO",B111,IFERROR(B111*(IF(A111>$B$39, 1/((1+$B$100)^(A111-$B$39)),VLOOKUP(A111,Defaults!$A$134:$B$192, 2,FALSE))),"-")) -> $46,800 | D111: =IFERROR(IF(A111="","",IF(A111<=2020, C111, C111*VLOOKUP(A111,Defaults!$A$290:$B$340, 2,FALSE))),"-") -> -
A112: 2022 | B112: =435559.69/5 -> $87,112 | C112: =IF($B$99="NO",B112,IFERROR(B112*(IF(A112>$B$39, 1/((1+$B$100)^(A112-$B$39)),VLOOKUP(A112,Defaults!$A$134:$B$192, 2,FALSE))),"-")) -> $87,112 | D112: =IFERROR(IF(A112="","",IF(A112<=2020, C112, C112*VLOOKUP(A112,Defaults!$A$290:$B$340, 2,FALSE))),"-") -> $87,112
A113: 2023 | B113: =140651.85/5 -> $28,130 | C113: =IF($B$99="NO",B113,IFERROR(B113*(IF(A113>$B$39, 1/((1+$B$100)^(A113-$B$39)),VLOOKUP(A113,Defaults!$A$134:$B$192, 2,FALSE))),"-")) -> $28,130 | D113: =IFERROR(IF(A113="","",IF(A113<=2020, C113, C113*VLOOKUP(A113,Defaults!$A$290:$B$340, 2,FALSE))),"-") -> $27,285
A114: 2024 | B114: =50904.52/5 -> $10,181 | C114: =IF($B$99="NO",B114,IFERROR(B114*(IF(A114>$B$39, 1/((1+$B$100)^(A114-$B$39)),VLOOKUP(A114,Defaults!$A$134:$B$192, 2,FALSE))),"-")) -> $10,181 | D114: =IFERROR(IF(A114="","",IF(A114<=2020, C114, C114*VLOOKUP(A114,Defaults!$A$290:$B$340, 2,FALSE))),"-") -> $9,578
A115: - | B115: - | C115: =IF($B$99="NO",B115,IFERROR(B115*(IF(A115>$B$39, 1/((1+$B$100)^(A115-$B$39)),VLOOKUP(A115,Defaults!$A$134:$B$192, 2,FALSE))),"-")) -> - | D115: =IFERROR(IF(A115="","",IF(A115<=2020, C115, C115*VLOOKUP(A115,Defaults!$A$290:$B$340, 2,FALSE))),"-") -> -
A116: -
A117: Table 11. Capital Costs
A118: Year | B118: Costs | C118: Real Costs | D118: Discounted Costs
A119: =IFERROR(IF($B$33="-", "N/A", $B$33),"N/A") -> 2025 | B119: $1,672,966 | C119: =IF($B$99="NO",B119,IFERROR(B119*(IF(A119>$B$39, 1/(1+$B$100)^(A119-$B$39),VLOOKUP(A119,Defaults!$A$134:$B$192, 2,FALSE))),"-")) -> $1,672,966 | D119: =IFERROR(IF(A119="N/A","-",C119*VLOOKUP(A119,Defaults!$A$290:$B$340, 2,FALSE)),"-") -> $1,526,550
A120: =IFERROR(IF(A119="N/A","N/A",IF(A119>=$B$34,"N/A",A119+1)),"") -> 2026 | B120: $1,672,966 | C120: =IF($B$99="NO",B120,IFERROR(B120*(IF(A120>$B$39, 1/(1+$B$100)^(A120-$B$39),VLOOKUP(A120,Defaults!$A$134:$B$192, 2,FALSE))),"-")) -> $1,672,966 | D120: =IFERROR(IF(A120="N/A","-",C120*VLOOKUP(A120,Defaults!$A$290:$B$340, 2,FALSE)),"-") -> $1,480,650
A121: =IF(A120="N/A","N/A",IF(A120>=$B$34,"N/A",A120+1)) -> 2027 | B121: $1,672,966 | C121: =IF($B$99="NO",B121,IFERROR(B121*(IF(A121>$B$39, 1/(1+$B$100)^(A121-$B$39),VLOOKUP(A121,Defaults!$A$134:$B$192, 2,FALSE))),"-")) -> $1,672,966 | D121: =IFERROR(IF(A121="N/A","-",C121*VLOOKUP(A121,Defaults!$A$290:$B$340, 2,FALSE)),"-") -> $1,436,130
A122: 2028 | B122: $1,672,966 | C122: =IF($B$99="NO",B122,IFERROR(B122*(IF(A122>$B$39, 1/(1+$B$100)^(A122-$B$39),VLOOKUP(A122,Defaults!$A$134:$B$192, 2,FALSE))),"-")) -> $1,672,966 | D122: =IFERROR(IF(A122="N/A","-",C122*VLOOKUP(A122,Defaults!$A$290:$B$340, 2,FALSE)),"-") -> $1,392,948
A123: 2029 | B123: $1,672,966 | C123: =IF($B$99="NO",B123,IFERROR(B123*(IF(A123>$B$39, 1/(1+$B$100)^(A123-$B$39),VLOOKUP(A123,Defaults!$A$134:$B$192, 2,FALSE))),"-")) -> $1,672,966 | D123: =IFERROR(IF(A123="N/A","-",C123*VLOOKUP(A123,Defaults!$A$290:$B$340, 2,FALSE)),"-") -> $1,351,065
A124: N/A | B124: - | C124: =IF($B$99="NO",B124,IFERROR(B124*(IF(A124>$B$39, 1/(1+$B$100)^(A124-$B$39),VLOOKUP(A124,Defaults!$A$134:$B$192, 2,FALSE))),"-")) -> - | D124: =IFERROR(IF(A124="N/A","-",C124*VLOOKUP(A124,Defaults!$A$290:$B$340, 2,FALSE)),"-") -> -
A125: N/A | B125: - | C125: =IF($B$99="NO",B125,IFERROR(B125*(IF(A125>$B$39, 1/(1+$B$100)^(A125-$B$39),VLOOKUP(A125,Defaults!$A$134:$B$192, 2,FALSE))),"-")) -> - | D125: =IFERROR(IF(A125="N/A","-",C125*VLOOKUP(A125,Defaults!$A$290:$B$340, 2,FALSE)),"-") -> -
A126: N/A | B126: - | C126: =IF($B$99="NO",B126,IFERROR(B126*(IF(A126>$B$39, 1/(1+$B$100)^(A126-$B$39),VLOOKUP(A126,Defaults!$A$134:$B$192, 2,FALSE))),"-")) -> - | D126: =IFERROR(IF(A126="N/A","-",C126*VLOOKUP(A126,Defaults!$A$290:$B$340, 2,FALSE)),"-") -> -
A127: N/A | B127: - | C127: =IF($B$99="NO",B127,IFERROR(B127*(IF(A127>$B$39, 1/(1+$B$100)^(A127-$B$39),VLOOKUP(A127,Defaults!$A$134:$B$192, 2,FALSE))),"-")) -> - | D127: =IFERROR(IF(A127="N/A","-",C127*VLOOKUP(A127,Defaults!$A$290:$B$340, 2,FALSE)),"-") -> -
A128: N/A | B128: - | C128: =IF($B$99="NO",B128,IFERROR(B128*(IF(A128>$B$39, 1/(1+$B$100)^(A128-$B$39),VLOOKUP(A128,Defaults!$A$134:$B$192, 2,FALSE))),"-")) -> - | D128: =IFERROR(IF(A128="N/A","-",C128*VLOOKUP(A128,Defaults!$A$290:$B$340, 2,FALSE)),"-") -> -
A129: N/A | B129: - | C129: =IF($B$99="NO",B129,IFERROR(B129*(IF(A129>$B$39, 1/(1+$B$100)^(A129-$B$39),VLOOKUP(A129,Defaults!$A$134:$B$192, 2,FALSE))),"-")) -> - | D129: =IFERROR(IF(A129="N/A","-",C129*VLOOKUP(A129,Defaults!$A$290:$B$340, 2,FALSE)),"-") -> -
A130: -
A131: Table 12. Capital Cost Summary
A132: Total Capital Costs: | B132: =SUM(B105:B115)+SUM(B119:B129) -> $8,752,597
A133: Total Real Capital Costs: | B133: =SUM(C105:C115)+SUM(C119:C129) -> $8,752,597
A134: Total Discounted Capital Costs: | B134: =SUM(D105:D115)+SUM(D119:D129) -> $7,526,864
A135: -
A136: Table 13. Residual Value
A137: Share of Capital Costs | B137: Asset Life (Years) | C137: Explanation and Source
A138: 100% | B138: 75 | C138: AASHTO
A139: 0% | B139: 0 | C139: -
A140: 0% | B140: 0 | C140: -
A141: 0% | B141: 0 | C141: -
A142: =SUM(A138:A141) -> 100% | B142: Summation | C142: N/A
A143: Note: If there are multiple components of the project for this specific bridge that different asset lives, enter the share of the project costs associated with the different project components and their asset life.
A144: Note: The Summation cell should be 100%.
A145: -
A146: Operating and Maintenance Costs (O&M)
A147: Table 14. Operating and Maintenance Costs Assumptions
A148: Which method would you like to use to enter O&M costs? | B148: Manual Entry
A149: Year of O&M costs Dollars | B149: 2024
A150: Note: If you have O&M costs in the construction period you will need to use the manual entry option to enter the O&M costs in the construction period.
A151: Note: The operating and maintenance costs in the baseline should be entered to be consistent with your estimate of closure. If the bridge is closed in a future year (Table 25), there should not be maintenance costs for that year and thereafter.
A152: Note: For frequency calculation option, all costs should be entered as year of expenditure. The tool applies inflation and discounting factors automatically.
A153: -
A154: Table 15. Annual O&M Calculation Input
A155: Category | B155: Value
A156: Annual O&M Costs in the No Build Scenario | B156: -
A157: Annual O&M Costs Real Growth Rate in the No Build Scenario | B157: 0%
A158: Annual O&M Costs in the Build Scenario | B158: -
A159: Annual O&M Costs Real Growth Rate in the Build Scenario | B159: 0%
A160: Note: The maintenance real growth rate represents the real cost increases year over year (e.g., from increased deterioration of the asset). It should not include inflation adjustments.
A161: -
A162: Table 16a. Intermittent O&M Calculation Input
A163: Category | B163: Value
A164: Initial year | B164: -
A165: Last Year | B165: -
A166: Occurs every _____ Years; set to 30 if occurs only once | B166: 1
A167: Annual O&M Costs in the No Build Scenario | B167: -
A168: Annual O&M Costs Real Growth Rate in the Build Scenario | B168: -
A169: -
A170: Table 16b. Intermittent O&M Calculation Input
A171: Category | B171: Value
A172: Initial year | B172: -
A173: Last Year | B173: -
A174: Occurs every _____ Years; set to 30 if occurs only once | B174: 1
A175: Annual O&M Costs in the No Build Scenario | B175: -
A176: Annual O&M Costs Real Growth Rate in the Build Scenario | B176: -
A177: -
A178: Table 16c. Intermittent O&M Calculation Input
A179: Category | B179: Value
A180: Initial year | B180: -
A181: Last Year | B181: -
A182: Occurs every _____ Years; set to 30 if occurs only once | B182: 1
A183: Annual O&M Costs in the No Build Scenario | B183: -
A184: Annual O&M Costs Real Growth Rate in the Build Scenario | B184: -
A185: -
A186: Table 16d. Intermittent O&M Calculation Input
A187: Category | B187: Value
A188: Initial year | B188: -
A189: Last Year | B189: -
A190: Occurs every _____ Years; set to 30 if occurs only once | B190: 1
A191: Annual O&M Costs in the No Build Scenario | B191: -
A192: Annual O&M Costs Real Growth Rate in the Build Scenario | B192: -
A193: Note: The "Occurs every _____ " field in Tables 16a through 16d must be greater than or equal to 1, even if you are not adding an additional recurring maintenance cost.
A194: -
A195: Note: Manual O&M cost values should be entered in the year of dollar entered in Table 14.
A196: Table 17. Manual O&M Cost Entry
A197: Calendar Year | B197: Analysis Year | C197: No Build Annual Cost | D197: Build Annual Cost | E197: O&M Cost Difference Discounted
A198: =IFERROR(IF(B32="Required","N/A",B32),"N/A") -> 2022 | B198: =IFERROR(IF(A198=$B$35,1,IF(A198>$B$35,A198-$B$35+1,IF(A198<$B$35,A198-$B$35+1,"N/A"))),"N/A") -> -7 | C198: 0 | D198: 0 | E198: =IFERROR((C198-D198)*VLOOKUP($B$149,Defaults!$A$290:$B$340, 2,FALSE)*VLOOKUP(A198,Defaults!$A$290:$B$340,2,FALSE),0) -> 0
A199: =IF(A198="N/A","N/A",IF(A198>=$B$35+$B$36-1,"N/A",A198+1)) -> 2023 | B199: -6 | C199: 0 | D199: 0 | E199: =IFERROR((C199-D199)*VLOOKUP($B$149,Defaults!$A$290:$B$340, 2,FALSE)*VLOOKUP(A199,Defaults!$A$290:$B$340,2,FALSE),0) -> 0
A200: 2024 | B200: -5 | C200: 0 | D200: 0 | E200: =IFERROR((C200-D200)*VLOOKUP($B$149,Defaults!$A$290:$B$340, 2,FALSE)*VLOOKUP(A200,Defaults!$A$290:$B$340,2,FALSE),0) -> 0
... 495 more rows

Sheet 130.4
A1: Bridge and Project Overview
A2: ID of bridge, description of improvement, project timeline, traffic volume
A3: Add New Bridge (press Ctrl + Shift + B)
A4: Add Sensitivity Analysis for Current Bridge (press Ctrl + Shift + S)
A5: Delete this Bridge (press Ctrl + Shift + D)
A6: Note: Only delete bridges using this command/button. Deleting bridge tabs through right click will result in (fixable) errors on the Results tab.
A7: Change Bridge Name (press Ctrl + Shift + N)
A8: -
A9: Table 1. Bridge Variables
A10: Bridge Variables | B10: Bridge Values
A11: State | B11: Mississippi
A12: County | B12: Madison
A13: Structure Number | B13: 210005104513040
A14: Inventory Route | B14: =VLOOKUP($C$80,NBIData[],COLUMN(NBIData[ROUTE_NUMBER_005D]),FALSE) -> 00051
A15: Feature Intersected | B15: =VLOOKUP($C$80,NBIData[],COLUMN(NBIData[FEATURES_DESC_006A]),FALSE) -> 'RELIEF'
A16: Facility Carried | B16: =VLOOKUP($C$80,NBIData[],COLUMN(NBIData[FACILITY_CARRIED_007]),FALSE) -> 'US 51'
A17: Latitude | B17: =LEFT(VLOOKUP($C$80,NBIData[],COLUMN(NBIData[LAT_016]),FALSE), 2) & CHAR(176) & " " & MID(VLOOKUP($C$80,NBIData[],COLUMN(NBIData[LAT_016]),FALSE), 3, 2) &"'" & " " & MID(VLOOKUP($C$80,NBIData[],COLUMN(NBIData[LAT_016]),FALSE), 5, 2) &"."& MID(VLOOKUP($C$80,NBIData[],COLUMN(NBIData[LAT_016]),FALSE), 7, 2) & CHAR(34) -> 32° 44' 08.53"
A18: Longitude | B18: ="-" & MID(VLOOKUP($C$80,NBIData[],COLUMN(NBIData[LONG_017]),FALSE), 2, 2) & CHAR(176) & " " & MID(VLOOKUP($C$80,NBIData[],COLUMN(NBIData[LONG_017]),FALSE), 4, 2) &"'" & " " & MID(VLOOKUP($C$80,NBIData[],COLUMN(NBIData[LONG_017]),FALSE), 6, 2) &"."& MID(VLOOKUP($C$80,NBIData[],COLUMN(NBIData[LONG_017]),FALSE), 8, 2) & CHAR(34) -> -89° 59' 35.55"
A19: Bridge Length (mi) | B19: =VLOOKUP($C$80,NBIData[],COLUMN(NBIData[STRUCTURE_LEN_MT_049]),FALSE)/1609 -> 0.01702921069
A20: Bypass, Detour Length (mi) | B20: =VLOOKUP($C$80,NBIData[],COLUMN(NBIData[DETOUR_KILOS_019]),FALSE)*0.621371 -> 19.26
A21: Owner | B21: =VLOOKUP($C$80,NBIData[],COLUMN(NBIData[OWNER_022]),FALSE) -> 01
A22: Functional Class, Rural/Urban | B22: =VLOOKUP($C$80,NBIData[],COLUMN(NBIData[FUNCTIONAL_CLASS_026]),FALSE) -> 07
A23: Bridge Road Type | B23: =VLOOKUP(B22,Defaults!A359:$D$371, 2, FALSE) -> Rural - Major Collector
A24: Year Built | B24: =VLOOKUP($C$80,NBIData[],COLUMN(NBIData[YEAR_BUILT_027]),FALSE) -> 1939
A25: Year Reconstructed | B25: =VLOOKUP($C$80,NBIData[],COLUMN(NBIData[YEAR_RECONSTRUCTED_106]),FALSE) -> 0
A26: Lanes on the Structure | B26: =VLOOKUP($C$80,NBIData[],COLUMN(NBIData[TRAFFIC_LANES_ON_028A]),FALSE) -> 2
A27: Note: Some bridges have the same structure number. Use the state and county drop downs to identify your bridge.
A28: -
A29: Project Description:
A30: Table 2. Project Timeline
A31: Timeline Variables | B31: Timeline Values
A32: Current Year | B32: 2022
A33: First Year of Construction Costs | B33: 2025
A34: Last Year of Construction Costs | B34: 2029
A35: Project Opens (Start of Benefits) | B35: 2030
A36: Years of Benefits for Analysis | B36: 30
A37: First Year of Period of Analysis | B37: =IF(B35="Required","-", B35) -> 2030
A38: Last Year of Period of Analysis | B38: =IFERROR(B35+B36-1, "-") -> 2059
A39: Discount Year | B39: =Defaults!A290 -> 2022
A40: Base Year of NBI | B40: 2023
A41: Note: The tool cannot handle partial years, or pro-rata benefits or costs. Round up or down to the nearest year for construction start, construction end, and the start of benefits.
A42: Note: Enter a value between 20 to 30 for the Years of Benefits for Analysis, appropriate to the project as defined by US DOT BCA Guidance.
A43: -
A44: Table 3. Average Annual Daily Traffic (AADT)
A45: Scenario and Vehicle Type | B45: NBI Year of AADT | C45: NBI Year of Future AADT | D45: Forecast using NBI Growth Rate | E45: Forecast using NBI Growth Rate2 | F45: Project Opens | G45: Last Year | H45: Explanation and Source
A46: Year | B46: =VLOOKUP($C$80,NBIData[],COLUMN(NBIData[YEAR_ADT_030]),FALSE) -> 2022 | C46: =VLOOKUP($C$80,NBIData[],COLUMN(NBIData[YEAR_OF_FUTURE_ADT_115]),FALSE) -> 2059 | D46: =IF(B35="Required","-",B35) -> 2030 | E46: =B38 -> 2059 | F46: =IF(B35="Required", "-",B35) -> 2030 | G46: =B38 -> 2059 | H46: N/A
A47: No Build - Passenger AADT | B47: =VLOOKUP($C$80,NBIData[],COLUMN(NBIData[ADT_029]),FALSE)*(1-VLOOKUP($C$80,NBIData[],COLUMN(NBIData[PERCENT_ADT_TRUCK_109]),FALSE)/100) -> 1748 | C47: =VLOOKUP($C$80,NBIData[],COLUMN(NBIData[FUTURE_ADT_114]),FALSE)*(1-VLOOKUP($C$80,NBIData[],COLUMN(NBIData[PERCENT_ADT_TRUCK_109]),FALSE)/100) -> 2526 | D47: =ROUND(B47*((1+B59)^(D$46-$B$46)),0) -> 1893 | E47: =ROUND(C47*((1+B59)^(E$46-$C$46)),0) -> 2526 | F47: 1932 | G47: 2526 | H47: BCA Guidance, MDOT
A48: No Build - Truck AADT | B48: =VLOOKUP($C$80,NBIData[],COLUMN(NBIData[PERCENT_ADT_TRUCK_109]),FALSE)/100*VLOOKUP($C$80,NBIData[],COLUMN(NBIData[ADT_029]),FALSE) -> 152 | C48: =VLOOKUP($C$80,NBIData[],COLUMN(NBIData[PERCENT_ADT_TRUCK_109]),FALSE)/100*VLOOKUP($C$80,NBIData[],COLUMN(NBIData[FUTURE_ADT_114]),FALSE) -> 220 | D48: =ROUND(B48*((1+B59)^(D$46-$B$46)),0) -> 165 | E48: =ROUND(C48*((1+B59)^(E$46-$C$46)),0) -> 220 | F48: 168 | G48: 220 | H48: BCA Guidance, MDOT
A49: No Build - Bus AADT | B49: N/A | C49: N/A | D49: N/A | E49: N/A | F49: 0 | G49: 0 | H49: BCA Guidance, MDOT
A50: Build - Passenger AADT | B50: =B47 -> 1748 | C50: =C47 -> 2526 | D50: =ROUND(B50*((1+B59)^(D$46-$B$46)),0) -> 1893 | E50: =ROUND(C50*((1+B59)^(E$46-$C$46)),0) -> 2526 | F50: 1932 | G50: 2526 | H50: BCA Guidance, MDOT
A51: Build - Truck AADT | B51: =B48 -> 152 | C51: =C48 -> 220 | D51: =ROUND(B51*((1+B59)^(D$46-$B$46)),0) -> 165 | E51: =ROUND(C51*((1+B59)^(E$46-$C$46)),0) -> 220 | F51: 168 | G51: 220 | H51: BCA Guidance, MDOT
A52: Build - Bus AADT | B52: N/A | C52: N/A | D52: N/A | E52: N/A | F52: 0 | G52: 0 | H52: BCA Guidance, MDOT
A53: =HYPERLINK("#A542","Note: AADT can be entered manually in Table 52 and Table 53 below.") -> Note: AADT can be entered manually in Table 52 and Table 53 below.
A54: Note: Here and elsewhere in the tool it is critical that you enter at least some value in the required cells, e.g., 0, rather than "-", "N/A" or leaving it blank.
A55: Note: NBI AADT values are added for reference in Table 3. Users must enter AADT values in Columns G, H and I in Table 3.
A56: -
A57: Note: Table 4 is not a user input. Do not adjust Table 4.
A58: Table 4. NBI's Calculated Average Annual Daily Traffic (AADT) Growth Rate
A59: =CONCATENATE("The NBI Calculated Annual Growth Rate", " ", B46, "-",C46, " (NBI)") -> The NBI Calculated Annual Growth Rate 2022-2059 (NBI) | B59: =(C47/B47)^(1/(C$46-B$46))-1 -> $0
A60: -
A61: Table 5. Detour Road Type
A62: Detour Road Type | B62: Rural - Principal Arterial - Interstate
A63: Detour Road Type - Simple | B63: =IF(B62="Required", "-",IF(ISNUMBER(SEARCH("Urban",B62)), "Urban", "Rural")) -> Rural
A64: -
A65: Note: Detour length should represent the Net detour: Detour length minus the original route length.
A66: Table 6. Detour and Bridge Length Information
A67: Detour Details | B67: Reference | C67: User Value | D67: Explanation and Source
A68: Net Detour Length, For Vehicles (mi) (NBI) | B68: =ROUND(VLOOKUP($C$80,NBIData[],COLUMN(NBIData[DETOUR_KILOS_019]),FALSE)*0.621371,1) -> 19.3 | C68: 51.7 | D68: Google
A69: Detour Average Speed, for Vehicles (mph) (FHWA VHT) | B69: =ROUND(VLOOKUP(B62,Defaults!B359:F371,2, FALSE),1) -> 66.0 | C69: 62.0 | D69: Google
A70: Net Detour Length, For Cycling/ Pedestrian (mi) (NBI) | B70: =ROUND(VLOOKUP($C$80,NBIData[],COLUMN(NBIData[DETOUR_KILOS_019]),FALSE)*0.621371, 1) -> 19.3 | C70: 51.7 | D70: Google
A71: Detour Average Travel Time (min) | B71: =B68/B69*60 -> 17.5 | C71: =C68/C69*60 -> 50.0 | D71: N/A
A72: Bridge Length (mi) | B72: =ROUND(B19,2) -> 0.02 | C72: =260/5280 -> 0.05 | D72: Google
A73: Note: Google or HPMS data are preferred for identifying average speed on the detour route. You can also use the HERS/VHT speed values using the Detour Road Type dropdown below.
A74: Note: Bridge length in the NBI does not include the approach length. Include approach length if relevant for your project.
A75: =HYPERLINK("https://www.google.com/maps", "Use Google Maps to calculate detour route length and average speed, as appropriate.") -> Use Google Maps to calculate detour route length and average speed, as appropriate.
A76: =HYPERLINK("https://www.fhwa.dot.gov/policyinformation/hpms.cfm", "Use the Highway Performance Monitoring System (HPMS) data to calculate detour route length and average speed, as appropriate.") -> Use the Highway Performance Monitoring System (HPMS) data to calculate detour route length and average speed, as appropriate.
A77: -
A78: Note: These reference cells are marked to avoid accidental deletion.
A79: Table 7. Reference Table
A80: Reference Cells | B80: =CONCATENATE(B11,B12) -> MississippiMadison | C80: =CONCATENATE(VLOOKUP($B$11,NBI_Dropdown!$B$1:$D$56,3,FALSE),$B$13) -> 284210005104513040
A81: -
A82: Table 8. Travel Assumptions
A83: Parameters | B83: Reference | C83: User Value | D83: Explanation and Source
A84: Bridge Average Speed (FHWA) | B84: =_xlfn.IFNA(VLOOKUP(B23,Defaults!B359:C371,2, FALSE), "N/A") -> 47 | C84: 47 | D84: -
A85: Average Car Occupancy | B85: =Defaults!B51 -> 1.67 | C85: 1.67 | D85: -
A86: Share of Long-Distance Personal Travel | B86: 0.0% | C86: 0% | D86: -
A87: Value of Time - Long-Distance Personal Travel | B87: =Defaults!B35 -> $25.10 | C87: $25.10 | D87: -
A88: Share of Business Travel | B88: 11.8% | C88: 11.8% | D88: -
A89: Value of Travel Time - Business | B89: =Defaults!B33 -> $32.30 | C89: $32.30 | D89: -
A90: Value of Travel Time - Personal | B90: =Defaults!B32 -> $17.90 | C90: $17.90 | D90: -
A91: Value of Travel Time - All Purposes | B91: =ROUND(B86*B87+B88*B89+(1-B86-B88)*B90,1) -> $19.60 | C91: =IFERROR(ROUND(C86*C87+C88*C89+(1-C86-C88)*C90,1),"-") -> $19.60 | D91: -
A92: Walking, Cycling, Waiting, Standing, and Transfer Time | B92: =Defaults!B36 -> $35.80 | C92: $35.80 | D92: -
A93: Truck Driver | B93: =Defaults!B39 -> $33.50 | C93: $33.50 | D93: -
A94: Bus Driver | B94: =Defaults!B40 -> $36.50 | C94: $36.50 | D94: -
A95: Average Bus Occupancy | B95: 0 | C95: 0 | D95: -
A96: -
A97: Capital Cost and Residual Value
A98: Table 9. Expenditure Dollars Option
A99: Are costs entered in year of expenditure dollars (not adjusted for inflation)? | B99: NO
A100: Enter future inflation rate for capital costs. | B100: 0%
A101: Note: Capital costs can be entered in year of expenditure dollars or in real dollars. The tool applies inflation and discounting factors automatically if entered as year of expenditure dollars.
A102: -
A103: Table 10. Already Incurred Costs
A104: Year | B104: Costs | C104: Real Costs | D104: Discounted Costs
A105: 2015 | B105: =101804.01/5 -> $20,361 | C105: =IF($B$99="NO",B105,IFERROR(B105*(IF(A105>$B$39, 1/((1+$B$100)^(A105-$B$39)),VLOOKUP(A105,Defaults!$A$134:$B$192, 2,FALSE))),"-")) -> $20,361 | D105: =IFERROR(IF(A105="","",IF(A105<=2020, C105, C105*VLOOKUP(A105,Defaults!$A$290:$B$340, 2,FALSE))),"-") -> $20,361
A106: 2016 | B106: =344006.89/5 -> $68,801 | C106: =IF($B$99="NO",B106,IFERROR(B106*(IF(A106>$B$39, 1/((1+$B$100)^(A106-$B$39)),VLOOKUP(A106,Defaults!$A$134:$B$192, 2,FALSE))),"-")) -> $68,801 | D106: =IFERROR(IF(A106="","",IF(A106<=2020, C106, C106*VLOOKUP(A106,Defaults!$A$290:$B$340, 2,FALSE))),"-") -> $68,801
A107: 2017 | B107: =246752.04/5 -> $49,350 | C107: =IF($B$99="NO",B107,IFERROR(B107*(IF(A107>$B$39, 1/((1+$B$100)^(A107-$B$39)),VLOOKUP(A107,Defaults!$A$134:$B$192, 2,FALSE))),"-")) -> $49,350 | D107: =IFERROR(IF(A107="","",IF(A107<=2020, C107, C107*VLOOKUP(A107,Defaults!$A$290:$B$340, 2,FALSE))),"-") -> $49,350
A108: 2018 | B108: =151861.34/5 -> $30,372 | C108: =IF($B$99="NO",B108,IFERROR(B108*(IF(A108>$B$39, 1/((1+$B$100)^(A108-$B$39)),VLOOKUP(A108,Defaults!$A$134:$B$192, 2,FALSE))),"-")) -> $30,372 | D108: =IFERROR(IF(A108="","",IF(A108<=2020, C108, C108*VLOOKUP(A108,Defaults!$A$290:$B$340, 2,FALSE))),"-") -> $30,372
A109: 2019 | B109: =198964.79/5 -> $39,793 | C109: =IF($B$99="NO",B109,IFERROR(B109*(IF(A109>$B$39, 1/((1+$B$100)^(A109-$B$39)),VLOOKUP(A109,Defaults!$A$134:$B$192, 2,FALSE))),"-")) -> $39,793 | D109: =IFERROR(IF(A109="","",IF(A109<=2020, C109, C109*VLOOKUP(A109,Defaults!$A$290:$B$340, 2,FALSE))),"-") -> $39,793
A110: 2020 | B110: =34341.94/5 -> $6,868 | C110: =IF($B$99="NO",B110,IFERROR(B110*(IF(A110>$B$39, 1/((1+$B$100)^(A110-$B$39)),VLOOKUP(A110,Defaults!$A$134:$B$192, 2,FALSE))),"-")) -> $6,868 | D110: =IFERROR(IF(A110="","",IF(A110<=2020, C110, C110*VLOOKUP(A110,Defaults!$A$290:$B$340, 2,FALSE))),"-") -> $6,868
A111: 2021 | B111: =233999.67/5 -> $46,800 | C111: =IF($B$99="NO",B111,IFERROR(B111*(IF(A111>$B$39, 1/((1+$B$100)^(A111-$B$39)),VLOOKUP(A111,Defaults!$A$134:$B$192, 2,FALSE))),"-")) -> $46,800 | D111: =IFERROR(IF(A111="","",IF(A111<=2020, C111, C111*VLOOKUP(A111,Defaults!$A$290:$B$340, 2,FALSE))),"-") -> -
A112: 2022 | B112: =435559.69/5 -> $87,112 | C112: =IF($B$99="NO",B112,IFERROR(B112*(IF(A112>$B$39, 1/((1+$B$100)^(A112-$B$39)),VLOOKUP(A112,Defaults!$A$134:$B$192, 2,FALSE))),"-")) -> $87,112 | D112: =IFERROR(IF(A112="","",IF(A112<=2020, C112, C112*VLOOKUP(A112,Defaults!$A$290:$B$340, 2,FALSE))),"-") -> $87,112
A113: 2023 | B113: =140651.85/5 -> $28,130 | C113: =IF($B$99="NO",B113,IFERROR(B113*(IF(A113>$B$39, 1/((1+$B$100)^(A113-$B$39)),VLOOKUP(A113,Defaults!$A$134:$B$192, 2,FALSE))),"-")) -> $28,130 | D113: =IFERROR(IF(A113="","",IF(A113<=2020, C113, C113*VLOOKUP(A113,Defaults!$A$290:$B$340, 2,FALSE))),"-") -> $27,285
A114: 2024 | B114: =50904.52/5 -> $10,181 | C114: =IF($B$99="NO",B114,IFERROR(B114*(IF(A114>$B$39, 1/((1+$B$100)^(A114-$B$39)),VLOOKUP(A114,Defaults!$A$134:$B$192, 2,FALSE))),"-")) -> $10,181 | D114: =IFERROR(IF(A114="","",IF(A114<=2020, C114, C114*VLOOKUP(A114,Defaults!$A$290:$B$340, 2,FALSE))),"-") -> $9,578
A115: - | B115: - | C115: =IF($B$99="NO",B115,IFERROR(B115*(IF(A115>$B$39, 1/((1+$B$100)^(A115-$B$39)),VLOOKUP(A115,Defaults!$A$134:$B$192, 2,FALSE))),"-")) -> - | D115: =IFERROR(IF(A115="","",IF(A115<=2020, C115, C115*VLOOKUP(A115,Defaults!$A$290:$B$340, 2,FALSE))),"-") -> -
A116: -
A117: Table 11. Capital Costs
A118: Year | B118: Costs | C118: Real Costs | D118: Discounted Costs
A119: =IFERROR(IF($B$33="-", "N/A", $B$33),"N/A") -> 2025 | B119: $923,631 | C119: =IF($B$99="NO",B119,IFERROR(B119*(IF(A119>$B$39, 1/(1+$B$100)^(A119-$B$39),VLOOKUP(A119,Defaults!$A$134:$B$192, 2,FALSE))),"-")) -> $923,631 | D119: =IFERROR(IF(A119="N/A","-",C119*VLOOKUP(A119,Defaults!$A$290:$B$340, 2,FALSE)),"-") -> $842,796
A120: =IFERROR(IF(A119="N/A","N/A",IF(A119>=$B$34,"N/A",A119+1)),"") -> 2026 | B120: $923,631 | C120: =IF($B$99="NO",B120,IFERROR(B120*(IF(A120>$B$39, 1/(1+$B$100)^(A120-$B$39),VLOOKUP(A120,Defaults!$A$134:$B$192, 2,FALSE))),"-")) -> $923,631 | D120: =IFERROR(IF(A120="N/A","-",C120*VLOOKUP(A120,Defaults!$A$290:$B$340, 2,FALSE)),"-") -> $817,455
A121: =IF(A120="N/A","N/A",IF(A120>=$B$34,"N/A",A120+1)) -> 2027 | B121: $923,631 | C121: =IF($B$99="NO",B121,IFERROR(B121*(IF(A121>$B$39, 1/(1+$B$100)^(A121-$B$39),VLOOKUP(A121,Defaults!$A$134:$B$192, 2,FALSE))),"-")) -> $923,631 | D121: =IFERROR(IF(A121="N/A","-",C121*VLOOKUP(A121,Defaults!$A$290:$B$340, 2,FALSE)),"-") -> $792,876
A122: 2028 | B122: $923,631 | C122: =IF($B$99="NO",B122,IFERROR(B122*(IF(A122>$B$39, 1/(1+$B$100)^(A122-$B$39),VLOOKUP(A122,Defaults!$A$134:$B$192, 2,FALSE))),"-")) -> $923,631 | D122: =IFERROR(IF(A122="N/A","-",C122*VLOOKUP(A122,Defaults!$A$290:$B$340, 2,FALSE)),"-") -> $769,036
A123: 2029 | B123: $923,631 | C123: =IF($B$99="NO",B123,IFERROR(B123*(IF(A123>$B$39, 1/(1+$B$100)^(A123-$B$39),VLOOKUP(A123,Defaults!$A$134:$B$192, 2,FALSE))),"-")) -> $923,631 | D123: =IFERROR(IF(A123="N/A","-",C123*VLOOKUP(A123,Defaults!$A$290:$B$340, 2,FALSE)),"-") -> $745,912
A124: N/A | B124: - | C124: =IF($B$99="NO",B124,IFERROR(B124*(IF(A124>$B$39, 1/(1+$B$100)^(A124-$B$39),VLOOKUP(A124,Defaults!$A$134:$B$192, 2,FALSE))),"-")) -> - | D124: =IFERROR(IF(A124="N/A","-",C124*VLOOKUP(A124,Defaults!$A$290:$B$340, 2,FALSE)),"-") -> -
A125: N/A | B125: - | C125: =IF($B$99="NO",B125,IFERROR(B125*(IF(A125>$B$39, 1/(1+$B$100)^(A125-$B$39),VLOOKUP(A125,Defaults!$A$134:$B$192, 2,FALSE))),"-")) -> - | D125: =IFERROR(IF(A125="N/A","-",C125*VLOOKUP(A125,Defaults!$A$290:$B$340, 2,FALSE)),"-") -> -
A126: N/A | B126: - | C126: =IF($B$99="NO",B126,IFERROR(B126*(IF(A126>$B$39, 1/(1+$B$100)^(A126-$B$39),VLOOKUP(A126,Defaults!$A$134:$B$192, 2,FALSE))),"-")) -> - | D126: =IFERROR(IF(A126="N/A","-",C126*VLOOKUP(A126,Defaults!$A$290:$B$340, 2,FALSE)),"-") -> -
A127: N/A | B127: - | C127: =IF($B$99="NO",B127,IFERROR(B127*(IF(A127>$B$39, 1/(1+$B$100)^(A127-$B$39),VLOOKUP(A127,Defaults!$A$134:$B$192, 2,FALSE))),"-")) -> - | D127: =IFERROR(IF(A127="N/A","-",C127*VLOOKUP(A127,Defaults!$A$290:$B$340, 2,FALSE)),"-") -> -
A128: N/A | B128: - | C128: =IF($B$99="NO",B128,IFERROR(B128*(IF(A128>$B$39, 1/(1+$B$100)^(A128-$B$39),VLOOKUP(A128,Defaults!$A$134:$B$192, 2,FALSE))),"-")) -> - | D128: =IFERROR(IF(A128="N/A","-",C128*VLOOKUP(A128,Defaults!$A$290:$B$340, 2,FALSE)),"-") -> -
A129: N/A | B129: - | C129: =IF($B$99="NO",B129,IFERROR(B129*(IF(A129>$B$39, 1/(1+$B$100)^(A129-$B$39),VLOOKUP(A129,Defaults!$A$134:$B$192, 2,FALSE))),"-")) -> - | D129: =IFERROR(IF(A129="N/A","-",C129*VLOOKUP(A129,Defaults!$A$290:$B$340, 2,FALSE)),"-") -> -
A130: -
A131: Table 12. Capital Cost Summary
A132: Total Capital Costs: | B132: =SUM(B105:B115)+SUM(B119:B129) -> $5,005,923
A133: Total Real Capital Costs: | B133: =SUM(C105:C115)+SUM(C119:C129) -> $5,005,923
A134: Total Discounted Capital Costs: | B134: =SUM(D105:D115)+SUM(D119:D129) -> $4,307,595
A135: -
A136: Table 13. Residual Value
A137: Share of Capital Costs | B137: Asset Life (Years) | C137: Explanation and Source
A138: 100% | B138: 75 | C138: AASHTO
A139: 0% | B139: 0 | C139: -
A140: 0% | B140: 0 | C140: -
A141: 0% | B141: 0 | C141: -
A142: =SUM(A138:A141) -> 100% | B142: Summation | C142: N/A
A143: Note: If there are multiple components of the project for this specific bridge that different asset lives, enter the share of the project costs associated with the different project components and their asset life.
A144: Note: The Summation cell should be 100%.
A145: -
A146: Operating and Maintenance Costs (O&M)
A147: Table 14. Operating and Maintenance Costs Assumptions
A148: Which method would you like to use to enter O&M costs? | B148: Manual Entry
A149: Year of O&M costs Dollars | B149: 2024
A150: Note: If you have O&M costs in the construction period you will need to use the manual entry option to enter the O&M costs in the construction period.
A151: Note: The operating and maintenance costs in the baseline should be entered to be consistent with your estimate of closure. If the bridge is closed in a future year (Table 25), there should not be maintenance costs for that year and thereafter.
A152: Note: For frequency calculation option, all costs should be entered as year of expenditure. The tool applies inflation and discounting factors automatically.
A153: -
A154: Table 15. Annual O&M Calculation Input
A155: Category | B155: Value
A156: Annual O&M Costs in the No Build Scenario | B156: -
A157: Annual O&M Costs Real Growth Rate in the No Build Scenario | B157: 0%
A158: Annual O&M Costs in the Build Scenario | B158: -
A159: Annual O&M Costs Real Growth Rate in the Build Scenario | B159: 0%
A160: Note: The maintenance real growth rate represents the real cost increases year over year (e.g., from increased deterioration of the asset). It should not include inflation adjustments.
A161: -
A162: Table 16a. Intermittent O&M Calculation Input
A163: Category | B163: Value
A164: Initial year | B164: -
A165: Last Year | B165: -
A166: Occurs every _____ Years; set to 30 if occurs only once | B166: 1
A167: Annual O&M Costs in the No Build Scenario | B167: -
A168: Annual O&M Costs Real Growth Rate in the Build Scenario | B168: -
A169: -
A170: Table 16b. Intermittent O&M Calculation Input
A171: Category | B171: Value
A172: Initial year | B172: -
A173: Last Year | B173: -
A174: Occurs every _____ Years; set to 30 if occurs only once | B174: 1
A175: Annual O&M Costs in the No Build Scenario | B175: -
A176: Annual O&M Costs Real Growth Rate in the Build Scenario | B176: -
A177: -
A178: Table 16c. Intermittent O&M Calculation Input
A179: Category | B179: Value
A180: Initial year | B180: -
A181: Last Year | B181: -
A182: Occurs every _____ Years; set to 30 if occurs only once | B182: 1
A183: Annual O&M Costs in the No Build Scenario | B183: -
A184: Annual O&M Costs Real Growth Rate in the Build Scenario | B184: -
A185: -
A186: Table 16d. Intermittent O&M Calculation Input
A187: Category | B187: Value
A188: Initial year | B188: -
A189: Last Year | B189: -
A190: Occurs every _____ Years; set to 30 if occurs only once | B190: 1
A191: Annual O&M Costs in the No Build Scenario | B191: -
A192: Annual O&M Costs Real Growth Rate in the Build Scenario | B192: -
A193: Note: The "Occurs every _____ " field in Tables 16a through 16d must be greater than or equal to 1, even if you are not adding an additional recurring maintenance cost.
A194: -
A195: Note: Manual O&M cost values should be entered in the year of dollar entered in Table 14.
A196: Table 17. Manual O&M Cost Entry
A197: Calendar Year | B197: Analysis Year | C197: No Build Annual Cost | D197: Build Annual Cost | E197: O&M Cost Difference Discounted
A198: =IFERROR(IF(B32="Required","N/A",B32),"N/A") -> 2022 | B198: =IFERROR(IF(A198=$B$35,1,IF(A198>$B$35,A198-$B$35+1,IF(A198<$B$35,A198-$B$35+1,"N/A"))),"N/A") -> -7 | C198: 0 | D198: 0 | E198: =IFERROR((C198-D198)*VLOOKUP($B$149,Defaults!$A$290:$B$340, 2,FALSE)*VLOOKUP(A198,Defaults!$A$290:$B$340,2,FALSE),0) -> 0
A199: =IF(A198="N/A","N/A",IF(A198>=$B$35+$B$36-1,"N/A",A198+1)) -> 2023 | B199: -6 | C199: 0 | D199: 0 | E199: =IFERROR((C199-D199)*VLOOKUP($B$149,Defaults!$A$290:$B$340, 2,FALSE)*VLOOKUP(A199,Defaults!$A$290:$B$340,2,FALSE),0) -> 0
A200: 2024 | B200: -5 | C200: 0 | D200: 0 | E200: =IFERROR((C200-D200)*VLOOKUP($B$149,Defaults!$A$290:$B$340, 2,FALSE)*VLOOKUP(A200,Defaults!$A$290:$B$340,2,FALSE),0) -> 0
... 495 more rows

Sheet 123.1
A1: Bridge and Project Overview
A2: ID of bridge, description of improvement, project timeline, traffic volume
A3: Add New Bridge (press Ctrl + Shift + B)
A4: Add Sensitivity Analysis for Current Bridge (press Ctrl + Shift + S)
A5: Delete this Bridge (press Ctrl + Shift + D)
A6: Note: Only delete bridges using this command/button. Deleting bridge tabs through right click will result in (fixable) errors on the Results tab.
A7: Change Bridge Name (press Ctrl + Shift + N)
A8: -
A9: Table 1. Bridge Variables
A10: Bridge Variables | B10: Bridge Values
A11: State | B11: Mississippi
A12: County | B12: Lauderdale
A13: Structure Number | B13: 210008003812310
A14: Inventory Route | B14: =VLOOKUP($C$80,NBIData[],COLUMN(NBIData[ROUTE_NUMBER_005D]),FALSE) -> 00080
A15: Feature Intersected | B15: =VLOOKUP($C$80,NBIData[],COLUMN(NBIData[FEATURES_DESC_006A]),FALSE) -> 'SLOUGH'
A16: Facility Carried | B16: =VLOOKUP($C$80,NBIData[],COLUMN(NBIData[FACILITY_CARRIED_007]),FALSE) -> 'US 80'
A17: Latitude | B17: =LEFT(VLOOKUP($C$80,NBIData[],COLUMN(NBIData[LAT_016]),FALSE), 2) & CHAR(176) & " " & MID(VLOOKUP($C$80,NBIData[],COLUMN(NBIData[LAT_016]),FALSE), 3, 2) &"'" & " " & MID(VLOOKUP($C$80,NBIData[],COLUMN(NBIData[LAT_016]),FALSE), 5, 2) &"."& MID(VLOOKUP($C$80,NBIData[],COLUMN(NBIData[LAT_016]),FALSE), 7, 2) & CHAR(34) -> 32° 19' 39.35"
A18: Longitude | B18: ="-" & MID(VLOOKUP($C$80,NBIData[],COLUMN(NBIData[LONG_017]),FALSE), 2, 2) & CHAR(176) & " " & MID(VLOOKUP($C$80,NBIData[],COLUMN(NBIData[LONG_017]),FALSE), 4, 2) &"'" & " " & MID(VLOOKUP($C$80,NBIData[],COLUMN(NBIData[LONG_017]),FALSE), 6, 2) &"."& MID(VLOOKUP($C$80,NBIData[],COLUMN(NBIData[LONG_017]),FALSE), 8, 2) & CHAR(34) -> -88° 54' 44.79"
A19: Bridge Length (mi) | B19: =VLOOKUP($C$80,NBIData[],COLUMN(NBIData[STRUCTURE_LEN_MT_049]),FALSE)/1609 -> 0.02709757613
A20: Bypass, Detour Length (mi) | B20: =VLOOKUP($C$80,NBIData[],COLUMN(NBIData[DETOUR_KILOS_019]),FALSE)*0.621371 -> 14.91
A21: Owner | B21: =VLOOKUP($C$80,NBIData[],COLUMN(NBIData[OWNER_022]),FALSE) -> 01
A22: Functional Class, Rural/Urban | B22: =VLOOKUP($C$80,NBIData[],COLUMN(NBIData[FUNCTIONAL_CLASS_026]),FALSE) -> 07
A23: Bridge Road Type | B23: =VLOOKUP(B22,Defaults!A359:$D$371, 2, FALSE) -> Rural - Major Collector
A24: Year Built | B24: =VLOOKUP($C$80,NBIData[],COLUMN(NBIData[YEAR_BUILT_027]),FALSE) -> 1928
A25: Year Reconstructed | B25: =VLOOKUP($C$80,NBIData[],COLUMN(NBIData[YEAR_RECONSTRUCTED_106]),FALSE) -> 0
A26: Lanes on the Structure | B26: =VLOOKUP($C$80,NBIData[],COLUMN(NBIData[TRAFFIC_LANES_ON_028A]),FALSE) -> 2
A27: Note: Some bridges have the same structure number. Use the state and county drop downs to identify your bridge.
A28: -
A29: Project Description:
A30: Table 2. Project Timeline
A31: Timeline Variables | B31: Timeline Values
A32: Current Year | B32: 2022
A33: First Year of Construction Costs | B33: 2025
A34: Last Year of Construction Costs | B34: 2029
A35: Project Opens (Start of Benefits) | B35: 2030
A36: Years of Benefits for Analysis | B36: 30
A37: First Year of Period of Analysis | B37: =IF(B35="Required","-", B35) -> 2030
A38: Last Year of Period of Analysis | B38: =IFERROR(B35+B36-1, "-") -> 2059
A39: Discount Year | B39: =Defaults!A290 -> 2022
A40: Base Year of NBI | B40: 2023
A41: Note: The tool cannot handle partial years, or pro-rata benefits or costs. Round up or down to the nearest year for construction start, construction end, and the start of benefits.
A42: Note: Enter a value between 20 to 30 for the Years of Benefits for Analysis, appropriate to the project as defined by US DOT BCA Guidance.
A43: -
A44: Table 3. Average Annual Daily Traffic (AADT)
A45: Scenario and Vehicle Type | B45: NBI Year of AADT | C45: NBI Year of Future AADT | D45: Forecast using NBI Growth Rate | E45: Forecast using NBI Growth Rate2 | F45: Project Opens | G45: Last Year | H45: Explanation and Source
A46: Year | B46: =VLOOKUP($C$80,NBIData[],COLUMN(NBIData[YEAR_ADT_030]),FALSE) -> 2022 | C46: =VLOOKUP($C$80,NBIData[],COLUMN(NBIData[YEAR_OF_FUTURE_ADT_115]),FALSE) -> 2059 | D46: =IF(B35="Required","-",B35) -> 2030 | E46: =B38 -> 2059 | F46: =IF(B35="Required", "-",B35) -> 2030 | G46: =B38 -> 2059 | H46: N/A
A47: No Build - Passenger AADT | B47: =VLOOKUP($C$80,NBIData[],COLUMN(NBIData[ADT_029]),FALSE)*(1-VLOOKUP($C$80,NBIData[],COLUMN(NBIData[PERCENT_ADT_TRUCK_109]),FALSE)/100) -> 783 | C47: =VLOOKUP($C$80,NBIData[],COLUMN(NBIData[FUTURE_ADT_114]),FALSE)*(1-VLOOKUP($C$80,NBIData[],COLUMN(NBIData[PERCENT_ADT_TRUCK_109]),FALSE)/100) -> 1131 | D47: =ROUND(B47*((1+B59)^(D$46-$B$46)),0) -> 847 | E47: =ROUND(C47*((1+B59)^(E$46-$C$46)),0) -> 1131 | F47: 846 | G47: 1131 | H47: BCA Guidance, MDOT
A48: No Build - Truck AADT | B48: =VLOOKUP($C$80,NBIData[],COLUMN(NBIData[PERCENT_ADT_TRUCK_109]),FALSE)/100*VLOOKUP($C$80,NBIData[],COLUMN(NBIData[ADT_029]),FALSE) -> 77 | C48: =VLOOKUP($C$80,NBIData[],COLUMN(NBIData[PERCENT_ADT_TRUCK_109]),FALSE)/100*VLOOKUP($C$80,NBIData[],COLUMN(NBIData[FUTURE_ADT_114]),FALSE) -> 112 | D48: =ROUND(B48*((1+B59)^(D$46-$B$46)),0) -> 84 | E48: =ROUND(C48*((1+B59)^(E$46-$C$46)),0) -> 112 | F48: 84 | G48: 112 | H48: BCA Guidance, MDOT
A49: No Build - Bus AADT | B49: N/A | C49: N/A | D49: N/A | E49: N/A | F49: 0 | G49: 0 | H49: BCA Guidance, MDOT
A50: Build - Passenger AADT | B50: =B47 -> 783 | C50: =C47 -> 1131 | D50: =ROUND(B50*((1+B59)^(D$46-$B$46)),0) -> 847 | E50: =ROUND(C50*((1+B59)^(E$46-$C$46)),0) -> 1131 | F50: 846 | G50: 1131 | H50: BCA Guidance, MDOT
A51: Build - Truck AADT | B51: =B48 -> 77 | C51: =C48 -> 112 | D51: =ROUND(B51*((1+B59)^(D$46-$B$46)),0) -> 84 | E51: =ROUND(C51*((1+B59)^(E$46-$C$46)),0) -> 112 | F51: 84 | G51: 112 | H51: BCA Guidance, MDOT
A52: Build - Bus AADT | B52: N/A | C52: N/A | D52: N/A | E52: N/A | F52: 0 | G52: 0 | H52: BCA Guidance, MDOT
A53: =HYPERLINK("#A542","Note: AADT can be entered manually in Table 52 and Table 53 below.") -> Note: AADT can be entered manually in Table 52 and Table 53 below.
A54: Note: Here and elsewhere in the tool it is critical that you enter at least some value in the required cells, e.g., 0, rather than "-", "N/A" or leaving it blank.
A55: Note: NBI AADT values are added for reference in Table 3. Users must enter AADT values in Columns G, H and I in Table 3.
A56: -
A57: Note: Table 4 is not a user input. Do not adjust Table 4.
A58: Table 4. NBI's Calculated Average Annual Daily Traffic (AADT) Growth Rate
A59: =CONCATENATE("The NBI Calculated Annual Growth Rate", " ", B46, "-",C46, " (NBI)") -> The NBI Calculated Annual Growth Rate 2022-2059 (NBI) | B59: =(C47/B47)^(1/(C$46-B$46))-1 -> $0
A60: -
A61: Table 5. Detour Road Type
A62: Detour Road Type | B62: Rural - Principal Arterial - Interstate
A63: Detour Road Type - Simple | B63: =IF(B62="Required", "-",IF(ISNUMBER(SEARCH("Urban",B62)), "Urban", "Rural")) -> Rural
A64: -
A65: Note: Detour length should represent the Net detour: Detour length minus the original route length.
A66: Table 6. Detour and Bridge Length Information
A67: Detour Details | B67: Reference | C67: User Value | D67: Explanation and Source
A68: Net Detour Length, For Vehicles (mi) (NBI) | B68: =ROUND(VLOOKUP($C$80,NBIData[],COLUMN(NBIData[DETOUR_KILOS_019]),FALSE)*0.621371,1) -> 14.9 | C68: 17.4 | D68: Google
A69: Detour Average Speed, for Vehicles (mph) (FHWA VHT) | B69: =ROUND(VLOOKUP(B62,Defaults!B359:F371,2, FALSE),1) -> 66.0 | C69: 50.0 | D69: Google
A70: Net Detour Length, For Cycling/ Pedestrian (mi) (NBI) | B70: =ROUND(VLOOKUP($C$80,NBIData[],COLUMN(NBIData[DETOUR_KILOS_019]),FALSE)*0.621371, 1) -> 14.9 | C70: 17.4 | D70: Google
A71: Detour Average Travel Time (min) | B71: =B68/B69*60 -> 13.5 | C71: =C68/C69*60 -> 20.9 | D71: N/A
A72: Bridge Length (mi) | B72: =ROUND(B19,2) -> 0.03 | C72: =270/5280 -> 0.05 | D72: Google
A73: Note: Google or HPMS data are preferred for identifying average speed on the detour route. You can also use the HERS/VHT speed values using the Detour Road Type dropdown below.
A74: Note: Bridge length in the NBI does not include the approach length. Include approach length if relevant for your project.
A75: =HYPERLINK("https://www.google.com/maps", "Use Google Maps to calculate detour route length and average speed, as appropriate.") -> Use Google Maps to calculate detour route length and average speed, as appropriate.
A76: =HYPERLINK("https://www.fhwa.dot.gov/policyinformation/hpms.cfm", "Use the Highway Performance Monitoring System (HPMS) data to calculate detour route length and average speed, as appropriate.") -> Use the Highway Performance Monitoring System (HPMS) data to calculate detour route length and average speed, as appropriate.
A77: -
A78: Note: These reference cells are marked to avoid accidental deletion.
A79: Table 7. Reference Table
A80: Reference Cells | B80: =CONCATENATE(B11,B12) -> MississippiLauderdale | C80: =CONCATENATE(VLOOKUP($B$11,NBI_Dropdown!$B$1:$D$56,3,FALSE),$B$13) -> 284210008003812310
A81: -
A82: Table 8. Travel Assumptions
A83: Parameters | B83: Reference | C83: User Value | D83: Explanation and Source
A84: Bridge Average Speed (FHWA) | B84: =_xlfn.IFNA(VLOOKUP(B23,Defaults!B359:C371,2, FALSE), "N/A") -> 47 | C84: 47 | D84: -
A85: Average Car Occupancy | B85: =Defaults!B51 -> 1.67 | C85: 1.67 | D85: -
A86: Share of Long-Distance Personal Travel | B86: 0.0% | C86: 0% | D86: -
A87: Value of Time - Long-Distance Personal Travel | B87: =Defaults!B35 -> $25.10 | C87: $25.10 | D87: -
A88: Share of Business Travel | B88: 11.8% | C88: 11.8% | D88: -
A89: Value of Travel Time - Business | B89: =Defaults!B33 -> $32.30 | C89: $32.30 | D89: -
A90: Value of Travel Time - Personal | B90: =Defaults!B32 -> $17.90 | C90: $17.90 | D90: -
A91: Value of Travel Time - All Purposes | B91: =ROUND(B86*B87+B88*B89+(1-B86-B88)*B90,1) -> $19.60 | C91: =IFERROR(ROUND(C86*C87+C88*C89+(1-C86-C88)*C90,1),"-") -> $19.60 | D91: -
A92: Walking, Cycling, Waiting, Standing, and Transfer Time | B92: =Defaults!B36 -> $35.80 | C92: $35.80 | D92: -
A93: Truck Driver | B93: =Defaults!B39 -> $33.50 | C93: $33.50 | D93: -
A94: Bus Driver | B94: =Defaults!B40 -> $36.50 | C94: $36.50 | D94: -
A95: Average Bus Occupancy | B95: 0 | C95: 0 | D95: -
A96: -
A97: Capital Cost and Residual Value
A98: Table 9. Expenditure Dollars Option
A99: Are costs entered in year of expenditure dollars (not adjusted for inflation)? | B99: NO
A100: Enter future inflation rate for capital costs. | B100: 0%
A101: Note: Capital costs can be entered in year of expenditure dollars or in real dollars. The tool applies inflation and discounting factors automatically if entered as year of expenditure dollars.
A102: -
A103: Table 10. Already Incurred Costs
A104: Year | B104: Costs | C104: Real Costs | D104: Discounted Costs
A105: 2016 | B105: =3536.44/3 -> $1,179 | C105: =IF($B$99="NO",B105,IFERROR(B105*(IF(A105>$B$39, 1/((1+$B$100)^(A105-$B$39)),VLOOKUP(A105,Defaults!$A$134:$B$192, 2,FALSE))),"-")) -> $1,179 | D105: =IFERROR(IF(A105="","",IF(A105<=2020, C105, C105*VLOOKUP(A105,Defaults!$A$290:$B$340, 2,FALSE))),"-") -> $1,179
A106: 2017 | B106: =49764.69/3 -> $16,588 | C106: =IF($B$99="NO",B106,IFERROR(B106*(IF(A106>$B$39, 1/((1+$B$100)^(A106-$B$39)),VLOOKUP(A106,Defaults!$A$134:$B$192, 2,FALSE))),"-")) -> $16,588 | D106: =IFERROR(IF(A106="","",IF(A106<=2020, C106, C106*VLOOKUP(A106,Defaults!$A$290:$B$340, 2,FALSE))),"-") -> $16,588
A107: 2018 | B107: =11906.98/3 -> $3,969 | C107: =IF($B$99="NO",B107,IFERROR(B107*(IF(A107>$B$39, 1/((1+$B$100)^(A107-$B$39)),VLOOKUP(A107,Defaults!$A$134:$B$192, 2,FALSE))),"-")) -> $3,969 | D107: =IFERROR(IF(A107="","",IF(A107<=2020, C107, C107*VLOOKUP(A107,Defaults!$A$290:$B$340, 2,FALSE))),"-") -> $3,969
A108: 2019 | B108: =57602.6/3 -> $19,201 | C108: =IF($B$99="NO",B108,IFERROR(B108*(IF(A108>$B$39, 1/((1+$B$100)^(A108-$B$39)),VLOOKUP(A108,Defaults!$A$134:$B$192, 2,FALSE))),"-")) -> $19,201 | D108: =IFERROR(IF(A108="","",IF(A108<=2020, C108, C108*VLOOKUP(A108,Defaults!$A$290:$B$340, 2,FALSE))),"-") -> $19,201
A109: 2020 | B109: =86616.07/3 -> $28,872 | C109: =IF($B$99="NO",B109,IFERROR(B109*(IF(A109>$B$39, 1/((1+$B$100)^(A109-$B$39)),VLOOKUP(A109,Defaults!$A$134:$B$192, 2,FALSE))),"-")) -> $28,872 | D109: =IFERROR(IF(A109="","",IF(A109<=2020, C109, C109*VLOOKUP(A109,Defaults!$A$290:$B$340, 2,FALSE))),"-") -> $28,872
A110: 2021 | B110: =174455.97/3 -> $58,152 | C110: =IF($B$99="NO",B110,IFERROR(B110*(IF(A110>$B$39, 1/((1+$B$100)^(A110-$B$39)),VLOOKUP(A110,Defaults!$A$134:$B$192, 2,FALSE))),"-")) -> $58,152 | D110: =IFERROR(IF(A110="","",IF(A110<=2020, C110, C110*VLOOKUP(A110,Defaults!$A$290:$B$340, 2,FALSE))),"-") -> -
A111: 2022 | B111: =186086.21/3 -> $62,029 | C111: =IF($B$99="NO",B111,IFERROR(B111*(IF(A111>$B$39, 1/((1+$B$100)^(A111-$B$39)),VLOOKUP(A111,Defaults!$A$134:$B$192, 2,FALSE))),"-")) -> $62,029 | D111: =IFERROR(IF(A111="","",IF(A111<=2020, C111, C111*VLOOKUP(A111,Defaults!$A$290:$B$340, 2,FALSE))),"-") -> $62,029
A112: 2023 | B112: =336896.48/3 -> $112,299 | C112: =IF($B$99="NO",B112,IFERROR(B112*(IF(A112>$B$39, 1/((1+$B$100)^(A112-$B$39)),VLOOKUP(A112,Defaults!$A$134:$B$192, 2,FALSE))),"-")) -> $112,299 | D112: =IFERROR(IF(A112="","",IF(A112<=2020, C112, C112*VLOOKUP(A112,Defaults!$A$290:$B$340, 2,FALSE))),"-") -> $108,922
A113: 2024 | B113: =141099.69/3 -> $47,033 | C113: =IF($B$99="NO",B113,IFERROR(B113*(IF(A113>$B$39, 1/((1+$B$100)^(A113-$B$39)),VLOOKUP(A113,Defaults!$A$134:$B$192, 2,FALSE))),"-")) -> $47,033 | D113: =IFERROR(IF(A113="","",IF(A113<=2020, C113, C113*VLOOKUP(A113,Defaults!$A$290:$B$340, 2,FALSE))),"-") -> $44,247
A114: - | B114: - | C114: =IF($B$99="NO",B114,IFERROR(B114*(IF(A114>$B$39, 1/((1+$B$100)^(A114-$B$39)),VLOOKUP(A114,Defaults!$A$134:$B$192, 2,FALSE))),"-")) -> - | D114: =IFERROR(IF(A114="","",IF(A114<=2020, C114, C114*VLOOKUP(A114,Defaults!$A$290:$B$340, 2,FALSE))),"-") -> -
A115: - | B115: - | C115: =IF($B$99="NO",B115,IFERROR(B115*(IF(A115>$B$39, 1/((1+$B$100)^(A115-$B$39)),VLOOKUP(A115,Defaults!$A$134:$B$192, 2,FALSE))),"-")) -> - | D115: =IFERROR(IF(A115="","",IF(A115<=2020, C115, C115*VLOOKUP(A115,Defaults!$A$290:$B$340, 2,FALSE))),"-") -> -
A116: -
A117: Table 11. Capital Costs
A118: Year | B118: Costs | C118: Real Costs | D118: Discounted Costs
A119: =IFERROR(IF($B$33="-", "N/A", $B$33),"N/A") -> 2025 | B119: $879,227 | C119: =IF($B$99="NO",B119,IFERROR(B119*(IF(A119>$B$39, 1/(1+$B$100)^(A119-$B$39),VLOOKUP(A119,Defaults!$A$134:$B$192, 2,FALSE))),"-")) -> $879,227 | D119: =IFERROR(IF(A119="N/A","-",C119*VLOOKUP(A119,Defaults!$A$290:$B$340, 2,FALSE)),"-") -> $802,278
A120: =IFERROR(IF(A119="N/A","N/A",IF(A119>=$B$34,"N/A",A119+1)),"") -> 2026 | B120: $879,227 | C120: =IF($B$99="NO",B120,IFERROR(B120*(IF(A120>$B$39, 1/(1+$B$100)^(A120-$B$39),VLOOKUP(A120,Defaults!$A$134:$B$192, 2,FALSE))),"-")) -> $879,227 | D120: =IFERROR(IF(A120="N/A","-",C120*VLOOKUP(A120,Defaults!$A$290:$B$340, 2,FALSE)),"-") -> $778,155
A121: =IF(A120="N/A","N/A",IF(A120>=$B$34,"N/A",A120+1)) -> 2027 | B121: $879,227 | C121: =IF($B$99="NO",B121,IFERROR(B121*(IF(A121>$B$39, 1/(1+$B$100)^(A121-$B$39),VLOOKUP(A121,Defaults!$A$134:$B$192, 2,FALSE))),"-")) -> $879,227 | D121: =IFERROR(IF(A121="N/A","-",C121*VLOOKUP(A121,Defaults!$A$290:$B$340, 2,FALSE)),"-") -> $754,758
A122: 2028 | B122: $879,227 | C122: =IF($B$99="NO",B122,IFERROR(B122*(IF(A122>$B$39, 1/(1+$B$100)^(A122-$B$39),VLOOKUP(A122,Defaults!$A$134:$B$192, 2,FALSE))),"-")) -> $879,227 | D122: =IFERROR(IF(A122="N/A","-",C122*VLOOKUP(A122,Defaults!$A$290:$B$340, 2,FALSE)),"-") -> $732,064
A123: 2029 | B123: $879,227 | C123: =IF($B$99="NO",B123,IFERROR(B123*(IF(A123>$B$39, 1/(1+$B$100)^(A123-$B$39),VLOOKUP(A123,Defaults!$A$134:$B$192, 2,FALSE))),"-")) -> $879,227 | D123: =IFERROR(IF(A123="N/A","-",C123*VLOOKUP(A123,Defaults!$A$290:$B$340, 2,FALSE)),"-") -> $710,052
A124: N/A | B124: - | C124: =IF($B$99="NO",B124,IFERROR(B124*(IF(A124>$B$39, 1/(1+$B$100)^(A124-$B$39),VLOOKUP(A124,Defaults!$A$134:$B$192, 2,FALSE))),"-")) -> - | D124: =IFERROR(IF(A124="N/A","-",C124*VLOOKUP(A124,Defaults!$A$290:$B$340, 2,FALSE)),"-") -> -
A125: N/A | B125: - | C125: =IF($B$99="NO",B125,IFERROR(B125*(IF(A125>$B$39, 1/(1+$B$100)^(A125-$B$39),VLOOKUP(A125,Defaults!$A$134:$B$192, 2,FALSE))),"-")) -> - | D125: =IFERROR(IF(A125="N/A","-",C125*VLOOKUP(A125,Defaults!$A$290:$B$340, 2,FALSE)),"-") -> -
A126: N/A | B126: - | C126: =IF($B$99="NO",B126,IFERROR(B126*(IF(A126>$B$39, 1/(1+$B$100)^(A126-$B$39),VLOOKUP(A126,Defaults!$A$134:$B$192, 2,FALSE))),"-")) -> - | D126: =IFERROR(IF(A126="N/A","-",C126*VLOOKUP(A126,Defaults!$A$290:$B$340, 2,FALSE)),"-") -> -
A127: N/A | B127: - | C127: =IF($B$99="NO",B127,IFERROR(B127*(IF(A127>$B$39, 1/(1+$B$100)^(A127-$B$39),VLOOKUP(A127,Defaults!$A$134:$B$192, 2,FALSE))),"-")) -> - | D127: =IFERROR(IF(A127="N/A","-",C127*VLOOKUP(A127,Defaults!$A$290:$B$340, 2,FALSE)),"-") -> -
A128: N/A | B128: - | C128: =IF($B$99="NO",B128,IFERROR(B128*(IF(A128>$B$39, 1/(1+$B$100)^(A128-$B$39),VLOOKUP(A128,Defaults!$A$134:$B$192, 2,FALSE))),"-")) -> - | D128: =IFERROR(IF(A128="N/A","-",C128*VLOOKUP(A128,Defaults!$A$290:$B$340, 2,FALSE)),"-") -> -
A129: N/A | B129: - | C129: =IF($B$99="NO",B129,IFERROR(B129*(IF(A129>$B$39, 1/(1+$B$100)^(A129-$B$39),VLOOKUP(A129,Defaults!$A$134:$B$192, 2,FALSE))),"-")) -> - | D129: =IFERROR(IF(A129="N/A","-",C129*VLOOKUP(A129,Defaults!$A$290:$B$340, 2,FALSE)),"-") -> -
A130: -
A131: Table 12. Capital Cost Summary
A132: Total Capital Costs: | B132: =SUM(B105:B115)+SUM(B119:B129) -> $4,745,456
A133: Total Real Capital Costs: | B133: =SUM(C105:C115)+SUM(C119:C129) -> $4,745,456
A134: Total Discounted Capital Costs: | B134: =SUM(D105:D115)+SUM(D119:D129) -> $4,062,315
A135: -
A136: Table 13. Residual Value
A137: Share of Capital Costs | B137: Asset Life (Years) | C137: Explanation and Source
A138: 100% | B138: 75 | C138: AASHTO
A139: 0% | B139: 0 | C139: -
A140: 0% | B140: 0 | C140: -
A141: 0% | B141: 0 | C141: -
A142: =SUM(A138:A141) -> 100% | B142: Summation | C142: N/A
A143: Note: If there are multiple components of the project for this specific bridge that different asset lives, enter the share of the project costs associated with the different project components and their asset life.
A144: Note: The Summation cell should be 100%.
A145: -
A146: Operating and Maintenance Costs (O&M)
A147: Table 14. Operating and Maintenance Costs Assumptions
A148: Which method would you like to use to enter O&M costs? | B148: Manual Entry
A149: Year of O&M costs Dollars | B149: 2024
A150: Note: If you have O&M costs in the construction period you will need to use the manual entry option to enter the O&M costs in the construction period.
A151: Note: The operating and maintenance costs in the baseline should be entered to be consistent with your estimate of closure. If the bridge is closed in a future year (Table 25), there should not be maintenance costs for that year and thereafter.
A152: Note: For frequency calculation option, all costs should be entered as year of expenditure. The tool applies inflation and discounting factors automatically.
A153: -
A154: Table 15. Annual O&M Calculation Input
A155: Category | B155: Value
A156: Annual O&M Costs in the No Build Scenario | B156: -
A157: Annual O&M Costs Real Growth Rate in the No Build Scenario | B157: 0%
A158: Annual O&M Costs in the Build Scenario | B158: -
A159: Annual O&M Costs Real Growth Rate in the Build Scenario | B159: 0%
A160: Note: The maintenance real growth rate represents the real cost increases year over year (e.g., from increased deterioration of the asset). It should not include inflation adjustments.
A161: -
A162: Table 16a. Intermittent O&M Calculation Input
A163: Category | B163: Value
A164: Initial year | B164: -
A165: Last Year | B165: -
A166: Occurs every _____ Years; set to 30 if occurs only once | B166: 1
A167: Annual O&M Costs in the No Build Scenario | B167: -
A168: Annual O&M Costs Real Growth Rate in the Build Scenario | B168: -
A169: -
A170: Table 16b. Intermittent O&M Calculation Input
A171: Category | B171: Value
A172: Initial year | B172: -
A173: Last Year | B173: -
A174: Occurs every _____ Years; set to 30 if occurs only once | B174: 1
A175: Annual O&M Costs in the No Build Scenario | B175: -
A176: Annual O&M Costs Real Growth Rate in the Build Scenario | B176: -
A177: -
A178: Table 16c. Intermittent O&M Calculation Input
A179: Category | B179: Value
A180: Initial year | B180: -
A181: Last Year | B181: -
A182: Occurs every _____ Years; set to 30 if occurs only once | B182: 1
A183: Annual O&M Costs in the No Build Scenario | B183: -
A184: Annual O&M Costs Real Growth Rate in the Build Scenario | B184: -
A185: -
A186: Table 16d. Intermittent O&M Calculation Input
A187: Category | B187: Value
A188: Initial year | B188: -
A189: Last Year | B189: -
A190: Occurs every _____ Years; set to 30 if occurs only once | B190: 1
A191: Annual O&M Costs in the No Build Scenario | B191: -
A192: Annual O&M Costs Real Growth Rate in the Build Scenario | B192: -
A193: Note: The "Occurs every _____ " field in Tables 16a through 16d must be greater than or equal to 1, even if you are not adding an additional recurring maintenance cost.
A194: -
A195: Note: Manual O&M cost values should be entered in the year of dollar entered in Table 14.
A196: Table 17. Manual O&M Cost Entry
A197: Calendar Year | B197: Analysis Year | C197: No Build Annual Cost | D197: Build Annual Cost | E197: O&M Cost Difference Discounted
A198: =IFERROR(IF(B32="Required","N/A",B32),"N/A") -> 2022 | B198: =IFERROR(IF(A198=$B$35,1,IF(A198>$B$35,A198-$B$35+1,IF(A198<$B$35,A198-$B$35+1,"N/A"))),"N/A") -> -7 | C198: 0 | D198: 0 | E198: =IFERROR((C198-D198)*VLOOKUP($B$149,Defaults!$A$290:$B$340, 2,FALSE)*VLOOKUP(A198,Defaults!$A$290:$B$340,2,FALSE),0) -> 0
A199: =IF(A198="N/A","N/A",IF(A198>=$B$35+$B$36-1,"N/A",A198+1)) -> 2023 | B199: -6 | C199: 0 | D199: 0 | E199: =IFERROR((C199-D199)*VLOOKUP($B$149,Defaults!$A$290:$B$340, 2,FALSE)*VLOOKUP(A199,Defaults!$A$290:$B$340,2,FALSE),0) -> 0
A200: 2024 | B200: -5 | C200: 0 | D200: 0 | E200: =IFERROR((C200-D200)*VLOOKUP($B$149,Defaults!$A$290:$B$340, 2,FALSE)*VLOOKUP(A200,Defaults!$A$290:$B$340,2,FALSE),0) -> 0
... 495 more rows

Sheet 123.3
A1: Bridge and Project Overview
A2: ID of bridge, description of improvement, project timeline, traffic volume
A3: Add New Bridge (press Ctrl + Shift + B)
A4: Add Sensitivity Analysis for Current Bridge (press Ctrl + Shift + S)
A5: Delete this Bridge (press Ctrl + Shift + D)
A6: Note: Only delete bridges using this command/button. Deleting bridge tabs through right click will result in (fixable) errors on the Results tab.
A7: Change Bridge Name (press Ctrl + Shift + N)
A8: -
A9: Table 1. Bridge Variables
A10: Bridge Variables | B10: Bridge Values
A11: State | B11: Mississippi
A12: County | B12: Lauderdale
A13: Structure Number | B13: 210008003812330
A14: Inventory Route | B14: =VLOOKUP($C$80,NBIData[],COLUMN(NBIData[ROUTE_NUMBER_005D]),FALSE) -> 00080
A15: Feature Intersected | B15: =VLOOKUP($C$80,NBIData[],COLUMN(NBIData[FEATURES_DESC_006A]),FALSE) -> 'CHUNKY RIVER'
A16: Facility Carried | B16: =VLOOKUP($C$80,NBIData[],COLUMN(NBIData[FACILITY_CARRIED_007]),FALSE) -> 'US 80'
A17: Latitude | B17: =LEFT(VLOOKUP($C$80,NBIData[],COLUMN(NBIData[LAT_016]),FALSE), 2) & CHAR(176) & " " & MID(VLOOKUP($C$80,NBIData[],COLUMN(NBIData[LAT_016]),FALSE), 3, 2) &"'" & " " & MID(VLOOKUP($C$80,NBIData[],COLUMN(NBIData[LAT_016]),FALSE), 5, 2) &"."& MID(VLOOKUP($C$80,NBIData[],COLUMN(NBIData[LAT_016]),FALSE), 7, 2) & CHAR(34) -> 32° 19' 35.17"
A18: Longitude | B18: ="-" & MID(VLOOKUP($C$80,NBIData[],COLUMN(NBIData[LONG_017]),FALSE), 2, 2) & CHAR(176) & " " & MID(VLOOKUP($C$80,NBIData[],COLUMN(NBIData[LONG_017]),FALSE), 4, 2) &"'" & " " & MID(VLOOKUP($C$80,NBIData[],COLUMN(NBIData[LONG_017]),FALSE), 6, 2) &"."& MID(VLOOKUP($C$80,NBIData[],COLUMN(NBIData[LONG_017]),FALSE), 8, 2) & CHAR(34) -> -88° 54' 34.32"
A19: Bridge Length (mi) | B19: =VLOOKUP($C$80,NBIData[],COLUMN(NBIData[STRUCTURE_LEN_MT_049]),FALSE)/1609 -> 0.06973275326
